Workbook

Sheet Performance_Outputs_0 (hidden)
A1: G
A2: G | B2: Performance Rating Method Outputs
A3: G
A4: G | Q4: Multiplier
A5: G | B5: Energy Model ID | H5: =INDEX(MBD_EMI_Table,2,1) -> 0 | Q5: =IFERROR(INDEX(MBD_EMI_Table,MATCH($H$5,MBD_EMI_Index,0),MATCH('1 - Multiple Buildings Details'!$J$16,MBD_EMI_Hdr,0)),"ERROR") -> 0
A6: G
A7: G | B7: Energy Sources
A8: G
A9: G | B9: Enter each energy source serving the project, the units for the energy consumption and demand, and the associated utility rate name and tariff structure. Default EIA Rates may be used in lieu of local utility rates at the discretion of the energy modeler. All project energy types and the demand and consumption units must be entered before entering energy simulation output data. Also enter the units used to report energy consumption totals (the sum of all energy types) for site energy consumption and source energy consumption (generally, the IP units are Btu x 10^6, the SI site energy units are kWh, and the SI source energy units are MJ). | BC9: Additional Notes (Optional):
A10: G | B10: DES Path 1: If the project is using campus or district thermal energy using ASHRAE 90.1-2010 without Addenda (District Energy Modeling Path 1), select District Cooling, District Hot Water, or District Steam as applicable and all other energy sources serving the building
A11: G | B11: DES Path 2: If the project is modeling campus or district thermal energy using the Full DES Performance Accounting method (District Energy Modeling Path 2) include each energy source serving the building except District Energy, AND include each energy source in the district or campus plant (e.g. electricity, natural gas, etc.) if different from the energy sources serving the building. Do not select District Cooling, District Hot Water, or District Steam.
A12: G | B12: DES Path 3: If the project is modeling campus or district thermal energy using the Streamlined DES Accounting Method (District Energy Modeling Path 3), select District Cooling, District Hot Water, or District Steam as applicable, AND each energy source serving the building, AND each energy source in the district or campus plant if different from the energy sources serving the building (e.g. electricity, natural gas, etc.).
A13: G
A14: G | B14: Energy Type | C14: Energy Consumption Units | E14: Demand Units | F14: Utility Rate Name | H14: Utility Rate Structure | K14: Unit Conversion Factors
A15: G | K15: =CONCATENATE("Energy Type Consumption Units to Site Energy Consumption (",PO_SiteUnits,")") -> Energy Type Consumption Units to Site Energy Consumption (Btu x 10^6) | M15: =CONCATENATE("Energy Type Consumption Units to Source Energy Consumption (",PO_SourceUnits,")") -> Energy Type Consumption Units to Source Energy Consumption (Btu x 10^6)
A16: G | B16: Energy_Type | C16: Energy_Consumption_Units | E16: Demand_Units | F16: Utility_Rate_Name | H16: Utility_Rate_Structure | K16: Site_Energy_Conversion_Factor | M16: Source_Energy_Conversion_Factor
A17: G | B17: Electricity | C17: kWh | E17: kW | K17: =IFERROR(VLOOKUP("kBtu",EnergyUnitsTable,3,FALSE)/VLOOKUP(PO_SiteUnits,EnergyUnitsTable,3,FALSE)*VLOOKUP($C17,EnergyUnitsTable,3,FALSE),"") -> 0.003412 | M17: =IFERROR(VLOOKUP("kBtu",EnergyUnitsTable,3,FALSE)/VLOOKUP(PO_SourceUnits,EnergyUnitsTable,3,FALSE)*VLOOKUP($C17,EnergyUnitsTable,3,FALSE)*VLOOKUP($B17,FuelTypesTable,2,FALSE),"") -> 0.01071368
A18: G | B18: Natural Gas | C18: therm | E18: Btuh x 10^6 | K18: 0.1 | M18: 0.105
A19: G | B19: District Cooling | C19: MWh | E19: MW | K19: 3.412 | M19: 3.412
A20: G | B20: District Cooling | C20: MWh | E20: MW | K20: 3.412 | M20: 3.412
A21: G | B21: District Cooling | C21: MWh | E21: MW | K21: 3.412 | M21: 3.412
A22: G | B22: District Cooling | C22: MWh | E22: MW | K22: 3.412 | M22: 3.412
A23: G | B23: District Cooling | C23: MWh | E23: MW | K23: 3.412 | M23: 3.412
A24: G | B24: District Cooling | C24: MWh | E24: MW | K24: 3.412 | M24: 3.412
A25: G | B25: District Cooling | C25: MWh | E25: MW | K25: 3.412 | M25: 3.412
A26: G | B26: District Cooling | C26: MWh | E26: MW | K26: 3.412 | M26: 3.412
A27: G | B27: District Cooling | C27: MWh | E27: MW | K27: 3.412 | M27: 3.412
A28: G | B28: District Cooling | C28: MWh | E28: MW | K28: 3.412 | M28: 3.412
A29: G | B29: District Cooling | C29: MWh | E29: MW | K29: 3.412 | M29: 3.412
A30: G | B30: District Cooling | C30: MWh | E30: MW | K30: 3.412 | M30: 3.412
A31: G | B31: District Cooling | C31: MWh | E31: MW | K31: 3.412 | M31: 3.412
A32: G | B32: Site energy consumption units used to report energy consumption totals (sum of energy types) | L32: =IF(SI_IP_Units="SI","MWh","Btu x 10^6") -> Btu x 10^6
A33: G | B33: Source energy consumption units used to report energy consumption totals (sum of energy types) | L33: =IF(SI_IP_Units="SI","MWh","Btu x 10^6") -> Btu x 10^6
A34: G
A35: G
A36: G | B36: On-Site Renewable Energy Production
A37: G | AD37: Site-generated renewable energy?
A38: G | B38: The project building uses on-site renewable energy systems. (Optional) | AD38: TRUE
A39: G
A40: G | B40: Table: On-Site Renewable energy source summary
A41: G | B41: Renewable energy production should be reported in the table below. Note: This calculator will automatically reduce the proposed energy consumption and cost to accurately reflect the revised results. Therefore, any site-generated renewable energy production should NOT be included in the Performance Rating Method tables below. Select the site-generated renewable energy source. Enter the rated capacity of the site-generated renewable source including the units (e.g. for photovoltaics 10 kW). Include all relevant capacities (i.e for solar thermal, both the storage tank capacity and the solar thermal panel capacity). The cost of the Site-generated renewable cost will be automatically determined using the virtual rate once the output data (consumption and cost) is entered below. The cost may be overridden by the user, however this may generate an issue on the Quality Checks and the user should be prepared to justify the entered cost value.
A42: G
A43: G | B43: On-Site Renewable Source | E43: Offset Energy Type | F43: Rated Capacity | H43: Annual Site Energy Generated | J43: Annual Energy Cost Offset with Site-Generated Renewables ($/year) | T43: Default_Cost | U43: Rate_Variance
A44: G | B44: Renewable_Source | E44: Offset_Energy_Type | F44: Rated_Capacity | H44: Annual_Site_Energy | J44: Cost | Q44: Site_Unit_Conversion | R44: Source_Unit_Conversion | S44: EFLH | T44: Default_Cost | U44: Rate_Variance
A45: A | B45: Photovoltaic system | E45: Electricity | G45: =IFERROR(IF(ISBLANK($E45),"",VLOOKUP($E45,PO_Enrgy_1_Table,MATCH($E$16,PO_Enrgy_1_Hdr,0),FALSE)),"") -> kW | I45: =IFERROR(IF(ISBLANK($E45),"",VLOOKUP($E45,PO_Enrgy_1_Table,MATCH($C$16,PO_Enrgy_1_Hdr,0),FALSE)),"") -> kWh | J45: =IFERROR($H45*VLOOKUP($E45,PO_Enrgy_8_Table,MATCH($H$316,PO_Enrgy_8_Hdr,0),FALSE),"") ->  | Q45: =IFERROR(IF(ISBLANK($E45),"",VLOOKUP($E45,PO_Enrgy_1_Table,MATCH($K$16,PO_Enrgy_1_Hdr,0),FALSE)),"") -> 0.003412 | R45: =IFERROR(IF(ISBLANK($E45),"",VLOOKUP($E45,PO_Enrgy_1_Table,MATCH($M$16,PO_Enrgy_1_Hdr,0),FALSE)),"") -> 0.01071368 | S45: =IFERROR((H45*VLOOKUP(I45,EnergyUnitsTable,3,FALSE))/(F45*VLOOKUP(G45,DemandTable,3,FALSE)),"") ->  | T45: =IFERROR($H45*VLOOKUP($E45,PO_Enrgy_8_Table,MATCH($H$316,PO_Enrgy_8_Hdr,0),FALSE),"") ->  | U45: =IFERROR(1-$J45/$T45,0) -> 0
B46: Solar thermal system | E46: Natural Gas | G46: =IFERROR(IF(ISBLANK($E46),"",VLOOKUP($E46,PO_Enrgy_1_Table,MATCH($E$16,PO_Enrgy_1_Hdr,0),FALSE)),"") -> Btuh x 10^6 | I46: =IFERROR(IF(ISBLANK($E46),"",VLOOKUP($E46,PO_Enrgy_1_Table,MATCH($C$16,PO_Enrgy_1_Hdr,0),FALSE)),"") -> therm | Q46: =IFERROR(IF(ISBLANK($E46),"",VLOOKUP($E46,PO_Enrgy_1_Table,MATCH($K$16,PO_Enrgy_1_Hdr,0),FALSE)),"") -> 0.1 | R46: =IFERROR(IF(ISBLANK($E46),"",VLOOKUP($E46,PO_Enrgy_1_Table,MATCH($M$16,PO_Enrgy_1_Hdr,0),FALSE)),"") -> 0.105 | S46: =IFERROR((H46*VLOOKUP(I46,EnergyUnitsTable,3,FALSE))/(F46*VLOOKUP(G46,DemandTable,3,FALSE)),"") ->  | T46: =IFERROR($H46*VLOOKUP($E46,PO_Enrgy_8_Table,MATCH($H$316,PO_Enrgy_8_Hdr,0),FALSE),"") ->  | U46: =IFERROR(1-$J46/$T46,0) -> 0
B47: Renewable Summary
B48: Offset Energy Type | E48: Annual Site Energy Generated | H48: =CONCATENATE("Annual Source Energy Generated (", PO_SourceUnits, ")") -> Annual Source Energy Generated (Btu x 10^6) | J48: Annual Energy Cost Offset with Site-Generated Renewables ($/year)
E49: Units per Energy Type | G49: =CONCATENATE("Units = ", PO_SiteUnits,")") -> Units = Btu x 10^6)
B50: Energy_Type | E50: Site_Energy_Ind_Units | F50: Site_Ind_Units | G50: Site_Energy_Same_Units | H50: Source_Energy | J50: Cost | Q50: Site_Unit_Conversion | R50: Source_Unit_Conversion
B51: =IFERROR(IF(ISBLANK(B17),"",B17),"") -> Electricity | E51: =IFERROR(IF(PO_SiteRenewable=TRUE,SUMIF(INDEX(PO_renewable_table,0,MATCH($E$44,PO_renewable_hdr,0)),$B51,INDEX(PO_renewable_table,0,MATCH($H$44,PO_renewable_hdr,0))),""),"") -> 0 | F51: =IFERROR(IF(ISBLANK($B51),"",VLOOKUP($B51,PO_Enrgy_1_Table,MATCH($C$16,PO_Enrgy_1_Hdr,0),FALSE)),"") -> kWh | G51: =IFERROR($E51*$Q51,"") -> 0 | H51: =IFERROR($E51*$R51,"") -> 0 | J51: =IFERROR(IF(PO_SiteRenewable=TRUE,SUMIF($E$45:$E$46,$B51,$J$45:$J$46),0),"") -> 0 | Q51: =IFERROR(IF(ISBLANK($B51),"",VLOOKUP($B51,PO_Enrgy_1_Table,MATCH($K$16,PO_Enrgy_1_Hdr,0),FALSE)),"") -> 0.003412 | R51: =IFERROR(IF(ISBLANK($B51),"",VLOOKUP($B51,PO_Enrgy_1_Table,MATCH($M$16,PO_Enrgy_1_Hdr,0),FALSE)),"") -> 0.01071368
B52: Natural Gas | E52: 0 | F52: therm | G52: 0 | H52: 0 | J52: 0 | Q52: 0.1 | R52: 0.105
B53: District Cooling | E53: 0 | F53: MWh | G53: 0 | H53: 0 | J53: 0 | Q53: 3.412 | R53: 3.412
B54: District Cooling | E54: 0 | F54: MWh | G54: 0 | H54: 0 | J54: 0 | Q54: 3.412 | R54: 3.412
B55: District Cooling | E55: 0 | F55: MWh | G55: 0 | H55: 0 | J55: 0 | Q55: 3.412 | R55: 3.412
B56: District Cooling | E56: 0 | F56: MWh | G56: 0 | H56: 0 | J56: 0 | Q56: 3.412 | R56: 3.412
B57: District Cooling | E57: 0 | F57: MWh | G57: =IFERROR($E57*$Q57,"") -> 0 | H57: =IFERROR($E57*$R57,"") -> 0 | J57: 0 | Q57: 3.412 | R57: 3.412
B58: District Cooling | E58: 0 | F58: MWh | G58: 0 | H58: 0 | J58: 0 | Q58: 3.412 | R58: 3.412
B59: District Cooling | E59: 0 | F59: MWh | G59: 0 | H59: 0 | J59: 0 | Q59: 3.412 | R59: 3.412
B60: District Cooling | E60: 0 | F60: MWh | G60: 0 | H60: 0 | J60: 0 | Q60: 3.412 | R60: 3.412
B61: District Cooling | E61: 0 | F61: MWh | G61: 0 | H61: 0 | J61: 0 | Q61: 3.412 | R61: 3.412
B62: District Cooling | E62: 0 | F62: MWh | G62: 0 | H62: 0 | J62: 0 | Q62: 3.412 | R62: 3.412
B63: =IFERROR(IF(ISBLANK(B29),"",B29),"") -> District Cooling | E63: 0 | F63: MWh | G63: 0 | H63: 0 | J63: 0 | Q63: 3.412 | R63: 3.412
B64: District Cooling | E64: 0 | F64: MWh | G64: 0 | H64: 0 | J64: 0 | Q64: 3.412 | R64: 3.412
B65: District Cooling | E65: 0 | F65: MWh | G65: 0 | H65: 0 | J65: 0 | Q65: 3.412 | R65: 3.412
B66: Total | G66: =IFERROR(SUM(INDEX(PO_Enrgy_2_Table,0,MATCH($G$50,PO_Enrgy_2_Hdr,0))),"") -> 0 | H66: =IFERROR(SUM(INDEX(PO_Enrgy_2_Table,0,MATCH($H$50,PO_Enrgy_2_Hdr,0))),"") -> 0 | I66: =SUM(I50:I52) -> 0 | J66: =IFERROR(SUM(J44:J46),"") -> 0
B67: Percent renewable energy (by cost) | J67: =IF(Datacenter_Avg=TRUE,IFERROR($J66/$J$451,""),IFERROR($J66/$J$386,"")) -> 
A68: G
A69: G
A70: G | B70: Exceptional Calculation Methods | T70: Exceptional Calculations?
A71: G | T71: TRUE
A72: G | B72: The building energy analysis includes exceptional calculation methods. (Optional)
A73: G | B73: Data Centers: If using the Data Center Calculator to document energy improvements in IT loads, the checkbox stating that the building energy analysis includes exceptional calculation methods must be checked. In the table below, select the checkbox “Apply to Baseline?” for each end-use impacted, and provide: • The completed Data Center Calculator (found under the prerequisite's "Resources" tab in the Credit Library), as well as copies of any other spreadsheets used to perform the calculations • If energy efficiency credit is applied for any future IT equipment, electrical infrastructure, and/or for future server room cooling equipment that will serve unfinished spaces (meaning that the IT equipment, electrical infrastructure, and/or unfinished space cooling equipment will not be installed during Startup Occupancy), provide a binding Owner commitment letter and (for any tenants) sample lease agreements with binding tenant requirements that confirms that the future installed IT equipment will be at least as efficient as the equipment modeled in the Data Center Calculator. Note that the future equipment may not be modeled as being more efficient than the equipment installed for Startup occupancy. • If taking credit for the impact of IT equipment load reductions on HVAC energy consumption, upload the simulation input summary and simulation output reports, and Performance Rating summary with the baseline model revised to include the baseline IT and electrical infrastructure from the Data Center Calculator.
A74: G
A75: G | B75: Table: Exceptional calculation methods energy summary
A76: G | B76: Report Exceptional calculation methods in the table below. Select "Add to Baseline" if the exceptional calculation adjusts the Baseline building energy consumption and cost up, or "Subtract from Proposed" if the exceptional calculation adjusts the Proposed building energy consumption and cost down. This calculator will automatically reduce the proposed energy consumption and cost, or increase the baseline energy consumption and cost to accurately reflect the revised results. Therefore, any exceptional calculation methods should NOT be included in the Performance Rating Method Compliance report below. If any single Exceptional Calculation Method results in energy penalties for a given energy type (i.e. increased proposed case electricity energy usage, or decreased baseline case fossil fuel energy usage), that penalty should be entered as a negative number. If any single Exceptional Calculation Method affects more than one energy type, please add additional rows to capture the method's impact to that energy type. If taking credit for Data Center Equipment or Retail Process Loads, those savings must be recorded here and the supplemental spreadsheets associated with that equipment must be uploaded as part of the submittal documents. The cost of the Exceptional Calculation Method will be automatically determined using the virtual rate once the output data (consumption and cost) is entered below. The cost may be overridden by the user, however this may generate an issue on the Quality Checks and the user should be prepared to justify the entered cost value.
A77: G
A78: G | B78: Exceptional Calculation Number | C78: Exceptional Calculation Method ID | D78: Energy Type(s) | F78: Add to Baseline? Subtract from Proposed? | G78: Annual Energy Difference by Energy Type | L78: Annual Energy Cost Difference
A79: G | G79: Site Energy (Units per Energy Type) | I79: =CONCATENATE("Site Energy (Units = ", PO_SiteUnits,")") -> Site Energy (Units = Btu x 10^6) | J79: ="Source Energy Consumption (" & PO_SourceUnits & ")" -> Source Energy Consumption (Btu x 10^6)
A80: G | B80: Ex_Calc_Number | C80: Ex_Calc_ID | D80: Energy_Type | F80: Add_Baseline_Subtract_Proposed | G80: Site_Energy_Ind_Units | H80: Site_Ind_Units | I80: Site_Energy_Same_Units | J80: Source_Energy | L80: Cost | Q80: Site_Unit_Conversion | R80: Source_Unit_Conversion | T80: Default_Cost | U80: Rate_Variance
A81: B | H81: =IFERROR(IF(ISBLANK($D81),"",VLOOKUP($D81,PO_Enrgy_1_Table,MATCH($C$16,PO_Enrgy_1_Hdr,0),FALSE)),"") ->  | I81: =IFERROR(VLOOKUP($D81,PO_Enrgy_1_Table,MATCH($K$16,PO_Enrgy_1_Hdr,0),FALSE)*$G81,"") ->  | J81: =IFERROR(VLOOKUP($D81,PO_Enrgy_1_Table,MATCH($M$16,PO_Enrgy_1_Hdr,0),FALSE)*$G81,"") ->  | L81: =IFERROR($G81*IF($F81="Subtract from Proposed",VLOOKUP($D81,PO_Enrgy_8_Table,MATCH($H$316,PO_Enrgy_8_Hdr,0),FALSE),VLOOKUP($D81,PO_Enrgy_8_Table,MATCH($E$316,PO_Enrgy_8_Hdr,0),FALSE)),"") ->  | Q81: =IFERROR(IF(ISBLANK($D81),"",VLOOKUP($D81,PO_Enrgy_1_Table,MATCH($K$16,PO_Enrgy_1_Hdr,0),FALSE)),"") ->  | R81: =IFERROR(IF(ISBLANK($D81),"",VLOOKUP($D81,PO_Enrgy_1_Table,MATCH($M$16,PO_Enrgy_1_Hdr,0),FALSE)),"") ->  | T81: =IFERROR($G81*IF($F81="Subtract from Proposed",VLOOKUP($D81,PO_Enrgy_8_Table,MATCH($H$316,PO_Enrgy_8_Hdr,0),FALSE),VLOOKUP($D81,PO_Enrgy_8_Table,MATCH($E$316,PO_Enrgy_8_Hdr,0),FALSE)),"") ->  | U81: =IFERROR(1-$J81/$T81,0) -> 0
B82: 1 | H82: =IFERROR(IF(ISBLANK($D82),"",VLOOKUP($D82,PO_Enrgy_1_Table,MATCH($C$16,PO_Enrgy_1_Hdr,0),FALSE)),"") ->  | I82: =IFERROR(VLOOKUP($D82,PO_Enrgy_1_Table,MATCH($K$16,PO_Enrgy_1_Hdr,0),FALSE)*$G82,"") ->  | J82: =IFERROR(VLOOKUP($D82,PO_Enrgy_1_Table,MATCH($M$16,PO_Enrgy_1_Hdr,0),FALSE)*$G82,"") ->  | L82: =IFERROR($G82*IF($F82="Subtract from Proposed",VLOOKUP($D82,PO_Enrgy_8_Table,MATCH($H$316,PO_Enrgy_8_Hdr,0),FALSE),VLOOKUP($D82,PO_Enrgy_8_Table,MATCH($E$316,PO_Enrgy_8_Hdr,0),FALSE)),"") ->  | Q82: =IFERROR(IF(ISBLANK($D82),"",VLOOKUP($D82,PO_Enrgy_1_Table,MATCH($K$16,PO_Enrgy_1_Hdr,0),FALSE)),"") ->  | R82: =IFERROR(IF(ISBLANK($D82),"",VLOOKUP($D82,PO_Enrgy_1_Table,MATCH($M$16,PO_Enrgy_1_Hdr,0),FALSE)),"") ->  | T82: =IFERROR($G82*IF($F82="Subtract from Proposed",VLOOKUP($D82,PO_Enrgy_8_Table,MATCH($H$316,PO_Enrgy_8_Hdr,0),FALSE),VLOOKUP($D82,PO_Enrgy_8_Table,MATCH($E$316,PO_Enrgy_8_Hdr,0),FALSE)),"") ->  | U82: =IFERROR(1-$J82/$T82,0) -> 0
B83: 2 | H83: =IFERROR(IF(ISBLANK($D83),"",VLOOKUP($D83,PO_Enrgy_1_Table,MATCH($C$16,PO_Enrgy_1_Hdr,0),FALSE)),"") ->  | I83: =IFERROR(VLOOKUP($D83,PO_Enrgy_1_Table,MATCH($K$16,PO_Enrgy_1_Hdr,0),FALSE)*$G83,"") ->  | J83: =IFERROR(VLOOKUP($D83,PO_Enrgy_1_Table,MATCH($M$16,PO_Enrgy_1_Hdr,0),FALSE)*$G83,"") ->  | L83: =IFERROR($G83*IF($F83="Subtract from Proposed",VLOOKUP($D83,PO_Enrgy_8_Table,MATCH($H$316,PO_Enrgy_8_Hdr,0),FALSE),VLOOKUP($D83,PO_Enrgy_8_Table,MATCH($E$316,PO_Enrgy_8_Hdr,0),FALSE)),"") ->  | Q83: =IFERROR(IF(ISBLANK($D83),"",VLOOKUP($D83,PO_Enrgy_1_Table,MATCH($K$16,PO_Enrgy_1_Hdr,0),FALSE)),"") ->  | R83: =IFERROR(IF(ISBLANK($D83),"",VLOOKUP($D83,PO_Enrgy_1_Table,MATCH($M$16,PO_Enrgy_1_Hdr,0),FALSE)),"") ->  | T83: =IFERROR($G83*IF($F83="Subtract from Proposed",VLOOKUP($D83,PO_Enrgy_8_Table,MATCH($H$316,PO_Enrgy_8_Hdr,0),FALSE),VLOOKUP($D83,PO_Enrgy_8_Table,MATCH($E$316,PO_Enrgy_8_Hdr,0),FALSE)),"") ->  | U83: =IFERROR(1-$J83/$T83,0) -> 0
B84: 3 | H84: =IFERROR(IF(ISBLANK($D84),"",VLOOKUP($D84,PO_Enrgy_1_Table,MATCH($C$16,PO_Enrgy_1_Hdr,0),FALSE)),"") ->  | I84: =IFERROR(VLOOKUP($D84,PO_Enrgy_1_Table,MATCH($K$16,PO_Enrgy_1_Hdr,0),FALSE)*$G84,"") ->  | J84: =IFERROR(VLOOKUP($D84,PO_Enrgy_1_Table,MATCH($M$16,PO_Enrgy_1_Hdr,0),FALSE)*$G84,"") ->  | L84: =IFERROR($G84*IF($F84="Subtract from Proposed",VLOOKUP($D84,PO_Enrgy_8_Table,MATCH($H$316,PO_Enrgy_8_Hdr,0),FALSE),VLOOKUP($D84,PO_Enrgy_8_Table,MATCH($E$316,PO_Enrgy_8_Hdr,0),FALSE)),"") ->  | Q84: =IFERROR(IF(ISBLANK($D84),"",VLOOKUP($D84,PO_Enrgy_1_Table,MATCH($K$16,PO_Enrgy_1_Hdr,0),FALSE)),"") ->  | R84: =IFERROR(IF(ISBLANK($D84),"",VLOOKUP($D84,PO_Enrgy_1_Table,MATCH($M$16,PO_Enrgy_1_Hdr,0),FALSE)),"") ->  | T84: =IFERROR($G84*IF($F84="Subtract from Proposed",VLOOKUP($D84,PO_Enrgy_8_Table,MATCH($H$316,PO_Enrgy_8_Hdr,0),FALSE),VLOOKUP($D84,PO_Enrgy_8_Table,MATCH($E$316,PO_Enrgy_8_Hdr,0),FALSE)),"") ->  | U84: =IFERROR(1-$J84/$T84,0) -> 0
B85: Subtotals added to baseline
B86: Energy_Type | G86: Site_Energy_Ind_Units | H86: Site_Ind_Units | I86: Site_Energy_Same_Units | J86: Source_Energy | L86: Cost | Q86: Site_Unit_Conversion | R86: Source_Unit_Conversion
B87: =IFERROR(IF(ISBLANK(B17),"",B17),"") -> Electricity | G87: =IFERROR(IF(PO_ShowExCalc=TRUE,SUMIFS(INDEX(PO_ExCalc_Table,0,MATCH($G$80,PO_ExCalc_Hdr,0)),INDEX(PO_ExCalc_Table,0,MATCH($D$80,PO_ExCalc_Hdr,0)),$B87,INDEX(PO_ExCalc_Table,0,MATCH($F$80,PO_ExCalc_Hdr,0)),"Add to Baseline"),""),"") -> 0 | H87: =IFERROR(IF(ISBLANK($B87),"",VLOOKUP($B87,PO_Enrgy_1_Table,MATCH($C$16,PO_Enrgy_1_Hdr,0),FALSE)),"") -> kWh | I87: =IFERROR($G87*$Q87,"") -> 0 | J87: =IFERROR($G87*$R87,"") -> 0 | K87: =IFERROR($G87*$Q87,"") -> 0 | L87: =IFERROR(IF(PO_ShowExCalc=TRUE,SUMIFS(INDEX(PO_ExCalc_Table,0,MATCH($L$80,PO_ExCalc_Hdr,0)),INDEX(PO_ExCalc_Table,0,MATCH($D$80,PO_ExCalc_Hdr,0)),$B87,INDEX(PO_ExCalc_Table,0,MATCH($F$80,PO_ExCalc_Hdr,0)),"Add to Baseline"),""),"") -> 0 | M87: =IFERROR(IF(PO_ShowExCalc=TRUE,SUMIFS(M$81:M$84,$D$81:$D$84,$B87,$F$81:$F$84,"Add to Baseline"),""),"") -> 0 | Q87: =IFERROR(IF(ISBLANK($B87),"",VLOOKUP($B87,PO_Enrgy_1_Table,MATCH($K$16,PO_Enrgy_1_Hdr,0),FALSE)),"") -> 0.003412 | R87: =IFERROR(IF(ISBLANK($B87),"",VLOOKUP($B87,PO_Enrgy_1_Table,MATCH($M$16,PO_Enrgy_1_Hdr,0),FALSE)),"") -> 0.01071368
B88: Natural Gas | G88: 0 | H88: therm | I88: 0 | J88: 0 | K88: 0 | L88: 0 | M88: 0 | Q88: 0.1 | R88: 0.105
B89: District Cooling | G89: 0 | H89: MWh | I89: 0 | J89: 0 | K89: 0 | L89: 0 | M89: 0 | Q89: 3.412 | R89: 3.412
B90: District Cooling | G90: 0 | H90: MWh | I90: 0 | J90: 0 | K90: 0 | L90: 0 | M90: 0 | Q90: 3.412 | R90: 3.412
B91: District Cooling | G91: 0 | H91: MWh | I91: 0 | J91: 0 | K91: 0 | L91: 0 | M91: 0 | Q91: 3.412 | R91: 3.412
B92: District Cooling | G92: 0 | H92: MWh | I92: 0 | J92: 0 | K92: 0 | L92: 0 | M92: 0 | Q92: 3.412 | R92: 3.412
B93: District Cooling | G93: 0 | H93: MWh | I93: =IFERROR($G93*$Q93,"") -> 0 | J93: =IFERROR($G93*$R93,"") -> 0 | K93: =IFERROR($G93*$Q93,"") -> 0 | L93: 0 | M93: 0 | Q93: 3.412 | R93: 3.412
B94: District Cooling | G94: 0 | H94: MWh | I94: 0 | J94: 0 | K94: 0 | L94: 0 | M94: 0 | Q94: 3.412 | R94: 3.412
B95: District Cooling | G95: 0 | H95: MWh | I95: 0 | J95: 0 | K95: 0 | L95: 0 | M95: 0 | Q95: 3.412 | R95: 3.412
B96: District Cooling | G96: 0 | H96: MWh | I96: 0 | J96: 0 | K96: 0 | L96: 0 | M96: 0 | Q96: 3.412 | R96: 3.412
B97: District Cooling | G97: 0 | H97: MWh | I97: 0 | J97: 0 | K97: 0 | L97: 0 | M97: 0 | Q97: 3.412 | R97: 3.412
B98: District Cooling | G98: 0 | H98: MWh | I98: 0 | J98: 0 | K98: 0 | L98: 0 | M98: 0 | Q98: 3.412 | R98: 3.412
B99: =IFERROR(IF(ISBLANK(B29),"",B29),"") -> District Cooling | G99: 0 | H99: MWh | I99: 0 | J99: 0 | K99: 0 | L99: 0 | M99: 0 | Q99: 3.412 | R99: 3.412
B100: District Cooling | G100: 0 | H100: MWh | I100: 0 | J100: 0 | K100: 0 | L100: 0 | M100: 0 | Q100: 3.412 | R100: 3.412
B101: District Cooling | G101: 0 | H101: MWh | I101: 0 | J101: 0 | K101: 0 | L101: 0 | M101: 0 | Q101: 3.412 | R101: 3.412
B102: Subtotals subtracted from proposed
B103: Energy_Type | G103: Site_Energy_Ind_Units | H103: Site_Ind_Units | I103: Site_Energy_Same_Units | J103: Source_Energy | L103: Cost | Q103: Site_Unit_Conversion | R103: Source_Unit_Conversion
B104: =IFERROR(IF(ISBLANK(B17),"",B17),"") -> Electricity | G104: =IFERROR(IF(PO_ShowExCalc=TRUE,SUMIFS(INDEX(PO_ExCalc_Table,0,MATCH($G$80,PO_ExCalc_Hdr,0)),INDEX(PO_ExCalc_Table,0,MATCH($D$80,PO_ExCalc_Hdr,0)),$B104,INDEX(PO_ExCalc_Table,0,MATCH($F$80,PO_ExCalc_Hdr,0)),"Subtract from Proposed"),""),"") -> 0 | H104: =IFERROR(IF(ISBLANK($B104),"",VLOOKUP($B104,PO_Enrgy_1_Table,MATCH($C$16,PO_Enrgy_1_Hdr,0),FALSE)),"") -> kWh | I104: =IFERROR($G104*$Q104,"") -> 0 | J104: =IFERROR($G104*$R104,"") -> 0 | K104: =IFERROR($G104*$Q104,"") -> 0 | L104: =IFERROR(IF(PO_ShowExCalc=TRUE,SUMIFS(INDEX(PO_ExCalc_Table,0,MATCH($L$80,PO_ExCalc_Hdr,0)),INDEX(PO_ExCalc_Table,0,MATCH($D$80,PO_ExCalc_Hdr,0)),$B104,INDEX(PO_ExCalc_Table,0,MATCH($F$80,PO_ExCalc_Hdr,0)),"Subtract from Proposed"),""),"") -> 0 | M104: =IFERROR(IF(PO_ShowExCalc=TRUE,SUMIFS(M$81:M$84,$D$81:$D$84,$B104,$F$81:$F$84,"Add to Baseline"),""),"") -> 0 | Q104: =IFERROR(IF(ISBLANK($B104),"",VLOOKUP($B104,PO_Enrgy_1_Table,MATCH($K$16,PO_Enrgy_1_Hdr,0),FALSE)),"") -> 0.003412 | R104: =IFERROR(IF(ISBLANK($B104),"",VLOOKUP($B104,PO_Enrgy_1_Table,MATCH($M$16,PO_Enrgy_1_Hdr,0),FALSE)),"") -> 0.01071368
B105: Natural Gas | G105: 0 | H105: therm | I105: 0 | J105: 0 | K105: 0 | L105: 0 | M105: 0 | Q105: 0.1 | R105: 0.105
B106: District Cooling | G106: 0 | H106: MWh | I106: 0 | J106: 0 | K106: 0 | L106: 0 | M106: 0 | Q106: 3.412 | R106: 3.412
B107: District Cooling | G107: 0 | H107: MWh | I107: 0 | J107: 0 | K107: 0 | L107: 0 | M107: 0 | Q107: 3.412 | R107: 3.412
B108: District Cooling | G108: 0 | H108: MWh | I108: 0 | J108: 0 | K108: 0 | L108: 0 | M108: 0 | Q108: 3.412 | R108: 3.412
B109: District Cooling | G109: 0 | H109: MWh | I109: 0 | J109: 0 | K109: 0 | L109: 0 | M109: 0 | Q109: 3.412 | R109: 3.412
B110: District Cooling | G110: 0 | H110: MWh | I110: =IFERROR($G110*$Q110,"") -> 0 | J110: =IFERROR($G110*$R110,"") -> 0 | K110: =IFERROR($G110*$Q110,"") -> 0 | L110: 0 | M110: 0 | Q110: 3.412 | R110: 3.412
B111: District Cooling | G111: 0 | H111: MWh | I111: 0 | J111: 0 | K111: 0 | L111: 0 | M111: 0 | Q111: 3.412 | R111: 3.412
B112: District Cooling | G112: 0 | H112: MWh | I112: 0 | J112: 0 | K112: 0 | L112: 0 | M112: 0 | Q112: 3.412 | R112: 3.412
B113: District Cooling | G113: 0 | H113: MWh | I113: 0 | J113: 0 | K113: 0 | L113: 0 | M113: 0 | Q113: 3.412 | R113: 3.412
B114: District Cooling | G114: 0 | H114: MWh | I114: 0 | J114: 0 | K114: 0 | L114: 0 | M114: 0 | Q114: 3.412 | R114: 3.412
B115: District Cooling | G115: 0 | H115: MWh | I115: 0 | J115: 0 | K115: 0 | L115: 0 | M115: 0 | Q115: 3.412 | R115: 3.412
B116: =IFERROR(IF(ISBLANK(B29),"",B29),"") -> District Cooling | G116: 0 | H116: MWh | I116: 0 | J116: 0 | K116: 0 | L116: 0 | M116: 0 | Q116: 3.412 | R116: 3.412
B117: District Cooling | G117: 0 | H117: MWh | I117: 0 | J117: 0 | K117: 0 | L117: 0 | M117: 0 | Q117: 3.412 | R117: 3.412
B118: District Cooling | G118: 0 | H118: MWh | I118: 0 | J118: 0 | K118: 0 | L118: 0 | M118: 0 | Q118: 3.412 | R118: 3.412
B119: Total Exceptional Calculation Method Adjustment | I119: =IFERROR(SUM(INDEX(PO_Enrgy_3_Table,0,MATCH($I86,PO_Enrgy_3_Hdr,0)),INDEX(PO_Enrgy_4_Table,0,MATCH($I103,PO_Enrgy_4_Hdr,0))),"") -> 0 | J119: =IFERROR(SUM(INDEX(PO_Enrgy_3_Table,0,MATCH($J86,PO_Enrgy_3_Hdr,0)),INDEX(PO_Enrgy_4_Table,0,MATCH($J103,PO_Enrgy_4_Hdr,0))),"") -> 0 | K119: =IFERROR(SUM(K$47:K$105),0) -> 0 | L119: =IFERROR(SUM(INDEX(PO_Enrgy_3_Table,0,MATCH($L86,PO_Enrgy_3_Hdr,0)),INDEX(PO_Enrgy_4_Table,0,MATCH($L103,PO_Enrgy_4_Hdr,0))),"") -> 0 | M119: =IFERROR(SUM(M$47:M$105),0) -> 0
A120: G
A121: G | B121: Upload: Exceptional calculation Provide a detailed narrative explaining the exceptional calculation method(s) performed, including all end-uses affected by the exceptional calculation method. If more than one exceptional calculation method is used, the exceptional calculation ID in the narrative must match the values listed in the table above. The exceptional calculation method must include: • Step-by-step documentation of the exceptional calculation method(s) performed detailed enough to reproduce the results • Copies of all spreadsheets used to perform the calculations, or simulation energy model input and output summaries documenting the calculations performed • For methods that significantly impact HVAC or refrigeration energy, the calculations shall be performed on a time step basis consistent with the simulation program used • The Performance Rating calculated with and without the exceptional calculation method • Documentation of the baseline and proposed assumptions. Documentation of baseline assumptions verify that the efficiency measure is not conventional practice by including, but not limited to: ○ a recently published study (published within five years of the project registration date) with researched tabulations or monitored data establishing standard practice for the given application in similar newly constructed facilities ○ a new construction utility or government program that incentivizes the measure ○ a document showing the systems used to perform the same function in other newly constructed facilities (for example, three similar facilities built within the past five years). These systems would be treated as the baseline system in the analysis, and evidence must be provided to demonstrate how the energy for the baseline and proposed buildings are determined ○ use any of the prescriptive requirements from 90.1-2013 as the baseline requirement without further justification to substantiate conventional practice, but only for the specific component addressed by the prescriptive requirement
A122: G
A123: G | B123: Energy Modeling Output Reporting Method
A124: G | B124: Select one of the following before entering any simulation output data: Note: If this is selected after data has been entered in the tables below, the energy types, baseline energy by end use, and baseline cost data will be cleared from these tables.
A125: G | B125: Complete the baseline results for each of the four building orientations, in addition to the proposed results. | R125: 1
A126: G
A127: G | B127: Report the averaged baseline results, in addition to the proposed results. In the EAp2 form uploads, provide simulation output summaries from the simulation output software that include the energy consumption by end-use, total energy consumption by energy type, and total energy cost by energy type, reported separately for each of the four baseline rotations, and the average baseline energy consumption by end-use, energy consumption by energy type, and energy cost by energy type. (The simulation software must report this average as a standard report in order to use this option).
A128: G
A129: G | B129: The project is not required to simulate four baseline orientations because (a) the vertical fenestration area on each orientation varies by less than 5%, (b) the energy code used does not require simulation of four baseline orientations, or (c) the building is more than 50% existing based on conditioned floor area. Report the non-rotated baseline results, in addition to the proposed results.
A130: G
A131: G | B131: The project is not required to simulate four baseline orientations because the building orientation is dictated by site consideration, as allowed by Table G3.1.5 (a) (baseline) Exception 1. Report the non-rotated baseline results, in addition to the proposed results.
A132: G
A133: G
A134: G | B134: Performance Rating Method Compliance Report
A135: G | B135: Table: Baseline energy summary by end use
A136: G | B136: Complete the table below for the proposed, providing information on baseline energy consumption and peak demand by end-use. This data will be used to autopopulate the Performance tables below. If an end-use has two energy types (e.g. proposed space heating includes both fossil fuel and electric), enter the end-use twice in the table, and list the two different energy types.When linking to the Results from eQUEST or Results from Trace tabs, scroll to the right to customize the linked rows/columns for each end-use. For those using the 'Results from Trace' tab, note that TRACE uses a unit conversion factor of 3.413 btu/W, wherease this worksheet uses a conversion factor of 3.412 btu/W. As a result, model results will differ by 0.03% versus those shown in Trace output reports.
A137: G | B137: ASHRAE 90.1-2010 without Addenda (District Energy Modeling Path 1): Report the district energy type (District Cooling, District Hot Water, or District Steam) for the cooling and heating end-uses as applicable for both the baseline and proposed.
A138: G | B138: Full DES Performance Accounting method (District Energy Modeling Path 2): Report the baseline energy as if the thermal energy is produced in the building. Report the proposed energy used to generate and distribute the district thermal energy serving the building based on calculated average district thermal efficiencies (e.g. report the electricity used to generate and distribute chilled water to the building).
A139: G | B139: Streamlined DES Accounting Method (District Energy Modeling Path 3): Report the energy type (District Cooling, District Hot Water, or District Steam for the cooling and heating end-uses as applicable for both the baseline and proposed.
A140: G | B140: Data Centers: The energy consumption for IT equipment must be metered and reported separately from other end-uses in the energy model, and in the tables below to allow the proper determination of the PUE. Complete the table below for the baseline using the full build-out IT loads for the proposed design.
A141: G | B141: Retail: The energy consumption for cooking, refrigeration, and kitchen ventilation fans must be metered and reported separately from other end-uses in the energy model and in the tables below. Energy savings or consumption attributable to unregulated equipment, other than Commercial Kitchen Equipment, Supermarket Refrigeration, Walk-in Coolers and Freezers, or Commercial Kitchen Ventilation listed in Tables 1 – 4 of the LEED v4 BD+C:Retail and ID+C: Retail Rating System Appendix 3 must be claimed via Exceptional Calculation Methodology.
A142: G | BF142: Software Links
A143: G | B143: End Use | D143: Unregulated? | E143: Energy Type | F143: Units of Annual Energy and Peak Demand | G143: Baseline 0° rotation | H143: Baseline 90° rotation | I143: Baseline 180° rotation | J143: Baseline 270° rotation | K143: Baseline Design Total (Average of 4 rotations) | BF143: "Results from eQUEST" End Use Column | BG143: "Results from Trace" End Use Label | BH143: "Results from Trace" End Use Fuel Label | BI143: "Results from Trace" End Use Row
A144: G | B144: End_Use | D144: Unregulated | E144: Energy_Type | F144: Energy_Units | G144: Baseline_0_Rotation | H144: Baseline_90_Rotation | I144: Baseline_180_Rotation | J144: Baseline_270_Rotation | K144: Base_Consumption_Demand | Q144: Site_Unit_Conversion | R144: Source_Unit_Conversion | S144: EFLH
A145: G | B145: Interior lighting | E145: Electricity | F145: =IFERROR(IF(ISBLANK(E145),"","Consumption (" & VLOOKUP($E145,PO_Enrgy_1_Table,MATCH($C$16,PO_Enrgy_1_Hdr,0),FALSE) & ")"),"") -> Consumption (kWh) | G145: =IFERROR(IF(SimTool="eQUEST",INDIRECT("'Results from eQuest'!"&$BF145&"8"),IF(SimTool="Trace",INDIRECT("'Results from Trace'!C"&$BI145)/$Q145,"")),"") -> 0 | H145: =IFERROR(IF(SimTool="eQUEST",INDIRECT("'Results from eQuest'!"&$BF145&"9"),IF(SimTool="Trace",INDIRECT("'Results from Trace'!D"&$BI145)/$Q145,"")),"") -> 0 | I145: =IFERROR(IF(SimTool="eQUEST",INDIRECT("'Results from eQuest'!"&$BF145&"10"),IF(SimTool="Trace",INDIRECT("'Results from Trace'!E"&$BI145)/$Q145,"")),"") -> 0 | J145: =IFERROR(IF(SimTool="eQUEST",INDIRECT("'Results from eQuest'!"&$BF145&"11"),IF(SimTool="Trace",INDIRECT("'Results from Trace'!F"&$BI145)/$Q145,"")),"") -> 0 | K145: =IFERROR(AVERAGEIF(G145:J145,"<>0"),"") ->  | Q145: =IFERROR(IF(ISBLANK($E145),"",VLOOKUP($E145,PO_Enrgy_1_Table,MATCH($K$16,PO_Enrgy_1_Hdr,0),FALSE)),"") -> 0.003412 | R145: =IFERROR(IF(ISBLANK($E145),"",VLOOKUP($E145,PO_Enrgy_1_Table,MATCH($M$16,PO_Enrgy_1_Hdr,0),FALSE)),"") -> 0.01071368 | S145: =IFERROR(IF(FIND("Consumption",F145),(K145*VLOOKUP(MID(F145,FIND("(",F145)+1,LEN(F145)-FIND("(",F145)-1),EnergyUnitsTable,3,FALSE))/(K146*VLOOKUP(MID(F146,FIND("(",F146)+1,LEN(F146)-FIND("(",F146)-1),DemandTable,3,FALSE)),1),"") ->  | BF145: L | BG145: Lighting - Conditioned | BH145: Electricity | BI145: =IF(BG145<>"",IFERROR(MATCH(BG145&BH145,'Results from Trace'!$L$1:$L$21,0),""),"") -> 7
A146: G | F146: =IFERROR(IF(ISBLANK(E145),"","Demand (" & VLOOKUP($E145,PO_Enrgy_1_Table,MATCH($E$16,PO_Enrgy_1_Hdr,0),FALSE) & ")"),"") -> Demand (kW) | G146: 0 | H146: 0 | I146: 0 | J146: 0 | K146: =IFERROR(AVERAGEIF(G146:J146,"<>0"),"") ->  | BF146: Y
A147: G | B147: Exterior lighting | E147: Electricity | F147: =IFERROR(IF(ISBLANK(E147),"","Consumption (" & VLOOKUP($E147,PO_Enrgy_1_Table,MATCH($C$16,PO_Enrgy_1_Hdr,0),FALSE) & ")"),"") -> Consumption (kWh) | G147: 0 | H147: 0 | I147: 0 | J147: 0 | Q147: 0.003412 | R147: 0.01071368 | BF147: W | BG147: Stand-alone Base Utilities | BH147: Electricity | BI147: =IF(BG147<>"",IFERROR(MATCH(BG147&BH147,'Results from Trace'!$L$1:$L$21,0),""),"") -> 15
A148: G | F148: =IFERROR(IF(ISBLANK(E147),"","Demand (" & VLOOKUP($E147,PO_Enrgy_1_Table,MATCH($E$16,PO_Enrgy_1_Hdr,0),FALSE) & ")"),"") -> Demand (kW) | G148: 0 | H148: 0 | I148: 0 | J148: 0 | BF148: AJ
A149: G | B149: Space heating | E149: Natural Gas | F149: =IFERROR(IF(ISBLANK(E149),"","Consumption (" & VLOOKUP($E149,PO_Enrgy_1_Table,MATCH($C$16,PO_Enrgy_1_Hdr,0),FALSE) & ")"),"") -> Consumption (therm) | G149: 0 | H149: 0 | I149: 0 | J149: 0 | Q149: 0.1 | R149: 0.105 | BF149: BA | BG149: Space Heating | BH149: Gas | BI149: =IF(BG149<>"",IFERROR(MATCH(BG149&BH149,'Results from Trace'!$L$1:$L$21,0),""),"") -> 9
A150: G | F150: =IFERROR(IF(ISBLANK(E149),"","Demand (" & VLOOKUP($E149,PO_Enrgy_1_Table,MATCH($E$16,PO_Enrgy_1_Hdr,0),FALSE) & ")"),"") -> Demand (Btuh x 10^6)
A151: G | B151: Space cooling | E151: Electricity | F151: =IFERROR(IF(ISBLANK(E151),"","Consumption (" & VLOOKUP($E151,PO_Enrgy_1_Table,MATCH($C$16,PO_Enrgy_1_Hdr,0),FALSE) & ")"),"") -> Consumption (kWh) | G151: 0 | H151: 0 | I151: 0 | J151: 0 | Q151: 0.003412 | R151: 0.01071368 | BF151: P | BG151: Space Cooling | BH151: Electricity | BI151: =IF(BG151<>"",IFERROR(MATCH(BG151&BH151,'Results from Trace'!$L$1:$L$21,0),""),"") -> 10
A152: G | F152: =IFERROR(IF(ISBLANK(E151),"","Demand (" & VLOOKUP($E151,PO_Enrgy_1_Table,MATCH($E$16,PO_Enrgy_1_Hdr,0),FALSE) & ")"),"") -> Demand (kW) | G152: 0 | H152: 0 | I152: 0 | J152: 0 | BF152: AC
A153: G | B153: Pumps | E153: Electricity | F153: =IFERROR(IF(ISBLANK(E153),"","Consumption (" & VLOOKUP($E153,PO_Enrgy_1_Table,MATCH($C$16,PO_Enrgy_1_Hdr,0),FALSE) & ")"),"") -> Consumption (kWh) | G153: 0 | H153: 0 | I153: 0 | J153: 0 | Q153: 0.003412 | R153: 0.01071368 | BF153: R | BG153: Pumps | BH153: Electricity | BI153: =IF(BG153<>"",IFERROR(MATCH(BG153&BH153,'Results from Trace'!$L$1:$L$21,0),""),"") -> 11
A154: G | F154: =IFERROR(IF(ISBLANK(E153),"","Demand (" & VLOOKUP($E153,PO_Enrgy_1_Table,MATCH($E$16,PO_Enrgy_1_Hdr,0),FALSE) & ")"),"") -> Demand (kW) | G154: 0 | H154: 0 | I154: 0 | J154: 0 | BF154: AE
A155: G | B155: Heat rejection | E155: Electricity | F155: =IFERROR(IF(ISBLANK(E155),"","Consumption (" & VLOOKUP($E155,PO_Enrgy_1_Table,MATCH($C$16,PO_Enrgy_1_Hdr,0),FALSE) & ")"),"") -> Consumption (kWh) | G155: 0 | H155: 0 | I155: 0 | J155: 0 | Q155: 0.003412 | R155: 0.01071368 | BF155: Q | BG155: Heat Rejection | BH155: Electricity | BI155: =IF(BG155<>"",IFERROR(MATCH(BG155&BH155,'Results from Trace'!$L$1:$L$21,0),""),"") -> 12
A156: G | F156: =IFERROR(IF(ISBLANK(E155),"","Demand (" & VLOOKUP($E155,PO_Enrgy_1_Table,MATCH($E$16,PO_Enrgy_1_Hdr,0),FALSE) & ")"),"") -> Demand (kW) | G156: 0 | H156: 0 | I156: 0 | J156: 0 | BF156: AD
A157: G | B157: Fans - interior ventilation | E157: Electricity | F157: =IFERROR(IF(ISBLANK(E157),"","Consumption (" & VLOOKUP($E157,PO_Enrgy_1_Table,MATCH($C$16,PO_Enrgy_1_Hdr,0),FALSE) & ")"),"") -> Consumption (kWh) | G157: 0 | H157: 0 | I157: 0 | J157: 0 | Q157: 0.003412 | R157: 0.01071368 | BF157: S | BG157: Fans - Conditioned | BH157: Electricity | BI157: =IF(BG157<>"",IFERROR(MATCH(BG157&BH157,'Results from Trace'!$L$1:$L$21,0),""),"") -> 13
A158: G | F158: =IFERROR(IF(ISBLANK(E157),"","Demand (" & VLOOKUP($E157,PO_Enrgy_1_Table,MATCH($E$16,PO_Enrgy_1_Hdr,0),FALSE) & ")"),"") -> Demand (kW) | G158: 0 | H158: 0 | I158: 0 | J158: 0 | BF158: AF
A159: G | B159: Fans - parking garage | D159: x | E159: Electricity | F159: =IFERROR(IF(ISBLANK(E159),"","Consumption (" & VLOOKUP($E159,PO_Enrgy_1_Table,MATCH($C$16,PO_Enrgy_1_Hdr,0),FALSE) & ")"),"") -> Consumption (kWh) | Q159: 0.003412 | R159: 0.01071368 | BI159: =IF(BG159<>"",IFERROR(MATCH(BG159&BH159,'Results from Trace'!$L$1:$L$21,0),""),"") -> 
A160: G | F160: =IFERROR(IF(ISBLANK(E159),"","Demand (" & VLOOKUP($E159,PO_Enrgy_1_Table,MATCH($E$16,PO_Enrgy_1_Hdr,0),FALSE) & ")"),"") -> Demand (kW)
A161: G | B161: Service water heating | E161: Natural Gas | F161: =IFERROR(IF(ISBLANK(E161),"","Consumption (" & VLOOKUP($E161,PO_Enrgy_1_Table,MATCH($C$16,PO_Enrgy_1_Hdr,0),FALSE) & ")"),"") -> Consumption (therm) | G161: 0 | H161: 0 | I161: 0 | J161: 0 | Q161: 0.1 | R161: 0.105 | BF161: BH | BG161: Stand-alone Base Utilities | BH161: Gas | BI161: =IF(BG161<>"",IFERROR(MATCH(BG161&BH161,'Results from Trace'!$L$1:$L$21,0),""),"") -> 16
A162: G | F162: =IFERROR(IF(ISBLANK(E161),"","Demand (" & VLOOKUP($E161,PO_Enrgy_1_Table,MATCH($E$16,PO_Enrgy_1_Hdr,0),FALSE) & ")"),"") -> Demand (Btuh x 10^6)
A163: G | B163: Receptacle equipment | D163: x | E163: Electricity | F163: =IFERROR(IF(ISBLANK(E163),"","Consumption (" & VLOOKUP($E163,PO_Enrgy_1_Table,MATCH($C$16,PO_Enrgy_1_Hdr,0),FALSE) & ")"),"") -> Consumption (kWh) | G163: 0 | H163: 0 | I163: 0 | J163: 0 | Q163: 0.003412 | R163: 0.01071368 | BF163: N | BG163: Receptacles - Conditioned | BH163: Electricity | BI163: =IF(BG163<>"",IFERROR(MATCH(BG163&BH163,'Results from Trace'!$L$1:$L$21,0),""),"") -> 14
A164: G | F164: =IFERROR(IF(ISBLANK(E163),"","Demand (" & VLOOKUP($E163,PO_Enrgy_1_Table,MATCH($E$16,PO_Enrgy_1_Hdr,0),FALSE) & ")"),"") -> Demand (kW) | G164: 0 | H164: 0 | I164: 0 | J164: 0 | BF164: AA
A165: G | B165: IT equipment | D165: x | E165: Electricity | F165: =IFERROR(IF(ISBLANK(E165),"","Consumption (" & VLOOKUP($E165,PO_Enrgy_1_Table,MATCH($C$16,PO_Enrgy_1_Hdr,0),FALSE) & ")"),"") -> Consumption (kWh) | Q165: 0.003412 | R165: 0.01071368 | BI165: =IF(BG165<>"",IFERROR(MATCH(BG165&BH165,'Results from Trace'!$L$1:$L$21,0),""),"") -> 
A166: G | F166: =IFERROR(IF(ISBLANK(E165),"","Demand (" & VLOOKUP($E165,PO_Enrgy_1_Table,MATCH($E$16,PO_Enrgy_1_Hdr,0),FALSE) & ")"),"") -> Demand (kW)
A167: G | B167: Interior lighting - process | D167: x | E167: Electricity | F167: =IFERROR(IF(ISBLANK(E167),"","Consumption (" & VLOOKUP($E167,PO_Enrgy_1_Table,MATCH($C$16,PO_Enrgy_1_Hdr,0),FALSE) & ")"),"") -> Consumption (kWh) | Q167: 0.003412 | R167: 0.01071368 | BI167: =IF(BG167<>"",IFERROR(MATCH(BG167&BH167,'Results from Trace'!$L$1:$L$21,0),""),"") -> 
A168: G | F168: =IFERROR(IF(ISBLANK(E167),"","Demand (" & VLOOKUP($E167,PO_Enrgy_1_Table,MATCH($E$16,PO_Enrgy_1_Hdr,0),FALSE) & ")"),"") -> Demand (kW)
A169: G | B169: Refrigeration equipment | D169: x | E169: Electricity | F169: =IFERROR(IF(ISBLANK(E169),"","Consumption (" & VLOOKUP($E169,PO_Enrgy_1_Table,MATCH($C$16,PO_Enrgy_1_Hdr,0),FALSE) & ")"),"") -> Consumption (kWh) | Q169: 0.003412 | R169: 0.01071368 | BI169: =IF(BG169<>"",IFERROR(MATCH(BG169&BH169,'Results from Trace'!$L$1:$L$21,0),""),"") -> 
A170: G | F170: =IFERROR(IF(ISBLANK(E169),"","Demand (" & VLOOKUP($E169,PO_Enrgy_1_Table,MATCH($E$16,PO_Enrgy_1_Hdr,0),FALSE) & ")"),"") -> Demand (kW)
A171: G | B171: Fans - Kitchen Ventilation | D171: x | E171: Electricity | F171: =IFERROR(IF(ISBLANK(E171),"","Consumption (" & VLOOKUP($E171,PO_Enrgy_1_Table,MATCH($C$16,PO_Enrgy_1_Hdr,0),FALSE) & ")"),"") -> Consumption (kWh) | Q171: 0.003412 | R171: 0.01071368 | BI171: =IF(BG171<>"",IFERROR(MATCH(BG171&BH171,'Results from Trace'!$L$1:$L$21,0),""),"") -> 
A172: G | F172: =IFERROR(IF(ISBLANK(E171),"","Demand (" & VLOOKUP($E171,PO_Enrgy_1_Table,MATCH($E$16,PO_Enrgy_1_Hdr,0),FALSE) & ")"),"") -> Demand (kW)
A173: G | B173: Cooking | D173: x | E173: Electricity | F173: =IFERROR(IF(ISBLANK(E173),"","Consumption (" & VLOOKUP($E173,PO_Enrgy_1_Table,MATCH($C$16,PO_Enrgy_1_Hdr,0),FALSE) & ")"),"") -> Consumption (kWh) | Q173: 0.003412 | R173: 0.01071368 | BI173: =IF(BG173<>"",IFERROR(MATCH(BG173&BH173,'Results from Trace'!$L$1:$L$21,0),""),"") -> 
A174: G | F174: =IFERROR(IF(ISBLANK(E173),"","Demand (" & VLOOKUP($E173,PO_Enrgy_1_Table,MATCH($E$16,PO_Enrgy_1_Hdr,0),FALSE) & ")"),"") -> Demand (kW)
A175: G | B175: Industrial Process | D175: x | E175: Electricity | F175: =IFERROR(IF(ISBLANK(E175),"","Consumption (" & VLOOKUP($E175,PO_Enrgy_1_Table,MATCH($C$16,PO_Enrgy_1_Hdr,0),FALSE) & ")"),"") -> Consumption (kWh) | Q175: 0.003412 | R175: 0.01071368 | BI175: =IF(BG175<>"",IFERROR(MATCH(BG175&BH175,'Results from Trace'!$L$1:$L$21,0),""),"") -> 
A176: G | F176: =IFERROR(IF(ISBLANK(E175),"","Demand (" & VLOOKUP($E175,PO_Enrgy_1_Table,MATCH($E$16,PO_Enrgy_1_Hdr,0),FALSE) & ")"),"") -> Demand (kW)
A177: G | B177: Elevators and escalators | D177: x | E177: Electricity | F177: =IFERROR(IF(ISBLANK(E177),"","Consumption (" & VLOOKUP($E177,PO_Enrgy_1_Table,MATCH($C$16,PO_Enrgy_1_Hdr,0),FALSE) & ")"),"") -> Consumption (kWh) | Q177: 0.003412 | R177: 0.01071368 | BI177: =IF(BG177<>"",IFERROR(MATCH(BG177&BH177,'Results from Trace'!$L$1:$L$21,0),""),"") -> 
A178: G | F178: =IFERROR(IF(ISBLANK(E177),"","Demand (" & VLOOKUP($E177,PO_Enrgy_1_Table,MATCH($E$16,PO_Enrgy_1_Hdr,0),FALSE) & ")"),"") -> Demand (kW)
A179: G | B179: Heat Pump Supplementary | E179: Electricity | F179: =IFERROR(IF(ISBLANK(E179),"","Consumption (" & VLOOKUP($E179,PO_Enrgy_1_Table,MATCH($C$16,PO_Enrgy_1_Hdr,0),FALSE) & ")"),"") -> Consumption (kWh) | G179: 0 | H179: 0 | I179: 0 | J179: 0 | Q179: 0.003412 | R179: 0.01071368 | BF179: U | BI179: =IF(BG179<>"",IFERROR(MATCH(BG179&BH179,'Results from Trace'!$L$1:$L$21,0),""),"") -> 
A180: G | F180: =IFERROR(IF(ISBLANK(E179),"","Demand (" & VLOOKUP($E179,PO_Enrgy_1_Table,MATCH($E$16,PO_Enrgy_1_Hdr,0),FALSE) & ")"),"") -> Demand (kW) | G180: 0 | H180: 0 | I180: 0 | J180: 0 | BF180: AH
A181: G | B181: Space Heating | E181: Electricity | F181: =IFERROR(IF(ISBLANK(E181),"","Consumption (" & VLOOKUP($E181,PO_Enrgy_1_Table,MATCH($C$16,PO_Enrgy_1_Hdr,0),FALSE) & ")"),"") -> Consumption (kWh) | G181: 0 | H181: 0 | I181: 0 | J181: 0 | Q181: 0.003412 | R181: 0.01071368 | BF181: O | BI181: =IF(BG181<>"",IFERROR(MATCH(BG181&BH181,'Results from Trace'!$L$1:$L$21,0),""),"") -> 
A182: G | F182: =IFERROR(IF(ISBLANK(E181),"","Demand (" & VLOOKUP($E181,PO_Enrgy_1_Table,MATCH($E$16,PO_Enrgy_1_Hdr,0),FALSE) & ")"),"") -> Demand (kW) | G182: 0 | H182: 0 | I182: 0 | J182: 0 | BF182: AB
A183: G | B183: Misc Equipment (Gas) | E183: Natural Gas | F183: =IFERROR(IF(ISBLANK(E183),"","Consumption (" & VLOOKUP($E183,PO_Enrgy_1_Table,MATCH($C$16,PO_Enrgy_1_Hdr,0),FALSE) & ")"),"") -> Consumption (therm) | G183: 0 | H183: 0 | I183: 0 | J183: 0 | Q183: 0.1 | R183: 0.105 | BF183: AZ | BI183: =IF(BG183<>"",IFERROR(MATCH(BG183&BH183,'Results from Trace'!$L$1:$L$21,0),""),"") -> 
A184: G | F184: =IFERROR(IF(ISBLANK(E183),"","Demand (" & VLOOKUP($E183,PO_Enrgy_1_Table,MATCH($E$16,PO_Enrgy_1_Hdr,0),FALSE) & ")"),"") -> Demand (Btuh x 10^6)
A185: G | B185: Auxilary (Gas) | E185: Natural Gas | F185: =IFERROR(IF(ISBLANK(E185),"","Consumption (" & VLOOKUP($E185,PO_Enrgy_1_Table,MATCH($C$16,PO_Enrgy_1_Hdr,0),FALSE) & ")"),"") -> Consumption (therm) | G185: 0 | H185: 0 | I185: 0 | J185: 0 | Q185: 0.1 | R185: 0.105 | BF185: BD | BI185: =IF(BG185<>"",IFERROR(MATCH(BG185&BH185,'Results from Trace'!$L$1:$L$21,0),""),"") -> 
A186: G | F186: =IFERROR(IF(ISBLANK(E185),"","Demand (" & VLOOKUP($E185,PO_Enrgy_1_Table,MATCH($E$16,PO_Enrgy_1_Hdr,0),FALSE) & ")"),"") -> Demand (Btuh x 10^6)
A187: G | F187: =IFERROR(IF(ISBLANK(E187),"","Consumption (" & VLOOKUP($E187,PO_Enrgy_1_Table,MATCH($C$16,PO_Enrgy_1_Hdr,0),FALSE) & ")"),"") ->  | BI187: =IF(BG187<>"",IFERROR(MATCH(BG187&BH187,'Results from Trace'!$L$1:$L$21,0),""),"") -> 
A188: G | F188: =IFERROR(IF(ISBLANK(E187),"","Demand (" & VLOOKUP($E187,PO_Enrgy_1_Table,MATCH($E$16,PO_Enrgy_1_Hdr,0),FALSE) & ")"),"") -> 
A189: G | F189: =IFERROR(IF(ISBLANK(E189),"","Consumption (" & VLOOKUP($E189,PO_Enrgy_1_Table,MATCH($C$16,PO_Enrgy_1_Hdr,0),FALSE) & ")"),"") ->  | BI189: =IF(BG189<>"",IFERROR(MATCH(BG189&BH189,'Results from Trace'!$L$1:$L$21,0),""),"") -> 
A190: G | F190: =IFERROR(IF(ISBLANK(E189),"","Demand (" & VLOOKUP($E189,PO_Enrgy_1_Table,MATCH($E$16,PO_Enrgy_1_Hdr,0),FALSE) & ")"),"") -> 
A191: G | F191: =IFERROR(IF(ISBLANK(E191),"","Consumption (" & VLOOKUP($E191,PO_Enrgy_1_Table,MATCH($C$16,PO_Enrgy_1_Hdr,0),FALSE) & ")"),"") ->  | BI191: =IF(BG191<>"",IFERROR(MATCH(BG191&BH191,'Results from Trace'!$L$1:$L$21,0),""),"") -> 
A192: G | F192: =IFERROR(IF(ISBLANK(E191),"","Demand (" & VLOOKUP($E191,PO_Enrgy_1_Table,MATCH($E$16,PO_Enrgy_1_Hdr,0),FALSE) & ")"),"") -> 
A193: G | E193: Energy_Type | F193: Energy_Units | G193: Baseline_0_Rotation | H193: Baseline_90_Rotation | I193: Baseline_180_Rotation | J193: Baseline_270_Rotation | K193: Baseline_Total | Q193: Site_Unit_Conversion | R193: Source_Unit_Conversion
A194: G | B194: Total energy consumption by energy type | E194: =IFERROR(IF(ISBLANK(B17),"",B17),"") -> Electricity | F194: =IFERROR(IF(ISBLANK(E194),"",VLOOKUP($E194,PO_Enrgy_1_Table,MATCH($C$16,PO_Enrgy_1_Hdr,0),FALSE) ),"") -> kWh | G194: =IFERROR(SUMIFS(INDEX(PO_baseline_table,0,MATCH(G$144,PO_baseline_hdr,0)),INDEX(PO_baseline_table,0,MATCH($E$144,PO_baseline_hdr,0)),$E194,INDEX(PO_baseline_table,0,MATCH($F$144,PO_baseline_hdr,0)),"=Con*"),"") -> 0 | H194: 0 | I194: 0 | J194: 0 | K194: 0 | Q194: =IFERROR(IF(ISBLANK($E194),"",VLOOKUP($E194,PO_Enrgy_1_Table,MATCH($K$16,PO_Enrgy_1_Hdr,0),FALSE)),"") -> 0.003412 | R194: =IFERROR(IF(ISBLANK($E194),"",VLOOKUP($E194,PO_Enrgy_1_Table,MATCH($M$16,PO_Enrgy_1_Hdr,0),FALSE)),"") -> 0.01071368
A195: G | E195: Natural Gas | F195: therm | G195: 0 | H195: 0 | I195: 0 | J195: 0 | K195: 0 | Q195: 0.1 | R195: 0.105
A196: G | E196: District Cooling | F196: MWh | G196: 0 | H196: 0 | I196: 0 | J196: 0 | K196: 0 | Q196: 3.412 | R196: 3.412
A197: G | E197: District Cooling | F197: MWh | G197: 0 | H197: 0 | I197: 0 | J197: 0 | K197: 0 | Q197: 3.412 | R197: 3.412
A198: G | E198: District Cooling | F198: MWh | G198: 0 | H198: 0 | I198: 0 | J198: 0 | K198: 0 | Q198: 3.412 | R198: 3.412
A199: G | E199: District Cooling | F199: MWh | G199: 0 | H199: 0 | I199: 0 | J199: 0 | K199: 0 | Q199: 3.412 | R199: 3.412
A200: G | E200: District Cooling | F200: MWh | G200: 0 | H200: 0 | I200: 0 | J200: 0 | K200: 0 | Q200: 3.412 | R200: 3.412
... 387 more rows

Sheet Instructions
B2: =IF(RatingSystemSelection="ENERGY STAR MFHR","ESMFHR Performance Path Calculator (90.1-2016 Appendix G)",IF(RatingSystemSelection="ECCCNYS ASHRAE Standard 90.1 Appendix G","ECCCNYS ASHRAE Standard 90.1 Appendix G","Minimum Energy Performance Calculator")) -> ECCCNYS ASHRAE Standard 90.1 Appendix G
B3: Whole Building Template
B4: LEED v4 EA Prerequisite Minimum Energy Performance and EA Credit Optimize Energy Performance
B5: June, 2018
B7: Background This Calculator is an update to the version released on June 7th, 2016 and reflects the following changes: a. Updated all tabs to reflect simulation rules of ASHRAE Standard 90.1 2016 Appendix G. The previous version was based on the ASHRAE Standard 90.1 2013 Appendix G Excerpts. b. Expanded functionality to includes additional calculators, including but not limited to conversion from CFM75 air-leakage test results to simulation inputs and many others. c. Added support for the EPA ENERGY STAR Multifamily High Rise Program (New Construction) Performance Path, by incorporating the areas where EPA Simulation Guidelines – Appendix G 90.1 2016 deviates from 90.1 2016. These EPA-specific features are enabled when user selects “Energy Star MFHR” from the list of rating systems on the General Information tab. d. The Quality Assurance Checks tab has been expanded since the previous release, as well as the Air-Side HVAC Baseline and Proposed tabs being split. Other updates include, but are not limited to, bug fixes, automatic calculations, spaces for drawing/specifications etc.
B8: General Instructions Complete this calculator to document the LEED Minimum Energy Performance prerequisite, or ENERGY STAR MFHR compliance when using ASHRAE 90.1 or a LEED approved alternative energy standard. Where the template references LEED Reference Guide or LEED rating system requirements, the appropriate programs Simulation Guidelines must be used instead.
B10: Step 1: Enable macros In order for the template to function correctly, when prompted with a Security Warning, enable macros by clicking Enable Content (Excel 2010, 2013) or by clicking Options -> Enable this content (Excel 2007)
B11: Note: This calculator is for use with Excel for Mac 2011 and Excel 2007 or later.
B13: Step 2: Complete all tabs except for Performance Outputs Complete the General Info tab before completing any other tabs, since this will show or hide some project-specific information. Projects participating in EPA Energy Star Multifamily High-rise Program cannot have multiple buildings included in a single project. This template is intended to assist energy modelers in developing the ASHRAE 90.1 Appendix G baseline and proposed design models. Many cells with the baseline design inputs are auto-populated based on the appropriate 90.1 requirements. There are also built-in calculators to convert project information into simulation tool inputs. These sheets provide the greatest value to the project team if they are completed during the design process, prior to creating the baseline and proposed design models, and are updated as necessary to reflect changes to the design. If the energy modeler and project team waits to fill out the spreadsheet until near the completion of the building design, the team may discover some ASHRAE 90.1 mandatory requirements that have been overlooked, modeling requirements that have not been addressed, and additional time may be required to revise the model and show compliance. Please note that some ASHRAE 90.1 mandatory requirements may not be required by the ENERGY STAR Multifamily High Rise program. Please be sure to refer to the programs Simulation Guidelines.
B15: Step 3: Complete Performance_Outputs tab Enter simulation results for the baseline and proposed design models on the Performance_Outputs tab. For projects modeled in eQUEST and Trane Trace, the Performance_Outputs tab can be auto-populated by copying simulation reports generated by the software into "Results from eQUEST" or "Results from Trace" tabs, as appropriate, following instructions on these tabs.
B17: Step 4: Review Quality Assurance Checks tab Prior to submitting project for review, the energy modeler must confirm that the model inputs listed are consistent with those modeled. Review the Quality Assurance Checks tab, and address all the areas that are flagged and highlighted in red. Modify inputs in the template and/or the models as appropriate to address the issues, or include explanation why the flagged area is correct for the project.
B18: If you have any questions or comments regarding the Whole Building Template, please contact Maria Karpman at maria.karpman@karpmanconsulting.net
B20: Instructions for LEED Projects
B21: LEED BD&C v4 projects can use this workbook and models to document points for LEED NC v4 Optimize Energy Performance credit as follows: - Follow rules for LEED Pilot Credit as posted on this website.
B22: - Projects that registered for LEED v4 after November 1 2016 must use this calculator as is.
B23: - Projects that registered for LEED v4 on or before November 1 2016 may use the ruleset based on ASHRAE Standard 90.1 2013 Appendix G Excerpts (Appendix G Excerpts). One of the key differences is that Appendix G Excerpts allows modeling the envelope components that are not affected by retrofit in the major renovation projects based on the existing conditions in both the baseline and proposed design models.
B24: Upload the completed spreadsheet to LEED Online in Excel (*.xlsm) format. Complete any related summary fields in the LEED prerequisite form and provide all additional required uploads along with the results of the calculator.
B26: Color Legend
B28: Tab Heading
B30: Table Headings
B32: User Input
B34: Non-editable cells that auto-populate
B36: Aspects of Proposed Design that are worse than prescriptive requirements of 90.1 that project aspires to exceed (conditional formatting)
B38: Aspects of Proposed Design that are better than prescriptive requirements of 90.1 that project aspires to exceed (conditional formatting)
B40: Aspects of Proposed Design with no conditional formatting implemented
B42: Aspects of Proposed Design that are worse than Baseline requirements of 90.1 (conditional formatting)
B44: Aspects of Proposed Design that are better than Baseline requirements of 90.1 (conditional formatting)
B46: Tab Color Legend
B47: Instructions Tab
B48: Mandatory Baseline and Proposed Design Description Tabs
B49: Mandatory Simulation Outputs Tabs
B50: Non-Mandatory Supporting Tabs

Sheet Definitions (hidden)
B2: DEFINITIONS
B5: baseline building performance | C5: The annual energy cost for a building design, used as a baseline for comparison with above-standard design
B7: combined heat and power | C7: An integrated system that captures the heat, otherwise unused, generated by a single fuel source in the production of electrical power. Also known as cogeneration. (Adapted from U.S. Environmental Protection Agency)
B8: district energy system (DES) | C8: A central energy conversion plant and transmission and distribution system that provides thermal energy to a group of buildings (e.g., a central cooling plant on a university campus). It does not include central energy systems that provide only electricity.
B9: DES: downstream equipment | C9: The heating and cooling systems, equipment, and controls located in the project building or on the project site and associated with transporting the thermal energy of the district energy system (DES) into heated and cooled spaces. Downstream equipment includes the thermal connection or interface with the DES, secondary distribution systems in the building, and terminal units.
B10: DES: upstream equipment | C10: A heating or cooling system or control associated with the district energy system (DES) but not part of the thermal connection or interface with the DES. Upstream equipment includes the thermal energy conversion plant and all the transmission and distribution equipment associated with transporting the thermal energy to the project building or site.
B11: DES Modeling Paths:
B12: DES Path 1: ASHRAE 90.1-2013 | C12: Purchased heating and cooling (as applicable) are modeled as cost-neutral in the baseline and proposed case. Local rates for purchased heating and cooling are used to establish the purchased heating and cooling costs. The energy model's scope accounts for only downstream equipment, plus purchased heating and cooling. (Refer to ASHRAE 90.1-2013 for details).
B13: DES Path 2: Full DES Performance Accounting | C13: A virtual DES-equivalent plant for the Proposed case is constructed and compared to code-compliant on-site equipment for the Baseline Case. The Baseline case system type is modeled consistent with an on-site system in ASHRAE 90.1 Appendix G. Average efficiencies for the proposed case are modeled or monitored. (Refer to the LEED v4 Building Design & Construction Reference Guide, Minimum Energy Performance Prerequisite for details.)
B14: DES Path 3: Streamlined DES Modeling | C14: The district thermal energy is metered in both the Baseline and Proposed Case models and reported in this spreadsheet. This spreadsheet assigns default average efficiencies for the baseline case calculated using ASHRAE 90.1-2013 prescriptive requirements for DES equipment. Average efficiencies for the proposed case are modeled or monitored. (Refer to the LEED v4 Building Design & Construction Reference Guide, Minimum Energy Performance Prerequisite for details.)
B15: IT annual energy | C15: Electricity consumption by information technology and telecom equipment which includes servers, networking, and storage equipment over the course of a year
B16: Power Utilization Effectiveness (PUE) | C16: a measure of how efficiently a data center uses its power; specifically, how much power is used by computing equipment rather than for cooling and other overhead
B17: Regulated load | C17: Any building end use that has either a mandatory or a prescriptive requirement in ANSI/ASHRAE/IES Standard 90.1–2013
B18: Server input | C18: the information technology (IT) load as measured at the point of connection (e.g., power receptacle ) of the IT device to the electrical power system. Server input captures the actual power load of the IT device exclusive of any power distribution losses and non-IT loads (e.g., rack-mounted fans).

Sheet General Information
B1: General Information
B3: Complete the General Information tab before completing any other tabs. Note that the selections in this tab will determine the selections available within other tabs, including multiple building selections, residential dwelling unit selections, rating system dependent selections, and district energy selections. | AA3: Additional Notes (Optional)
B5: =IF(RatingSystemSelection="ENERGY STAR MFHR","LEED Project ID # (please mark as N/A)","LEED Project ID #") -> LEED Project ID # | E5: =IF(RatingSystemSelection="ENERGY STAR MFHR","N/A",IF(RatingSystemSelection="2016 NYS Energy Code ASHRAE 90.1 Appendix G","N/A","")) -> 
B7: Project Name | K7: =C48 -> ASHRAE 90.1-2013
B9: Rating system | E9: ECCCNYS ASHRAE Standard 90.1 Appendix G | K9: =IFERROR(VLOOKUP(E9,DropdownData!W:X,2,FALSE),"") -> 0 | L9: =IF(RatingSystemSelection="ENERGY STAR MFHR",0,1) -> 1
B11: Unit of measurement | F11: IP units | K11: =IF(F11="SI units","SI","IP") -> IP | L11: =CONCATENATE(C46," (",'General Information'!K11,")") -> 4A (IP)
B12: Note: The selections above must match the rating system and unit of measurement chosen during project registration. | P12: LEED average BPF (2010,2013,2016) | Q12: ES Actual BPF (2007,2010,2013,2016) | R12: NYS Actual BPF(2016)
B13: Project has multiple buildings? | F13: No | G13: =IF(AND(RatingSystemSelection="2016 NYS Energy Code ASHRAE 90.1 Appendix G",MultipleBuildingsExist="Yes"),"Project should not have multiple buildings.","") ->  | Q13: ES Actual BPF (2007,2010,2013,2016) | R13: NYS Actual BPF(2016)
N15: =IF(N16="Multifamily",TRUE,FALSE) -> FALSE | Q15: ES Actual BPF (2007,2010,2013,2016) | R15: NYS Actual BPF(2016) | U15: EFLH | V15: EFLH | W15: EFLH
B16: =IF(MultipleBuildingsExist="Yes","Note: After completing the General Info tab, complete the Multiple Building Details Tab before proceeding to the other tabs.","") ->  | F16: Select Building Type(s) | G16: =IF($K$11="IP","New Construction Conditioned (sq ft)","New Construction Conditioned (sq m)") -> New Construction Conditioned (sq ft) | H16: =IF($K$11="IP","Renovation Conditioned (sq ft)","Renovation Conditioned (sq m)") -> Renovation Conditioned (sq ft) | I16: =IF($K$11="IP","Unconditioned (sq ft)","Unconditioned (sq m)") -> Unconditioned (sq ft) | K16: BPF | L16: Conditioned total | N16: =INDEX(F17:F20,MATCH(MAX(L17:L20),L17:L20,0)) -> 0 | O16: =SUM(G17:H20)+SUM(I17:I20) -> 0 | S16: Misc. Building Type | T16: Misc. EUI | U16: Lighting | V16: SHW | W16: Misc Load
A17: D | B17: ="Building Type "&F17 -> Building Type | K17: =IFERROR(IF(RatingSystemSelection="ECCCNYS ASHRAE Standard 90.1 Appendix G",R17,IF(RatingSystemSelection="ENERGY STAR MFHR",Q17,P17)),"") -> FALSE | L17: =G17+H17 -> 0 | M17: =SUM(G17:I17) -> 0 | O17: =G17/BuildingArea ->  | P17: =IF($K$49=2010,INDEX('BPF 2010'!$C$3:$T$12,MATCH(F17,'BPF 2010'!$B$3:$B$12,0),MATCH("Average",'BPF 2010'!$C$3:$T$3,0)),IF($K$49=2016,INDEX('BPF 2016'!$C$3:$T$12,MATCH(F17,'BPF 2016'!$B$3:$B$12,0),MATCH("Average",'BPF 2016'!$C$3:$T$3,0)),IF($K$49=2013,INDEX('BPF 2013'!$C$3:$T$12,MATCH(F17,'BPF 2013'!$B$3:$B$12,0),MATCH("Average",'BPF 2007'!$C$3:$T$3,0)),IF($K$49=2007,INDEX('BPF 2007'!$C$3:$T$12,MATCH(F17,'BPF 2007'!$B$3:$B$12,0),MATCH("Average",'BPF 2007'!$C$3:$T$3,0)),"")))) ->  | Q17: =IF($K$49=2013,INDEX('BPF 2013'!$C$3:$T$12,MATCH(F17,'BPF 2013'!$B$3:$B$12,0),MATCH($C$46,'BPF 2013'!$C$3:$T$3,0)),IF($K$49=2007,INDEX('BPF 2007'!$C$3:$T$12,MATCH(F17,'BPF 2007'!$B$3:$B$12,0),MATCH($C$46,'BPF 2007'!$C$3:$T$3,0)),IF($K$49=2010,INDEX('BPF 2010'!$C$3:$T$12,MATCH(F17,'BPF 2010'!$B$3:$B$12,0),MATCH($C$46,'BPF 2010'!$C$3:$T$3,0)),IF($K$49=2016,INDEX('BPF 2016'!$C$3:$T$12,MATCH(F17,'BPF 2016'!$B$3:$B$12,0),MATCH($C$46,'BPF 2016'!$C$3:$T$3,0)))))) ->  | R17: =IF($K$49=2016,INDEX('BPF 2016'!$C$3:$T$12,MATCH(F17,'BPF 2016'!$B$3:$B$12,0),MATCH($C$46,'BPF 2016'!$C$3:$T$3,0))) -> FALSE | S17: =IFERROR(VLOOKUP(F17,'Quality Assurance Checks'!DW2:EU26,1,0),VLOOKUP("Office",'Quality Assurance Checks'!DW2:EU26,1,0)) -> Office | T17: =IFERROR(O17*VLOOKUP(F17,'Quality Assurance Checks'!DW2:EU26,9,0),O17*VLOOKUP("Office",'Quality Assurance Checks'!DW2:EU26,9,0)) ->  | U17: =O17*VLOOKUP(F17,'Quality Assurance Checks'!DM2:DU26,5,0) ->  | V17: =O17*VLOOKUP(F17,'Quality Assurance Checks'!DM2:DU26,9,0) ->  | W17: =O17*VLOOKUP(F17,'Quality Assurance Checks'!DM2:DU26,6,0) ->  | X17: =SUM(G17:I17) -> 0
A18: D | B18: ="Building Type "&F18 -> Building Type | K18: =IFERROR(IF(RatingSystemSelection="ECCCNYS ASHRAE Standard 90.1 Appendix G",R18,IF(RatingSystemSelection="ENERGY STAR MFHR",Q18,P18)),"") -> FALSE | L18: =G18+H18 -> 0 | M18: =SUM(G18:I18) -> 0 | O18: =G18/BuildingArea ->  | P18: =IF($K$49=2010,INDEX('BPF 2010'!$C$3:$T$12,MATCH(F18,'BPF 2010'!$B$3:$B$12,0),MATCH("Average",'BPF 2010'!$C$3:$T$3,0)),IF($K$49=2016,INDEX('BPF 2016'!$C$3:$T$12,MATCH(F18,'BPF 2016'!$B$3:$B$12,0),MATCH("Average",'BPF 2016'!$C$3:$T$3,0)),IF($K$49=2013,INDEX('BPF 2013'!$C$3:$T$12,MATCH(F18,'BPF 2013'!$B$3:$B$12,0),MATCH("Average",'BPF 2007'!$C$3:$T$3,0)),IF($K$49=2007,INDEX('BPF 2007'!$C$3:$T$12,MATCH(F18,'BPF 2007'!$B$3:$B$12,0),MATCH("Average",'BPF 2007'!$C$3:$T$3,0)),"")))) ->  | Q18: =IF($K$49=2013,INDEX('BPF 2013'!$C$3:$T$12,MATCH(F18,'BPF 2013'!$B$3:$B$12,0),MATCH($C$46,'BPF 2013'!$C$3:$T$3,0)),IF($K$49=2007,INDEX('BPF 2007'!$C$3:$T$12,MATCH(F18,'BPF 2007'!$B$3:$B$12,0),MATCH($C$46,'BPF 2007'!$C$3:$T$3,0)),IF($K$49=2010,INDEX('BPF 2010'!$C$3:$T$12,MATCH(F18,'BPF 2010'!$B$3:$B$12,0),MATCH($C$46,'BPF 2010'!$C$3:$T$3,0)),IF($K$49=2016,INDEX('BPF 2016'!$C$3:$T$12,MATCH(F18,'BPF 2016'!$B$3:$B$12,0),MATCH($C$46,'BPF 2016'!$C$3:$T$3,0)))))) ->  | R18: =IF($K$49=2016,INDEX('BPF 2016'!$C$3:$T$12,MATCH(F18,'BPF 2016'!$B$3:$B$12,0),MATCH($C$46,'BPF 2016'!$C$3:$T$3,0))) -> FALSE | S18: =IFERROR(VLOOKUP(F18,'Quality Assurance Checks'!DW3:EU27,1,0),VLOOKUP("Office",'Quality Assurance Checks'!DW3:EU27,1,0)) -> Office | T18: =IFERROR(O18*VLOOKUP(F18,'Quality Assurance Checks'!DW3:EU27,9,0),O18*VLOOKUP("Office",'Quality Assurance Checks'!DW3:EU27,9,0)) ->  | U18: =O18*VLOOKUP(F18,'Quality Assurance Checks'!DM3:DU27,5,0) ->  | V18: =O18*VLOOKUP(F18,'Quality Assurance Checks'!DM3:DU27,9,0) ->  | W18: =O18*VLOOKUP(F18,'Quality Assurance Checks'!DM3:DU27,6,0) ->  | X18: =SUM(G18:I18) -> 0
A19: D | B19: Building Type | K19: =IFERROR(IF(RatingSystemSelection="ECCCNYS ASHRAE Standard 90.1 Appendix G",R19,IF(RatingSystemSelection="ENERGY STAR MFHR",Q19,P19)),"") -> FALSE | L19: 0 | M19: 0 | O19: =G19/BuildingArea ->  | P19: =IF($K$49=2010,INDEX('BPF 2010'!$C$3:$T$12,MATCH(F19,'BPF 2010'!$B$3:$B$12,0),MATCH("Average",'BPF 2010'!$C$3:$T$3,0)),IF($K$49=2016,INDEX('BPF 2016'!$C$3:$T$12,MATCH(F19,'BPF 2016'!$B$3:$B$12,0),MATCH("Average",'BPF 2016'!$C$3:$T$3,0)),IF($K$49=2013,INDEX('BPF 2013'!$C$3:$T$12,MATCH(F19,'BPF 2013'!$B$3:$B$12,0),MATCH("Average",'BPF 2007'!$C$3:$T$3,0)),IF($K$49=2007,INDEX('BPF 2007'!$C$3:$T$12,MATCH(F19,'BPF 2007'!$B$3:$B$12,0),MATCH("Average",'BPF 2007'!$C$3:$T$3,0)),"")))) ->  | Q19: =IF($K$49=2013,INDEX('BPF 2013'!$C$3:$T$12,MATCH(F19,'BPF 2013'!$B$3:$B$12,0),MATCH($C$46,'BPF 2013'!$C$3:$T$3,0)),IF($K$49=2007,INDEX('BPF 2007'!$C$3:$T$12,MATCH(F19,'BPF 2007'!$B$3:$B$12,0),MATCH($C$46,'BPF 2007'!$C$3:$T$3,0)),IF($K$49=2010,INDEX('BPF 2010'!$C$3:$T$12,MATCH(F19,'BPF 2010'!$B$3:$B$12,0),MATCH($C$46,'BPF 2010'!$C$3:$T$3,0)),IF($K$49=2016,INDEX('BPF 2016'!$C$3:$T$12,MATCH(F19,'BPF 2016'!$B$3:$B$12,0),MATCH($C$46,'BPF 2016'!$C$3:$T$3,0)))))) ->  | R19: =IF($K$49=2016,INDEX('BPF 2016'!$C$3:$T$12,MATCH(F19,'BPF 2016'!$B$3:$B$12,0),MATCH($C$46,'BPF 2016'!$C$3:$T$3,0))) -> FALSE | S19: =IFERROR(VLOOKUP(F19,'Quality Assurance Checks'!DW4:EU28,1,0),VLOOKUP("Office",'Quality Assurance Checks'!DW4:EU28,1,0)) -> Office | T19: =IFERROR(O19*VLOOKUP(F19,'Quality Assurance Checks'!DW4:EU28,9,0),O19*VLOOKUP("Office",'Quality Assurance Checks'!DW4:EU28,9,0)) ->  | U19: =O19*VLOOKUP(F19,'Quality Assurance Checks'!DM4:DU28,5,0) ->  | V19: =O19*VLOOKUP(F19,'Quality Assurance Checks'!DM4:DU28,9,0) ->  | W19: =O19*VLOOKUP(F19,'Quality Assurance Checks'!DM4:DU28,6,0) ->  | X19: 0
X20: =SUM(G20:I20) -> 0
F22: Total | G22: =G16 -> New Construction Conditioned (sq ft) | H22: =H16 -> Renovation Conditioned (sq ft) | I22: =I16 -> Unconditioned (sq ft) | K22: Total Conditioned Area
B23: =IF($K$11="IP","Total building area (sq ft)","Total building area (sq m)") -> Total building area (sq ft) | F23: =O16 -> 0 | G23: =SUM(G17:G20) -> 0 | H23: =SUM(H17:H20) -> 0 | I23: =SUM(I17:I20) -> 0 | K23: =SUM(G23:H23) -> 0
B24: Percent of Conditioned Area (%) | F24: NA | G24: =IFERROR(G23/K23,"-") -> - | H24: =IFERROR(H23/K23,"-") -> - | I24: NA
B26: Project has residential Dwelling Units? | F26: Yes
F28: Above Grade | G28: Below Grade
B29: Number of floors
B31: Energy Model Information
B33: Energy modeler
B35: Energy model based on
B37: Please describe the phase in which the Energy model is based on
B38: NY HP Case study description Rev15
B40: Simulation program | C40: eQuest | F40: <Specify Version Number> | G40: =IF(F40="","Please specify simulation program version number.",IF(F40="<Specify Version Number>","Please specify simulation program version number.","")) -> Please specify simulation program version number.
B42: Energy Modeling Protocol | C42: ASHRAE 90.1 2016 Appendix G | K42: =IF(C42="California Title-24 2013, Part 6","TRUE","FALSE") -> FALSE
B44: Simulation weather file
B46: Climate zone | C46: 4A | K46: =IF(C46="","",IF(C46="1A",1,IF(C46="1B",1,IF(C46="1C",1,IF(C46="2A",2,IF(C46="2B",2,IF(C46="3A",3,IF(C46="3B",3,IF(C46="3C",3,IF(C46="4A",4,IF(C46="4B",4,IF(C46="4C",4,IF(C46="5A",5,IF(C46="5B",5,IF(C46="5B",5,IF(C46="6A",6,IF(C46="6B",6,IF(C46="7",7,IF(C46="8",8))))))))))))))))))) -> 4 | L46: =IF(OR(C46="3B",C46="3C",C46="4A",C46="4B",C46="4C",C46="5A",C46="5B",C46="5C",C46="6A",C46="6B",C46="7A",C46="7B",C46="8"),"Gas","Electric") -> Gas
B48: Version of ASHRAE 90.1 to exceed (reference edition of 90.1) | C48: ASHRAE 90.1-2013 | G48: =IF(AND(C48="ASHRAE 90.1-2007",L9=1),"ASHRAE 90.1-2007 is only supported for the ENERGY STAR HRMF program.","") ->  | K48: =IF(AND(C48="ASHRAE 90.1-2007",RatingSystemSelection="ENERGY STAR MFHR"),2007,IF(C48="ASHRAE 90.1-2013",2013,IF(C48="ASHRAE 90.1-2010",2010,""))) -> 2013 | L48: =IF(G48="","",1) -> 
C49: =IF(OR(AND(RatingSystemSelection="2016 NYS Energy Code ASHRAE 90.1 Appendix G",C48="ASHRAE 90.1-2007"),AND(RatingSystemSelection="2016 NYS Energy Code ASHRAE 90.1 Appendix G",C48="ASHRAE 90.1-2010")),"ASHRAE 90.1-2013 is the version of ASHRAE 90.1 to exceed. Please update.","") ->  | K49: =IF(AND(C48="ASHRAE 90.1-2007",RatingSystemSelection="ENERGY STAR MFHR"),2007,IF(AND(K48=2013,RatingSystemSelection="2016 NYS Energy Code ASHRAE 90.1 Appendix G"),2016,IF(C48="ASHRAE 90.1-2013",2013,IF(C48="ASHRAE 90.1-2010",2010,"")))) -> 2013 | L49: BPF
B50: ASHRAE 90.1 2016 Addenda used in the energy model(s), if any. Addenda are not required to be used for the project. However, each addenda must be used in its entirety if applied to the project, and must be consistent across all relevant LEED Credits.
B53: Compliant energy simulation software. The energy simulation software used for this project has all capabilities described in EITHER section "G2 Simulation General Requirements" in Appendix G of ASHRAE 90.1 OR the analogous section of the alternative qualifying energy code used.
B54: Compliant energy modeling methodology. Energy simulation runs for both the baseline and proposed use the assumptions and modeling methodology described in EITHER ASHRAE 90.1 Appendix G OR the analogous section of the alternative qualifying energy code used.
B56: Are there error or warning messages noted in the simulation program output? | E56: =IF(C56="Yes","Please include an explanation of any error messages in the submitted package.","") -> 
B58: District Energy Systems
B59: The project is connected to a district or campus thermal energy system. For projects connected to a district or campus thermal energy system where thermal energy is produced for or distributed to multiple buildings, complete the applicable fields below.
K60: FALSE
B61: The district energy system includes (select all that apply) | K61: FALSE | L61: FALSE | M61: FALSE
B62: Select how the district energy system has been modeled (see Definitions Tab) | K62: =IF(AND(K60=TRUE,LEFT(D62,6)="Path 1"),TRUE,FALSE) -> FALSE | L62: =IF(AND(K60=TRUE,LEFT(D62,6)="Path 2"),TRUE,FALSE) -> FALSE | M62: =IF(AND(K60=TRUE,LEFT(D62,6)="Path 3"),TRUE,FALSE) -> FALSE | N62: =IF(AND(K60=TRUE,LEFT(D62,6)="Path 4"),TRUE,FALSE) -> FALSE
B63: For DES Paths 2 or 3, identify the method for evaluating the district plant average efficiency. | K63: =IF(D63="Modeling Method",TRUE,FALSE) -> FALSE | L63: =IF(D63="Monitoring Method",TRUE,FALSE) -> FALSE
B64: If using the DES Path 2 or 3 and the Modeling Method, describe how the average efficiency was determined. Include information about how the thermal distribution losses and distribution pump energy was accounted for. If using the modeling method, upload summary simulation files or spreadsheet calculations as supporting documentation.
B66: Rating System Variation | K66: =IF(OR(K67=TRUE,K68=TRUE),TRUE,FALSE) -> FALSE
B67: An ID+C rating system has been selected. Provide a detailed narrative regarding the method for assigning relative contribution of base building HVAC and service water heating systems. Refer to the LEED v4 ID+C Reference Guide for additional information. | K67: =IF(OR($E$9="LEED v4 ID+C: Commercial Interiors",$E$9="LEED v4 ID+C: Retail",$E$9="LEED v4 ID+C: Hospitality"),TRUE,FALSE) -> FALSE
B68: The BD+C: Data Center rating system has been selected. By default, the full buildout IT loads are used to determine prerequisite and credit compliance. Select "Avg of Full IT Load + Startup IT Load" to the right in order to use the average of the energy modeling results for the full buildout IT loads and the energy modeling results for the startup IT loads to determine prerequisite and credit compliance. | K68: =IF($E$9="LEED v4 BD+C: Data Centers",TRUE,FALSE) -> FALSE | M68: =IF(AND(K68=TRUE,E68="Avg of Full IT Load + Startup IT Load"),TRUE,FALSE) -> FALSE | N68: =K68 -> FALSE | O68: =IF(OR($E$9="LEED v4 ID+C: Retail",$E$9="LEED v4 BD+C: Retail"),TRUE,FALSE) -> FALSE
M69: Data Center Avg. | N69: Data Center | O69: Retail
B70: Unfinished Spaces
B71: Select how any unfinished spaces have been modeled
B72: Refer to the Tenant Lease and Sales Agreement section of the LEED Reference Guide. Upload all required documentation to substantiate the savings claimed for the unfinished spaces.

Sheet 1 - Multiple Buildings Details (hidden)
A1: G
A2: G | B2: Multiple Building Energy Model Information
A3: G
A4: G
A5: G | B5: How are the buildings modeled?
O6: 1
A10: G | B10: =IF(proj_RatingSystem="ND",CONCATENATE("The minimum average building energy improvement over ASHRAE 90.1-2010 must be 5% for new buildings, 3% for major building renovations, or 2% for core and shell buildings."," Multiple buildings may be grouped into a single energy model, provided (1) the building type (new construction, major renovation, or core and shell) is consistent for all buildings included in the energy model, ","or (2) an average 5% improvement is demonstrated for the entire energy model.", "If only a subset of the building energy model details is reported, check the box below, and for the buildings without the details reported here, ","report the sum total energy consumption for the buildings not reported here in the Performance_Output_Residual tab."," Provide a narrative confirming that at least 90% of the building area for ND non-residential, mixed-use and multiunit residential buildings 4 stories or more were modeled",", and briefly describing the energy efficiency measures for any buildings where energy model details are not reported here."),CONCATENATE("The documentation must be sufficient to show that each building individually complies with the prerequisite performance improvement requirements."," If not modeling each building in a separate energy model to show individual compliance, complete the narrative below to justify that all buildings meet the prerequisite performance improvement requirements. ","Note: if insufficient information is available in the narrative and input data to prove that all buildings individually meet the prerequisite performance improvement requirements, ","additional energy simulation outputs including submetered data per building may be required during the review process to confirm prerequisite compliance per building.")) -> The documentation must be sufficient to show that each building individually complies with the prerequisite performance improvement requirements. If not modeling each building in a separate energy model to show individual compliance, complete the narrative below to justify that all buildings meet the prerequisite performance improvement requirements. Note: if insufficient information is available in the narrative and input data to prove that all buildings individually meet the prerequisite performance improvement requirements, additional energy simulation outputs including submetered data per building may be required during the review process to confirm prerequisite compliance per building. | R10: Additional Notes (Optional):
A11: G
O12: FALSE
A13: G | B13: Table 1.1: Energy Model Information
A14: G
A15: G | B15: Energy Simulation ID | J15: Multiplier
A16: G | B16: Simulation ID | J16: Multiplier
B17: =INDEX(MBD_BS_Table,3,1) -> 0 | J17: =INDEX(MBD_BS_Table,3, 5) -> 0
A19: G
B20: Table 1.2: Building Information for Multiple Building Projects
A21: G | E21: Energy Model | F21: ="Modeled Building Area "&IF(SI_IP_Units="IP","(sq. ft.)","(sq. m.)") -> Modeled Building Area (sq. ft.) | I21: Percent Construction
A22: G | B22: Building ID | E22: Simulation ID | F22: Multiplier | G22: Conditioned | H22: Unconditioned | I22: New | J22: Renovation/Existing
B23: Residual Project | E23: =INDEX(MBD_BS_Table,2, 1) -> Residual Project | J23: =I23 -> 0
A24: G | B24: =GI_Project_Name -> 0 | E24: 1 | J24: =1-I24 -> 1
A25: G | B25: =GI_Project_Name -> 0 | E25: 1 | J25: =1-I25 -> 1
A26: G | B26: All
A28: G
A29: G
A30: G | B30: Table 1.3: Project Summary
A31: G
A32: G | F32: ="Modeled Building Area "&IF(SI_IP_Units="IP","(sq. ft.)","(sq. m.)") -> Modeled Building Area (sq. ft.) | I32: Percent Construction
A33: G | F33: Total Buildings | G33: Conditioned | H33: Unconditioned | I33: New | J33: Renovation/Existing
A34: G | B34: Total | F34: =SUM(OFFSET(MBD_BS_Index,1,MATCH($F$22,MBD_BS_Hdr,0)-1,ROWS(MBD_BS_Index)-1,1)) -> 0 | G34: =SUM(OFFSET(MBD_BS_Index,1,MATCH($G$22,MBD_BS_Hdr,0)-1,ROWS(MBD_BS_Index)-1,1)) -> 0 | H34: =SUM(OFFSET(MBD_BS_Index,1,MATCH($H$22,MBD_BS_Hdr,0)-1,ROWS(MBD_BS_Index)-1,1)) -> 0 | I34: =(SUMPRODUCT(OFFSET(MBD_BS_Index,1,MATCH($F$22,MBD_BS_Hdr,0)-1,ROWS(MBD_BS_Index)-1,1),OFFSET(MBD_BS_Index,1,MATCH($G$22,MBD_BS_Hdr,0)-1,ROWS(MBD_BS_Index)-1,1),OFFSET(MBD_BS_Index,1,MATCH($I$22,MBD_BS_Hdr,0)-1,ROWS(MBD_BS_Index)-1,1))+SUMPRODUCT(OFFSET(MBD_BS_Index,1,MATCH($F$22,MBD_BS_Hdr,0)-1,ROWS(MBD_BS_Index)-1,1),OFFSET(MBD_BS_Index,1,MATCH($H$22,MBD_BS_Hdr,0)-1,ROWS(MBD_BS_Index)-1,1),OFFSET(MBD_BS_Index,1,MATCH($I$22,MBD_BS_Hdr,0)-1,ROWS(MBD_BS_Index)-1,1)))/(SUMPRODUCT(OFFSET(MBD_BS_Index,1,MATCH($F$22,MBD_BS_Hdr,0)-1,ROWS(MBD_BS_Index)-1,1),OFFSET(MBD_BS_Index,1,MATCH($G$22,MBD_BS_Hdr,0)-1,ROWS(MBD_BS_Index)-1,1))+SUMPRODUCT(OFFSET(MBD_BS_Index,1,MATCH($F$22,MBD_BS_Hdr,0)-1,ROWS(MBD_BS_Index)-1,1),OFFSET(MBD_BS_Index,1,MATCH($H$22,MBD_BS_Hdr,0)-1,ROWS(MBD_BS_Index)-1,1))) ->  | J34: =1-I34 -> 
A35: G

Sheet 2a - Schedules
A1: G
A2: G | B2: Schedules
A3: G
A4: G
A5: G | B5: =CONCATENATE("Complete the table for each building in the project. Provide information for the ",IF(proj_RatingSystem="Homes","Dwelling Units","Main Building Schedules")," and for each additional area or set of areas where the schedules differ significantly. Ensure that the reported schedules are consistent with the energy-model entered values, and that schedules account for all mandatory controls. ",IF(proj_RatingSystem="Homes",CONCATENATE("Residential lighting shall be for two to four hours per day (700 to 1500 equivalent full load hours per year). See the EFLH Calculator for default Residential Dwelling Unit Schedules that may be input into the energy model.", " Corridors and parking garages shall be lit 24 hours per day; parking garages shall include schedule adjustments for occupant sensor controls."),"" ),""," Ensure that schedules account for all mandatory controls.",CHAR(10),"*Note: The following Equivalent full load schedule information may be optionally excluded from the Table: ","(1) End-uses that do not significantly influence overall energy consumption for the project building type (i.e. service water heating for an office building < 5% of total energy consumption),"," (2) Spaces modeled with differing schedules that contribute minimally to overall building energy consumption (i.e. electrical/mechanical rooms in a school building that contribute < 5% of total building energy consumption") -> Complete the table for each building in the project. Provide information for the Main Building Schedules and for each additional area or set of areas where the schedules differ significantly. Ensure that the reported schedules are consistent with the energy-model entered values, and that schedules account for all mandatory controls. Ensure that schedules account for all mandatory controls. *Note: The following Equivalent full load schedule information may be optionally excluded from the Table: (1) End-uses that do not significantly influence overall energy consumption for the project building type (i.e. service water heating for an office building < 5% of total energy consumption), (2) Spaces modeled with differing schedules that contribute minimally to overall building energy consumption (i.e. electrical/mechanical rooms in a school building that contribute < 5% of total building energy consumption
A6: G | B6: Note: The EFLH Calculator tab in this spreadsheet may be used as an optional tool for determining Equivalent Full Load hours of operation
A7: G | B7: Table 2.1: Schedules
A8: G | B8: Building ID | C8: Areas Served | D8: Equivalent Full Load Hours of Operation Per Year (maximum of 8,760). Leave blank or enter N/A if not applicable. | O8: Hours per Year HVAC Runs in Occupied Mode | P8: =IF(proj_RatingSystem="Homes","Active Mode Setpoint","Occupied Mode Setpoint") -> Occupied Mode Setpoint | R8: Setback Mode Setpoint | V8: Additional Notes (Optional):
A9: G | D9: Interior Lighting | E9: Service Water Heating | F9: Appliances | G9: Receptacle Equipment | H9: Refriger-ation | I9: Server Equip-ment | J9: Cooking Equip-ment | K9: Elevators / Escalators | L9: Exterior Lighting | M9: Other Loads (Indicate Loads) | P9: =CONCATENATE("Cooling",IF(SI_IP_Units="IP"," (degrees F)"," (degrees C)")) -> Cooling (degrees F) | Q9: =CONCATENATE("Heating",IF(SI_IP_Units="IP"," (degrees F)"," (degrees C)")) -> Heating (degrees F) | R9: =CONCATENATE("Cooling",IF(SI_IP_Units="IP"," (degrees F)"," (degrees C)")) -> Cooling (degrees F) | S9: =CONCATENATE("Heating",IF(SI_IP_Units="IP"," (degrees F)"," (degrees C)")) -> Heating (degrees F)
A10: G
B11: =B8 -> Building ID | C11: =C8 -> Areas Served | D11: =D9 -> Interior Lighting | E11: =E9 -> Service Water Heating | F11: Appliances | G11: Receptacle Equipment | H11: Refriger-ation | I11: Server Equip-ment | J11: Cooking Equip-ment | K11: Elevators / Escalators | L11: Exterior Lighting | M11: Other Loads (Indicate Loads) | N11: 0 | O11: =O8 -> Hours per Year HVAC Runs in Occupied Mode | P11: Cooling (degrees F) | Q11: Heating (degrees F) | R11: Cooling (degrees F) | S11: Heating (degrees F)
A12: =IF(RatingSystemSelection="ENERGY STAR MFHR",1,0) -> 0 | B12: =IF(MultipleBuildingsExist="Yes","All",GI_Project_Name) -> 0 | C12: Dwelling Units | D12: =2.34*365 -> 854.1 | E12: 2628 | F12: =365*24 -> 8760 | G12: =5.8*365 -> 2117 | H12: =365*24 -> 8760 | I12: N/A | J12: =365*24 -> 8760 | K12: N/A | L12: =12*365 -> 4380 | M12: N/A | N12: N/A | O12: 8760 | P12: 78 | Q12: 72 | R12: 80 | S12: 70
A13: =IF(RatingSystemSelection="ENERGY STAR MFHR",1,0) -> 0 | B13: =IF(MultipleBuildingsExist="Yes","All",GI_Project_Name) -> 0 | C13: Common Spaces | D13: =365*24 -> 8760 | G13: =9*365 -> 3285 | L13: =12*365 -> 4380 | O13: =365*24 -> 8760 | P13: 78 | Q13: 72 | R13: 80 | S13: 70
A14: =IF(RatingSystemSelection="ENERGY STAR MFHR",0,1) -> 1 | B14: =IF(MultipleBuildingsExist="Yes","All",GI_Project_Name) -> 0 | C14: Main Building Schedule | D14: =365*24 -> 8760 | G14: =9*365 -> 3285 | L14: =12*365 -> 4380 | O14: =365*24 -> 8760 | P14: 78 | Q14: 72 | R14: 80 | S14: 70
A15: G
A16: A | B16: =GI_Project_Name -> 0
A17: A | B17: 0
A18: A | B18: 0
B19: 0
B20: 0
B21: 0
B22: 0
A23: A
A24: G
A25: G
A26: G
A27: G
A28: G
A29: G
A30: G
A31: G
A32: G
A33: G
A34: G
A35: G
A36: G
A37: G
A38: G
A39: G
A40: G
A41: G
A42: G
A43: G
A44: G
A45: G
A46: G
A47: G
A48: G
A49: G
A50: G
A51: G
A52: G
A53: G
A54: G
A55: G
A56: G
A57: G
A58: G
A59: G
A60: G
A61: G
A62: G
A63: G
A64: G
A65: G
A66: G
A67: G
A68: G
A69: G
A70: G
A71: G
A72: G
A73: G
A74: G
A75: G
A76: G
A77: G
A78: G
A79: G
A80: G
A81: G
A82: G
A83: G
A84: G
A85: G
A86: G
A87: G
A88: G
A89: G
A90: G
A91: G
A92: G
A93: G
A94: G
A95: G
A96: G
A97: G
A98: G
A99: G
A100: G
A101: G
A102: G
A103: G
A104: G
A105: G
A106: G
A107: G
A108: G

Sheet 2b - EFLH Calculator
B2: (OPTIONAL) Equivalent Full Load Hours Calculator
B5: =CONCATENATE("THIS CALCULATOR IS OPTIONAL FOR USE DETERMIING THE EQUIVALENT FULL LOAD HOUR INFORMATION FOR THE SCHEDULES TAB. THE CALCULATOR IS NOT REQUIRED TO BE COMPLETED OR SUBMITTED. ", IF(proj_RatingSystem="Homes","Default schedules required for LEED-Homes Midrise are shown below for reference. ",IF(ResDwellingUnitsExist="Yes","Default schedules for residential dwelling units are shown below for reference.","")), " Some of the sample schedules from the ASHRAE 90.1-2013 User's Manual are shown below for reference.") -> THIS CALCULATOR IS OPTIONAL FOR USE DETERMIING THE EQUIVALENT FULL LOAD HOUR INFORMATION FOR THE SCHEDULES TAB. THE CALCULATOR IS NOT REQUIRED TO BE COMPLETED OR SUBMITTED. Default schedules for residential dwelling units are shown below for reference. Some of the sample schedules from the ASHRAE 90.1-2013 User's Manual are shown below for reference.
C7: Days per Year
B8: Holiday | C8: 11
B9: Monday | C9: 50
B10: Tuesday | C10: 50
B11: Wednesday | C11: 50
B12: Thursday | C12: 50
B13: Friday | C13: 50
B14: Saturday | C14: 52
B15: Sunday | C15: 52
B16: Total (must equal 365 days/year) | C16: =SUM(C8:C15) -> 365
B18: On/Off Schedules
B19: Enter 1 for "On", 0 for "Off.
B21: Schedule Name:
C23: 12-1AM | D23: 1-2AM | E23: 2-3AM | F23: 3-4AM | G23: 4-5AM | H23: 5-6AM | I23: 6-7AM | J23: 7-8AM | K23: 8-9 AM | L23: 9-10AM | M23: 10-11AM | N23: 11AM-12PM | O23: 12-1PM | P23: 1-2PM | Q23: 2-3PM | R23: 3-4PM | S23: 4-5PM | T23: 5-6PM | U23: 6-7PM | V23: 7-8PM | W23: 8-9PM | X23: 9-10PM | Y23: 10-11PM | Z23: 11-12PM | AA23: Hours/day | AB23: Hours/year | AE23: Additional Notes (Optional):
B24: Weekday | AA24: =SUM(C24:Z24) -> 0 | AB24: =AA24*SUM($C$9:$C$13) -> 0
B25: Weekend | AA25: =SUM(C25:Z25) -> 0 | AB25: =AA25*SUM($C$14:$C$15) -> 0
B26: Holiday | AA26: =SUM(C26:Z26) -> 0 | AB26: =AA26*$C$8 -> 0
B27: Total hours of operation per year | AB27: =SUM(AB24:AB26) -> 0
B31: Schedule Name:
C33: 12-1AM | D33: 1-2AM | E33: 2-3AM | F33: 3-4AM | G33: 4-5AM | H33: 5-6AM | I33: 6-7AM | J33: 7-8AM | K33: 8-9 AM | L33: 9-10AM | M33: 10-11AM | N33: 11AM-12PM | O33: 12-1PM | P33: 1-2PM | Q33: 2-3PM | R33: 3-4PM | S33: 4-5PM | T33: 5-6PM | U33: 6-7PM | V33: 7-8PM | W33: 8-9PM | X33: 9-10PM | Y33: 10-11PM | Z33: 11-12PM | AA33: Hours/day | AB33: Hours/year
B34: Weekday | AA34: =SUM(C34:Z34) -> 0 | AB34: =AA34*SUM($C$9:$C$13) -> 0
B35: Weekend | AA35: =SUM(C35:Z35) -> 0 | AB35: =AA35*SUM($C$14:$C$15) -> 0
B36: Holiday | AA36: =SUM(C36:Z36) -> 0 | AB36: =AA36*$C$8 -> 0
B37: Total hours of operation per year | AB37: =SUM(AB34:AB36) -> 0
B41: Schedule Name:
C43: 12-1AM | D43: 1-2AM | E43: 2-3AM | F43: 3-4AM | G43: 4-5AM | H43: 5-6AM | I43: 6-7AM | J43: 7-8AM | K43: 8-9 AM | L43: 9-10AM | M43: 10-11AM | N43: 11AM-12PM | O43: 12-1PM | P43: 1-2PM | Q43: 2-3PM | R43: 3-4PM | S43: 4-5PM | T43: 5-6PM | U43: 6-7PM | V43: 7-8PM | W43: 8-9PM | X43: 9-10PM | Y43: 10-11PM | Z43: 11-12PM | AA43: Hours/day | AB43: Hours/year
B44: Holiday | AA44: =SUM(C44:Z44) -> 0 | AB44: =AA44*$C$8 -> 0
B45: Monday | AA45: 0 | AB45: =AA45*$C$9 -> 0
B46: Tuesday | AA46: 0 | AB46: =AA46*$C$10 -> 0
B47: Wednesday | AA47: 0 | AB47: =AA47*$C$11 -> 0
B48: Thursday | AA48: 0 | AB48: =AA48*$C$12 -> 0
B49: Friday | AA49: 0 | AB49: =AA49*$C$13 -> 0
B50: Saturday | AA50: 0 | AB50: =AA50*$C$14 -> 0
B51: Sunday | AA51: 0 | AB51: =AA51*$C$15 -> 0
B52: Total hours of operation per year | AB52: =SUM(AB44:AB51) -> 0
B57: Fraction / Percentage Schedules
B58: Enter a percentage value between 0% and 100%
B60: Schedule Name:
C62: 12-1AM | D62: 1-2AM | E62: 2-3AM | F62: 3-4AM | G62: 4-5AM | H62: 5-6AM | I62: 6-7AM | J62: 7-8AM | K62: 8-9 AM | L62: 9-10AM | M62: 10-11AM | N62: 11AM-12PM | O62: 12-1PM | P62: 1-2PM | Q62: 2-3PM | R62: 3-4PM | S62: 4-5PM | T62: 5-6PM | U62: 6-7PM | V62: 7-8PM | W62: 8-9PM | X62: 9-10PM | Y62: 10-11PM | Z62: 11-12PM | AA62: EFLH/day | AB62: EFLH/year
B63: Weekday | C63: 0 | D63: 0 | E63: 0 | F63: 0 | G63: 0 | H63: 0.1 | I63: 0.3 | J63: 0.3 | K63: 0 | L63: 0 | M63: 0 | N63: 0 | O63: 0 | P63: 0 | Q63: 0 | R63: 0 | S63: 0 | T63: 0 | U63: 0.5 | V63: 0.5 | W63: 0.5 | X63: 0.1 | Y63: 0.04 | Z63: 0 | AA63: =SUM(C63:Z63) -> 2.34 | AB63: =AA63*SUM($C$9:$C$13) -> 585
B64: Weekend | C64: 0 | D64: 0 | E64: 0 | F64: 0 | G64: 0 | H64: 0.1 | I64: 0.3 | J64: 0.3 | K64: 0 | L64: 0 | M64: 0 | N64: 0 | O64: 0 | P64: 0 | Q64: 0 | R64: 0 | S64: 0 | T64: 0 | U64: 0.5 | V64: 0.5 | W64: 0.5 | X64: 0.1 | Y64: 0.04 | Z64: 0 | AA64: =SUM(C64:Z64) -> 2.34 | AB64: =AA64*SUM($C$14:$C$15) -> 243.36
B65: Holiday | C65: 0 | D65: 0 | E65: 0 | F65: 0 | G65: 0 | H65: 0.1 | I65: 0.3 | J65: 0.3 | K65: 0 | L65: 0 | M65: 0 | N65: 0 | O65: 0 | P65: 0 | Q65: 0 | R65: 0 | S65: 0 | T65: 0 | U65: 0.5 | V65: 0.5 | W65: 0.5 | X65: 0.1 | Y65: 0.04 | Z65: 0 | AA65: =SUM(C65:Z65) -> 2.34 | AB65: =AA65*$C$8 -> 25.74
B66: Total Equivalent Full Load Hours of Operation per Year | AB66: =SUM(AB63:AB65) -> 854.1
B70: Schedule Name:
C72: 12-1AM | D72: 1-2AM | E72: 2-3AM | F72: 3-4AM | G72: 4-5AM | H72: 5-6AM | I72: 6-7AM | J72: 7-8AM | K72: 8-9 AM | L72: 9-10AM | M72: 10-11AM | N72: 11AM-12PM | O72: 12-1PM | P72: 1-2PM | Q72: 2-3PM | R72: 3-4PM | S72: 4-5PM | T72: 5-6PM | U72: 6-7PM | V72: 7-8PM | W72: 8-9PM | X72: 9-10PM | Y72: 10-11PM | Z72: 11-12PM | AA72: EFLH/day | AB72: EFLH/year
B73: Weekday | C73: 0.12 | D73: 0.12 | E73: 0.12 | F73: 0.12 | G73: 0.12 | H73: 0.12 | I73: 0.36 | J73: 0.36 | K73: 0.36 | L73: 0.36 | M73: 0.24 | N73: 0.24 | O73: 0.24 | P73: 0.24 | Q73: 0.24 | R73: 0.24 | S73: 0.24 | T73: 0.24 | U73: 0.36 | V73: 0.36 | W73: 0.36 | X73: 0.36 | Y73: 0.12 | Z73: 0.12 | AA73: =SUM(C73:Z73) -> 5.76 | AB73: =AA73*SUM($C$9:$C$13) -> 1440
B74: Weekend | C74: 0.12 | D74: 0.12 | E74: 0.12 | F74: 0.12 | G74: 0.12 | H74: 0.12 | I74: 0.36 | J74: 0.36 | K74: 0.36 | L74: 0.36 | M74: 0.24 | N74: 0.24 | O74: 0.24 | P74: 0.24 | Q74: 0.24 | R74: 0.24 | S74: 0.24 | T74: 0.24 | U74: 0.36 | V74: 0.36 | W74: 0.36 | X74: 0.36 | Y74: 0.12 | Z74: 0.12 | AA74: =SUM(C74:Z74) -> 5.76 | AB74: =AA74*SUM($C$14:$C$15) -> 599.04
B75: Holiday | C75: 0.12 | D75: 0.12 | E75: 0.12 | F75: 0.12 | G75: 0.12 | H75: 0.12 | I75: 0.36 | J75: 0.36 | K75: 0.36 | L75: 0.36 | M75: 0.24 | N75: 0.24 | O75: 0.24 | P75: 0.24 | Q75: 0.24 | R75: 0.24 | S75: 0.24 | T75: 0.24 | U75: 0.36 | V75: 0.36 | W75: 0.36 | X75: 0.36 | Y75: 0.12 | Z75: 0.12 | AA75: =SUM(C75:Z75) -> 5.76 | AB75: =AA75*$C$8 -> 63.36
B76: Total Equivalent Full Load Hours of Operation per Year | AB76: =SUM(AB73:AB75) -> 2102.4
B79: Schedule Name:
C81: 12-1AM | D81: 1-2AM | E81: 2-3AM | F81: 3-4AM | G81: 4-5AM | H81: 5-6AM | I81: 6-7AM | J81: 7-8AM | K81: 8-9 AM | L81: 9-10AM | M81: 10-11AM | N81: 11AM-12PM | O81: 12-1PM | P81: 1-2PM | Q81: 2-3PM | R81: 3-4PM | S81: 4-5PM | T81: 5-6PM | U81: 6-7PM | V81: 7-8PM | W81: 8-9PM | X81: 9-10PM | Y81: 10-11PM | Z81: 11-12PM | AA81: EFLH/day | AB81: EFLH/year
B82: Weekday | C82: 0.2 | D82: 0.2 | E82: 0.2 | F82: 0.2 | G82: 0.2 | H82: 0.2 | I82: 0.6 | J82: 0.6 | K82: 0.6 | L82: 0.6 | M82: 0.4 | N82: 0.4 | O82: 0.4 | P82: 0.4 | Q82: 0.4 | R82: 0.4 | S82: 0.4 | T82: 0.4 | U82: 0.6 | V82: 0.6 | W82: 0.6 | X82: 0.6 | Y82: 0.2 | Z82: 0.2 | AA82: =SUM(C82:Z82) -> 9.6 | AB82: =AA82*SUM($C$9:$C$13) -> 2400
B83: Weekend | C83: 0.2 | D83: 0.2 | E83: 0.2 | F83: 0.2 | G83: 0.2 | H83: 0.2 | I83: 0.6 | J83: 0.6 | K83: 0.6 | L83: 0.6 | M83: 0.4 | N83: 0.4 | O83: 0.4 | P83: 0.4 | Q83: 0.4 | R83: 0.4 | S83: 0.4 | T83: 0.4 | U83: 0.6 | V83: 0.6 | W83: 0.6 | X83: 0.6 | Y83: 0.2 | Z83: 0.2 | AA83: =SUM(C83:Z83) -> 9.6 | AB83: =AA83*SUM($C$14:$C$15) -> 998.4
B84: Holiday | C84: 0.2 | D84: 0.2 | E84: 0.2 | F84: 0.2 | G84: 0.2 | H84: 0.2 | I84: 0.6 | J84: 0.6 | K84: 0.6 | L84: 0.6 | M84: 0.4 | N84: 0.4 | O84: 0.4 | P84: 0.4 | Q84: 0.4 | R84: 0.4 | S84: 0.4 | T84: 0.4 | U84: 0.6 | V84: 0.6 | W84: 0.6 | X84: 0.6 | Y84: 0.2 | Z84: 0.2 | AA84: =SUM(C84:Z84) -> 9.6 | AB84: =AA84*$C$8 -> 105.6
B85: Total Equivalent Full Load Hours of Operation per Year | AB85: =SUM(AB82:AB84) -> 3504
B88: Schedule Name:
C90: 12-1AM | D90: 1-2AM | E90: 2-3AM | F90: 3-4AM | G90: 4-5AM | H90: 5-6AM | I90: 6-7AM | J90: 7-8AM | K90: 8-9 AM | L90: 9-10AM | M90: 10-11AM | N90: 11AM-12PM | O90: 12-1PM | P90: 1-2PM | Q90: 2-3PM | R90: 3-4PM | S90: 4-5PM | T90: 5-6PM | U90: 6-7PM | V90: 7-8PM | W90: 8-9PM | X90: 9-10PM | Y90: 10-11PM | Z90: 11-12PM | AA90: EFLH/day | AB90: EFLH/year
B91: Weekday | C91: 0.05 | D91: 0.05 | E91: 0.05 | F91: 0.05 | G91: 0.05 | H91: 0.05 | I91: 0.2965 | J91: 0.789 | K91: 0.9 | L91: 0.9 | M91: 0.9 | N91: 0.9 | O91: 0.9 | P91: 0.9 | Q91: 0.9 | R91: 0.9 | S91: 0.789 | T91: 0.5005 | U91: 0.2965 | V91: 0.2965 | W91: 0.101 | X91: 0.101 | Y91: 0.05 | Z91: 0.05 | AA91: =SUM(C91:Z91) -> 10.77 | AB91: =AA91*SUM($C$9:$C$13) -> 2692.5
B92: Weekend | C92: 0.015 | D92: 0.015 | E92: 0.015 | F92: 0.015 | G92: 0.015 | H92: 0.015 | I92: 0.015 | J92: 0.015 | K92: 0.015 | L92: 0.015 | M92: 0.015 | N92: 0.015 | O92: 0.015 | P92: 0.015 | Q92: 0.015 | R92: 0.015 | S92: 0.015 | T92: 0.015 | U92: 0.015 | V92: 0.015 | W92: 0.015 | X92: 0.015 | Y92: 0.015 | Z92: 0.015 | AA92: =SUM(C92:Z92) -> 0.36 | AB92: =AA92*SUM($C$14:$C$15) -> 37.44
B93: Holiday | C93: 0.015 | D93: 0.015 | E93: 0.015 | F93: 0.015 | G93: 0.015 | H93: 0.015 | I93: 0.015 | J93: 0.015 | K93: 0.015 | L93: 0.015 | M93: 0.015 | N93: 0.015 | O93: 0.015 | P93: 0.015 | Q93: 0.015 | R93: 0.015 | S93: 0.015 | T93: 0.015 | U93: 0.015 | V93: 0.015 | W93: 0.015 | X93: 0.015 | Y93: 0.015 | Z93: 0.015 | AA93: =SUM(C93:Z93) -> 0.36 | AB93: =AA93*$C$8 -> 3.96
B94: Total Equivalent Full Load Hours of Operation per Year | AB94: =SUM(AB91:AB93) -> 2733.9
B98: Schedule Name:
C100: 12-1AM | D100: 1-2AM | E100: 2-3AM | F100: 3-4AM | G100: 4-5AM | H100: 5-6AM | I100: 6-7AM | J100: 7-8AM | K100: 8-9 AM | L100: 9-10AM | M100: 10-11AM | N100: 11AM-12PM | O100: 12-1PM | P100: 1-2PM | Q100: 2-3PM | R100: 3-4PM | S100: 4-5PM | T100: 5-6PM | U100: 6-7PM | V100: 7-8PM | W100: 8-9PM | X100: 9-10PM | Y100: 10-11PM | Z100: 11-12PM | AA100: EFLH/day | AB100: EFLH/day
B101: Holiday | AA101: =SUM(C101:Z101) -> 0 | AB101: =AA101*$C$8 -> 0
B102: Monday | AA102: 0 | AB102: =AA102*$C$9 -> 0
B103: Tuesday | AA103: 0 | AB103: =AA103*$C$10 -> 0
B104: Wednesday | AA104: 0 | AB104: =AA104*$C$11 -> 0
B105: Thursday | AA105: 0 | AB105: =AA105*$C$12 -> 0
B106: Friday | AA106: 0 | AB106: =AA106*$C$13 -> 0
B107: Saturday | AA107: 0 | AB107: =AA107*$C$14 -> 0
B108: Sunday | AA108: 0 | AB108: =AA108*$C$15 -> 0
B109: Total Equivalent Full Load Hours of Operation per Year | AB109: =SUM(AB101:AB108) -> 0
B114: Default Schedules
B116: Residential Dwelling Unit Default Schedules
B118: Schedule Name: | C118: Dwelling Unit Thermostat setpoint schedule
C120: 12-1AM | D120: 1-2AM | E120: 2-3AM | F120: 3-4AM | G120: 4-5AM | H120: 5-6AM | I120: 6-7AM | J120: 7-8AM | K120: 8-9 AM | L120: 9-10AM | M120: 10-11AM | N120: 11AM-12PM | O120: 12-1PM | P120: 1-2PM | Q120: 2-3PM | R120: 3-4PM | S120: 4-5PM | T120: 5-6PM | U120: 6-7PM | V120: 7-8PM | W120: 8-9PM | X120: 9-10PM | Y120: 10-11PM | Z120: 11-12PM | AA120: Hours/day | AB120: Hours/year
B121: Daily Heating Setpoint | C121: =IF(SI_IP_Units="IP",70,CONVERT(70,"F","C")) -> 70 | D121: 70 | E121: 70 | F121: 70 | G121: 70 | H121: 70 | I121: =IF(SI_IP_Units="IP",72,CONVERT(72,"F","C")) -> 72 | J121: 72 | K121: 72 | L121: 72 | M121: 72 | N121: 72 | O121: 72 | P121: 72 | Q121: 72 | R121: 72 | S121: 72 | T121: 72 | U121: 72 | V121: 72 | W121: 72 | X121: 72 | Y121: 72 | Z121: =IF(SI_IP_Units="IP",70,CONVERT(70,"F","C")) -> 70 | AA121: 24 | AB121: 8760
B122: Daily Cooling Setpoint | C122: =IF(SI_IP_Units="IP",78,CONVERT(78,"F","C")) -> 78 | D122: 78 | E122: 78 | F122: 78 | G122: 78 | H122: 78 | I122: 78 | J122: 78 | K122: 78 | L122: =IF(SI_IP_Units="IP",80,CONVERT(80,"F","C")) -> 80 | M122: 80 | N122: 80 | O122: 80 | P122: 80 | Q122: 80 | R122: =IF(SI_IP_Units="IP",78,CONVERT(78,"F","C")) -> 78 | S122: 78 | T122: 78 | U122: 78 | V122: 78 | W122: 78 | X122: 78 | Y122: 78 | Z122: 78 | AA122: 24 | AB122: 8760
B124: Schedule Name: | C124: Dwelling Unit Lighting Schedule
C126: 12-1AM | D126: 1-2AM | E126: 2-3AM | F126: 3-4AM | G126: 4-5AM | H126: 5-6AM | I126: 6-7AM | J126: 7-8AM | K126: 8-9 AM | L126: 9-10AM | M126: 10-11AM | N126: 11AM-12PM | O126: 12-1PM | P126: 1-2PM | Q126: 2-3PM | R126: 3-4PM | S126: 4-5PM | T126: 5-6PM | U126: 6-7PM | V126: 7-8PM | W126: 8-9PM | X126: 9-10PM | Y126: 10-11PM | Z126: 11-12PM | AA126: EFLH/day | AB126: EFLH/year
B127: Weekday | C127: 0.016 | D127: 0.016 | E127: 0.016 | F127: 0.016 | G127: 0.016 | H127: 0.016 | I127: 0.077 | J127: 0.14 | K127: 0.14 | L127: 0.108 | M127: 0.108 | N127: 0.108 | O127: 0.077 | P127: 0.077 | Q127: 0.077 | R127: 0.077 | S127: 0.077 | T127: 0.108 | U127: 0.217 | V127: 0.217 | W127: 0.217 | X127: 0.217 | Y127: 0.186 | Z127: 0.016 | AA127: =SUM(C127:Z127) -> 2.34 | AB127: =AA127*SUM($C$9:$C$13) -> 585
B128: Weekend | C128: 0.016 | D128: 0.016 | E128: 0.016 | F128: 0.016 | G128: 0.016 | H128: 0.016 | I128: 0.077 | J128: 0.14 | K128: 0.14 | L128: 0.108 | M128: 0.108 | N128: 0.108 | O128: 0.077 | P128: 0.077 | Q128: 0.077 | R128: 0.077 | S128: 0.077 | T128: 0.108 | U128: 0.217 | V128: 0.217 | W128: 0.217 | X128: 0.217 | Y128: 0.186 | Z128: 0.016 | AA128: =SUM(C128:Z128) -> 2.34 | AB128: =AA128*SUM($C$14:$C$15) -> 243.36
B129: Holiday | C129: 0.016 | D129: 0.016 | E129: 0.016 | F129: 0.016 | G129: 0.016 | H129: 0.016 | I129: 0.077 | J129: 0.14 | K129: 0.14 | L129: 0.108 | M129: 0.108 | N129: 0.108 | O129: 0.077 | P129: 0.077 | Q129: 0.077 | R129: 0.077 | S129: 0.077 | T129: 0.108 | U129: 0.217 | V129: 0.217 | W129: 0.217 | X129: 0.217 | Y129: 0.186 | Z129: 0.016 | AA129: =SUM(C129:Z129) -> 2.34 | AB129: =AA129*$C$8 -> 25.74
B130: Total Equivalent Full Load Hours of Operation per Year | AB130: =SUM(AB127:AB129) -> 854.1
B132: Schedule Name: | C132: Dwelling Unit Miscellaneous Equipment Schedule
C134: 12-1AM | D134: 1-2AM | E134: 2-3AM | F134: 3-4AM | G134: 4-5AM | H134: 5-6AM | I134: 6-7AM | J134: 7-8AM | K134: 8-9 AM | L134: 9-10AM | M134: 10-11AM | N134: 11AM-12PM | O134: 12-1PM | P134: 1-2PM | Q134: 2-3PM | R134: 3-4PM | S134: 4-5PM | T134: 5-6PM | U134: 6-7PM | V134: 7-8PM | W134: 8-9PM | X134: 9-10PM | Y134: 10-11PM | Z134: 11-12PM | AA134: EFLH/day | AB134: EFLH/year
B135: Weekday | C135: 0.05 | D135: 0.05 | E135: 0.05 | F135: 0.05 | G135: 0.05 | H135: 0.05 | I135: 0.05 | J135: 0.05 | K135: 0.5 | L135: 0.5 | M135: 0.5 | N135: 0.5 | O135: 0.3 | P135: 0.5 | Q135: 0.5 | R135: 0.5 | S135: 0.5 | T135: 0.5 | U135: 0.35 | V135: 0.05 | W135: 0.05 | X135: 0.05 | Y135: 0.05 | Z135: 0.05 | AA135: =SUM(C135:Z135) -> 5.8 | AB135: =AA135*SUM($C$9:$C$13) -> 1450
B136: Weekend | C136: 0.05 | D136: 0.05 | E136: 0.05 | F136: 0.05 | G136: 0.05 | H136: 0.05 | I136: 0.05 | J136: 0.05 | K136: 0.5 | L136: 0.5 | M136: 0.5 | N136: 0.5 | O136: 0.3 | P136: 0.5 | Q136: 0.5 | R136: 0.5 | S136: 0.5 | T136: 0.5 | U136: 0.35 | V136: 0.05 | W136: 0.05 | X136: 0.05 | Y136: 0.05 | Z136: 0.05 | AA136: =SUM(C136:Z136) -> 5.8 | AB136: =AA136*SUM($C$14:$C$15) -> 603.2
B137: Holiday | C137: 0.05 | D137: 0.05 | E137: 0.05 | F137: 0.05 | G137: 0.05 | H137: 0.05 | I137: 0.05 | J137: 0.05 | K137: 0.5 | L137: 0.5 | M137: 0.5 | N137: 0.5 | O137: 0.3 | P137: 0.5 | Q137: 0.5 | R137: 0.5 | S137: 0.5 | T137: 0.5 | U137: 0.35 | V137: 0.05 | W137: 0.05 | X137: 0.05 | Y137: 0.05 | Z137: 0.05 | AA137: =SUM(C137:Z137) -> 5.8 | AB137: =AA137*$C$8 -> 63.8
B138: Total Equivalent Full Load Hours of Operation per Year | AB138: =SUM(AB135:AB137) -> 2117
B140: Schedule Name: | C140: Residential Common Area Miscellaneous Equipment Schedule
C142: 12-1AM | D142: 1-2AM | E142: 2-3AM | F142: 3-4AM | G142: 4-5AM | H142: 5-6AM | I142: 6-7AM | J142: 7-8AM | K142: 8-9 AM | L142: 9-10AM | M142: 10-11AM | N142: 11AM-12PM | O142: 12-1PM | P142: 1-2PM | Q142: 2-3PM | R142: 3-4PM | S142: 4-5PM | T142: 5-6PM | U142: 6-7PM | V142: 7-8PM | W142: 8-9PM | X142: 9-10PM | Y142: 10-11PM | Z142: 11-12PM | AA142: EFLH/day | AB142: EFLH/year
B143: Weekday | C143: 0.1 | D143: 0.1 | E143: 0.1 | F143: 0.1 | G143: 0.1 | H143: 0.3 | I143: 0.45 | J143: 0.45 | K143: 0.45 | L143: 0.45 | M143: 0.3 | N143: 0.3 | O143: 0.3 | P143: 0.3 | Q143: 0.3 | R143: 0.3 | S143: 0.3 | T143: 0.3 | U143: 0.6 | V143: 0.8 | W143: 0.9 | X143: 0.8 | Y143: 0.6 | Z143: 0.3 | AA143: =SUM(C143:Z143) -> 9 | AB143: =AA143*SUM($C$9:$C$13) -> 2250
B144: Weekend | C144: 0.1 | D144: 0.1 | E144: 0.1 | F144: 0.1 | G144: 0.1 | H144: 0.3 | I144: 0.45 | J144: 0.45 | K144: 0.45 | L144: 0.45 | M144: 0.3 | N144: 0.3 | O144: 0.3 | P144: 0.3 | Q144: 0.3 | R144: 0.3 | S144: 0.3 | T144: 0.3 | U144: 0.6 | V144: 0.8 | W144: 0.9 | X144: 0.8 | Y144: 0.6 | Z144: 0.3 | AA144: =SUM(C144:Z144) -> 9 | AB144: =AA144*SUM($C$14:$C$15) -> 936
B145: Holiday | C145: 0.1 | D145: 0.1 | E145: 0.1 | F145: 0.1 | G145: 0.1 | H145: 0.3 | I145: 0.45 | J145: 0.45 | K145: 0.45 | L145: 0.45 | M145: 0.3 | N145: 0.3 | O145: 0.3 | P145: 0.3 | Q145: 0.3 | R145: 0.3 | S145: 0.3 | T145: 0.3 | U145: 0.6 | V145: 0.8 | W145: 0.9 | X145: 0.8 | Y145: 0.6 | Z145: 0.3 | AA145: =SUM(C145:Z145) -> 9 | AB145: =AA145*$C$8 -> 99
B146: Total Equivalent Full Load Hours of Operation per Year | AB146: =SUM(AB143:AB145) -> 3285
B148: Schedule Name: | C148: Residential DHW Schedule
C150: 12-1AM | D150: 1-2AM | E150: 2-3AM | F150: 3-4AM | G150: 4-5AM | H150: 5-6AM | I150: 6-7AM | J150: 7-8AM | K150: 8-9 AM | L150: 9-10AM | M150: 10-11AM | N150: 11AM-12PM | O150: 12-1PM | P150: 1-2PM | Q150: 2-3PM | R150: 3-4PM | S150: 4-5PM | T150: 5-6PM | U150: 6-7PM | V150: 7-8PM | W150: 8-9PM | X150: 9-10PM | Y150: 10-11PM | Z150: 11-12PM | AA150: EFLH/day | AB150: EFLH/year
B151: Weekday | C151: 0.05 | D151: 0.05 | E151: 0.05 | F151: 0.05 | G151: 0.05 | H151: 0.05 | I151: 0.3 | J151: 0.5 | K151: 0.4 | L151: 0.3 | M151: 0.3 | N151: 0.35 | O151: 0.4 | P151: 0.35 | Q151: 0.35 | R151: 0.3 | S151: 0.3 | T151: 0.5 | U151: 0.5 | V151: 0.4 | W151: 0.35 | X151: 0.45 | Y151: 0.3 | Z151: 0.05 | AA151: =SUM(C151:Z151) -> 6.7 | AB151: =AA151*SUM($C$9:$C$13) -> 1675
B152: Weekend | C152: 0.05 | D152: 0.05 | E152: 0.05 | F152: 0.05 | G152: 0.05 | H152: 0.05 | I152: 0.3 | J152: 0.5 | K152: 0.4 | L152: 0.3 | M152: 0.3 | N152: 0.35 | O152: 0.4 | P152: 0.35 | Q152: 0.35 | R152: 0.3 | S152: 0.3 | T152: 0.5 | U152: 0.5 | V152: 0.4 | W152: 0.35 | X152: 0.45 | Y152: 0.3 | Z152: 0.05 | AA152: =SUM(C152:Z152) -> 6.7 | AB152: =AA152*SUM($C$14:$C$15) -> 696.8
B153: Holiday | C153: 0.05 | D153: 0.05 | E153: 0.05 | F153: 0.05 | G153: 0.05 | H153: 0.05 | I153: 0.3 | J153: 0.5 | K153: 0.4 | L153: 0.3 | M153: 0.3 | N153: 0.35 | O153: 0.4 | P153: 0.35 | Q153: 0.35 | R153: 0.3 | S153: 0.3 | T153: 0.5 | U153: 0.5 | V153: 0.4 | W153: 0.35 | X153: 0.45 | Y153: 0.3 | Z153: 0.05 | AA153: =SUM(C153:Z153) -> 6.7 | AB153: =AA153*$C$8 -> 73.7
B154: Total Equivalent Full Load Hours of Operation per Year | AB154: =SUM(AB151:AB153) -> 2445.5
B157: ASHRAE 90.1-2010 User's Manual Schedules
B158: Below is a subset of sample schedules provided in the ASHRAE 90.1-2010 User's Manual. Refer to the ASHRAE User's Manual Tables G-D through G-M for additional schedules. (Note: Holiday schedules are added, and are assumed to be equal to the Sunday schedules; therefore annual equivalent full load hours will differ slightly from those reported in the default ASHRAE schedules).
B160: Office Occupancy
B162: Schedule Name: | C162: Office HVAC System - ON/OFF Schedule
C164: 12-1AM | D164: 1-2AM | E164: 2-3AM | F164: 3-4AM | G164: 4-5AM | H164: 5-6AM | I164: 6-7AM | J164: 7-8AM | K164: 8-9 AM | L164: 9-10AM | M164: 10-11AM | N164: 11AM-12PM | O164: 12-1PM | P164: 1-2PM | Q164: 2-3PM | R164: 3-4PM | S164: 4-5PM | T164: 5-6PM | U164: 6-7PM | V164: 7-8PM | W164: 8-9PM | X164: 9-10PM | Y164: 10-11PM | Z164: 11-12PM | AA164: Hours/day | AB164: Hours/year
B165: Weekday | C165: 0 | D165: 0 | E165: 0 | F165: 0 | G165: 0 | H165: 0 | I165: 1 | J165: 1 | K165: 1 | L165: 1 | M165: 1 | N165: 1 | O165: 1 | P165: 1 | Q165: 1 | R165: 1 | S165: 1 | T165: 1 | U165: 1 | V165: 1 | W165: 1 | X165: 1 | Y165: 0 | Z165: 0 | AA165: =SUM(C165:Z165) -> 16 | AB165: =AA165*SUM($C$9:$C$13) -> 4000
B166: Saturday | C166: 0 | D166: 0 | E166: 0 | F166: 0 | G166: 0 | H166: 0 | I166: 1 | J166: 1 | K166: 1 | L166: 1 | M166: 1 | N166: 1 | O166: 1 | P166: 1 | Q166: 1 | R166: 1 | S166: 1 | T166: 1 | U166: 0 | V166: 0 | W166: 0 | X166: 0 | Y166: 0 | Z166: 0 | AA166: =SUM(C166:Z166) -> 12 | AB166: =AA166*SUM($C$14) -> 624
B167: Sunday | C167: 0 | D167: 0 | E167: 0 | F167: 0 | G167: 0 | H167: 0 | I167: 0 | J167: 0 | K167: 0 | L167: 0 | M167: 0 | N167: 0 | O167: 0 | P167: 0 | Q167: 0 | R167: 0 | S167: 0 | T167: 0 | U167: 0 | V167: 0 | W167: 0 | X167: 0 | Y167: 0 | Z167: 0 | AA167: =SUM(C167:Z167) -> 0 | AB167: =AA167*$C$15 -> 0
B168: Holiday | C168: 0 | D168: 0 | E168: 0 | F168: 0 | G168: 0 | H168: 0 | I168: 0 | J168: 0 | K168: 0 | L168: 0 | M168: 0 | N168: 0 | O168: 0 | P168: 0 | Q168: 0 | R168: 0 | S168: 0 | T168: 0 | U168: 0 | V168: 0 | W168: 0 | X168: 0 | Y168: 0 | Z168: 0 | AA168: =SUM(C168:Z168) -> 0 | AB168: =AA168*SUM($C$8) -> 0
B169: Total hours of operation per year | AB169: =SUM(AB165:AB168) -> 4624
B171: Schedule Name: | C171: Office Occupancy Schedule
C173: 12-1AM | D173: 1-2AM | E173: 2-3AM | F173: 3-4AM | G173: 4-5AM | H173: 5-6AM | I173: 6-7AM | J173: 7-8AM | K173: 8-9 AM | L173: 9-10AM | M173: 10-11AM | N173: 11AM-12PM | O173: 12-1PM | P173: 1-2PM | Q173: 2-3PM | R173: 3-4PM | S173: 4-5PM | T173: 5-6PM | U173: 6-7PM | V173: 7-8PM | W173: 8-9PM | X173: 9-10PM | Y173: 10-11PM | Z173: 11-12PM | AA173: EFLH/day | AB173: EFLH/year
B174: Weekday | C174: 0 | D174: 0 | E174: 0 | F174: 0 | G174: 0 | H174: 0 | I174: 0.1 | J174: 0.2 | K174: 0.95 | L174: 0.95 | M174: 0.95 | N174: 0.95 | O174: 0.5 | P174: 0.95 | Q174: 0.95 | R174: 0.95 | S174: 0.95 | T174: 0.3 | U174: 0.1 | V174: 0.1 | W174: 0.1 | X174: 0.1 | Y174: 0.05 | Z174: 0.05 | AA174: =SUM(C174:Z174) -> 9.2 | AB174: =AA174*SUM($C$9:$C$13) -> 2300
B175: Saturday | C175: 0 | D175: 0 | E175: 0 | F175: 0 | G175: 0 | H175: 0 | I175: 0.1 | J175: 0.1 | K175: 0.3 | L175: 0.3 | M175: 0.3 | N175: 0.3 | O175: 0.1 | P175: 0.1 | Q175: 0.1 | R175: 0.1 | S175: 0.1 | T175: 0.05 | U175: 0.05 | V175: 0 | W175: 0 | X175: 0 | Y175: 0 | Z175: 0 | AA175: =SUM(C175:Z175) -> 2 | AB175: =AA175*SUM($C$14) -> 104
B176: Sunday | C176: 0 | D176: 0 | E176: 0 | F176: 0 | G176: 0 | H176: 0 | I176: 0.05 | J176: 0.05 | K176: 0.05 | L176: 0.05 | M176: 0.05 | N176: 0.05 | O176: 0.05 | P176: 0.05 | Q176: 0.05 | R176: 0.05 | S176: 0.05 | T176: 0.05 | U176: 0 | V176: 0 | W176: 0 | X176: 0 | Y176: 0 | Z176: 0 | AA176: =SUM(C176:Z176) -> 0.6 | AB176: =AA176*$C$15 -> 31.2
B177: Holiday | C177: 0 | D177: 0 | E177: 0 | F177: 0 | G177: 0 | H177: 0 | I177: 0.05 | J177: 0.05 | K177: 0.05 | L177: 0.05 | M177: 0.05 | N177: 0.05 | O177: 0.05 | P177: 0.05 | Q177: 0.05 | R177: 0.05 | S177: 0.05 | T177: 0.05 | U177: 0 | V177: 0 | W177: 0 | X177: 0 | Y177: 0 | Z177: 0 | AA177: =SUM(C177:Z177) -> 0.6 | AB177: =AA177*SUM($C$8) -> 6.6
B178: Total Equivalent Full Load Hours of Operation per Year | AB178: =SUM(AB174:AB177) -> 2441.8
B180: Schedule Name: | C180: Office Lighting Schedule
C182: 12-1AM | D182: 1-2AM | E182: 2-3AM | F182: 3-4AM | G182: 4-5AM | H182: 5-6AM | I182: 6-7AM | J182: 7-8AM | K182: 8-9 AM | L182: 9-10AM | M182: 10-11AM | N182: 11AM-12PM | O182: 12-1PM | P182: 1-2PM | Q182: 2-3PM | R182: 3-4PM | S182: 4-5PM | T182: 5-6PM | U182: 6-7PM | V182: 7-8PM | W182: 8-9PM | X182: 9-10PM | Y182: 10-11PM | Z182: 11-12PM | AA182: EFLH/day | AB182: EFLH/year
B183: Weekday | C183: 0.05 | D183: 0.05 | E183: 0.05 | F183: 0.05 | G183: 0.05 | H183: 0.1 | I183: 0.1 | J183: 0.3 | K183: 0.65 | L183: 0.65 | M183: 0.65 | N183: 0.65 | O183: 0.55 | P183: 0.65 | Q183: 0.65 | R183: 0.65 | S183: 0.65 | T183: 0.35 | U183: 0.3 | V183: 0.3 | W183: 0.2 | X183: 0.2 | Y183: 0.1 | Z183: 0.05 | AA183: =SUM(C183:Z183) -> 8 | AB183: =AA183*SUM($C$9:$C$13) -> 2000
B184: Saturday | C184: 0.05 | D184: 0.05 | E184: 0.05 | F184: 0.05 | G184: 0.05 | H184: 0.05 | I184: 0.1 | J184: 0.1 | K184: 0.3 | L184: 0.3 | M184: 0.3 | N184: 0.3 | O184: 0.15 | P184: 0.15 | Q184: 0.15 | R184: 0.15 | S184: 0.15 | T184: 0.05 | U184: 0.05 | V184: 0.05 | W184: 0.05 | X184: 0.05 | Y184: 0.05 | Z184: 0.05 | AA184: =SUM(C184:Z184) -> 2.8 | AB184: =AA184*SUM($C$14) -> 145.6
B185: Sunday | C185: 0.05 | D185: 0.05 | E185: 0.05 | F185: 0.05 | G185: 0.05 | H185: 0.05 | I185: 0.05 | J185: 0.05 | K185: 0.05 | L185: 0.05 | M185: 0.05 | N185: 0.05 | O185: 0.05 | P185: 0.05 | Q185: 0.05 | R185: 0.05 | S185: 0.05 | T185: 0.05 | U185: 0.05 | V185: 0.05 | W185: 0.05 | X185: 0.05 | Y185: 0.05 | Z185: 0.05 | AA185: =SUM(C185:Z185) -> 1.2 | AB185: =AA185*$C$15 -> 62.4
B186: Holiday | C186: 0.05 | D186: 0.05 | E186: 0.05 | F186: 0.05 | G186: 0.05 | H186: 0.05 | I186: 0.05 | J186: 0.05 | K186: 0.05 | L186: 0.05 | M186: 0.05 | N186: 0.05 | O186: 0.05 | P186: 0.05 | Q186: 0.05 | R186: 0.05 | S186: 0.05 | T186: 0.05 | U186: 0.05 | V186: 0.05 | W186: 0.05 | X186: 0.05 | Y186: 0.05 | Z186: 0.05 | AA186: =SUM(C186:Z186) -> 1.2 | AB186: =AA186*SUM($C$8) -> 13.2
B187: Total Equivalent Full Load Hours of Operation per Year | AB187: =SUM(AB183:AB186) -> 2221.2
B189: Schedule Name: | C189: Office Receptacle Schedule
C191: 12-1AM | D191: 1-2AM | E191: 2-3AM | F191: 3-4AM | G191: 4-5AM | H191: 5-6AM | I191: 6-7AM | J191: 7-8AM | K191: 8-9 AM | L191: 9-10AM | M191: 10-11AM | N191: 11AM-12PM | O191: 12-1PM | P191: 1-2PM | Q191: 2-3PM | R191: 3-4PM | S191: 4-5PM | T191: 5-6PM | U191: 6-7PM | V191: 7-8PM | W191: 8-9PM | X191: 9-10PM | Y191: 10-11PM | Z191: 11-12PM | AA191: EFLH/day | AB191: EFLH/year
B192: Weekday | C192: 0.05 | D192: 0.05 | E192: 0.05 | F192: 0.05 | G192: 0.05 | H192: 0.1 | I192: 0.1 | J192: 0.3 | K192: 0.9 | L192: 0.9 | M192: 0.9 | N192: 0.9 | O192: 0.8 | P192: 0.9 | Q192: 0.9 | R192: 0.9 | S192: 0.9 | T192: 0.5 | U192: 0.3 | V192: 0.3 | W192: 0.2 | X192: 0.2 | Y192: 0.1 | Z192: 0.05 | AA192: =SUM(C192:Z192) -> 10.4 | AB192: =AA192*SUM($C$9:$C$13) -> 2600
B193: Saturday | C193: 0.05 | D193: 0.05 | E193: 0.05 | F193: 0.05 | G193: 0.05 | H193: 0.05 | I193: 0.1 | J193: 0.1 | K193: 0.3 | L193: 0.3 | M193: 0.3 | N193: 0.3 | O193: 0.15 | P193: 0.15 | Q193: 0.15 | R193: 0.15 | S193: 0.15 | T193: 0.05 | U193: 0.05 | V193: 0.05 | W193: 0.05 | X193: 0.05 | Y193: 0.05 | Z193: 0.05 | AA193: =SUM(C193:Z193) -> 2.8 | AB193: =AA193*SUM($C$14) -> 145.6
B194: Sunday | C194: 0.05 | D194: 0.05 | E194: 0.05 | F194: 0.05 | G194: 0.05 | H194: 0.05 | I194: 0.05 | J194: 0.05 | K194: 0.05 | L194: 0.05 | M194: 0.05 | N194: 0.05 | O194: 0.05 | P194: 0.05 | Q194: 0.05 | R194: 0.05 | S194: 0.05 | T194: 0.05 | U194: 0.05 | V194: 0.05 | W194: 0.05 | X194: 0.05 | Y194: 0.05 | Z194: 0.05 | AA194: =SUM(C194:Z194) -> 1.2 | AB194: =AA194*$C$15 -> 62.4
B195: Holiday | C195: 0.05 | D195: 0.05 | E195: 0.05 | F195: 0.05 | G195: 0.05 | H195: 0.05 | I195: 0.05 | J195: 0.05 | K195: 0.05 | L195: 0.05 | M195: 0.05 | N195: 0.05 | O195: 0.05 | P195: 0.05 | Q195: 0.05 | R195: 0.05 | S195: 0.05 | T195: 0.05 | U195: 0.05 | V195: 0.05 | W195: 0.05 | X195: 0.05 | Y195: 0.05 | Z195: 0.05 | AA195: =SUM(C195:Z195) -> 1.2 | AB195: =AA195*SUM($C$8) -> 13.2
B196: Total Equivalent Full Load Hours of Operation per Year | AB196: =SUM(AB192:AB195) -> 2821.2
B198: Schedule Name: | C198: Office DHW Schedule
C200: 12-1AM | D200: 1-2AM | E200: 2-3AM | F200: 3-4AM | G200: 4-5AM | H200: 5-6AM | I200: 6-7AM | J200: 7-8AM | K200: 8-9 AM | L200: 9-10AM | M200: 10-11AM | N200: 11AM-12PM | O200: 12-1PM | P200: 1-2PM | Q200: 2-3PM | R200: 3-4PM | S200: 4-5PM | T200: 5-6PM | U200: 6-7PM | V200: 7-8PM | W200: 8-9PM | X200: 9-10PM | Y200: 10-11PM | Z200: 11-12PM | AA200: EFLH/day | AB200: EFLH/year
B201: Weekday | C201: 0.05 | D201: 0.05 | E201: 0.05 | F201: 0.05 | G201: 0.05 | H201: 0.08 | I201: 0.07 | J201: 0.19 | K201: 0.35 | L201: 0.38 | M201: 0.39 | N201: 0.47 | O201: 0.57 | P201: 0.54 | Q201: 0.34 | R201: 0.33 | S201: 0.44 | T201: 0.26 | U201: 0.21 | V201: 0.15 | W201: 0.17 | X201: 0.08 | Y201: 0.05 | Z201: 0.05 | AA201: =SUM(C201:Z201) -> 5.37 | AB201: =AA201*SUM($C$9:$C$13) -> 1342.5
B202: Saturday | C202: 0.05 | D202: 0.05 | E202: 0.05 | F202: 0.05 | G202: 0.05 | H202: 0.08 | I202: 0.07 | J202: 0.11 | K202: 0.15 | L202: 0.21 | M202: 0.19 | N202: 0.23 | O202: 0.2 | P202: 0.19 | Q202: 0.15 | R202: 0.12 | S202: 0.14 | T202: 0.07 | U202: 0.07 | V202: 0.07 | W202: 0.07 | X202: 0.09 | Y202: 0.05 | Z202: 0.05 | AA202: =SUM(C202:Z202) -> 2.56 | AB202: =AA202*SUM($C$14) -> 133.12
B203: Sunday | C203: 0.04 | D203: 0.04 | E203: 0.04 | F203: 0.04 | G203: 0.04 | H203: 0.07 | I203: 0.04 | J203: 0.04 | K203: 0.04 | L203: 0.04 | M203: 0.04 | N203: 0.06 | O203: 0.06 | P203: 0.09 | Q203: 0.06 | R203: 0.04 | S203: 0.04 | T203: 0.04 | U203: 0.04 | V203: 0.04 | W203: 0.04 | X203: 0.07 | Y203: 0.04 | Z203: 0.04 | AA203: =SUM(C203:Z203) -> 1.13 | AB203: =AA203*$C$15 -> 58.76
B204: Holiday | C204: 0.04 | D204: 0.04 | E204: 0.04 | F204: 0.04 | G204: 0.04 | H204: 0.07 | I204: 0.04 | J204: 0.04 | K204: 0.04 | L204: 0.04 | M204: 0.04 | N204: 0.06 | O204: 0.06 | P204: 0.09 | Q204: 0.06 | R204: 0.04 | S204: 0.04 | T204: 0.04 | U204: 0.04 | V204: 0.04 | W204: 0.04 | X204: 0.07 | Y204: 0.04 | Z204: 0.04 | AA204: =SUM(C204:Z204) -> 1.13 | AB204: =AA204*SUM($C$8) -> 12.43
B205: Total Equivalent Full Load Hours of Operation per Year | AB205: =SUM(AB201:AB204) -> 1546.81
B207: Schedule Name: | C207: Office Elevator Schedule
C209: 12-1AM | D209: 1-2AM | E209: 2-3AM | F209: 3-4AM | G209: 4-5AM | H209: 5-6AM | I209: 6-7AM | J209: 7-8AM | K209: 8-9 AM | L209: 9-10AM | M209: 10-11AM | N209: 11AM-12PM | O209: 12-1PM | P209: 1-2PM | Q209: 2-3PM | R209: 3-4PM | S209: 4-5PM | T209: 5-6PM | U209: 6-7PM | V209: 7-8PM | W209: 8-9PM | X209: 9-10PM | Y209: 10-11PM | Z209: 11-12PM | AA209: EFLH/day | AB209: EFLH/year
B210: Weekday | C210: 0 | D210: 0 | E210: 0 | F210: 0 | G210: 0 | H210: 0 | I210: 0 | J210: 0.35 | K210: 0.69 | L210: 0.43 | M210: 0.37 | N210: 0.43 | O210: 0.58 | P210: 0.48 | Q210: 0.37 | R210: 0.37 | S210: 0.46 | T210: 0.62 | U210: 0.2 | V210: 0.12 | W210: 0.04 | X210: 0.04 | Y210: 0 | Z210: 0 | AA210: =SUM(C210:Z210) -> 5.55 | AB210: =AA210*SUM($C$9:$C$13) -> 1387.5
B211: Saturday | C211: 0 | D211: 0 | E211: 0 | F211: 0 | G211: 0 | H211: 0 | I211: 0 | J211: 0.16 | K211: 0.14 | L211: 0.21 | M211: 0.18 | N211: 0.25 | O211: 0.21 | P211: 0.13 | Q211: 0.08 | R211: 0.04 | S211: 0.05 | T211: 0.06 | U211: 0 | V211: 0 | W211: 0 | X211: 0 | Y211: 0 | Z211: 0 | AA211: =SUM(C211:Z211) -> 1.51 | AB211: =AA211*SUM($C$14) -> 78.52
B212: Sunday | C212: 0 | D212: 0 | E212: 0 | F212: 0 | G212: 0 | H212: 0 | I212: 0 | J212: 0 | K212: 0 | L212: 0 | M212: 0 | N212: 0 | O212: 0 | P212: 0 | Q212: 0 | R212: 0 | S212: 0 | T212: 0 | U212: 0 | V212: 0 | W212: 0 | X212: 0 | Y212: 0 | Z212: 0 | AA212: =SUM(C212:Z212) -> 0 | AB212: =AA212*$C$15 -> 0
B213: Holiday | C213: 0 | D213: 0 | E213: 0 | F213: 0 | G213: 0 | H213: 0 | I213: 0 | J213: 0 | K213: 0 | L213: 0 | M213: 0 | N213: 0 | O213: 0 | P213: 0 | Q213: 0 | R213: 0 | S213: 0 | T213: 0 | U213: 0 | V213: 0 | W213: 0 | X213: 0 | Y213: 0 | Z213: 0 | AA213: =SUM(C213:Z213) -> 0 | AB213: =AA213*SUM($C$8) -> 0
B214: Total Equivalent Full Load Hours of Operation per Year | AB214: =SUM(AB210:AB213) -> 1466.02
B216: School Occupancy
B218: Schedule Name: | C218: School HVAC System - ON/OFF Schedule
C220: 12-1AM | D220: 1-2AM | E220: 2-3AM | F220: 3-4AM | G220: 4-5AM | H220: 5-6AM | I220: 6-7AM | J220: 7-8AM | K220: 8-9 AM | L220: 9-10AM | M220: 10-11AM | N220: 11AM-12PM | O220: 12-1PM | P220: 1-2PM | Q220: 2-3PM | R220: 3-4PM | S220: 4-5PM | T220: 5-6PM | U220: 6-7PM | V220: 7-8PM | W220: 8-9PM | X220: 9-10PM | Y220: 10-11PM | Z220: 11-12PM | AA220: Hours/day | AB220: Hours/year
B221: Weekday | C221: 0 | D221: 0 | E221: 0 | F221: 0 | G221: 0 | H221: 0 | I221: 0 | J221: 1 | K221: 1 | L221: 1 | M221: 1 | N221: 1 | O221: 1 | P221: 1 | Q221: 1 | R221: 1 | S221: 1 | T221: 1 | U221: 1 | V221: 1 | W221: 1 | X221: 1 | Y221: 0 | Z221: 0 | AA221: =SUM(C221:Z221) -> 15 | AB221: =AA221*SUM($C$9:$C$13) -> 3750
B222: Saturday | C222: 0 | D222: 0 | E222: 0 | F222: 0 | G222: 0 | H222: 0 | I222: 0 | J222: 0 | K222: 1 | L222: 1 | M222: 1 | N222: 1 | O222: 1 | P222: 0 | Q222: 0 | R222: 0 | S222: 0 | T222: 0 | U222: 0 | V222: 0 | W222: 0 | X222: 0 | Y222: 0 | Z222: 0 | AA222: =SUM(C222:Z222) -> 5 | AB222: =AA222*SUM($C$14) -> 260
B223: Sunday | C223: 0 | D223: 0 | E223: 0 | F223: 0 | G223: 0 | H223: 0 | I223: 0 | J223: 0 | K223: 0 | L223: 0 | M223: 0 | N223: 0 | O223: 0 | P223: 0 | Q223: 0 | R223: 0 | S223: 0 | T223: 0 | U223: 0 | V223: 0 | W223: 0 | X223: 0 | Y223: 0 | Z223: 0 | AA223: =SUM(C223:Z223) -> 0 | AB223: =AA223*$C$15 -> 0
B224: Holiday | C224: 0 | D224: 0 | E224: 0 | F224: 0 | G224: 0 | H224: 0 | I224: 0 | J224: 0 | K224: 0 | L224: 0 | M224: 0 | N224: 0 | O224: 0 | P224: 0 | Q224: 0 | R224: 0 | S224: 0 | T224: 0 | U224: 0 | V224: 0 | W224: 0 | X224: 0 | Y224: 0 | Z224: 0 | AA224: =SUM(C224:Z224) -> 0 | AB224: =AA224*SUM($C$8) -> 0
B225: Total hours of operation per year | AB225: =SUM(AB221:AB224) -> 4010
B227: Schedule Name: | C227: School Occupancy Schedule
C229: 12-1AM | D229: 1-2AM | E229: 2-3AM | F229: 3-4AM | G229: 4-5AM | H229: 5-6AM | I229: 6-7AM | J229: 7-8AM | K229: 8-9 AM | L229: 9-10AM | M229: 10-11AM | N229: 11AM-12PM | O229: 12-1PM | P229: 1-2PM | Q229: 2-3PM | R229: 3-4PM | S229: 4-5PM | T229: 5-6PM | U229: 6-7PM | V229: 7-8PM | W229: 8-9PM | X229: 9-10PM | Y229: 10-11PM | Z229: 11-12PM | AA229: EFLH/day | AB229: EFLH/year
B230: Weekday | C230: 0 | D230: 0 | E230: 0 | F230: 0 | G230: 0 | H230: 0 | I230: 0 | J230: 0.05 | K230: 0.75 | L230: 0.9 | M230: 0.9 | N230: 0.8 | O230: 0.8 | P230: 0.8 | Q230: 0.8 | R230: 0.45 | S230: 0.15 | T230: 0.05 | U230: 0.15 | V230: 0.2 | W230: 0.2 | X230: 0.1 | Y230: 0 | Z230: 0 | AA230: =SUM(C230:Z230) -> 7.1 | AB230: =AA230*SUM($C$9:$C$13) -> 1775
B231: Saturday | C231: 0 | D231: 0 | E231: 0 | F231: 0 | G231: 0 | H231: 0 | I231: 0 | J231: 0 | K231: 0.1 | L231: 0.1 | M231: 0.1 | N231: 0.1 | O231: 0.1 | P231: 0 | Q231: 0 | R231: 0 | S231: 0 | T231: 0 | U231: 0 | V231: 0 | W231: 0 | X231: 0 | Y231: 0 | Z231: 0 | AA231: =SUM(C231:Z231) -> 0.5 | AB231: =AA231*SUM($C$14) -> 26
B232: Sunday | C232: 0 | D232: 0 | E232: 0 | F232: 0 | G232: 0 | H232: 0 | I232: 0 | J232: 0 | K232: 0 | L232: 0 | M232: 0 | N232: 0 | O232: 0 | P232: 0 | Q232: 0 | R232: 0 | S232: 0 | T232: 0 | U232: 0 | V232: 0 | W232: 0 | X232: 0 | Y232: 0 | Z232: 0 | AA232: =SUM(C232:Z232) -> 0 | AB232: =AA232*$C$15 -> 0
B233: Holiday | C233: 0 | D233: 0 | E233: 0 | F233: 0 | G233: 0 | H233: 0 | I233: 0 | J233: 0 | K233: 0 | L233: 0 | M233: 0 | N233: 0 | O233: 0 | P233: 0 | Q233: 0 | R233: 0 | S233: 0 | T233: 0 | U233: 0 | V233: 0 | W233: 0 | X233: 0 | Y233: 0 | Z233: 0 | AA233: =SUM(C233:Z233) -> 0 | AB233: =AA233*SUM($C$8) -> 0
B234: Total Equivalent Full Load Hours of Operation per Year | AB234: =SUM(AB230:AB233) -> 1801
B236: Schedule Name: | C236: School Lighting Schedule
C238: 12-1AM | D238: 1-2AM | E238: 2-3AM | F238: 3-4AM | G238: 4-5AM | H238: 5-6AM | I238: 6-7AM | J238: 7-8AM | K238: 8-9 AM | L238: 9-10AM | M238: 10-11AM | N238: 11AM-12PM | O238: 12-1PM | P238: 1-2PM | Q238: 2-3PM | R238: 3-4PM | S238: 4-5PM | T238: 5-6PM | U238: 6-7PM | V238: 7-8PM | W238: 8-9PM | X238: 9-10PM | Y238: 10-11PM | Z238: 11-12PM | AA238: EFLH/day | AB238: EFLH/year
B239: Weekday | C239: 0.05 | D239: 0.05 | E239: 0.05 | F239: 0.05 | G239: 0.05 | H239: 0.05 | I239: 0.05 | J239: 0.3 | K239: 0.6 | L239: 0.65 | M239: 0.65 | N239: 0.65 | O239: 0.55 | P239: 0.55 | Q239: 0.55 | R239: 0.5 | S239: 0.35 | T239: 0.35 | U239: 0.35 | V239: 0.35 | W239: 0.35 | X239: 0.3 | Y239: 0.05 | Z239: 0.05 | AA239: =SUM(C239:Z239) -> 7.5 | AB239: =AA239*SUM($C$9:$C$13) -> 1875
B240: Saturday | C240: 0.05 | D240: 0.05 | E240: 0.05 | F240: 0.05 | G240: 0.05 | H240: 0.05 | I240: 0.05 | J240: 0.05 | K240: 0.15 | L240: 0.15 | M240: 0.15 | N240: 0.15 | O240: 0.15 | P240: 0.05 | Q240: 0.05 | R240: 0.05 | S240: 0.05 | T240: 0.05 | U240: 0.05 | V240: 0.05 | W240: 0.05 | X240: 0.05 | Y240: 0.05 | Z240: 0.05 | AA240: =SUM(C240:Z240) -> 1.7 | AB240: =AA240*SUM($C$14) -> 88.4
B241: Sunday | C241: 0.05 | D241: 0.05 | E241: 0.05 | F241: 0.05 | G241: 0.05 | H241: 0.05 | I241: 0.05 | J241: 0.05 | K241: 0.05 | L241: 0.05 | M241: 0.05 | N241: 0.05 | O241: 0.05 | P241: 0.05 | Q241: 0.05 | R241: 0.05 | S241: 0.05 | T241: 0.05 | U241: 0.05 | V241: 0.05 | W241: 0.05 | X241: 0.05 | Y241: 0.05 | Z241: 0.05 | AA241: =SUM(C241:Z241) -> 1.2 | AB241: =AA241*$C$15 -> 62.4
B242: Holiday | C242: 0.05 | D242: 0.05 | E242: 0.05 | F242: 0.05 | G242: 0.05 | H242: 0.05 | I242: 0.05 | J242: 0.05 | K242: 0.05 | L242: 0.05 | M242: 0.05 | N242: 0.05 | O242: 0.05 | P242: 0.05 | Q242: 0.05 | R242: 0.05 | S242: 0.05 | T242: 0.05 | U242: 0.05 | V242: 0.05 | W242: 0.05 | X242: 0.05 | Y242: 0.05 | Z242: 0.05 | AA242: =SUM(C242:Z242) -> 1.2 | AB242: =AA242*SUM($C$8) -> 13.2
B243: Total Equivalent Full Load Hours of Operation per Year | AB243: =SUM(AB239:AB242) -> 2039
B245: Schedule Name: | C245: School Receptacle Schedule
C247: 12-1AM | D247: 1-2AM | E247: 2-3AM | F247: 3-4AM | G247: 4-5AM | H247: 5-6AM | I247: 6-7AM | J247: 7-8AM | K247: 8-9 AM | L247: 9-10AM | M247: 10-11AM | N247: 11AM-12PM | O247: 12-1PM | P247: 1-2PM | Q247: 2-3PM | R247: 3-4PM | S247: 4-5PM | T247: 5-6PM | U247: 6-7PM | V247: 7-8PM | W247: 8-9PM | X247: 9-10PM | Y247: 10-11PM | Z247: 11-12PM | AA247: EFLH/day | AB247: EFLH/year
B248: Weekday | C248: 0.05 | D248: 0.05 | E248: 0.05 | F248: 0.05 | G248: 0.05 | H248: 0.05 | I248: 0.05 | J248: 0.3 | K248: 0.85 | L248: 0.95 | M248: 0.95 | N248: 0.95 | O248: 0.8 | P248: 0.8 | Q248: 0.8 | R248: 0.7 | S248: 0.5 | T248: 0.5 | U248: 0.35 | V248: 0.35 | W248: 0.35 | X248: 0.3 | Y248: 0.05 | Z248: 0.05 | AA248: =SUM(C248:Z248) -> 9.9 | AB248: =AA248*SUM($C$9:$C$13) -> 2475
B249: Saturday | C249: 0.05 | D249: 0.05 | E249: 0.05 | F249: 0.05 | G249: 0.05 | H249: 0.05 | I249: 0.05 | J249: 0.05 | K249: 0.15 | L249: 0.15 | M249: 0.15 | N249: 0.15 | O249: 0.15 | P249: 0.05 | Q249: 0.05 | R249: 0.05 | S249: 0.05 | T249: 0.05 | U249: 0.05 | V249: 0.05 | W249: 0.05 | X249: 0.05 | Y249: 0.05 | Z249: 0.05 | AA249: =SUM(C249:Z249) -> 1.7 | AB249: =AA249*SUM($C$14) -> 88.4
B250: Sunday | C250: 0.05 | D250: 0.05 | E250: 0.05 | F250: 0.05 | G250: 0.05 | H250: 0.05 | I250: 0.05 | J250: 0.05 | K250: 0.05 | L250: 0.05 | M250: 0.05 | N250: 0.05 | O250: 0.05 | P250: 0.05 | Q250: 0.05 | R250: 0.05 | S250: 0.05 | T250: 0.05 | U250: 0.05 | V250: 0.05 | W250: 0.05 | X250: 0.05 | Y250: 0.05 | Z250: 0.05 | AA250: =SUM(C250:Z250) -> 1.2 | AB250: =AA250*$C$15 -> 62.4
B251: Holiday | C251: 0.05 | D251: 0.05 | E251: 0.05 | F251: 0.05 | G251: 0.05 | H251: 0.05 | I251: 0.05 | J251: 0.05 | K251: 0.05 | L251: 0.05 | M251: 0.05 | N251: 0.05 | O251: 0.05 | P251: 0.05 | Q251: 0.05 | R251: 0.05 | S251: 0.05 | T251: 0.05 | U251: 0.05 | V251: 0.05 | W251: 0.05 | X251: 0.05 | Y251: 0.05 | Z251: 0.05 | AA251: =SUM(C251:Z251) -> 1.2 | AB251: =AA251*SUM($C$8) -> 13.2
B252: Total Equivalent Full Load Hours of Operation per Year | AB252: =SUM(AB248:AB251) -> 2639
B254: Schedule Name: | C254: School DHW Schedule
C256: 12-1AM | D256: 1-2AM | E256: 2-3AM | F256: 3-4AM | G256: 4-5AM | H256: 5-6AM | I256: 6-7AM | J256: 7-8AM | K256: 8-9 AM | L256: 9-10AM | M256: 10-11AM | N256: 11AM-12PM | O256: 12-1PM | P256: 1-2PM | Q256: 2-3PM | R256: 3-4PM | S256: 4-5PM | T256: 5-6PM | U256: 6-7PM | V256: 7-8PM | W256: 8-9PM | X256: 9-10PM | Y256: 10-11PM | Z256: 11-12PM | AA256: EFLH/day | AB256: EFLH/year
B257: Weekday | C257: 0.05 | D257: 0.05 | E257: 0.05 | F257: 0.05 | G257: 0.05 | H257: 0.05 | I257: 0.05 | J257: 0.1 | K257: 0.34 | L257: 0.6 | M257: 0.63 | N257: 0.72 | O257: 0.79 | P257: 0.83 | Q257: 0.61 | R257: 0.65 | S257: 0.1 | T257: 0.1 | U257: 0.19 | V257: 0.25 | W257: 0.22 | X257: 0.22 | Y257: 0.12 | Z257: 0.09 | AA257: =SUM(C257:Z257) -> 6.91 | AB257: =AA257*SUM($C$9:$C$13) -> 1727.5
B258: Saturday | C258: 0.03 | D258: 0.03 | E258: 0.03 | F258: 0.03 | G258: 0.03 | H258: 0.03 | I258: 0.03 | J258: 0.03 | K258: 0.03 | L258: 0.05 | M258: 0.05 | N258: 0.05 | O258: 0.05 | P258: 0.03 | Q258: 0.03 | R258: 0.03 | S258: 0.03 | T258: 0.03 | U258: 0.03 | V258: 0.03 | W258: 0.03 | X258: 0.03 | Y258: 0.03 | Z258: 0.03 | AA258: =SUM(C258:Z258) -> 0.8 | AB258: =AA258*SUM($C$14) -> 41.6
B259: Sunday | C259: 0.03 | D259: 0.03 | E259: 0.03 | F259: 0.03 | G259: 0.03 | H259: 0.03 | I259: 0.03 | J259: 0.03 | K259: 0.03 | L259: 0.05 | M259: 0.05 | N259: 0.05 | O259: 0.05 | P259: 0.05 | Q259: 0.05 | R259: 0.03 | S259: 0.03 | T259: 0.03 | U259: 0.03 | V259: 0.03 | W259: 0.03 | X259: 0.03 | Y259: 0.03 | Z259: 0.03 | AA259: =SUM(C259:Z259) -> 0.84 | AB259: =AA259*$C$15 -> 43.68
B260: Holiday | C260: 0.03 | D260: 0.03 | E260: 0.03 | F260: 0.03 | G260: 0.03 | H260: 0.03 | I260: 0.03 | J260: 0.03 | K260: 0.03 | L260: 0.05 | M260: 0.05 | N260: 0.05 | O260: 0.05 | P260: 0.05 | Q260: 0.05 | R260: 0.03 | S260: 0.03 | T260: 0.03 | U260: 0.03 | V260: 0.03 | W260: 0.03 | X260: 0.03 | Y260: 0.03 | Z260: 0.03 | AA260: =SUM(C260:Z260) -> 0.84 | AB260: =AA260*SUM($C$8) -> 9.24
B261: Total Equivalent Full Load Hours of Operation per Year | AB261: =SUM(AB257:AB260) -> 1822.02
B263: Schedule Name: | C263: School Elevator Schedule
C265: 12-1AM | D265: 1-2AM | E265: 2-3AM | F265: 3-4AM | G265: 4-5AM | H265: 5-6AM | I265: 6-7AM | J265: 7-8AM | K265: 8-9 AM | L265: 9-10AM | M265: 10-11AM | N265: 11AM-12PM | O265: 12-1PM | P265: 1-2PM | Q265: 2-3PM | R265: 3-4PM | S265: 4-5PM | T265: 5-6PM | U265: 6-7PM | V265: 7-8PM | W265: 8-9PM | X265: 9-10PM | Y265: 10-11PM | Z265: 11-12PM | AA265: EFLH/day | AB265: EFLH/year
B266: Weekday | C266: 0 | D266: 0 | E266: 0 | F266: 0 | G266: 0 | H266: 0 | I266: 0 | J266: 0 | K266: 0.3 | L266: 0.3 | M266: 0.3 | N266: 0.3 | O266: 0.3 | P266: 0.3 | Q266: 0.3 | R266: 0.15 | S266: 0 | T266: 0 | U266: 0 | V266: 0 | W266: 0 | X266: 0 | Y266: 0 | Z266: 0 | AA266: =SUM(C266:Z266) -> 2.25 | AB266: =AA266*SUM($C$9:$C$13) -> 562.5
B267: Saturday | C267: 0 | D267: 0 | E267: 0 | F267: 0 | G267: 0 | H267: 0 | I267: 0 | J267: 0 | K267: 0 | L267: 0 | M267: 0 | N267: 0 | O267: 0 | P267: 0 | Q267: 0 | R267: 0 | S267: 0 | T267: 0 | U267: 0 | V267: 0 | W267: 0 | X267: 0 | Y267: 0 | Z267: 0 | AA267: =SUM(C267:Z267) -> 0 | AB267: =AA267*SUM($C$14) -> 0
B268: Sunday | C268: 0 | D268: 0 | E268: 0 | F268: 0 | G268: 0 | H268: 0 | I268: 0 | J268: 0 | K268: 0 | L268: 0 | M268: 0 | N268: 0 | O268: 0 | P268: 0 | Q268: 0 | R268: 0 | S268: 0 | T268: 0 | U268: 0 | V268: 0 | W268: 0 | X268: 0 | Y268: 0 | Z268: 0 | AA268: =SUM(C268:Z268) -> 0 | AB268: =AA268*$C$15 -> 0
B269: Holiday | C269: 0 | D269: 0 | E269: 0 | F269: 0 | G269: 0 | H269: 0 | I269: 0 | J269: 0 | K269: 0 | L269: 0 | M269: 0 | N269: 0 | O269: 0 | P269: 0 | Q269: 0 | R269: 0 | S269: 0 | T269: 0 | U269: 0 | V269: 0 | W269: 0 | X269: 0 | Y269: 0 | Z269: 0 | AA269: =SUM(C269:Z269) -> 0 | AB269: =AA269*SUM($C$8) -> 0
B270: Total Equivalent Full Load Hours of Operation per Year | AB270: =SUM(AB266:AB269) -> 562.5
B272: Health Occupancy
B274: Schedule Name: | C274: Health HVAC System - ON/OFF Schedule
C276: 12-1AM | D276: 1-2AM | E276: 2-3AM | F276: 3-4AM | G276: 4-5AM | H276: 5-6AM | I276: 6-7AM | J276: 7-8AM | K276: 8-9 AM | L276: 9-10AM | M276: 10-11AM | N276: 11AM-12PM | O276: 12-1PM | P276: 1-2PM | Q276: 2-3PM | R276: 3-4PM | S276: 4-5PM | T276: 5-6PM | U276: 6-7PM | V276: 7-8PM | W276: 8-9PM | X276: 9-10PM | Y276: 10-11PM | Z276: 11-12PM | AA276: Hours/day | AB276: Hours/year
B277: Weekday | C277: 1 | D277: 1 | E277: 1 | F277: 1 | G277: 1 | H277: 1 | I277: 1 | J277: 1 | K277: 1 | L277: 1 | M277: 1 | N277: 1 | O277: 1 | P277: 1 | Q277: 1 | R277: 1 | S277: 1 | T277: 1 | U277: 1 | V277: 1 | W277: 1 | X277: 1 | Y277: 1 | Z277: 1 | AA277: =SUM(C277:Z277) -> 24 | AB277: =AA277*SUM($C$9:$C$13) -> 6000
B278: Saturday | C278: 1 | D278: 1 | E278: 1 | F278: 1 | G278: 1 | H278: 1 | I278: 1 | J278: 1 | K278: 1 | L278: 1 | M278: 1 | N278: 1 | O278: 1 | P278: 1 | Q278: 1 | R278: 1 | S278: 1 | T278: 1 | U278: 1 | V278: 1 | W278: 1 | X278: 1 | Y278: 1 | Z278: 1 | AA278: =SUM(C278:Z278) -> 24 | AB278: =AA278*SUM($C$14) -> 1248
B279: Sunday | C279: 1 | D279: 1 | E279: 1 | F279: 1 | G279: 1 | H279: 1 | I279: 1 | J279: 1 | K279: 1 | L279: 1 | M279: 1 | N279: 1 | O279: 1 | P279: 1 | Q279: 1 | R279: 1 | S279: 1 | T279: 1 | U279: 1 | V279: 1 | W279: 1 | X279: 1 | Y279: 1 | Z279: 1 | AA279: =SUM(C279:Z279) -> 24 | AB279: =AA279*$C$15 -> 1248
B280: Holiday | C280: 1 | D280: 1 | E280: 1 | F280: 1 | G280: 1 | H280: 1 | I280: 1 | J280: 1 | K280: 1 | L280: 1 | M280: 1 | N280: 1 | O280: 1 | P280: 1 | Q280: 1 | R280: 1 | S280: 1 | T280: 1 | U280: 1 | V280: 1 | W280: 1 | X280: 1 | Y280: 1 | Z280: 1 | AA280: =SUM(C280:Z280) -> 24 | AB280: =AA280*SUM($C$8) -> 264
B281: Total hours of operation per year | AB281: =SUM(AB277:AB280) -> 8760
... 193 more rows

Sheet 3 - Multifamily Details
A1: G
A2: G | B2: Multifamily Home Details
A3: G
A4: G
A5: G | B5: Complete the table for each building in the project. Input the number of units and the average floor area for units with the corresponding bedroom number.
A6: G
A7: G | B7: Table 3.1: Building Unit summary
A8: G
A9: G | B9: Building ID | D9: Studio | F9: 1 Bedroom | H9: 2 Bedrooms | J9: 3 Bedrooms | L9: 4 Bedrooms | N9: 5 Bedrooms | P9: 6 Bedrooms | R9: 7 Bedrooms | T9: 8 Bedrooms | Z9: Additional Notes (Optional):
A10: G | D10: Qty | E10: =CONCATENATE("Average Floor Area",IF(SI_IP_Units="IP"," (sq ft)"," (sq m)")) -> Average Floor Area (sq ft) | F10: Qty | G10: =CONCATENATE("Average Floor Area",IF(SI_IP_Units="IP"," (sq ft)"," (sq m)")) -> Average Floor Area (sq ft) | H10: Qty | I10: =CONCATENATE("Average Floor Area",IF(SI_IP_Units="IP"," (sq ft)"," (sq m)")) -> Average Floor Area (sq ft) | J10: Qty | K10: =CONCATENATE("Average Floor Area",IF(SI_IP_Units="IP"," (sq ft)"," (sq m)")) -> Average Floor Area (sq ft) | L10: Qty | M10: =CONCATENATE("Average Floor Area",IF(SI_IP_Units="IP"," (sq ft)"," (sq m)")) -> Average Floor Area (sq ft) | N10: Qty | O10: =CONCATENATE("Average Floor Area",IF(SI_IP_Units="IP"," (sq ft)"," (sq m)")) -> Average Floor Area (sq ft) | P10: Qty | Q10: =CONCATENATE("Average Floor Area",IF(SI_IP_Units="IP"," (sq ft)"," (sq m)")) -> Average Floor Area (sq ft) | R10: Qty | S10: =CONCATENATE("Average Floor Area",IF(SI_IP_Units="IP"," (sq ft)"," (sq m)")) -> Average Floor Area (sq ft) | T10: Qty | U10: =CONCATENATE("Average Floor Area",IF(SI_IP_Units="IP"," (sq ft)"," (sq m)")) -> Average Floor Area (sq ft)
A11: G | B11: Building ID | D11: S_Unit | E11: S_Area | F11: 1B_Unit | G11: 1B_Area | H11: 2B_Unit | I11: 2B_Area | J11: 3B_Unit | K11: 3B_Area | L11: 4B_Unit | M11: 4B_Area | N11: 5B_Unit | O11: 5B_Area | P11: 6B_Unit | Q11: 6B_Area | R11: 7B_Unit | S11: 7B_Area | T11: 8B_Unit | U11: 8B_Area
A12: G | B12: ='1 - Multiple Buildings Details'!B24 -> 0
A13: G | B13: Total number of units | U13: =SUM(OFFSET(MD_BUS_Index,1,MATCH($D$11,MD_BUS_Hdr,0)-1,COUNTA(MD_BUS_Index),1), OFFSET(MD_BUS_Index,1,MATCH($F$11,MD_BUS_Hdr,0)-1,COUNTA(MD_BUS_Index),1), OFFSET(MD_BUS_Index,1,MATCH($H$11,MD_BUS_Hdr,0)-1,COUNTA(MD_BUS_Index),1), OFFSET(MD_BUS_Index,1,MATCH($J$11,MD_BUS_Hdr,0)-1,COUNTA(MD_BUS_Index),1), OFFSET(MD_BUS_Index,1,MATCH($L$11,MD_BUS_Hdr,0)-1,COUNTA(MD_BUS_Index),1), OFFSET(MD_BUS_Index,1,MATCH($N$11,MD_BUS_Hdr,0)-1,COUNTA(MD_BUS_Index),1), OFFSET(MD_BUS_Index,1,MATCH($P$11,MD_BUS_Hdr,0)-1,COUNTA(MD_BUS_Index),1), OFFSET(MD_BUS_Index,1,MATCH($R$11,MD_BUS_Hdr,0)-1,COUNTA(MD_BUS_Index),1), OFFSET(MD_BUS_Index,1,MATCH($T$11,MD_BUS_Hdr,0)-1,COUNTA(MD_BUS_Index),1), ) -> 0
A14: G | B14: Total number of bedrooms | U14: =SUM(OFFSET(MD_BUS_Index,1,MATCH($D$11,MD_BUS_Hdr,0)-1,COUNTA(MD_BUS_Index),1), OFFSET(MD_BUS_Index,1,MATCH($F$11,MD_BUS_Hdr,0)-1,COUNTA(MD_BUS_Index),1), OFFSET(MD_BUS_Index,1,MATCH($H$11,MD_BUS_Hdr,0)-1,COUNTA(MD_BUS_Index),1)*2, OFFSET(MD_BUS_Index,1,MATCH($J$11,MD_BUS_Hdr,0)-1,COUNTA(MD_BUS_Index),1)*3, OFFSET(MD_BUS_Index,1,MATCH($L$11,MD_BUS_Hdr,0)-1,COUNTA(MD_BUS_Index),1)*4, OFFSET(MD_BUS_Index,1,MATCH($N$11,MD_BUS_Hdr,0)-1,COUNTA(MD_BUS_Index),1)*5, OFFSET(MD_BUS_Index,1,MATCH($P$11,MD_BUS_Hdr,0)-1,COUNTA(MD_BUS_Index),1)*6, OFFSET(MD_BUS_Index,1,MATCH($R$11,MD_BUS_Hdr,0)-1,COUNTA(MD_BUS_Index),1)*7, OFFSET(MD_BUS_Index,1,MATCH($T$11,MD_BUS_Hdr,0)-1,COUNTA(MD_BUS_Index),1)*8, ) -> 0
A15: G | B15: =CONCATENATE("Total Area of Dwelling Units",IF(SI_IP_Units="IP"," (square feet)"," (square meters)")) -> Total Area of Dwelling Units (square feet) | U15: =SUM(OFFSET(MD_BUS_Index,1,MATCH($D$11,MD_BUS_Hdr,0)-1,COUNTA(MD_BUS_Index),1)*OFFSET(MD_BUS_Index,1,MATCH($E$11,MD_BUS_Hdr,0)-1,COUNTA(MD_BUS_Index),1), OFFSET(MD_BUS_Index,1,MATCH($F$11,MD_BUS_Hdr,0)-1,COUNTA(MD_BUS_Index),1)*OFFSET(MD_BUS_Index,1,MATCH($G$11,MD_BUS_Hdr,0)-1,COUNTA(MD_BUS_Index),1), OFFSET(MD_BUS_Index,1,MATCH($H$11,MD_BUS_Hdr,0)-1,COUNTA(MD_BUS_Index),1)*OFFSET(MD_BUS_Index,1,MATCH($I$11,MD_BUS_Hdr,0)-1,COUNTA(MD_BUS_Index),1), OFFSET(MD_BUS_Index,1,MATCH($J$11,MD_BUS_Hdr,0)-1,COUNTA(MD_BUS_Index),1)*OFFSET(MD_BUS_Index,1,MATCH($K$11,MD_BUS_Hdr,0)-1,COUNTA(MD_BUS_Index),1), OFFSET(MD_BUS_Index,1,MATCH($L$11,MD_BUS_Hdr,0)-1,COUNTA(MD_BUS_Index),1)*OFFSET(MD_BUS_Index,1,MATCH($M$11,MD_BUS_Hdr,0)-1,COUNTA(MD_BUS_Index),1), OFFSET(MD_BUS_Index,1,MATCH($N$11,MD_BUS_Hdr,0)-1,COUNTA(MD_BUS_Index),1)*OFFSET(MD_BUS_Index,1,MATCH($O$11,MD_BUS_Hdr,0)-1,COUNTA(MD_BUS_Index),1), OFFSET(MD_BUS_Index,1,MATCH($P$11,MD_BUS_Hdr,0)-1,COUNTA(MD_BUS_Index),1)*OFFSET(MD_BUS_Index,1,MATCH($Q$11,MD_BUS_Hdr,0)-1,COUNTA(MD_BUS_Index),1), OFFSET(MD_BUS_Index,1,MATCH($R$11,MD_BUS_Hdr,0)-1,COUNTA(MD_BUS_Index),1)*OFFSET(MD_BUS_Index,1,MATCH($S$11,MD_BUS_Hdr,0)-1,COUNTA(MD_BUS_Index),1), OFFSET(MD_BUS_Index,1,MATCH($T$11,MD_BUS_Hdr,0)-1,COUNTA(MD_BUS_Index),1)*OFFSET(MD_BUS_Index,1,MATCH($U$11,MD_BUS_Hdr,0)-1,COUNTA(MD_BUS_Index),1), ) -> 0
A16: G | B16: Average Number of Bedrooms Per Unit | U16: =IF(ISERROR(1/U13),0,U14/U13) -> 0
A17: G | B17: =CONCATENATE("Average Floor Area Per Unit",IF(SI_IP_Units="IP"," (square feet)"," (square meters)")) -> Average Floor Area Per Unit (square feet) | U17: =IF(ISERROR(1/U13),0,U15/U13) -> 0
A18: G | B18: =CONCATENATE("Average Floor Area Per Unit for Reference Building",IF(SI_IP_Units="IP"," (square feet)"," (square meters)")) -> Average Floor Area Per Unit for Reference Building (square feet) | U18: =IF(ISERROR(1/Avg_Bedrooms),0,ROUNDDOWN((Avg_Bedrooms-1)*(IF(SI_IP_Units="IP",600,55.6)),0)+IF(SI_IP_Units="IP",1000,93)) -> 0
A19: G | B19: Point Adjustment (1 point credit per 4% reduction in floor area versus reference; 1 point deduction per 4% increase in floor area versus reference). | U19: =IF(ISERROR(1/U18),0,ROUNDDOWN((U18-Avg_Bedroom_Area)/(U18*4%),0)) -> 0
A20: G
A21: G | B21: Building ID | D21: Total Number of Units | F21: Total Number of Bedrooms | H21: Total Area of Dwelling Units (square feet) | K21: Average Number of Bedrooms Per Unit | N21: =CONCATENATE("Average Floor Area per Unit",IF(SI_IP_Units="IP"," (square feet)"," (square meter)")) -> Average Floor Area per Unit (square feet) | Q21: =CONCATENATE("Average Floor Area Per Unit for Reference Building",IF(SI_IP_Units="IP"," (square feet)"," (square meter)")) -> Average Floor Area Per Unit for Reference Building (square feet) | AF21: Point Adjustment (1 point credit per 4% reduction in floor area versus reference; 1 point deduction per 4% increase in floor area versus reference). | AG21: Avg Occupants/bedroom
A22: G | B22: ='1 - Multiple Buildings Details'!B24 -> 0 | D22: =SUM(INDEX(MD_BUS_Table,MATCH($B22,MD_BUS_Index,0),MATCH($D$11,MD_BUS_Hdr,0)), INDEX(MD_BUS_Table,MATCH($B22,MD_BUS_Index,0),MATCH($F$11,MD_BUS_Hdr,0)), INDEX(MD_BUS_Table,MATCH($B22,MD_BUS_Index,0),MATCH($H$11,MD_BUS_Hdr,0)), INDEX(MD_BUS_Table,MATCH($B22,MD_BUS_Index,0),MATCH($J$11,MD_BUS_Hdr,0)), INDEX(MD_BUS_Table,MATCH($B22,MD_BUS_Index,0),MATCH($L$11,MD_BUS_Hdr,0)), INDEX(MD_BUS_Table,MATCH($B22,MD_BUS_Index,0),MATCH($N$11,MD_BUS_Hdr,0)), INDEX(MD_BUS_Table,MATCH($B22,MD_BUS_Index,0),MATCH($P$11,MD_BUS_Hdr,0)), INDEX(MD_BUS_Table,MATCH($B22,MD_BUS_Index,0),MATCH($R$11,MD_BUS_Hdr,0)), INDEX(MD_BUS_Table,MATCH($B22,MD_BUS_Index,0),MATCH($T$11,MD_BUS_Hdr,0)), ) -> 0 | F22: =SUM(INDEX(MD_BUS_Table,MATCH($B22,MD_BUS_Index,0),MATCH($D$11,MD_BUS_Hdr,0))*1, INDEX(MD_BUS_Table,MATCH($B22,MD_BUS_Index,0),MATCH($F$11,MD_BUS_Hdr,0))*1, INDEX(MD_BUS_Table,MATCH($B22,MD_BUS_Index,0),MATCH($H$11,MD_BUS_Hdr,0))*2, INDEX(MD_BUS_Table,MATCH($B22,MD_BUS_Index,0),MATCH($J$11,MD_BUS_Hdr,0))*3, INDEX(MD_BUS_Table,MATCH($B22,MD_BUS_Index,0),MATCH($L$11,MD_BUS_Hdr,0))*4, INDEX(MD_BUS_Table,MATCH($B22,MD_BUS_Index,0),MATCH($N$11,MD_BUS_Hdr,0))*5, INDEX(MD_BUS_Table,MATCH($B22,MD_BUS_Index,0),MATCH($P$11,MD_BUS_Hdr,0))*6, INDEX(MD_BUS_Table,MATCH($B22,MD_BUS_Index,0),MATCH($R$11,MD_BUS_Hdr,0))*7, INDEX(MD_BUS_Table,MATCH($B22,MD_BUS_Index,0),MATCH($T$11,MD_BUS_Hdr,0))*8, ) -> 0 | H22: =SUM(INDEX(MD_BUS_Table,MATCH($B22,MD_BUS_Index,0),MATCH($D$11,MD_BUS_Hdr,0))*INDEX(MD_BUS_Table,MATCH($B22,MD_BUS_Index,0),MATCH($E$11,MD_BUS_Hdr,0)), INDEX(MD_BUS_Table,MATCH($B22,MD_BUS_Index,0),MATCH($F$11,MD_BUS_Hdr,0))*INDEX(MD_BUS_Table,MATCH($B22,MD_BUS_Index,0),MATCH($G$11,MD_BUS_Hdr,0)), INDEX(MD_BUS_Table,MATCH($B22,MD_BUS_Index,0),MATCH($H$11,MD_BUS_Hdr,0))*INDEX(MD_BUS_Table,MATCH($B22,MD_BUS_Index,0),MATCH($I$11,MD_BUS_Hdr,0)), INDEX(MD_BUS_Table,MATCH($B22,MD_BUS_Index,0),MATCH($J$11,MD_BUS_Hdr,0))*INDEX(MD_BUS_Table,MATCH($B22,MD_BUS_Index,0),MATCH($K$11,MD_BUS_Hdr,0)), INDEX(MD_BUS_Table,MATCH($B22,MD_BUS_Index,0),MATCH($L$11,MD_BUS_Hdr,0))*INDEX(MD_BUS_Table,MATCH($B22,MD_BUS_Index,0),MATCH($M$11,MD_BUS_Hdr,0)), INDEX(MD_BUS_Table,MATCH($B22,MD_BUS_Index,0),MATCH($N$11,MD_BUS_Hdr,0))*INDEX(MD_BUS_Table,MATCH($B22,MD_BUS_Index,0),MATCH($O$11,MD_BUS_Hdr,0)), INDEX(MD_BUS_Table,MATCH($B22,MD_BUS_Index,0),MATCH($P$11,MD_BUS_Hdr,0))*INDEX(MD_BUS_Table,MATCH($B22,MD_BUS_Index,0),MATCH($Q$11,MD_BUS_Hdr,0)), INDEX(MD_BUS_Table,MATCH($B22,MD_BUS_Index,0),MATCH($R$11,MD_BUS_Hdr,0))*INDEX(MD_BUS_Table,MATCH($B22,MD_BUS_Index,0),MATCH($S$11,MD_BUS_Hdr,0)), INDEX(MD_BUS_Table,MATCH($B22,MD_BUS_Index,0),MATCH($T$11,MD_BUS_Hdr,0))*INDEX(MD_BUS_Table,MATCH($B22,MD_BUS_Index,0),MATCH($U$11,MD_BUS_Hdr,0)), ) -> 0 | K22: =IF(ISERROR(1/D22),0,F22/D22) -> 0 | N22: =IF(ISERROR(1/D22),0,H22/D22) -> 0 | Q22: =IF(ISERROR(1/K22),0,ROUNDDOWN((K22-1)*(IF(SI_IP_Units="IP",600,55.6)),0)+IF(SI_IP_Units="IP",1000,93)) -> 0 | AF22: =IF(ISERROR(1/Q22),0,ROUNDDOWN((Q22-N22)/(Q22*4%),0)) -> 0 | AG22: =(D12*1+F12*2+H12*3+J12*4+L12*5+N12*6+P12*7+R12*8+T12*9)/F22 -> 
A23: G
A24: G | B24: Table 3.2: Homes Dwelling Unit Equipment Calculator
A25: G
A26: G | B26: Enter the appliances and equipment that is present in the residential dwelling units for the project. For clothes washers and dryers, enter the quantity of each unit installed within the project scope of work.
A27: G
A28: G | B28: Building ID | C28: Load Source | D28: Quantity | E28: ENERGY STAR Eqp? | F28: Average bedrooms per dwelling unit | H28: Electric Loads | M28: Natural Gas Loads | R28: =CONCATENATE("Annual Service Hot Water Load ",IF(SI_IP_Units="IP","(gallons/year)","(Liters/year)")) -> Annual Service Hot Water Load (gallons/year) | V28: Measure #
A29: G | H29: =CONCATENATE("Annual Consumption ",IF(SI_IP_Units="IP","(kWh/year)","kWh/year")) -> Annual Consumption (kWh/year) | J29: Sensible Ratio | K29: Latent Ratio | M29: =CONCATENATE("Annual Consumption ",IF(SI_IP_Units="IP","(therms/year)","kWh/year")) -> Annual Consumption (therms/year) | O29: Sensible Ratio | P29: Latent Ratio | R29: Baseline Per Equipment | S29: Proposed Design Per Equipment | T29: Baseline Total | U29: Proposed Design Total
A30: G | H30: Baseline | I30: Proposed | M30: Baseline | N30: Proposed
A31: G | B31: Building ID | C31: Load_Source | D31: Qty | E31: Energy_Star | F31: Avg_Bedrooms_DU | G31: Blank1 | H31: Base_Elec_Consumption | I31: Design_Elec_Consumption | J31: Elec_Sens_Ratio | K31: Elec_Latent_Ratio | L31: Blank2 | M31: Base_Ng_Consumption | N31: Design_Ng_Consumption | O31: NG_Sens_Ratio | P31: NG_Latent_Ratio | Q31: Blank3 | R31: Base_DHW_Equip | S31: Design_DHW_Equip | T31: Base_DHW_Annual | U31: Design_DHW_Annual
A32: A | B32: =GI_Project_Name -> 0 | F32: =IFERROR(INDEX(MD_BUS_SumTable,MATCH($B32,MD_BUS_SumIndex,0),MATCH($K$21,MD_BUS_SumHdr,0)),"") -> 0 | H32: =IFERROR($D32*((VLOOKUP($C32,Homes_DwellingEqpLookup,2,FALSE)+VLOOKUP($C32,Homes_DwellingEqpLookup,6,FALSE)*$F32)*VLOOKUP($C32,Homes_DwellingEqpLookup,12,FALSE)),"") ->  | I32: =IFERROR(IF($E32="No",$H32,$D32*(VLOOKUP($C32,Homes_DwellingEqpLookup,3,FALSE)+VLOOKUP($C32,Homes_DwellingEqpLookup,6,FALSE)*$F32)*VLOOKUP($C32,Homes_DwellingEqpLookup,12,FALSE)),"") ->  | J32: =IFERROR(VLOOKUP($C32,Homes_DwellingEqpLookup,4,0),"") ->  | K32: =IFERROR(VLOOKUP($C32,Homes_DwellingEqpLookup,5,0),"") ->  | M32: =IFERROR($D32*((VLOOKUP($C32,Homes_DwellingEqpLookup,7,FALSE)+VLOOKUP($C32,Homes_DwellingEqpLookup,11,FALSE)*$F32)*VLOOKUP($C32,Homes_DwellingEqpLookup,12,FALSE)),"") ->  | N32: =IFERROR(IF($E32="No",$M32,$D32*(VLOOKUP($C32,Homes_DwellingEqpLookup,8,FALSE)+VLOOKUP($C32,Homes_DwellingEqpLookup,11,FALSE)*$F32)*VLOOKUP($C32,Homes_DwellingEqpLookup,12,FALSE)),"") ->  | O32: =IFERROR(VLOOKUP($C32,Homes_DwellingEqpLookup,9,0),"") ->  | P32: =IFERROR(VLOOKUP($C32,Homes_DwellingEqpLookup,10,0),"") ->  | R32: =IFERROR(VLOOKUP($C32,Homes_DwellingEqpLookup,13,0),"") ->  | S32: =IFERROR(IF($E32="No",$R32,VLOOKUP($C32,Homes_DwellingEqpLookup,14,0)),"") ->  | T32: =IFERROR($R32*$D32,"") ->  | U32: =IFERROR($S32*$D32,"") -> 
B33: =GI_Project_Name -> 0 | F33: =IFERROR(INDEX(MD_BUS_SumTable,MATCH($B33,MD_BUS_SumIndex,0),MATCH($K$21,MD_BUS_SumHdr,0)),"") -> 0 | H33: =IFERROR($D33*((VLOOKUP($C33,Homes_DwellingEqpLookup,2,FALSE)+VLOOKUP($C33,Homes_DwellingEqpLookup,6,FALSE)*$F33)*VLOOKUP($C33,Homes_DwellingEqpLookup,12,FALSE)),"") ->  | I33: =IFERROR(IF($E33="No",$H33,$D33*(VLOOKUP($C33,Homes_DwellingEqpLookup,3,FALSE)+VLOOKUP($C33,Homes_DwellingEqpLookup,6,FALSE)*$F33)*VLOOKUP($C33,Homes_DwellingEqpLookup,12,FALSE)),"") ->  | J33: =IFERROR(VLOOKUP($C33,Homes_DwellingEqpLookup,4,0),"") ->  | K33: =IFERROR(VLOOKUP($C33,Homes_DwellingEqpLookup,5,0),"") ->  | M33: =IFERROR($D33*((VLOOKUP($C33,Homes_DwellingEqpLookup,7,FALSE)+VLOOKUP($C33,Homes_DwellingEqpLookup,11,FALSE)*$F33)*VLOOKUP($C33,Homes_DwellingEqpLookup,12,FALSE)),"") ->  | N33: =IFERROR(IF($E33="No",$M33,$D33*(VLOOKUP($C33,Homes_DwellingEqpLookup,8,FALSE)+VLOOKUP($C33,Homes_DwellingEqpLookup,11,FALSE)*$F33)*VLOOKUP($C33,Homes_DwellingEqpLookup,12,FALSE)),"") ->  | O33: =IFERROR(VLOOKUP($C33,Homes_DwellingEqpLookup,9,0),"") ->  | P33: =IFERROR(VLOOKUP($C33,Homes_DwellingEqpLookup,10,0),"") ->  | R33: =IFERROR(VLOOKUP($C33,Homes_DwellingEqpLookup,13,0),"") ->  | S33: =IFERROR(IF($E33="No",$R33,VLOOKUP($C33,Homes_DwellingEqpLookup,14,0)),"") ->  | T33: =IFERROR($R33*$D33,"") ->  | U33: =IFERROR($S33*$D33,"") -> 
B34: =GI_Project_Name -> 0 | F34: =IFERROR(INDEX(MD_BUS_SumTable,MATCH($B34,MD_BUS_SumIndex,0),MATCH($K$21,MD_BUS_SumHdr,0)),"") -> 0 | H34: =IFERROR($D34*((VLOOKUP($C34,Homes_DwellingEqpLookup,2,FALSE)+VLOOKUP($C34,Homes_DwellingEqpLookup,6,FALSE)*$F34)*VLOOKUP($C34,Homes_DwellingEqpLookup,12,FALSE)),"") ->  | I34: =IFERROR(IF($E34="No",$H34,$D34*(VLOOKUP($C34,Homes_DwellingEqpLookup,3,FALSE)+VLOOKUP($C34,Homes_DwellingEqpLookup,6,FALSE)*$F34)*VLOOKUP($C34,Homes_DwellingEqpLookup,12,FALSE)),"") ->  | J34: =IFERROR(VLOOKUP($C34,Homes_DwellingEqpLookup,4,0),"") ->  | K34: =IFERROR(VLOOKUP($C34,Homes_DwellingEqpLookup,5,0),"") ->  | M34: =IFERROR($D34*((VLOOKUP($C34,Homes_DwellingEqpLookup,7,FALSE)+VLOOKUP($C34,Homes_DwellingEqpLookup,11,FALSE)*$F34)*VLOOKUP($C34,Homes_DwellingEqpLookup,12,FALSE)),"") ->  | N34: =IFERROR(IF($E34="No",$M34,$D34*(VLOOKUP($C34,Homes_DwellingEqpLookup,8,FALSE)+VLOOKUP($C34,Homes_DwellingEqpLookup,11,FALSE)*$F34)*VLOOKUP($C34,Homes_DwellingEqpLookup,12,FALSE)),"") ->  | O34: =IFERROR(VLOOKUP($C34,Homes_DwellingEqpLookup,9,0),"") ->  | P34: =IFERROR(VLOOKUP($C34,Homes_DwellingEqpLookup,10,0),"") ->  | R34: =IFERROR(VLOOKUP($C34,Homes_DwellingEqpLookup,13,0),"") ->  | S34: =IFERROR(IF($E34="No",$R34,VLOOKUP($C34,Homes_DwellingEqpLookup,14,0)),"") ->  | T34: =IFERROR($R34*$D34,"") ->  | U34: =IFERROR($S34*$D34,"") -> 
A37: G
A38: G
A39: G | B39: Table 3.3: Homes Dwelling Unit Equipment Modeling Summary
A40: G
A41: G | B41: =CONCATENATE("Report the modeled Receptacle Equipment and Appliances Equivalent Full Load Hours of Operation in the Schedules tab before referring to the table below."," The Equivalent Full Load Hours of Operation is used to calculate the equipment power density for resdential dwelling units that must be modeled based on the building equipment reported for the building."," After confirming the Equivalent Full Load Hours of Operation in the schedules tab, use the values below for the Baseline and Proposed Miscellaneous Equipment Loads in the Dwelling Units. These loads include ",IF(SI_IP_Units="IP","0.5 Watts per square foot ","5.38 Watts per square meter"), " of electric miscellaneous equipment load with a 0.9 sensible ratio and 0.1 latent ratio in addition to the equipment load sources selected above.") -> Report the modeled Receptacle Equipment and Appliances Equivalent Full Load Hours of Operation in the Schedules tab before referring to the table below. The Equivalent Full Load Hours of Operation is used to calculate the equipment power density for resdential dwelling units that must be modeled based on the building equipment reported for the building. After confirming the Equivalent Full Load Hours of Operation in the schedules tab, use the values below for the Baseline and Proposed Miscellaneous Equipment Loads in the Dwelling Units. These loads include 0.5 Watts per square foot of electric miscellaneous equipment load with a 0.9 sensible ratio and 0.1 latent ratio in addition to the equipment load sources selected above.
A42: G
A43: G | B43: Building ID | C43: Equipment Type | D43: =CONCATENATE("Total Area of Dwelling Units",IF(SI_IP_Units="IP"," (square feet)"," (square meters)")) -> Total Area of Dwelling Units (square feet) | E43: Equivalent Full Load Hours of Dwelling Unit Miscellaneous Equipment Operation Per Year | F43: Electric Miscellaneous Loads in Dwelling Unit (including appliances and equipment listed above) | M43: Natural Gas Miscellaneous Loads in Dwelling Unit (including appliances and equipment listed above) | T43: =CONCATENATE("Dwelling Unit Equipment Hot Water Loads ",IF(SI_IP_Units="IP","(gallons/year)","(Liters/year)")) -> Dwelling Unit Equipment Hot Water Loads (gallons/year) | V43: Measure #
A44: G | F44: Baseline | I44: Proposed | M44: Baseline | P44: Proposed
A45: G | F45: =CONCATENATE("Equipment Power Density ", IF(SI_IP_Units="IP","(Watts/ sq ft)","(Watts/ sq m)")) -> Equipment Power Density (Watts/ sq ft) | G45: Sensible Ratio | H45: Latent Ratio | I45: =CONCATENATE("Equipment Power Density ", IF(SI_IP_Units="IP","(Watts/ sq ft)","(Watts/ sq m)")) -> Equipment Power Density (Watts/ sq ft) | J45: Sensible Ratio | K45: Latent Ratio | M45: =CONCATENATE("Equipment Power Density ", IF(SI_IP_Units="IP","(Btu/ sq ft)","(Watts/ sq m)")) -> Equipment Power Density (Btu/ sq ft) | N45: Sensible Ratio | O45: Latent Ratio | P45: =CONCATENATE("Equipment Power Density ", IF(SI_IP_Units="IP","(Btu/ sq ft)","(Watts/ sq m)")) -> Equipment Power Density (Btu/ sq ft) | Q45: Sensible Ratio | R45: Latent Ratio | T45: Base | U45: Proposed
A46: G | B46: =B43 -> Building ID | C46: EFLH | D46: Total_Area | E46: Blank1 | F46: Base_EPD_Elecric | G46: Base_Elec_Sens_Ratio | H46: Base_Elec_Latent_Ratio | I46: Prop_EPD_Elecric | J46: Prop_Elec_Sens_Ratio | K46: Prop_Elec_Latent_Ratio | L46: Blank2 | M46: Base_Ng_EPD | N46: Base_Ng_Sens_Ratio | O46: Base_Ng_Latent_Ratio | P46: Prop_Ng_EPD | Q46: Prop_Ng_Sens_Ratio | R46: Prop_Ng_Latent_Ratio | S46: Blank3 | T46: Base_HW_Loads | U46: Proposed_HW_Loads
A47: G | B47: ='1 - Multiple Buildings Details'!B24 -> 0 | C47: Summary of Equipment in Table 3.2 | D47: =INDEX(MD_BUS_SumTable,MATCH($B47,MD_BUS_SumIndex,0),MATCH($H$21,MD_BUS_SumHdr,0)) -> 0 | E47: 8760 | F47: =IFERROR((SUM(H32:H35))/E47*1000/D47,"") ->  | G47: =IFERROR(SUMPRODUCT(H32:H35,J32:J35)/SUM(H32:H35),"") ->  | H47: =IFERROR(SUMPRODUCT(H32:H35,K32:K35)/SUM(H32:H35),"") ->  | I47: =IFERROR((SUM(I32:I35))/E47*1000/D47,"") ->  | J47: =IFERROR(SUMPRODUCT(I32:I35,J32:J35)/SUM(I32:I35),"") ->  | K47: =IFERROR(SUMPRODUCT(I32:I35,K32:K35)/SUM(I32:I35),"") ->  | M47: =IFERROR((SUM(M32:M35))/E47/D47*IF(SI_IP_Units="IP",100000,1000),"") ->  | N47: =IFERROR(IF(SUM(O34:O35)=0,0,SUMPRODUCT(M32:M35,O32:O35)/SUM(M32:M35)),"") -> 0 | O47: =IFERROR(IF(SUM(P34:P35)=0,0,SUMPRODUCT(M32:M35,P32:P35)/SUM(M32:M35)),"") -> 0 | P47: =IFERROR((SUM(N32:N35))/E47/D47*IF(SI_IP_Units="IP",100000,1000),"") ->  | Q47: =IFERROR(IF(SUM(O34:O35)=0,0,SUMPRODUCT(N32:N35,O32:O35)/SUM(N32:N35)),"") -> 0 | R47: =IFERROR(IF(SUM(P34:P35)=0,0,SUMPRODUCT(N32:N35,P32:P35)/SUM(N32:N35)),"") -> 0 | T47: =IFERROR(SUMIF(MD_HDUEC_Index1,$B47,OFFSET(MD_HDUEC_Index1,0,MATCH($T$31,MD_HDUEC_Hdr,0)-1,ROWS(MD_HDUEC_Index1),1)),"") -> 0 | U47: =IFERROR(SUMIF(MD_HDUEC_Index1,$B47,OFFSET(MD_HDUEC_Index1,0,MATCH($U$31,MD_HDUEC_Hdr,0)-1,ROWS(MD_HDUEC_Index1),1)),"") -> 0
A48: G | B48: ='1 - Multiple Buildings Details'!B25 -> 0 | C48: All Other Dwelling Unit Receptacle Loads | D48: =INDEX(MD_BUS_SumTable,MATCH($B48,MD_BUS_SumIndex,0),MATCH($H$21,MD_BUS_SumHdr,0)) -> 0 | E48: ='2a - Schedules'!G12 -> 2117 | F48: =0.5*(IF(SI_IP_Units="IP",1,10.76)) -> 0.5 | G48: 0.9 | H48: 0.1 | I48: =0.5*(IF(SI_IP_Units="IP",1,10.76)) -> 0.5 | J48: 0.9 | K48: 0.1 | M48: 0 | N48: 0 | O48: 0 | P48: 0 | Q48: 0 | R48: 0 | T48: =IFERROR(SUMIF(MD_HDUEC_Index1,$B48,OFFSET(MD_HDUEC_Index1,0,MATCH($T$31,MD_HDUEC_Hdr,0)-1,ROWS(MD_HDUEC_Index1),1)),"") -> 0 | U48: =IFERROR(SUMIF(MD_HDUEC_Index1,$B48,OFFSET(MD_HDUEC_Index1,0,MATCH($U$31,MD_HDUEC_Hdr,0)-1,ROWS(MD_HDUEC_Index1),1)),"") -> 0
A49: G
A50: G | B50: Table 3.4: Homes Laundry Room Equipment Calculator
A51: G
A52: G | B52: If the project has one or more laundry rooms serving multiple dwelling units, enter the equipment that is present in the laundry rooms. Leave blank if the project has no laundry rooms.
A53: G
A54: G | B54: Building ID | C54: Load Source | D54: Quantity | E54: Energy Star Equip-ment? | F54: Average Bedrooms per Dwelling Unit | H54: Electric Loads | M54: Natural Gas Loads | R54: =CONCATENATE("Annual Service Hot Water Load ",IF(SI_IP_Units="IP","(gallons/year)","(Liters/year)")) -> Annual Service Hot Water Load (gallons/year) | V54: Measure #
A55: G | H55: =CONCATENATE("Annual Consumption ",IF(SI_IP_Units="IP","(kWh/year)","kWh/year")) -> Annual Consumption (kWh/year) | J55: Sensible Ratio | K55: Latent Ratio | M55: =CONCATENATE("Annual Consumption ",IF(SI_IP_Units="IP","(therms/year)","kWh/year")) -> Annual Consumption (therms/year) | O55: Sensible Ratio | P55: Latent Ratio | R55: Baseline Per Equipment | S55: Proposed Design Per Equipment | T55: Baseline Total | U55: Proposed Design Total
A56: G | H56: Baseline | I56: Proposed | M56: Baseline | N56: Proposed
A57: G | B57: Building ID | C57: Load_Source | D57: Qty | E57: Energy_Star | F57: Avg_Bedrooms_DU | H57: Base_Elec_Consumption | I57: Design_Elec_Consumption | J57: Elec_Sens_Ratio | K57: Elec_Latent_Ratio | M57: Base_Ng_Consumption | N57: Design_Ng_Consumption | O57: NG_Sens_Ratio | P57: NG_Latent_Ratio | R57: Base_DHW_Equip | S57: Design_DHW_Equip | T57: Base_DHW_Annual | U57: Design_DHW_Annual
B58: =GI_Project_Name -> 0 | F58: =IFERROR(INDEX(MD_BUS_SumTable,MATCH($B58,MD_BUS_SumIndex,0),MATCH($K$21,MD_BUS_SumHdr,0)),"") -> 0 | H58: =IFERROR((VLOOKUP($C58,Homes_LaundryEqpLookup,2,FALSE)+VLOOKUP($C58,Homes_LaundryEqpLookup,6,FALSE)*$F58)*VLOOKUP($C58,Homes_LaundryEqpLookup,12,FALSE)*D58,"") ->  | I58: =IFERROR(IF($E58="No",$H58,(VLOOKUP($C58,Homes_LaundryEqpLookup,3,FALSE)+VLOOKUP($C58,Homes_LaundryEqpLookup,6,FALSE)*$F58)*VLOOKUP($C58,Homes_LaundryEqpLookup,12,FALSE))*D58,"") ->  | J58: =IFERROR(VLOOKUP($C58,Homes_LaundryEqpLookup,4,0),"") ->  | K58: =IFERROR(VLOOKUP($C58,Homes_LaundryEqpLookup,5,0),"") ->  | M58: =IFERROR((VLOOKUP($C58,Homes_LaundryEqpLookup,7,FALSE)+VLOOKUP($C58,Homes_LaundryEqpLookup,11,FALSE)*$F58)*VLOOKUP($C58,Homes_LaundryEqpLookup,12,FALSE)*D58,"") ->  | N58: =IFERROR(IF($E58="No",$M58,(VLOOKUP($C58,Homes_LaundryEqpLookup,8,FALSE)+VLOOKUP($C58,Homes_LaundryEqpLookup,11,FALSE)*$F58)*VLOOKUP($C58,Homes_LaundryEqpLookup,12,FALSE))*D58,"") ->  | O58: =IFERROR(VLOOKUP($C58,Homes_LaundryEqpLookup,9,0),"") ->  | P58: =IFERROR(VLOOKUP($C58,Homes_LaundryEqpLookup,10,0),"") ->  | R58: =IFERROR(VLOOKUP($C58,Homes_LaundryEqpLookup,13,0),"") ->  | S58: =IFERROR(VLOOKUP($C58,Homes_LaundryEqpLookup,14,0),"") ->  | T58: =IFERROR($R58*$D58,"") ->  | U58: =IFERROR($S58*$D58,"") -> 
B59: =GI_Project_Name -> 0 | F59: =IFERROR(INDEX(MD_BUS_SumTable,MATCH($B59,MD_BUS_SumIndex,0),MATCH($K$21,MD_BUS_SumHdr,0)),"") -> 0 | H59: =IFERROR((VLOOKUP($C59,Homes_LaundryEqpLookup,2,FALSE)+VLOOKUP($C59,Homes_LaundryEqpLookup,6,FALSE)*$F59)*VLOOKUP($C59,Homes_LaundryEqpLookup,12,FALSE)*D59,"") ->  | I59: =IFERROR(IF($E59="No",$H59,(VLOOKUP($C59,Homes_LaundryEqpLookup,3,FALSE)+VLOOKUP($C59,Homes_LaundryEqpLookup,6,FALSE)*$F59)*VLOOKUP($C59,Homes_LaundryEqpLookup,12,FALSE))*D59,"") ->  | J59: =IFERROR(VLOOKUP($C59,Homes_LaundryEqpLookup,4,0),"") ->  | K59: =IFERROR(VLOOKUP($C59,Homes_LaundryEqpLookup,5,0),"") ->  | M59: =IFERROR((VLOOKUP($C59,Homes_LaundryEqpLookup,7,FALSE)+VLOOKUP($C59,Homes_LaundryEqpLookup,11,FALSE)*$F59)*VLOOKUP($C59,Homes_LaundryEqpLookup,12,FALSE)*D59,"") ->  | N59: =IFERROR(IF($E59="No",$M59,(VLOOKUP($C59,Homes_LaundryEqpLookup,8,FALSE)+VLOOKUP($C59,Homes_LaundryEqpLookup,11,FALSE)*$F59)*VLOOKUP($C59,Homes_LaundryEqpLookup,12,FALSE))*D59,"") ->  | O59: =IFERROR(VLOOKUP($C59,Homes_LaundryEqpLookup,9,0),"") ->  | P59: =IFERROR(VLOOKUP($C59,Homes_LaundryEqpLookup,10,0),"") ->  | R59: =IFERROR(VLOOKUP($C59,Homes_LaundryEqpLookup,13,0),"") ->  | S59: =IFERROR(VLOOKUP($C59,Homes_LaundryEqpLookup,14,0),"") ->  | T59: =IFERROR($R59*$D59,"") ->  | U59: =IFERROR($S59*$D59,"") -> 
B60: =GI_Project_Name -> 0 | F60: =IFERROR(INDEX(MD_BUS_SumTable,MATCH($B60,MD_BUS_SumIndex,0),MATCH($K$21,MD_BUS_SumHdr,0)),"") -> 0 | H60: =IFERROR((VLOOKUP($C60,Homes_LaundryEqpLookup,2,FALSE)+VLOOKUP($C60,Homes_LaundryEqpLookup,6,FALSE)*$F60)*VLOOKUP($C60,Homes_LaundryEqpLookup,12,FALSE)*D60,"") ->  | I60: =IFERROR(IF($E60="No",$H60,(VLOOKUP($C60,Homes_LaundryEqpLookup,3,FALSE)+VLOOKUP($C60,Homes_LaundryEqpLookup,6,FALSE)*$F60)*VLOOKUP($C60,Homes_LaundryEqpLookup,12,FALSE))*D60,"") ->  | J60: =IFERROR(VLOOKUP($C60,Homes_LaundryEqpLookup,4,0),"") ->  | K60: =IFERROR(VLOOKUP($C60,Homes_LaundryEqpLookup,5,0),"") ->  | M60: =IFERROR((VLOOKUP($C60,Homes_LaundryEqpLookup,7,FALSE)+VLOOKUP($C60,Homes_LaundryEqpLookup,11,FALSE)*$F60)*VLOOKUP($C60,Homes_LaundryEqpLookup,12,FALSE)*D60,"") ->  | N60: =IFERROR(IF($E60="No",$M60,(VLOOKUP($C60,Homes_LaundryEqpLookup,8,FALSE)+VLOOKUP($C60,Homes_LaundryEqpLookup,11,FALSE)*$F60)*VLOOKUP($C60,Homes_LaundryEqpLookup,12,FALSE))*D60,"") ->  | O60: =IFERROR(VLOOKUP($C60,Homes_LaundryEqpLookup,9,0),"") ->  | P60: =IFERROR(VLOOKUP($C60,Homes_LaundryEqpLookup,10,0),"") ->  | R60: =IFERROR(VLOOKUP($C60,Homes_LaundryEqpLookup,13,0),"") ->  | S60: =IFERROR(VLOOKUP($C60,Homes_LaundryEqpLookup,14,0),"") ->  | T60: =IFERROR($R60*$D60,"") ->  | U60: =IFERROR($S60*$D60,"") -> 
A61: B | F61: =IFERROR(INDEX(MD_BUS_SumTable,MATCH($B61,MD_BUS_SumIndex,0),MATCH($K$21,MD_BUS_SumHdr,0)),"") -> 0 | H61: =IFERROR((VLOOKUP($C61,Homes_LaundryEqpLookup,2,FALSE)+VLOOKUP($C61,Homes_LaundryEqpLookup,6,FALSE)*$F61)*VLOOKUP($C61,Homes_LaundryEqpLookup,12,FALSE)*D61,"") ->  | I61: =IFERROR(IF($E61="No",$H61,(VLOOKUP($C61,Homes_LaundryEqpLookup,3,FALSE)+VLOOKUP($C61,Homes_LaundryEqpLookup,6,FALSE)*$F61)*VLOOKUP($C61,Homes_LaundryEqpLookup,12,FALSE))*D61,"") ->  | J61: =IFERROR(VLOOKUP($C61,Homes_LaundryEqpLookup,4,0),"") ->  | K61: =IFERROR(VLOOKUP($C61,Homes_LaundryEqpLookup,5,0),"") ->  | M61: =IFERROR((VLOOKUP($C61,Homes_LaundryEqpLookup,7,FALSE)+VLOOKUP($C61,Homes_LaundryEqpLookup,11,FALSE)*$F61)*VLOOKUP($C61,Homes_LaundryEqpLookup,12,FALSE)*D61,"") ->  | N61: =IFERROR(IF($E61="No",$M61,(VLOOKUP($C61,Homes_LaundryEqpLookup,8,FALSE)+VLOOKUP($C61,Homes_LaundryEqpLookup,11,FALSE)*$F61)*VLOOKUP($C61,Homes_LaundryEqpLookup,12,FALSE))*D61,"") ->  | O61: =IFERROR(VLOOKUP($C61,Homes_LaundryEqpLookup,9,0),"") ->  | P61: =IFERROR(VLOOKUP($C61,Homes_LaundryEqpLookup,10,0),"") ->  | R61: =IFERROR(VLOOKUP($C61,Homes_LaundryEqpLookup,13,0),"") ->  | S61: =IFERROR(VLOOKUP($C61,Homes_LaundryEqpLookup,14,0),"") ->  | T61: =IFERROR($R61*$D61,"") ->  | U61: =IFERROR($S61*$D61,"") -> 
A62: G
A63: G
A64: G
A65: G
A66: G | B66: Table 3.5: Homes Laundry Room Equipment Modeling Summary
A67: G
A68: G | B68: =CONCATENATE("Identify the equivalent full load hours of operation and building area for the landury room(s) below. ","In the energy model(s), use the values below for the Baseline and Proposed Miscellaneous Equipment Loads in the Laundry Rooms. These loads include ",IF(SI_IP_Units="IP","0.2 Watts per square foot ","2.15 Watts per square meter"), " of electric miscellaneous equipment load with a 1.0 sensible ratio and 0.0 latent ratio in addition to the equipment load sources selected above."," Note that the Equivalent Full Load Hours of operation noted here must be consistent with that of the energy model in order for the equipment power densities"," listed here to appropriately calculate the annual laundry miscellaneous energy consumption in the energy model.") -> Identify the equivalent full load hours of operation and building area for the landury room(s) below. In the energy model(s), use the values below for the Baseline and Proposed Miscellaneous Equipment Loads in the Laundry Rooms. These loads include 0.2 Watts per square foot of electric miscellaneous equipment load with a 1.0 sensible ratio and 0.0 latent ratio in addition to the equipment load sources selected above. Note that the Equivalent Full Load Hours of operation noted here must be consistent with that of the energy model in order for the equipment power densities listed here to appropriately calculate the annual laundry miscellaneous energy consumption in the energy model.
A69: G
A70: G | B70: Building ID | C70: Equivalent Full Load Hours of Dwelling Unit Miscellaneous Equipment Operation Per Year | D70: =CONCATENATE("Total Area of Laundry Rooms",IF(SI_IP_Units="IP"," (square feet)"," (square meters)")) -> Total Area of Laundry Rooms (square feet) | F70: Electric Loads in Laundry Room (including appliances and equipment listed above) | M70: Natural Gas Loads in Laundry Room (including appliances and equipment listed above) | T70: =CONCATENATE("Laundry Room Equipment Hot Water Loads ",IF(SI_IP_Units="IP","(gallons/year)","(Liters/year)")) -> Laundry Room Equipment Hot Water Loads (gallons/year) | V70: Measure #
A71: G | F71: Baseline | I71: Proposed | M71: Baseline | P71: Proposed
A72: G | F72: =CONCATENATE("Equipment Power Density ", IF(SI_IP_Units="IP","(Watts/ sq ft)","(Watts/ sq m)")) -> Equipment Power Density (Watts/ sq ft) | G72: Sensible Ratio | H72: Latent Ratio | I72: =CONCATENATE("Equipment Power Density ", IF(SI_IP_Units="IP","(Watts/ sq ft)","(Watts/ sq m)")) -> Equipment Power Density (Watts/ sq ft) | J72: Sensible Ratio | K72: Latent Ratio | M72: =CONCATENATE("Equipment Power Density ", IF(SI_IP_Units="IP","(Btu/ sq ft)","(Watts/ sq m)")) -> Equipment Power Density (Btu/ sq ft) | N72: Sensible Ratio | O72: Latent Ratio | P72: =CONCATENATE("Equipment Power Density ", IF(SI_IP_Units="IP","(Btu/ sq ft)","(Watts/ sq m)")) -> Equipment Power Density (Btu/ sq ft) | Q72: Sensible Ratio | R72: Latent Ratio | T72: Base | U72: Proposed
A73: G | B73: Building ID | C73: EFLH | D73: Total_Area | E73: Blank1 | F73: Base_EPD_Elecric | G73: Base_Elec_Sens_Ratio | H73: Base_Elec_Latent_Ratio | I73: Prop_EPD_Elecric | J73: Prop_Elec_Sens_Ratio | K73: Prop_Elec_Latent_Ratio | L73: Blank2 | M73: Base_Ng_EPD | N73: Base_Ng_Sens_Ratio | O73: Base_Ng_Latent_Ratio | P73: Prop_Ng_EPD | Q73: Prop_Ng_Sens_Ratio | R73: Prop_Ng_Latent_Ratio | S73: Blank3 | T73: Base_HW_Loads | U73: Proposed_HW_Loads
A74: G | B74: ='1 - Multiple Buildings Details'!B24 -> 0 | F74: =IFERROR(SUMIF(MD_Laundry_Index,$B74,OFFSET(MD_Laundry_Index,0,MATCH($H$57,MD_Laundry_Hdr,0)-1,ROWS(MD_Laundry_Index),1))/$D74*1000/$C74+0.2*(IF(SI_IP_Units="IP",1,2.15)),"") ->  | G74: =IFERROR((SUMPRODUCT(OFFSET(MD_Laundry_Index,0,MATCH($H$57,MD_Laundry_Hdr,0)-1,ROWS(MD_Laundry_Index),1),OFFSET(MD_Laundry_Index,0,MATCH($J$57,MD_Laundry_Hdr,0)-1,ROWS(MD_Laundry_Index),1),--(MD_Laundry_Index=$B74))*1000/$C74+IF(SI_IP_Units="IP",0.2,0.2*10.76)*$D74*1)/(SUMIF(MD_Laundry_Index,$B74,(OFFSET(MD_Laundry_Index,0,MATCH($H$57,MD_Laundry_Hdr,0)-1,ROWS(MD_Laundry_Index),1)))*1000/$C74+IF(SI_IP_Units="IP",0.2,0.2*10.76)*$D74),"") ->  | H74: =IFERROR((SUMPRODUCT(OFFSET(MD_Laundry_Index,0,MATCH($H$57,MD_Laundry_Hdr,0)-1,ROWS(MD_Laundry_Index),1),OFFSET(MD_Laundry_Index,0,MATCH($K$57,MD_Laundry_Hdr,0)-1,ROWS(MD_Laundry_Index),1),--(MD_Laundry_Index=$B74))*1000/$C74+IF(SI_IP_Units="IP",0.2,0.2*10.76)*$D74*0)/(SUMIF(MD_Laundry_Index,$B74,(OFFSET(MD_Laundry_Index,0,MATCH($H$57,MD_Laundry_Hdr,0)-1,ROWS(MD_Laundry_Index),1)))*1000/$C74+IF(SI_IP_Units="IP",0.2,0.2*10.76)*$D74),"") ->  | I74: =IFERROR(SUMIF(MD_Laundry_Index,$B74,OFFSET(MD_Laundry_Index,0,MATCH($I$57,MD_Laundry_Hdr,0)-1,ROWS(MD_Laundry_Index),1))/$D74*1000/$C74+0.2*(IF(SI_IP_Units="IP",1,10.76)),"") ->  | J74: =IFERROR((SUMPRODUCT(OFFSET(MD_Laundry_Index,0,MATCH($I$57,MD_Laundry_Hdr,0)-1,ROWS(MD_Laundry_Index),1),OFFSET(MD_Laundry_Index,0,MATCH($J$57,MD_Laundry_Hdr,0)-1,ROWS(MD_Laundry_Index),1),--(MD_Laundry_Index=$B74))*1000/$C74+IF(SI_IP_Units="IP",0.2,0.2*10.76)*$D74*1)/(SUMIF(MD_Laundry_Index,$B74,(OFFSET(MD_Laundry_Index,0,MATCH($I$57,MD_Laundry_Hdr,0)-1,ROWS(MD_Laundry_Index),1)))*1000/$C74+IF(SI_IP_Units="IP",0.2,0.2*10.76)*$D74),"") ->  | K74: =IFERROR((SUMPRODUCT(OFFSET(MD_Laundry_Index,0,MATCH($I$57,MD_Laundry_Hdr,0)-1,ROWS(MD_Laundry_Index),1),OFFSET(MD_Laundry_Index,0,MATCH($K$57,MD_Laundry_Hdr,0)-1,ROWS(MD_Laundry_Index),1),--(MD_Laundry_Index=$B74))*1000/$C74+IF(SI_IP_Units="IP",0.2,0.2*10.76)*$D74*0)/(SUMIF(MD_Laundry_Index,$B74,(OFFSET(MD_Laundry_Index,0,MATCH($I$57,MD_Laundry_Hdr,0)-1,ROWS(MD_Laundry_Index),1)))*1000/$C74+IF(SI_IP_Units="IP",0.2,0.2*10.76)*$D74),"") ->  | M74: =IFERROR(SUMIF(MD_Laundry_Index,$B74,OFFSET(MD_Laundry_Index,0,MATCH($M$57,MD_Laundry_Hdr,0)-1,ROWS(MD_Laundry_Index),1))/$D74/$C74*IF(SI_IP_Units="IP",100000,1000),"") ->  | N74: =IFERROR(SUMPRODUCT(OFFSET(MD_Laundry_Index,0,MATCH($M$57,MD_Laundry_Hdr,0)-1,ROWS(MD_Laundry_Index),1),OFFSET(MD_Laundry_Index,0,MATCH($O$57,MD_Laundry_Hdr,0)-1,ROWS(MD_Laundry_Index),1),--(MD_Laundry_Index=$B74))/SUMIF(MD_Laundry_Index,$B74,OFFSET(MD_Laundry_Index,0,MATCH($M$57,MD_Laundry_Hdr,0)-1)),"") ->  | O74: =IFERROR(SUMPRODUCT(OFFSET(MD_Laundry_Index,0,MATCH($M$57,MD_Laundry_Hdr,0)-1,ROWS(MD_Laundry_Index),1),OFFSET(MD_Laundry_Index,0,MATCH($P$57,MD_Laundry_Hdr,0)-1,ROWS(MD_Laundry_Index),1),--(MD_Laundry_Index=$B74))/SUMIF(MD_Laundry_Index,$B74,OFFSET(MD_Laundry_Index,0,MATCH($M$57,MD_Laundry_Hdr,0)-1)),"") ->  | P74: =IFERROR(SUMIF(MD_Laundry_Index,$B74,OFFSET(MD_Laundry_Index,0,MATCH($N$57,MD_Laundry_Hdr,0)-1,ROWS(MD_Laundry_Index),1))/$D74/$C74*IF(SI_IP_Units="IP",100000,1000),"") ->  | Q74: =IFERROR(SUMPRODUCT(OFFSET(MD_Laundry_Index,0,MATCH($N$57,MD_Laundry_Hdr,0)-1,ROWS(MD_Laundry_Index),1),OFFSET(MD_Laundry_Index,0,MATCH($O$57,MD_Laundry_Hdr,0)-1,ROWS(MD_Laundry_Index),1),--(MD_Laundry_Index=$B74))/SUMIF(MD_Laundry_Index,$B74,OFFSET(MD_Laundry_Index,0,MATCH($N$57,MD_Laundry_Hdr,0)-1)),"") ->  | R74: =IFERROR(SUMPRODUCT(OFFSET(MD_Laundry_Index,0,MATCH($N$57,MD_Laundry_Hdr,0)-1,ROWS(MD_Laundry_Index),1),OFFSET(MD_Laundry_Index,0,MATCH($P$57,MD_Laundry_Hdr,0)-1,ROWS(MD_Laundry_Index),1),--(MD_Laundry_Index=$B74))/SUMIF(MD_Laundry_Index,$B74,OFFSET(MD_Laundry_Index,0,MATCH($N$57,MD_Laundry_Hdr,0)-1)),"") ->  | T74: =IFERROR(SUMIF(MD_Laundry_Index,$B74,OFFSET(MD_Laundry_Index,0,MATCH($T$57,MD_Laundry_Hdr,0)-1,ROWS(MD_Laundry_Index),1)),"") -> 0 | U74: =IFERROR(SUMIF(MD_Laundry_Index,$B74,OFFSET(MD_Laundry_Index,0,MATCH($U$57,MD_Laundry_Hdr,0)-1,ROWS(MD_Laundry_Index),1)),"") -> 0
A75: C | B75: ='1 - Multiple Buildings Details'!B24 -> 0 | F75: =IFERROR(SUMIF(MD_Laundry_Index,$B75,OFFSET(MD_Laundry_Index,0,MATCH($H$57,MD_Laundry_Hdr,0)-1,ROWS(MD_Laundry_Index),1))/$D75*1000/$C75+0.2*(IF(SI_IP_Units="IP",1,2.15)),"") ->  | G75: =IFERROR((SUMPRODUCT(OFFSET(MD_Laundry_Index,0,MATCH($H$57,MD_Laundry_Hdr,0)-1,ROWS(MD_Laundry_Index),1),OFFSET(MD_Laundry_Index,0,MATCH($J$57,MD_Laundry_Hdr,0)-1,ROWS(MD_Laundry_Index),1),--(MD_Laundry_Index=$B75))*1000/$C75+IF(SI_IP_Units="IP",0.2,0.2*10.76)*$D75*1)/(SUMIF(MD_Laundry_Index,$B75,(OFFSET(MD_Laundry_Index,0,MATCH($H$57,MD_Laundry_Hdr,0)-1,ROWS(MD_Laundry_Index),1)))*1000/$C75+IF(SI_IP_Units="IP",0.2,0.2*10.76)*$D75),"") ->  | H75: =IFERROR((SUMPRODUCT(OFFSET(MD_Laundry_Index,0,MATCH($H$57,MD_Laundry_Hdr,0)-1,ROWS(MD_Laundry_Index),1),OFFSET(MD_Laundry_Index,0,MATCH($K$57,MD_Laundry_Hdr,0)-1,ROWS(MD_Laundry_Index),1),--(MD_Laundry_Index=$B75))*1000/$C75+IF(SI_IP_Units="IP",0.2,0.2*10.76)*$D75*0)/(SUMIF(MD_Laundry_Index,$B75,(OFFSET(MD_Laundry_Index,0,MATCH($H$57,MD_Laundry_Hdr,0)-1,ROWS(MD_Laundry_Index),1)))*1000/$C75+IF(SI_IP_Units="IP",0.2,0.2*10.76)*$D75),"") ->  | I75: =IFERROR(SUMIF(MD_Laundry_Index,$B75,OFFSET(MD_Laundry_Index,0,MATCH($I$57,MD_Laundry_Hdr,0)-1,ROWS(MD_Laundry_Index),1))/$D75*1000/$C75+0.2*(IF(SI_IP_Units="IP",1,10.76)),"") ->  | J75: =IFERROR((SUMPRODUCT(OFFSET(MD_Laundry_Index,0,MATCH($I$57,MD_Laundry_Hdr,0)-1,ROWS(MD_Laundry_Index),1),OFFSET(MD_Laundry_Index,0,MATCH($J$57,MD_Laundry_Hdr,0)-1,ROWS(MD_Laundry_Index),1),--(MD_Laundry_Index=$B75))*1000/$C75+IF(SI_IP_Units="IP",0.2,0.2*10.76)*$D75*1)/(SUMIF(MD_Laundry_Index,$B75,(OFFSET(MD_Laundry_Index,0,MATCH($I$57,MD_Laundry_Hdr,0)-1,ROWS(MD_Laundry_Index),1)))*1000/$C75+IF(SI_IP_Units="IP",0.2,0.2*10.76)*$D75),"") ->  | K75: =IFERROR((SUMPRODUCT(OFFSET(MD_Laundry_Index,0,MATCH($I$57,MD_Laundry_Hdr,0)-1,ROWS(MD_Laundry_Index),1),OFFSET(MD_Laundry_Index,0,MATCH($K$57,MD_Laundry_Hdr,0)-1,ROWS(MD_Laundry_Index),1),--(MD_Laundry_Index=$B75))*1000/$C75+IF(SI_IP_Units="IP",0.2,0.2*10.76)*$D75*0)/(SUMIF(MD_Laundry_Index,$B75,(OFFSET(MD_Laundry_Index,0,MATCH($I$57,MD_Laundry_Hdr,0)-1,ROWS(MD_Laundry_Index),1)))*1000/$C75+IF(SI_IP_Units="IP",0.2,0.2*10.76)*$D75),"") ->  | M75: =IFERROR(SUMIF(MD_Laundry_Index,$B75,OFFSET(MD_Laundry_Index,0,MATCH($M$57,MD_Laundry_Hdr,0)-1,ROWS(MD_Laundry_Index),1))/$D75/$C75*IF(SI_IP_Units="IP",100000,1000),"") ->  | N75: =IFERROR(SUMPRODUCT(OFFSET(MD_Laundry_Index,0,MATCH($M$57,MD_Laundry_Hdr,0)-1,ROWS(MD_Laundry_Index),1),OFFSET(MD_Laundry_Index,0,MATCH($O$57,MD_Laundry_Hdr,0)-1,ROWS(MD_Laundry_Index),1),--(MD_Laundry_Index=$B75))/SUMIF(MD_Laundry_Index,$B75,OFFSET(MD_Laundry_Index,0,MATCH($M$57,MD_Laundry_Hdr,0)-1)),"") ->  | O75: =IFERROR(SUMPRODUCT(OFFSET(MD_Laundry_Index,0,MATCH($M$57,MD_Laundry_Hdr,0)-1,ROWS(MD_Laundry_Index),1),OFFSET(MD_Laundry_Index,0,MATCH($P$57,MD_Laundry_Hdr,0)-1,ROWS(MD_Laundry_Index),1),--(MD_Laundry_Index=$B75))/SUMIF(MD_Laundry_Index,$B75,OFFSET(MD_Laundry_Index,0,MATCH($M$57,MD_Laundry_Hdr,0)-1)),"") ->  | P75: =IFERROR(SUMIF(MD_Laundry_Index,$B75,OFFSET(MD_Laundry_Index,0,MATCH($N$57,MD_Laundry_Hdr,0)-1,ROWS(MD_Laundry_Index),1))/$D75/$C75*IF(SI_IP_Units="IP",100000,1000),"") ->  | Q75: =IFERROR(SUMPRODUCT(OFFSET(MD_Laundry_Index,0,MATCH($N$57,MD_Laundry_Hdr,0)-1,ROWS(MD_Laundry_Index),1),OFFSET(MD_Laundry_Index,0,MATCH($O$57,MD_Laundry_Hdr,0)-1,ROWS(MD_Laundry_Index),1),--(MD_Laundry_Index=$B75))/SUMIF(MD_Laundry_Index,$B75,OFFSET(MD_Laundry_Index,0,MATCH($N$57,MD_Laundry_Hdr,0)-1)),"") ->  | R75: =IFERROR(SUMPRODUCT(OFFSET(MD_Laundry_Index,0,MATCH($N$57,MD_Laundry_Hdr,0)-1,ROWS(MD_Laundry_Index),1),OFFSET(MD_Laundry_Index,0,MATCH($P$57,MD_Laundry_Hdr,0)-1,ROWS(MD_Laundry_Index),1),--(MD_Laundry_Index=$B75))/SUMIF(MD_Laundry_Index,$B75,OFFSET(MD_Laundry_Index,0,MATCH($N$57,MD_Laundry_Hdr,0)-1)),"") ->  | T75: =IFERROR(SUMIF(MD_Laundry_Index,$B75,OFFSET(MD_Laundry_Index,0,MATCH($T$57,MD_Laundry_Hdr,0)-1,ROWS(MD_Laundry_Index),1)),"") -> 0 | U75: =IFERROR(SUMIF(MD_Laundry_Index,$B75,OFFSET(MD_Laundry_Index,0,MATCH($U$57,MD_Laundry_Hdr,0)-1,ROWS(MD_Laundry_Index),1)),"") -> 0
A76: G
A77: G
A78: G | B78: Table 3.6: Homes Service Water Heating Load Summary
A79: G
A80: G | B80: Residential Usage Profile Dependent on Project Demographics | R80: Baseline Residential Usage per person Excluding Clothes / Dish Washers
A81: G | B81: Low | C81: Demographics such as all occupants working, seniors, middle income, and higher population density. | S81: =IF(SI_IP_Units="IP",12,45) -> 12 | T81: =IF(SI_IP_Units="IP","gallons/day","liters/day") -> gallons/day
A82: G | B82: Medium | C82: Demographics such as mixture of working / non-working occupants, mixture of age groups, medium population densities. | S82: =IF(SI_IP_Units="IP",25,95) -> 25 | T82: =IF(SI_IP_Units="IP","gallons/day","liters/day") -> gallons/day
A83: G | B83: High | C83: Demographics such high percentages of children, low income, public assistance, or no occupants working. | S83: =IF(SI_IP_Units="IP",44,167) -> 44 | T83: =IF(SI_IP_Units="IP","gallons/day","liters/day") -> gallons/day
A84: G
A85: G | B85: =CONCATENATE("Report the modeled Service Water Heating Full Load Hours of Operation in the Schedules tab before referring to the table below."," The Equivalent Full Load Hours of Operation is used to calculate the DHW modeled peak residential flow a the DHW Heater that must be modeled to be consistent with the annual hot water consumption calculated here."," After confirming the Equivalent Full Load Hours of Operation in the schedules tab,","Identify the residential service water heating usage profile, and the weighted average fixture flows for sink and shower fixtures. Supply temperature at fixture point of use shall be ",IF(SI_IP_Units="IP","120 degrees F","49 degrees C"),". If the modeled supply DHW temperature from the DHW heater is higher than this,"," indicate the supply DHW temperature from the DHW heater and the average cold water input temperature below."," This information along with the appliance information entered above and the schedule data from the schedules tab is used to determine the DHW modeled Peak Flow at DHW heater,","which should be input into the energy model.") -> Report the modeled Service Water Heating Full Load Hours of Operation in the Schedules tab before referring to the table below. The Equivalent Full Load Hours of Operation is used to calculate the DHW modeled peak residential flow a the DHW Heater that must be modeled to be consistent with the annual hot water consumption calculated here. After confirming the Equivalent Full Load Hours of Operation in the schedules tab,Identify the residential service water heating usage profile, and the weighted average fixture flows for sink and shower fixtures. Supply temperature at fixture point of use shall be 120 degrees F. If the modeled supply DHW temperature from the DHW heater is higher than this, indicate the supply DHW temperature from the DHW heater and the average cold water input temperature below. This information along with the appliance information entered above and the schedule data from the schedules tab is used to determine the DHW modeled Peak Flow at DHW heater,which should be input into the energy model.
A86: G
A87: G | B87: Building ID | C87: Residential Usage Profile | D87: =CONCATENATE("Average Fixture Flows ",IF(SI_IP_Units="IP","(gallons/minute)","(Liters/second)")) -> Average Fixture Flows (gallons/minute) | H87: =CONCATENATE("DHW Temperature Settings ",IF(SI_IP_Units="IP","(degrees F)","(degrees C)")) -> DHW Temperature Settings (degrees F) | K87: =CONCATENATE("DHW Sink and Shower Fixture Loads at Point of Use",IF(SI_IP_Units="IP"," (gallons / year)", "(Liters / year)")) -> DHW Sink and Shower Fixture Loads at Point of Use (gallons / year) | M87: =CONCATENATE("DHW In-Unit Appliance Loads at Point of Use",IF(SI_IP_Units="IP"," (gallons / year)", "(Liters / year)")) -> DHW In-Unit Appliance Loads at Point of Use (gallons / year) | O87: =CONCATENATE("DHW Laundry Room Equipment Loads at Point of Use",IF(SI_IP_Units="IP"," (gallons / year)", "(Liters / year)")) -> DHW Laundry Room Equipment Loads at Point of Use (gallons / year) | Q87: =CONCATENATE("DHW Total Residential Loads at Point of Use",IF(SI_IP_Units="IP"," (gallons / year)", "(Liters / year)")) -> DHW Total Residential Loads at Point of Use (gallons / year) | S87: =CONCATENATE("DHW Total Residential Loads at DHW Heater",IF(SI_IP_Units="IP"," (gallons / year)", "(Liters / year)")) -> DHW Total Residential Loads at DHW Heater (gallons / year) | U87: DHW Equivalent Full Load Hours of Operation | V87: =CONCATENATE("DHW Modeled Peak Residential Flow at DHW Heater",IF(SI_IP_Units="IP"," (gallons / minute)", "(Liters / second)")) -> DHW Modeled Peak Residential Flow at DHW Heater (gallons / minute) | X87: Measure #
A88: G | D88: Baseline | F88: Proposed | H88: DHW Supply Temp | I88: Average Cold Water Temp | J88: DHW Temp at Fixture Point of Use
A89: G | D89: Showers | E89: Sinks | F89: Showers | G89: Sinks | K89: Baseline | L89: Proposed | M89: Baseline | N89: Proposed | O89: Baseline | P89: Proposed | Q89: Baseline | R89: Proposed | S89: Baseline | T89: Proposed | V89: Baseline | W89: Proposed
A90: G | B90: Building ID | C90: Res_Usage_Profile | D90: Shower_Flow_Avg | E90: Sink_Flow_Avg | F90: Shower_Flow_Avg | G90: Sink_Flow_Avg | H90: DHW_Supply_Temp | I90: DHW_Cold_Water_Temp | J90: DHW_Fixture_Temp | K90: DHW_Base_Fixture_flow | L90: DHW_Design_Fixture_flow | M90: DHW_Base_Appliance_Flow | N90: DHW_Design_Appliance_Flow | O90: DHW_Base_Laundry_Flow | P90: DHW_Proposed_Laundry_Flow | Q90: DHW_Base_Total_Flow | R90: DHW_Design_Total_Flow | S90: DHW_Heater_Base_Flow | T90: DHW_Heater_Design_Flow | U90: DHW_EFLH | V90: DHW_Base_Modeled_Flowrate | W90: DHW_Design_Modeled_Flowrate
A91: G | B91: ='1 - Multiple Buildings Details'!B24 -> 0 | D91: =IF('General Information'!F11="IP Units",2.5,0.16) -> 2.5 | E91: =IF('General Information'!F11="IP Units",2.5,0.14) -> 2.5 | J91: =IF(SI_IP_Units="IP",120,CONVERT(120,"F","C")) -> 120 | K91: =IFERROR(VLOOKUP($C91,Res_Usage_Profile_Table,18,FALSE)*365*INDEX(MD_BUS_SumTable,MATCH($B91,MD_BUS_SumIndex,0),MATCH($F$21,MD_BUS_SumHdr,0)),"N/A") -> N/A | L91: =IF(ISERROR(1/$F91/$G91),$K91,IFERROR($K91*IF(SI_IP_Units="IP",(0.36+0.54*$F91/D91+0.1*$G91/E91),(0.36+0.54*$F91/D91+0.1*$G91/E91)),$K91)) -> N/A | M91: =IFERROR(SUMIF(MD_HDUEC_Index1,$B91,OFFSET(MD_HDUEC_Index1,0,MATCH($T$31,MD_HDUEC_Hdr,0)-1,ROWS(MD_HDUEC_Index1),1)),"N/A") -> 0 | N91: =IFERROR(SUMIF(MD_HDUEC_Index1,$B91,OFFSET(MD_HDUEC_Index1,0,MATCH($U$31,MD_HDUEC_Hdr,0)-1,ROWS(MD_HDUEC_Index1),1)),"N/A") -> 0 | O91: =IFERROR(SUMIF(MD_Laundry_Index,$B91,OFFSET(MD_Laundry_Index,0,MATCH($T$57,MD_Laundry_Hdr,0)-1,ROWS(MD_Laundry_Index),1)),"N/A") -> 0 | P91: =IFERROR(SUMIF(MD_Laundry_Index,$B91,OFFSET(MD_Laundry_Index,0,MATCH($U$57,MD_Laundry_Hdr,0)-1,ROWS(MD_Laundry_Index),1)),"N/A") -> 0 | Q91: =IFERROR(SUM(K91,M91,O91),0) -> 0 | R91: =IFERROR(SUM(L91,N91,P91),0) -> 0 | S91: =IFERROR(IF(ISERROR(1/$I91),Q91,($J91-$I91)/($H91-$I91)*Q91),Q91) -> 0 | T91: =IFERROR(IF(ISERROR(1/$I91),R91,($J91-$I91)/($H91-$I91)*R91),R91) -> 0 | U91: ='2a - Schedules'!$E$12 -> 2628 | V91: =IFERROR(IF(SI_IP_Units="IP",S91/$U91/60,S91/$U91/60/60),"N/A") -> 0 | W91: =IFERROR(IF(SI_IP_Units="IP",T91/$U91/60,T91/$U91/60/60),"N/A") -> 0
A92: G | B92: Note: Flow rates are based on Energy Star Multifamily Simulation Guidance. One person is assumed per bedroom.
B95: Table 3.7: Ventilation in Dwelling Units
B97: Enter values in the grey editable cells to populate the ventilation in dwelling units per ASHRAE 62.2-2013.
D99: Studio | F99: 1 Bedroom | H99: 2 Bedrooms | J99: 3 Bedrooms | L99: 4 Bedrooms | N99: 5 Bedrooms | P99: 6 Bedrooms | R99: 7 Bedrooms | T99: 8 Bedrooms
D100: Qty | E100: =CONCATENATE("Average Floor Area",IF(SI_IP_Units="IP"," (sq ft)"," (sq m)")) -> Average Floor Area (sq ft) | F100: Qty | G100: =CONCATENATE("Average Floor Area",IF(SI_IP_Units="IP"," (sq ft)"," (sq m)")) -> Average Floor Area (sq ft) | H100: Qty | I100: =CONCATENATE("Average Floor Area",IF(SI_IP_Units="IP"," (sq ft)"," (sq m)")) -> Average Floor Area (sq ft) | J100: Qty | K100: =CONCATENATE("Average Floor Area",IF(SI_IP_Units="IP"," (sq ft)"," (sq m)")) -> Average Floor Area (sq ft) | L100: Qty | M100: =CONCATENATE("Average Floor Area",IF(SI_IP_Units="IP"," (sq ft)"," (sq m)")) -> Average Floor Area (sq ft) | N100: Qty | O100: =CONCATENATE("Average Floor Area",IF(SI_IP_Units="IP"," (sq ft)"," (sq m)")) -> Average Floor Area (sq ft) | P100: Qty | Q100: =CONCATENATE("Average Floor Area",IF(SI_IP_Units="IP"," (sq ft)"," (sq m)")) -> Average Floor Area (sq ft) | R100: Qty | S100: =CONCATENATE("Average Floor Area",IF(SI_IP_Units="IP"," (sq ft)"," (sq m)")) -> Average Floor Area (sq ft) | T100: Qty | U100: =CONCATENATE("Average Floor Area",IF(SI_IP_Units="IP"," (sq ft)"," (sq m)")) -> Average Floor Area (sq ft)
D101: =IF(D12="","-",D12) -> - | E101: - | F101: - | G101: - | H101: - | I101: - | J101: - | K101: - | L101: - | M101: - | N101: - | O101: - | P101: - | Q101: - | R101: - | S101: - | T101: - | U101: -
B102: Local Exhaust
B103: Kitchen Area (sf)
B104: Kitchen Ceiling Height (ft)
B105: Continuous CFM equivalent to 5ACH (62.2-2013): | F105: =ROUNDUP(5*F103*F104/60,0) -> 0 | H105: =ROUNDUP(5*H103*H104/60,0) -> 0 | J105: =ROUNDUP(5*J103*J104/60,0) -> 0 | L105: =ROUNDUP(5*L103*L104/60,0) -> 0 | N105: =ROUNDUP(5*N103*N104/60,0) -> 0 | P105: =ROUNDUP(5*P103*P104/60,0) -> 0 | R105: =ROUNDUP(5*R103*R104/60,0) -> 0 | T105: =ROUNDUP(5*T103*T104/60,0) -> 0
B106: Intermittent or Continuous? | C106: Kitchen
C107: Bathroom
B108: ="ASHRAE 62.2-2013 Requirements: "&D106& " Baseline Exhaust Ventilation" -> ASHRAE 62.2-2013 Requirements: Baseline Exhaust Ventilation | C108: Kitchen (CFM, each) | F108: =IF(F106="Continuous",F105,IF(F106="Intermittent",100,"-")) -> - | H108: =IF(H106="Continuous",H105,IF(H106="Intermittent",100,"-")) -> - | J108: =IF(J106="Continuous",J105,IF(J106="Intermittent",100,"-")) -> - | L108: =IF(L106="Continuous",L105,IF(L106="Intermittent",100,"-")) -> - | N108: =IF(N106="Continuous",N105,IF(N106="Intermittent",100,"-")) -> - | P108: =IF(P106="Continuous",P105,IF(P106="Intermittent",100,"-")) -> - | R108: =IF(R106="Continuous",R105,IF(R106="Intermittent",100,"-")) -> - | T108: =IF(T106="Continuous",T105,IF(T106="Intermittent",100,"-")) -> -
C109: Bathroom (CFM, each) | F109: =IF(F107="Continuous",20,IF(F107="Intermittent",50,"-")) -> - | H109: =IF(H107="Continuous",20,IF(H107="Intermittent",50,"-")) -> - | J109: =IF(J107="Continuous",20,IF(J107="Intermittent",50,"-")) -> - | L109: =IF(L107="Continuous",20,IF(L107="Intermittent",50,"-")) -> - | N109: =IF(N107="Continuous",20,IF(N107="Intermittent",50,"-")) -> - | P109: =IF(P107="Continuous",20,IF(P107="Intermittent",50,"-")) -> - | R109: =IF(R107="Continuous",20,IF(R107="Intermittent",50,"-")) -> - | T109: =IF(T107="Continuous",20,IF(T107="Intermittent",50,"-")) -> -
B110: Proposed Design Fan Type | C110: Kitchen
C111: Bathroom
B112: Proposed Design CFM per Apartment | C112: Kitchen (CFM)
C113: Bathroom (CFM)
B114: Proposed Design CFM Total | C114: Kitchen (CFM) | D114: =IFERROR(D112*D101,"-") -> - | F114: =IFERROR(F112*F101,"-") -> - | H114: =IFERROR(H112*H101,"-") -> - | J114: =IFERROR(J112*J101,"-") -> - | L114: =IFERROR(L112*L101,"-") -> - | N114: =IFERROR(N112*N101,"-") -> - | P114: =IFERROR(P112*P101,"-") -> - | R114: =IFERROR(R112*R101,"-") -> - | T114: =IFERROR(T112*T101,"-") -> -
C115: Bathroom (CFM) | D115: =IFERROR(D113*D101,"-") -> - | F115: =IFERROR(F113*F101,"-") -> - | H115: =IFERROR(H113*H101,"-") -> - | J115: =IFERROR(J113*J101,"-") -> - | L115: =IFERROR(L113*L101,"-") -> - | N115: =IFERROR(N113*N101,"-") -> - | P115: =IFERROR(P113*P101,"-") -> - | R115: =IFERROR(R113*R101,"-") -> - | T115: =IFERROR(T113*T101,"-") -> -
B116: Baseline CFM per Apartment (Minimum of ASHRAE 62.2-2013 or Proposed Value) | C116: Kitchen (CFM) | D116: =IFERROR(IF(D112<D108,D112,D108),"-") -> 0 | F116: =IFERROR(IF(F112<F108,F112,F108),"-") -> 0 | H116: =IFERROR(IF(H112<H108,H112,H108),"-") -> 0 | J116: =IFERROR(IF(J112<J108,J112,J108),"-") -> 0 | L116: =IFERROR(IF(L112<L108,L112,L108),"-") -> 0 | N116: =IFERROR(IF(N112<N108,N112,N108),"-") -> 0 | P116: =IFERROR(IF(P112<P108,P112,P108),"-") -> 0 | R116: =IFERROR(IF(R112<R108,R112,R108),"-") -> 0 | T116: =IFERROR(IF(T112<T108,T112,T108),"-") -> 0
C117: Bathroom (CFM) | D117: =IFERROR(IF(D113<D109,D113,D109),"-") -> 0 | F117: =IFERROR(IF(F113<F109,F113,F109),"-") -> 0 | H117: =IFERROR(IF(H113<H109,H113,H109),"-") -> 0 | J117: =IFERROR(IF(J113<J109,J113,J109),"-") -> 0 | L117: =IFERROR(IF(L113<L109,L113,L109),"-") -> 0 | N117: =IFERROR(IF(N113<N109,N113,N109),"-") -> 0 | P117: =IFERROR(IF(P113<P109,P113,P109),"-") -> 0 | R117: =IFERROR(IF(R113<R109,R113,R109),"-") -> 0 | T117: =IFERROR(IF(T113<T109,T113,T109),"-") -> 0
B118: Baseline CFM Total | C118: Kitchen (CFM) | D118: =IFERROR(D116*D101,"-") -> - | F118: =IFERROR(F116*F101,"-") -> - | H118: =IFERROR(H116*H101,"-") -> - | J118: =IFERROR(J116*J101,"-") -> - | L118: =IFERROR(L116*L101,"-") -> - | N118: =IFERROR(N116*N101,"-") -> - | P118: =IFERROR(P116*P101,"-") -> - | R118: =IFERROR(R116*R101,"-") -> - | T118: =IFERROR(T116*T101,"-") -> -
C119: Bathroom (CFM) | D119: =IFERROR(D117*D101,"-") -> - | F119: =IFERROR(F117*F101,"-") -> - | H119: =IFERROR(H117*H101,"-") -> - | J119: =IFERROR(J117*J101,"-") -> - | L119: =IFERROR(L117*L101,"-") -> - | N119: =IFERROR(N117*N101,"-") -> - | P119: =IFERROR(P117*P101,"-") -> - | R119: =IFERROR(R117*R101,"-") -> - | T119: =IFERROR(T117*T101,"-") -> -
B120: Whole Unit Ventilation
B121: OA Supply Method
B122: For non-mechanical OA supply method, does the intermittent exhaust run on a timer per 62.2-2013?
B123: Proposed Design Mechanical OA Supply CFM per Apartment | D123: =IF(OR(D121="Trickle Vent",D121="Natural Ventilation"),"N/A","") ->  | H123: =IF(OR(H121="Trickle Vent",H121="Natural Ventilation"),"N/A","") ->  | J123: =IF(OR(J121="Trickle Vent",J121="Natural Ventilation"),"N/A","") ->  | L123: =IF(OR(L121="Trickle Vent",L121="Natural Ventilation"),"N/A","") ->  | N123: =IF(OR(N121="Trickle Vent",N121="Natural Ventilation"),"N/A","") ->  | P123: =IF(OR(P121="Trickle Vent",P121="Natural Ventilation"),"N/A","") ->  | R123: =IF(OR(R121="Trickle Vent",R121="Natural Ventilation"),"N/A","") ->  | T123: =IF(OR(T121="Trickle Vent",T121="Natural Ventilation"),"N/A","") -> 
B124: Proposed Design Mechanical OA Supply CFM Total | D124: =IFERROR(D123*D101,"") ->  | F124: =IFERROR(F123*F101,"") ->  | H124: =IFERROR(H123*H101,"") ->  | J124: =IFERROR(J123*J101,"") ->  | L124: =IFERROR(L123*L101,"") ->  | N124: =IFERROR(N123*N101,"") ->  | P124: =IFERROR(P123*P101,"") ->  | R124: =IFERROR(R123*R101,"") ->  | T124: =IFERROR(T123*T101,"") -> 
B125: Baseline CFM per Apartment (Minimum of ASHRAE 62.2-2013 or Proposed Value) | D125: =IFERROR(IF(D123="N/A",0,MIN(D123,(0.03*E101+7.5*(1)))),"-") -> - | F125: =IFERROR(IF(F123="N/A",0,MIN(F123,(0.03*G101+7.5*(2)))),"-") -> - | H125: =IFERROR(IF(H123="N/A",0,MIN(H123,(0.03*I101+7.5*(3)))),"-") -> - | J125: =IFERROR(IF(J123="N/A",0,MIN(J123,(0.03*K101+7.5*(4)))),"-") -> - | L125: =IFERROR(IF(L123="N/A",0,MIN(L123,(0.03*M101+7.5*(5)))),"-") -> - | N125: =IFERROR(IF(N123="N/A",0,MIN(N123,(0.03*O101+7.5*(6)))),"-") -> - | P125: =IFERROR(IF(P123="N/A",0,MIN(P123,(0.03*Q101+7.5*(7)))),"-") -> - | R125: =IFERROR(IF(R123="N/A",0,MIN(R123,(0.03*S101+7.5*(8)))),"-") -> - | T125: =IFERROR(IF(T123="N/A",0,MIN(T123,(0.03*U101+7.5*(9)))),"-") -> -
B126: Baseline CFM Total (per 62.2-2013) | D126: =IFERROR(D101*D125,"-") -> - | F126: =IFERROR(F101*F125,"-") -> - | H126: =IFERROR(H101*H125,"-") -> - | J126: =IFERROR(J101*J125,"-") -> - | L126: =IFERROR(L101*L125,"-") -> - | N126: =IFERROR(N101*N125,"-") -> - | P126: =IFERROR(P101*P125,"-") -> - | R126: =IFERROR(R101*R125,"-") -> - | T126: =IFERROR(T101*T125,"-") -> -
D127: =IF(AND(D129=1,D130>0),"Warning: Proposed Design mechanical OA supply CFM is noted for a non-mechanical system.","") ->  | F127: =IF(AND(F129=1,F130>0),"Warning: Proposed Design mechanical OA supply CFM is noted for a non-mechanical system.","") ->  | H127: =IF(AND(H129=1,H130>0),"Warning: Proposed Design mechanical OA supply CFM is noted for a non-mechanical system.","") ->  | J127: =IF(AND(J129=1,J130>0),"Warning: Proposed Design mechanical OA supply CFM is noted for a non-mechanical system.","") ->  | L127: =IF(AND(L129=1,L130>0),"Warning: Proposed Design mechanical OA supply CFM is noted for a non-mechanical system.","") ->  | N127: =IF(AND(N129=1,N130>0),"Warning: Proposed Design mechanical OA supply CFM is noted for a non-mechanical system.","") ->  | P127: =IF(AND(P129=1,P130>0),"Warning: Proposed Design mechanical OA supply CFM is noted for a non-mechanical system.","") ->  | R127: =IF(AND(R129=1,R130>0),"Warning: Proposed Design mechanical OA supply CFM is noted for a non-mechanical system.","") ->  | T127: =IF(AND(T129=1,T130>0),"Warning: Proposed Design mechanical OA supply CFM is noted for a non-mechanical system.","") -> 
D129: =IF(OR(D121="Trickle Vent",D121="Natural Ventilation"),1,0) -> 0 | E129: =IF(OR(E121="Trickle Vent",E121="Natural Ventilation"),1,0) -> 0 | F129: 0 | G129: 0 | H129: 0 | I129: 0 | J129: 0 | K129: 0 | L129: 0 | M129: 0 | N129: 0 | O129: 0 | P129: 0 | Q129: 0 | R129: 0 | S129: 0 | T129: 0 | U129: 0
D130: =IF(D123="N/A",0,D123) ->  | E130: =IF(E123="N/A",0,E123) -> 0 | G130: 0 | I130: 0 | K130: 0 | M130: 0 | O130: 0 | Q130: 0 | S130: 0 | U130: 0

Sheet 4 - Shading and Fenestration
A1: G
A2: G | B2: Shading and Fenestration
A3: G
A4: G
A5: G | B5: Building Massing and Zoning
A6: G | B6: Instructions: Provide the following shading and orientation information. An example of the expected level of detail has been provided for each input. For any information not applicable to the project, simply enter "N/A". | AH6: Additional Notes (Optional)
B7: Modeled baseline vertical fenestration areas for new buildings and additions reflects Window to Wall (WWR) ratio in Table G3.1.1-1 based on the area of gross above-grade walls that separate conditioned spaces and semiheated spaces from the exterior. For building areas not shown in Table G3.1.1-1, vertical fenestration areas is equal that in the proposed design or 40% of gross above-grade wall area, whichever is smaller.
B8: Modeled baseline vertical fenestration is distributed on each face of the building in the same proportion as in the proposed design.
B9: Modeled baseline fenestration area for an existing building is equal the existing fenestration area prior to the proposed work and distributed on each face of the building in the same proportions as the existing building.
B10: Modeled baseline skylight area is equal to that in the proposed design or 3%, whichever is smaller. Skylight orientation and tilt is the same as in the proposed design.
B11: Shading by adjacent structures and terrain was modeled the same in the baseline and proposed design models. All elements whose effective height is greater than their distance from a proposed building and whose width facing the proposed building is greater than one-third that of the proposed building were accounted for in both simulations.
B12: =IF('General Information'!E9="ENERGY STAR MFHR","For ENERGY STAR MFHR projects, manual shading such as blinds or shades have not been modeled in either the baseline or proposed design.","Manual fenestration shading devices such as blinds or shades have been modeled or not modeled, the same in the baseline and proposed design.") -> Manual fenestration shading devices such as blinds or shades have been modeled or not modeled, the same in the baseline and proposed design.
B13: Automatically controlled fenestration shades or blinds have been modeled in the proposed design but not in the baseline.
B14: Permanent shading devices such as fins, overhangs, and light shelves were modeled in the proposed design but not in the baseline.
B15: The baseline is modeled as an average of four orientations.
B16: All baseline fenestration for new buildings, existing buildings, and additions was modeled with assembly U-factor and SHGC from Tables G3.4-1 through G3.4-8.
B17: Thermal Blocks were modeled consistent with Table G3.1#7 and Table G3.1#8 as applicable, and were modeled identically in the Baseline and Proposed design models.
B18: All proposed fenestration was modeled based on the assembly U-factor and SHGC determined using the following method: (If more than one method used, list additional methods in the Note, and describe and fenestration products to which it was applied.)
B20: For each item entered as “No” above, describe the applicable ASHRAE 90.1 Appendix G exception(s) that apply, or the circumstances preventing the building massing modeling parameters from being modeled as required. If the energy simulation software is not capable of modeling the required parameters, describe the adjustments that were made to provide a thermodynamically similar representation or provide a narrative justifying why the predicted energy performance results will not be influenced.
B23: Please select the Building Area Types which will be used in the below Table 4.1, based on ASHRAE 90.1-2016 Appendix G Table G3.1.1-1.
B29: Table 4.1: Envelope Area Summary
B30: Building Area Type | D30: Orientation | F30: ="Baseline"&"-"&'General Information'!$C$42 -> Baseline-ASHRAE 90.1 2016 Appendix G | I30: Proposed Design | M30: Measure #
F31: Helpful Hints • All vertical glazing flush with exterior wall and no shading projections per Table G3.1#5(d) • Manual shading devices such as blinds or shades may be modeled per Table G3.1#5(d) • No self-shading per Table G3.1#5 • Total vertical fenestration areas for new construction and additions shall equal that in Table G3.1.1-1 based on gross above-grade exterior wall area. For buildings areas not shown in Table G3.1.1-1, vertical fenestration shall equal that in the proposed design or the maximum allowed in Tables G3.4-1 through G3.4-8 for the applicable glazing percentage for U-fixed, whichever is smaller, per Table G3.1#5(c) • Total vertical fenestration areas for existing construction shall equal the existing fenestration area prior to the proposed work and shall be distributed on each face of the building in the same proportions as the existing building per Table G3.1#5(c) | I31: Helpful Hints • Manual shading devices such as blinds or shades may be modeled and must be consistent with the baseline per Table G3.1#5(4) • Permanent shading devices (such as fins, overhangs, and light shelves) and automatically controlled shades or blinds must be modeled per Table G3.1#5(4)
F32: =CONCATENATE("Gross Above-Grade Wall Area ",IF(SI_IP_Units="IP"," (sq ft)"," (sq m)")) -> Gross Above-Grade Wall Area (sq ft) | G32: Vertical Glazing Area | I32: =CONCATENATE("Gross Above-Grade Wall Area ",IF(SI_IP_Units="IP"," (sq ft)"," (sq m)")) -> Gross Above-Grade Wall Area (sq ft) | J32: Vertical Glazing Area
G33: =IF(SI_IP_Units="IP"," (sq ft)"," (sq m)") -> (sq ft) | H33: (%) | J33: =IF(SI_IP_Units="IP"," (sq ft)"," (sq m)") -> (sq ft) | K33: (%)
D34: North | F34: Identical to Proposed | G34: =IFERROR(J34/(SUMIF($B$40:$C$43,B34,$J$40:$J$43))*(SUMIF($B$40:$C$43,B34,$G$40:$G$43)),"-") -> - | H34: =IFERROR(G34/I34,"") ->  | K34: =IFERROR(J34/I34,"") -> 
D35: East | F35: =$F$34 -> Identical to Proposed | G35: - | H35: =IFERROR(G35/I35,"") ->  | K35: =IFERROR(J35/I35,"") -> 
D36: South | F36: =$F$34 -> Identical to Proposed | G36: -
D37: West | F37: Identical to Proposed | G37: -
A38: D | F38: Identical to Proposed | G38: -
F39: Identical to Proposed | G39: -
B40: =IF(B24="","-",B24) -> - | D40: Total | F40: =I40 -> 0 | G40: =F40*H40 -> 0 | H40: =MIN(SUMIF(BuildingAreaType,'4 - Shading and Fenestration'!B40,'Envelope Assumptions'!$CJ$3:$CJ$18),K40) -> 0 | I40: =SUMIF($B$34:$C$39,B40,$I$34:$I$39) -> 0 | J40: =SUMIF($B$34:$C$39,B40,$J$34:$J$39) -> 0 | K40: =IFERROR(J40/I40,0) -> 0
B41: =IF(B25="","-",B25) -> - | D41: Total | F41: =I41 -> 0 | G41: =F41*H41 -> 0 | H41: =MIN(SUMIF(BuildingAreaType,'4 - Shading and Fenestration'!B41,'Envelope Assumptions'!$CJ$3:$CJ$18),K41) -> 0 | I41: =SUMIF($B$34:$C$39,B41,$I$34:$I$39) -> 0 | J41: =SUMIF($B$34:$C$39,B41,$J$34:$J$39) -> 0 | K41: =IFERROR(J41/I41,0) -> 0
B42: - | D42: Total | F42: =I42 -> 0 | G42: =F42*H42 -> 0 | H42: =MIN(SUMIF(BuildingAreaType,'4 - Shading and Fenestration'!B42,'Envelope Assumptions'!$CJ$3:$CJ$18),K42) -> 0 | I42: =SUMIF($B$34:$C$39,B42,$I$34:$I$39) -> 0 | J42: =SUMIF($B$34:$C$39,B42,$J$34:$J$39) -> 0 | K42: =IFERROR(J42/I42,0) -> 0
B43: - | D43: Total | F43: =I43 -> 0 | G43: =F43*H43 -> 0 | H43: =MIN(SUMIF(BuildingAreaType,'4 - Shading and Fenestration'!B43,'Envelope Assumptions'!$CJ$3:$CJ$18),K43) -> 0 | I43: =SUMIF($B$34:$C$39,B43,$I$34:$I$39) -> 0 | J43: =SUMIF($B$34:$C$39,B43,$J$34:$J$39) -> 0 | K43: =IFERROR(J43/I43,0) -> 0
B44: Building Total | F44: =SUM(F40:F43) -> 0 | G44: =SUM(G40:G43) -> 0 | H44: =IFERROR(G44/F44,"-") -> - | I44: =SUM(I40:I43) -> 0 | J44: =SUM(J40:J43) -> 0 | K44: =IFERROR(J44/I44,"-") -> -
B45: Roof and skylight area | F45: =CONCATENATE("Roof Area ",IF(SI_IP_Units="IP"," (sq ft)"," (sq m)")) -> Roof Area (sq ft) | G45: Skylight Area | I45: =CONCATENATE("Roof Area ",IF(SI_IP_Units="IP"," (sq ft)"," (sq m)")) -> Roof Area (sq ft) | J45: Skylight Area
G46: =IF(SI_IP_Units="IP"," (sq ft)"," (sq m)") -> (sq ft) | H46: (%) | J46: =IF(SI_IP_Units="IP"," (sq ft)"," (sq m)") -> (sq ft) | K46: (%)
F47: Identical to Proposed | G47: =IF(J47="","-",(MIN(J47,(0.05*I47)))) -> - | H47: =IFERROR(G47/I47,"-") -> - | K47: =IFERROR(J47/F47,0) -> 0
A48: G | B48: Number of Thermal Blocks | F48: Conditioned | G48: Semi-heated | H48: Unconditioned | I48: Conditioned | J48: Semi-heated | K48: Unconditioned
A49: G | F49: Identical to Proposed | G49: Identical to Proposed | H49: Identical to Proposed | S49: =CONCATENATE(INDEX(MBD_BS_Table,MATCH(OFFSET(S49,-14,-11,1,1),MBD_BS_Index,0),MATCH('1 - Multiple Buildings Details'!$E$22,MBD_BS_Hdr,0))," zones") ->  | T49: =SUM(IFERROR(VALUE(IF(ISNUMBER(F49:H49),F49:H49,IFERROR(LEFT(F49:H49,IFERROR(FIND("to",F49:H49)-1,"")),""))),""))+SUM(IFERROR(FIND(">100",F49:H49)*100,"")) -> 0
B51: ="Baseline Vertical Glazing"&"-"&'General Information'!$C$42 -> Baseline Vertical Glazing-ASHRAE 90.1 2016 Appendix G
B52: Baseline Vertical Glazing % calculated from table above | D52: Modeled Baseline Vertical Glazing % | E52: If the baseline vertical glazing percentage does not match the Vertical Glazing % per G3.1#5(c) and Table G3.1.1-1, please provide an explanation in the space below.
B53: =IFERROR($H$44,"-") -> -
A55: G | B55: Reason for exemption from modeling the additional building orientations.
S56: Total | T56: =MAX(T47:T55) -> 0 | U56: =IF(COUNTIF(U47:U55,TRUE)>0,TRUE,FALSE) -> FALSE
B57: =IF(IFERROR(FIND("*",B56),FALSE),"* Please ensure that the site plan provided for the Project Information forms clearly indicate the constraints to comply with Table G3.1.5 (a) (baseline) Exception 1","") -> 
A61: G | B61: Fenestration
A62: G | B62: Instructions: Describe each unique fenestration assembly on a separate row in the following table. Please refer to the column header notes for information about Appendix G modeling protocol. For any information not applicable to the project, simply enter "N/A". Baseline information will autogenerate for new construction.
A63: G | B63: Table 4.2: Vertical Glazing
A64: G | B64: General Information | F64: ="Baseline"&"-"&'General Information'!$C$42 -> Baseline-ASHRAE 90.1 2016 Appendix G | I64: Proposed Design | Q64: ="Prescriptive Requirement of "&'General Information'!C48&" Applicable to App. G Baseline" -> Prescriptive Requirement of ASHRAE 90.1-2013 Applicable to App. G Baseline | R64: Measure #
A65: G | B65: Building ID | C65: New or Existing Construction | D65: Space-Conditioning Category | F65: Description | G65: Assembly U-factor | H65: SHGC | I65: Type | J65: Description | K65: Assembly U-factor | L65: SHGC | M65: VLT | N65: Area (sf) | O65: Plans / Specs
A66: G | F66: Helpful Hints • New/Existing vertical glazing: • Select a description • Assembly U-factor and SHGC from Table G3.4-1 through G3.4-8 per Table G3.1#5(d). • (SHGC). Please note that this is not equivalent to the shading coefficient (SC). | I66: Helpful Hints • Proposed vertical glazing assembly U-factor should be as-designed and account for the impact of the frames on the whole assembly. Reference Table A8.2 of ASHRAE 90.1 as necessary. • Describe the Proposed vertical glazing assembly (for example: double glazing, argon filled, low-e coating, aluminum frame with thermal break) • Enter the Proposed vertical glazing assembly solar heat gain coefficient (SHGC). Please note that this is not equivalent to the shading coefficient (SC). • Enter the Proposed vertical glazing assembly visual light transmittance (VLT) • If the Proposed design includes building envelope assemblies of different U-values, please specify surface area, square feet, for each envelope assembly. •Reference specific place in the submitted design documents (e.g. drawing & detail number) where relevant parameters are listed to support review. | Q66: =IF('General Information'!$K$48=2013,"In accordance with Prescriptive Requirements of 90.1-2013 "&INDEX(DropdownData!AW2:AW19,MATCH('General Information'!C46,AshraeClimate,0)),"In accordance with Prescriptive Requirements of 90.1-2010 "&INDEX(DropdownData!AX2:AX19,MATCH('General Information'!C46,AshraeClimate,0))) -> In accordance with Prescriptive Requirements of 90.1-2013 Table 5.5-4
A67: G | B67: =B65 -> Building ID | C67: =C65 -> New or Existing Construction | D67: =D65 -> Space-Conditioning Category | F67: =F65 -> Description | G67: Base_Assembly_U-factor | H67: Base_SHGC | J67: =J65 -> Description | K67: =K65 -> Assembly U-factor | L67: =L65 -> SHGC | M67: =M65 -> VLT | N67: =N65 -> Area (sf) | O67: Plans / Specs | Q67: Prescriptive Requirement | V67: Default_Assembly_U-factor | W67: Default_SHGC | Y67: Prescriptive Requirement 90.1-2013 | AA67: Prescriptive Requirement 90.1-2010 | AD67: Prescriptive Requirement 90.1-2013 | AE67: Prescriptive Requirement 90.1-2010
B68: =GI_Project_Name -> 0 | G68: =IF(D68="Unconditioned",K68,IF($T68<>0,$T68,"")) ->  | H68: =IF(D68="Unconditioned",L68,IF($U68<>0,$U68,"")) ->  | Q68: =IFERROR(IF('General Information'!$K$48=2013,Y68,IF('General Information'!$K$48=2010,AA68,IF('General Information'!$K$48=2007,"Not Supported"))),"-") ->  | S68: =D68&F68 ->  | T68: =IFERROR(INDEX('Envelope Assumptions'!$AT$2:$BE$38,MATCH('General Information'!$L$11,'Envelope Assumptions'!$A$2:$A$38,0),MATCH(S68,'Envelope Assumptions'!$AT$2:$BE$2,0)),0) -> 0 | U68: =IFERROR(INDEX('Envelope Assumptions'!$BF$2:$BQ$38,MATCH('General Information'!$L$11,'Envelope Assumptions'!$A$2:$A$38,0),MATCH(S68,'Envelope Assumptions'!$BF$2:$BQ$2,0)),0) -> 0 | V68: =IF($C68="Existing","Provide U-Factor",IF($T68<>0,$T68,"")) ->  | W68: =IF($C68="Existing", "Provide SHGC",IF($U68<>0,$U68,"")) ->  | X68: ='General Information'!$K$46&"-"&I68 -> 4- | Y68: =IF(D68="","",INDEX('Envelope Lookup 90.1-2013'!DI$2:DL$16,MATCH(X68,'Envelope Lookup 90.1-2013'!DI$2:DI$16,0),MATCH(D68,'Envelope Lookup 90.1-2013'!DI$2:DL$2,0))) ->  | AA68: =IF(D68="","",INDEX('Envelope Lookup 90.1-2010'!DI$2:DL$16,MATCH(X68,'Envelope Lookup 90.1-2010'!DI$2:DI$16,0),MATCH(D68,'Envelope Lookup 90.1-2010'!DI$2:DL$2,0))) ->  | AC68: =D68&" "&I68 ->  | AD68: =IFERROR(INDEX('Envelope Lookup 90.1-2013'!$BR$2:$CC$38,MATCH('General Information'!$L$11,'Envelope Lookup 90.1-2013'!$A$2:$A$38,0),MATCH(AC68,'Envelope Lookup 90.1-2013'!$BR$2:$CC$2,0)),0) -> 0 | AE68: =IFERROR(INDEX('Envelope Lookup 90.1-2010'!$BR$2:$CC$38,MATCH('General Information'!$L$11,'Envelope Lookup 90.1-2010'!$A$2:$A$38,0),MATCH(AC68,'Envelope Lookup 90.1-2010'!$BR$2:$CC$2,0)),0) -> 0
A69: A | B69: =GI_Project_Name -> 0 | G69: =IF(D69="Unconditioned",K69,IF($T69<>0,$T69,"")) ->  | H69: =IF(D69="Unconditioned",L69,IF($U69<>0,$U69,"")) ->  | Q69: =IFERROR(IF('General Information'!$K$48=2013,Y69,IF('General Information'!$K$48=2010,AA69,IF('General Information'!$K$48=2007,"Not Supported"))),"-") ->  | S69: =D69&F69 ->  | T69: =IFERROR(INDEX('Envelope Assumptions'!$AT$2:$BE$38,MATCH('General Information'!$L$11,'Envelope Assumptions'!$A$2:$A$38,0),MATCH(S69,'Envelope Assumptions'!$AT$2:$BE$2,0)),0) -> 0 | U69: =IFERROR(INDEX('Envelope Assumptions'!$BF$2:$BQ$38,MATCH('General Information'!$L$11,'Envelope Assumptions'!$A$2:$A$38,0),MATCH(S69,'Envelope Assumptions'!$BF$2:$BQ$2,0)),0) -> 0 | V69: =IF($C69="Existing","Provide U-Factor",IF($T69<>0,$T69,"")) ->  | W69: =IF($C69="Existing", "Provide SHGC",IF($U69<>0,$U69,"")) ->  | X69: ='General Information'!$K$46&"-"&I69 -> 4- | Y69: =IF(D69="","",INDEX('Envelope Lookup 90.1-2013'!DI$2:DL$16,MATCH(X69,'Envelope Lookup 90.1-2013'!DI$2:DI$16,0),MATCH(D69,'Envelope Lookup 90.1-2013'!DI$2:DL$2,0))) ->  | AA69: =IF(D69="","",INDEX('Envelope Lookup 90.1-2010'!DI$2:DL$16,MATCH(X69,'Envelope Lookup 90.1-2010'!DI$2:DI$16,0),MATCH(D69,'Envelope Lookup 90.1-2010'!DI$2:DL$2,0))) ->  | AC69: =D69&" "&I69 ->  | AD69: =IFERROR(INDEX('Envelope Lookup 90.1-2013'!$BR$2:$CC$38,MATCH('General Information'!$L$11,'Envelope Lookup 90.1-2013'!$A$2:$A$38,0),MATCH(AC69,'Envelope Lookup 90.1-2013'!$BR$2:$CC$2,0)),0) -> 0 | AE69: =IFERROR(INDEX('Envelope Lookup 90.1-2010'!$BR$2:$CC$38,MATCH('General Information'!$L$11,'Envelope Lookup 90.1-2010'!$A$2:$A$38,0),MATCH(AC69,'Envelope Lookup 90.1-2010'!$BR$2:$CC$2,0)),0) -> 0
A70: G
A71: G
A72: G | B72: Table 4.3: Skylights
A73: G | B73: General Information | F73: ="Baseline"&"-"&'General Information'!$C$42 -> Baseline-ASHRAE 90.1 2016 Appendix G | I73: Proposed Design | Q73: ="Prescriptive Requirement of "&'General Information'!C48&" Applicable to App. G Baseline" -> Prescriptive Requirement of ASHRAE 90.1-2013 Applicable to App. G Baseline | R73: Measure #
A74: G | B74: Building ID | C74: New or Existing Construction | D74: Space-Conditioning Category | F74: Description | G74: Assembly U-factor | H74: SHGC | I74: Description | K74: Assembly U-factor | L74: SHGC | M74: VLT | N74: Area (sf) | O74: Plans / Specs
A75: G | F75: Helpful Hints • New/Existing skylights: assembly U-factor and SHGC from Table G3.4-1 through G3.4-8 using the value for skylights without curb; sky lighting area per G3.1#5(e). (SHGC). Please note that this is not equivalent to the shading coefficient (SC). | I75: Helpful Hints • Proposed skylight assembly U-factor should be as-designed and account for the impact of the frames on the whole assembly. Reference Tables A8.1-1 and A8.1-2 of ASHRAE 90.1 as necessary. • Describe the Proposed skylight assembly (for example: glass with curb, double glazing, argon filled, low-e coating, aluminum frame with thermal break) • Enter the Proposed skylight assembly solar heat gain coefficient (SHGC). Please note that this is not equivalent to the shading coefficient (SC). • Enter the Proposed skylight assembly visual light transmittance (VLT) • If the Proposed design includes building envelope assemblies of different U-values, please specify surface area, square feet, for each envelope assembly. •Reference specific place in the submitted design documents (e.g. drawing & detail number) where relevant parameters are listed to support review. | Q75: =IF('General Information'!$K$48=2013,"In accordance with Prescriptive Requirements of 90.1-2013 "&INDEX(DropdownData!AW2:AW19,MATCH('General Information'!C46,AshraeClimate,0)),"In accordance with Prescriptive Requirements of 90.1-2010 "&INDEX(DropdownData!AX2:AX19,MATCH('General Information'!C46,AshraeClimate,0))) -> In accordance with Prescriptive Requirements of 90.1-2013 Table 5.5-4
A76: G | B76: =B74 -> Building ID | C76: =C74 -> New or Existing Construction | D76: =D74 -> Space-Conditioning Category | F76: Base_Description | G76: Base_Assembly_U-factor | H76: Base_SHGC | J76: Proposed_Description | K76: =K74 -> Assembly U-factor | L76: =L74 -> SHGC | M76: =M74 -> VLT | N76: =N74 -> Area (sf) | O76: =O74 -> Plans / Specs | Q76: Prescriptive Requirement | V76: Default_Assembly_U-factor | W76: Default_SHGC | Y76: Prescriptive Requirement 90.1-2013 | AA76: Prescriptive Requirement 90.1-2010
B77: =GI_Project_Name -> 0 | G77: =IF(D77="Unconditioned",K77,IF($T77<>0,$T77,"")) ->  | H77: =IF(D77="Unconditioned",L77,IF($U77<>0,$U77,"")) ->  | Q77: =IF('General Information'!$K$48=2007,"Not Supported",IF(D77="Unconditioned","-",IF('General Information'!$K$48=2013,IF(AND($Y77<>0,$Z77<>0),"U-"&$Y77&", SHGC-"&$Z77,""),IF(AND($AA77<>0,$AB77<>0),"U-"&$AA77&", SHGC-"&$AB77,"")))) ->  | S77: =D77&F77 ->  | T77: =IFERROR(INDEX('Envelope Assumptions'!$BR$2:$BW$38,MATCH('General Information'!$L$11,'Envelope Assumptions'!$A$2:$A$38,0),MATCH(S77,'Envelope Assumptions'!$BR$2:$BW$2,0)),0) -> 0 | U77: =IFERROR(INDEX('Envelope Assumptions'!$BX$2:$CC$38,MATCH('General Information'!$L$11,'Envelope Assumptions'!$A$2:$A$38,0),MATCH(S77,'Envelope Assumptions'!$BX$2:$CC$2,0)),0) -> 0 | V77: =IF($C77="Existing","Provide U-Factor",IF($T77<>0,$T77,"")) ->  | W77: =IF($C77="Existing", "Provide SHGC",IF($U77<>0,$U77,"")) ->  | Y77: =IFERROR(INDEX('Envelope Lookup 90.1-2013'!$CP$2:$CU$38,MATCH('General Information'!$L$11,'Envelope Lookup 90.1-2013'!$A$2:$A$38,0),MATCH(S77,'Envelope Lookup 90.1-2013'!$CP$2:$CU$2,0)),0) -> 0 | Z77: =IFERROR(INDEX('Envelope Lookup 90.1-2013'!$CV$2:$DA$38,MATCH('General Information'!$L$11,'Envelope Lookup 90.1-2013'!$A$2:$A$38,0),MATCH(S77,'Envelope Lookup 90.1-2013'!$CV$2:$DA$2,0)),0) -> 0 | AA77: =IFERROR(INDEX('Envelope Lookup 90.1-2010'!$CP$2:$CU$38,MATCH('General Information'!$L$11,'Envelope Lookup 90.1-2010'!$A$2:$A$38,0),MATCH(S77,'Envelope Lookup 90.1-2010'!$CP$2:$CU$2,0)),0) -> 0 | AB77: =IFERROR(INDEX('Envelope Lookup 90.1-2010'!$CV$2:$DA$38,MATCH('General Information'!$L$11,'Envelope Lookup 90.1-2010'!$A$2:$A$38,0),MATCH(S77,'Envelope Lookup 90.1-2010'!$CV$2:$DA$2,0)),0) -> 0
A78: B | B78: =GI_Project_Name -> 0 | F78: =IF(D78="Unconditioned",J78,"") ->  | G78: =IF(D78="Unconditioned",K78,IF($T78<>0,$T78,"")) ->  | H78: =IF(D78="Unconditioned",L78,IF($U78<>0,$U78,"")) ->  | Q78: =IF('General Information'!$K$48=2007,"Not Supported",IF(D78="Unconditioned","-",IF('General Information'!$K$48=2013,IF(AND($Y78<>0,$Z78<>0),"U-"&$Y78&", SHGC-"&$Z78,""),IF(AND($AA78<>0,$AB78<>0),"U-"&$AA78&", SHGC-"&$AB78,"")))) ->  | S78: =D78&F78 ->  | T78: =IFERROR(INDEX('Envelope Assumptions'!$BR$2:$BW$38,MATCH('General Information'!$L$11,'Envelope Assumptions'!$A$2:$A$38,0),MATCH(S78,'Envelope Assumptions'!$BR$2:$BW$2,0)),0) -> 0 | U78: =IFERROR(INDEX('Envelope Assumptions'!$BX$2:$CC$38,MATCH('General Information'!$L$11,'Envelope Assumptions'!$A$2:$A$38,0),MATCH(S78,'Envelope Assumptions'!$BX$2:$CC$2,0)),0) -> 0 | V78: =IF($C78="Existing","Provide U-Factor",IF($T78<>0,$T78,"")) ->  | W78: =IF($C78="Existing", "Provide SHGC",IF($U78<>0,$U78,"")) ->  | Y78: =IFERROR(INDEX('Envelope Lookup 90.1-2013'!$CP$2:$CU$38,MATCH('General Information'!$L$11,'Envelope Lookup 90.1-2013'!$A$2:$A$38,0),MATCH(S78,'Envelope Lookup 90.1-2013'!$CP$2:$CU$2,0)),0) -> 0 | Z78: =IFERROR(INDEX('Envelope Lookup 90.1-2013'!$CV$2:$DA$38,MATCH('General Information'!$L$11,'Envelope Lookup 90.1-2013'!$A$2:$A$38,0),MATCH(S78,'Envelope Lookup 90.1-2013'!$CV$2:$DA$2,0)),0) -> 0 | AA78: =IFERROR(INDEX('Envelope Lookup 90.1-2010'!$CP$2:$CU$38,MATCH('General Information'!$L$11,'Envelope Lookup 90.1-2010'!$A$2:$A$38,0),MATCH(S78,'Envelope Lookup 90.1-2010'!$CP$2:$CU$2,0)),0) -> 0 | AB78: =IFERROR(INDEX('Envelope Lookup 90.1-2010'!$CV$2:$DA$38,MATCH('General Information'!$L$11,'Envelope Lookup 90.1-2010'!$A$2:$A$38,0),MATCH(S78,'Envelope Lookup 90.1-2010'!$CV$2:$DA$2,0)),0) -> 0
A79: G
A80: G
A81: G | B81: How were the proposed framed assembly fenestration U-factors determined?
A82: G
A83: G
A84: G | B84: Additional notes:
A85: G
H88: NFRC testing for site-assembled fenestration
H89: NFRC testing for manufactured fenestration assemblies
H90: Table A8.2 (windows) and Table A8.1 (skylights)
H91: LBNL Window 5 or Window 6 calculations
H92: Energy simulation includes separate frame and glazing
H93: Other (Describe)

Sheet 5 - Opaque Assemblies
A1: G
A2: G | B2: Opaque Assemblies
A3: G
A4: G
A5: G | B5: Instructions: Complete the Opaque Building Envelope Requirements section, then describe each unique opaque building envelope construction on a separate row in the Opaque Building Envelope Constructions table. Please refer to the column header notes for information about Appendix G modeling protocol. For any information not applicable to the project, simply enter "N/A". Baseline information will autogenerate for new construction when the space conditioning category is selected.
A6: G
A7: G | B7: Opaque Building Envelope Requirements | AE7: Additional Notes (Optional):
A8: G
A9: G | B9: All residential spaces (guest rooms, living quarters, private living space, in-patient rooms, and sleeping quarters) have been modeled with the required residential construction types from Tables G3.4-1 through G3.4-8 per ASHRAE 90.1-2016 Appendix G.
A10: G
A11: G | B11: For existing spaces, have there been any changes to the space conditioning category (for example, previously unconditioned spaces becoming fully conditioned)?
A12: G
A13: G | B13: All spaces qualifying as semiheated are not defined as heated per Table 3.2 or indirectly conditioned (see Section 3.2 definition of space).
A14: G
A15: G | B15: Opaque envelope assemblies separating conditioned space from unconditioned or semiheated space in the baseline are modeled using semiheated envelope assemblies per the ASHRAE 90.1-2013 User's Manual, Section 5.1.2, Space Conditioning Categories (Page 5-1). Refer to Figure 5-B.
A16: G
A17: G | B17: All baseline new construction opaque envelope assemblies were modeled as required by Tables G3.4-1 through G3.4-8 per ASHRAE 90.1 2016 Appendix G for the project's climate zone and Table G3.1#5(b) as lightweight assembly types.
A18: G
A19: G | B19: =IF(RatingSystem_IDC,CONCATENATE("All existing envelope opaque assemblies were modeled as required by Tables G3.4-1 through G3.4-8 per ASHRAE 90.1-2016 Appendix G for the project's climate zone and Table G3.1#5(Proposed)(b) as lightweight assembly types,"," and are not modeled using Exception (f) per Rating system requirements"),CONCATENATE("All baseline existing roofs, above-grade exterior walls, below-grade exterior walls, exposed floors, slab-on-grade floors, and opaque doors were modeled"," using Tables G3.4-1 through G3.4-8 per ASHRAE 90.1-2016 Appendix G.")) -> All baseline existing roofs, above-grade exterior walls, below-grade exterior walls, exposed floors, slab-on-grade floors, and opaque doors were modeled using Tables G3.4-1 through G3.4-8 per ASHRAE 90.1-2016 Appendix G.
A20: G
A21: G | B21: All proposed roofs, above-grade exterior walls, below-grade exterior walls, exposed floors, slab-on-grade floors, and opaque doors were modeled as-designed and with assembly U-factors, C-factors, and F-factors consistent with Appendix A values.
A22: G
A23: G | B23: =IF('General Information'!E9="ENERGY STAR MFHR",DropdownData!DV2,DropdownData!DW2) -> Infiltration rates and schedules have been modeled identically in the baseline and proposed, unless whole-building air leakage testing, in accordance with ASTM e779, is specified during design and completed after construction (per Table G3.1#5). If performance credit is modeled for infiltration reduction, complete the Infiltration table below.
A24: G
A25: G | B25: For each item entered as “No” above, describe the applicable ASHRAE 90.1 Appendix G exception(s) that apply, or the circumstances preventing the opaque envelope parameters from being modeled as required. If the energy simulation software is not capable of modeling the required parameters, describe the adjustments that were made to provide a thermodynamically similar representation or provide a narrative justifying why the predicted energy performance results will not be influenced.
A26: G
A27: G
B28: Table 5.1: Infiltration
B30: Only required if infiltration is modeled for performance credit. If "Individual Apartments" is selected in cell H36, air leakage rate should be calculated in the Testing & Verification Worksheets "8.1- INF_BLOWER DOOR TEST" tab, and the highest air leakage rate should be entered below in cell H38.
F31: ="Baseline"&"-"&'General Information'!$C$42 -> Baseline-ASHRAE 90.1 2016 Appendix G | H31: Proposed Design | J31: Measure #
F32: Per Table G3.1#5, the air leakage rate at a fixed building pressure differential of 0.3 in. H20 shall be 0.4 cfm/ft2, and infiltration rates must be converted into appropriate modeling inputs using one of the two methods in G3.1.1.4 | H32: To claim performance credit for infiltration reduction, actual, measured infiltration, based on testing performed in accordance with ASTM e779, must be modeled. Otherwise, proposed infiltration must be modeled identically to the baseline.
B33: A FLR = total gross floor area, SqFt | F33: =H33 -> 0 | H33: ='General Information'!F23 -> 0
B34: A EW = total above grade exterior wall area, SqFt | F34: =H34 -> 0 | H34: ='4 - Shading and Fenestration'!I44 -> 0
B35: S = total area of the envelope air pressure boundary (expressed in ft2), including the lowest floor, any below- or above-grade walls, and roof (or ceiling) (including windows and skylights), separating the interior conditioned space from the unconditioned environment measured | F35: =H35 -> 0 | H35: ='4 - Shading and Fenestration'!I44+'4 - Shading and Fenestration'!I47+'4 - Shading and Fenestration'!I47 -> 0
B36: Air leakage measurement type | F36: Whole Building
B37: Fixed building pressure differential | F37: 75 Pa
B38: I 75Pa / I 50 Pa = air leakage rate of the building envelope expressed in cfm/ft2 at the specified fixed building pressure differential. | F38: 0.4
B39: Q = Volume of air in CFM flowing through the whole building envelope when subjected to the specified fixed building pressure differential. | F39: =F38*F35 -> 0 | H39: =H38*H35 -> 0
B40: Building Volume (ft3) | F40: =H40 -> 0
F41: Simulation Inputs
B42: =IF(SI_IP_Units="IP"," I flr = Baseline Model Infiltration as a Function of Floor Area [cfm/sf]"," I flr Baseline Model Infiltration as a Function of Floor Area [cfm/m2]") -> I flr = Baseline Model Infiltration as a Function of Floor Area [cfm/sf] | F42: =IFERROR(IF(F39="","-",(0.112*F39/F33)),"-") -> - | H42: =IFERROR(IF(H37="","-",IF(H37="75 Pa",0.112*H39/H33,IF(H37="50 Pa",0.146*H39/H33))),"-") -> -
B43: =IF(SI_IP_Units="IP","I ew = Baseline Model Infiltration as a Function of Exterior Wall Area [cfm/sf]","I ew -Baseline Model Infiltration as a Function of Exterior Wall Area [cfm/m2]") -> I ew = Baseline Model Infiltration as a Function of Exterior Wall Area [cfm/sf] | F43: =IFERROR(IF(F39="","-",(0.112*F39/F34)),"-") -> - | H43: =IFERROR(IF(H37="","-",IF(H37="75 Pa",0.112*H39/H34,IF(H37="50 Pa",0.146*H39/H34))),"-") -> -
B44: Air Changes Per Hour (ACH) | F44: =IFERROR(((F39*60)/F40)*0.112,"-") -> - | H44: =IFERROR(IF(H37="","-",IF(H37="75 Pa",0.112*((H39*60)/H40),IF(H37="50 Pa",0.146*((H39*60)/H40)))),"-") -> -
A46: G | B46: Opaque Building Envelope Constructions
A47: G | B47: Table 5.2: Roof Constructions
A48: G | B48: General Information | F48: ="Baseline"&"-"&'General Information'!$C$42 -> Baseline-ASHRAE 90.1 2016 Appendix G | H48: Proposed Design | N48: Roof Solar Reflectance and Thermal Emittance | Q48: ="Prescriptive Requirement of "&'General Information'!C48&" Applicable to App. G Baseline" -> Prescriptive Requirement of ASHRAE 90.1-2013 Applicable to App. G Baseline | R48: Measure #
A49: G | B49: Building ID | C49: New or Existing Construction | D49: Space-Conditioning Category | F49: Description | G49: Assembly U-factor | H49: Type | I49: Description | J49: Assembly U-factor | K49: Area (sf) | L49: Plans / Specs | N49: Baseline | O49: Proposed
A50: G | F50: Helpful Hints • Describe the Baseline roof construction (for example: R-20 (R-2.6) continuous insulation entirely above metal deck). • New/Existing/Addition roofs: insulation entirely above deck with U-factor from Table G3.4-1 through G3.4-8 per Table G3.1#5(b). | H50: Helpful Hints • Describe the Proposed roof construction and Appendix A Table if referenced (for example: R-30 (R-5.3) continuous insulation entirely above metal deck per Table A2.2.3). • Proposed construction assembly U-factor should be as-designed and consistent with Appendix A of ASHRAE 90.1. • If the Proposed design includes building envelope assemblies of different U-values, please specify surface area, square feet, for each envelope assembly. •Reference specific place in the submitted design documents (e.g. drawing & detail number) where relevant parameters are listed to support review. | N50: Helpful Hints • In accordance with Section 5.5.3.1.1(a) or 0.3/0.9 per Table G3.1#5(f). | Q50: =IF('General Information'!$K$48=2013,"In accordance with Prescriptive Requirements of 90.1-2013 "&INDEX(DropdownData!AW2:AW19,MATCH('General Information'!C46,AshraeClimate,0)),"In accordance with Prescriptive Requirements of 90.1-2010 "&INDEX(DropdownData!AX2:AX19,MATCH('General Information'!C46,AshraeClimate,0))) -> In accordance with Prescriptive Requirements of 90.1-2013 Table 5.5-4
A51: G | B51: =B49 -> Building ID | C51: =C49 -> New or Existing Construction | D51: Space-Conditioning Category | F51: Base_Description | G51: Assembly U-factor | I51: Proposed_Description | J51: =J49 -> Assembly U-factor | K51: =K49 -> Area (sf) | L51: Plans / Specs | N51: =N49 -> Baseline | O51: =O49 -> Proposed | Q51: Prescriptive Requirement | W51: Default_Description | X51: Default_Assembly_U-factor | Z51: Prescriptive Requirement 90.1-2013 | AA51: Prescriptive Requirement 90.1-2010
B52: =GI_Project_Name -> 0 | F52: =IF(D52="Unconditioned",I52,IF(AND($U52<>0,$D52<>""),$U52,"")) ->  | G52: =IF(D52="Unconditioned",J52,IF(AND($V52<>0,$D52<>""),$V52,"")) ->  | Q52: =IF('General Information'!$K$48=2007,"Not Supported",IF(D52="Unconditioned","-",IF('General Information'!$K$48=2013,IF(AND($Z52<>0,$D52<>""),"U-"&$Z52&"; Reflectance 0.55 / Emittance 0.75",""),IF(AND($AA52<>0,$D52<>""),"U-"&$AA52&"; Reflectance 0.55 / Emittance 0.75","")))) ->  | U52: =IFERROR(IF(C52="","",INDEX('Envelope Assumptions'!$A$2:$D$38,MATCH('General Information'!$L$11,'Envelope Assumptions'!$A$2:$A$38,0),MATCH(D52,'Envelope Assumptions'!$A$2:$D$2,0))),0) ->  | V52: =IFERROR(IF(C52="","",INDEX('Envelope Assumptions'!$X$2:$Z$38,MATCH('General Information'!$L$11,'Envelope Assumptions'!$A$2:$A$38,0),MATCH(D52,'Envelope Assumptions'!$X$2:$Z$2,0))),0) ->  | W52: =IF(AND($U52<>0,$D52<>""),$U52,"") ->  | X52: =IF(AND($V52<>0,$D52<>""),$V52,"") ->  | Y52: =D52&" "&H52 ->  | Z52: =IFERROR(IF(C52="","",INDEX('Envelope Lookup 90.1-2013'!$X$2:$AF$38,MATCH('General Information'!$L$11,'Envelope Lookup 90.1-2013'!$A$2:$A$38,0),MATCH(Y52,'Envelope Lookup 90.1-2013'!$X$2:$AF$2,0))),0) ->  | AA52: =IFERROR(IF(C52="","",INDEX('Envelope Lookup 90.1-2010'!$X$2:$AF$38,MATCH('General Information'!$L$11,'Envelope Lookup 90.1-2010'!$A$2:$A$38,0),MATCH(Y52,'Envelope Lookup 90.1-2010'!$X$2:$AF$2,0))),0) -> 
A53: A | B53: =GI_Project_Name -> 0 | F53: =IF(D53="Unconditioned",I53,IF(AND($U53<>0,$D53<>""),$U53,"")) ->  | G53: =IF(D53="Unconditioned",J53,IF(AND($V53<>0,$D53<>""),$V53,"")) ->  | Q53: =IF('General Information'!$K$48=2007,"Not Supported",IF(D53="Unconditioned","-",IF('General Information'!$K$48=2013,IF(AND($Z53<>0,$D53<>""),"U-"&$Z53&"; Reflectance 0.55 / Emittance 0.75",""),IF(AND($AA53<>0,$D53<>""),"U-"&$AA53&"; Reflectance 0.55 / Emittance 0.75","")))) ->  | U53: =IFERROR(IF(C53="","",INDEX('Envelope Assumptions'!$A$2:$D$38,MATCH('General Information'!$L$11,'Envelope Assumptions'!$A$2:$A$38,0),MATCH(D53,'Envelope Assumptions'!$A$2:$D$2,0))),0) ->  | V53: =IFERROR(IF(C53="","",INDEX('Envelope Assumptions'!$X$2:$Z$38,MATCH('General Information'!$L$11,'Envelope Assumptions'!$A$2:$A$38,0),MATCH(D53,'Envelope Assumptions'!$X$2:$Z$2,0))),0) ->  | W53: =IF(AND($U53<>0,$D53<>""),$U53,"") ->  | X53: =IF(AND($V53<>0,$D53<>""),$V53,"") ->  | Y53: =D53&" "&H53 ->  | Z53: =IFERROR(IF(C53="","",INDEX('Envelope Lookup 90.1-2013'!$X$2:$AF$38,MATCH('General Information'!$L$11,'Envelope Lookup 90.1-2013'!$A$2:$A$38,0),MATCH(Y53,'Envelope Lookup 90.1-2013'!$X$2:$AF$2,0))),0) ->  | AA53: =IFERROR(IF(C53="","",INDEX('Envelope Lookup 90.1-2010'!$X$2:$AF$38,MATCH('General Information'!$L$11,'Envelope Lookup 90.1-2010'!$A$2:$A$38,0),MATCH(Y53,'Envelope Lookup 90.1-2010'!$X$2:$AF$2,0))),0) -> 
B54: =GI_Project_Name -> 0 | F54: =IF(D54="Unconditioned",I54,IF(AND($U54<>0,$D54<>""),$U54,"")) ->  | G54: =IF(D54="Unconditioned",J54,IF(AND($V54<>0,$D54<>""),$V54,"")) ->  | Q54: =IF('General Information'!$K$48=2007,"Not Supported",IF(D54="Unconditioned","-",IF('General Information'!$K$48=2013,IF(AND($Z54<>0,$D54<>""),"U-"&$Z54&"; Reflectance 0.55 / Emittance 0.75",""),IF(AND($AA54<>0,$D54<>""),"U-"&$AA54&"; Reflectance 0.55 / Emittance 0.75","")))) ->  | U54: =IFERROR(IF(C54="","",INDEX('Envelope Assumptions'!$A$2:$D$38,MATCH('General Information'!$L$11,'Envelope Assumptions'!$A$2:$A$38,0),MATCH(D54,'Envelope Assumptions'!$A$2:$D$2,0))),0) ->  | V54: =IFERROR(IF(C54="","",INDEX('Envelope Assumptions'!$X$2:$Z$38,MATCH('General Information'!$L$11,'Envelope Assumptions'!$A$2:$A$38,0),MATCH(D54,'Envelope Assumptions'!$X$2:$Z$2,0))),0) ->  | W54: =IF(AND($U54<>0,$D54<>""),$U54,"") ->  | X54: =IF(AND($V54<>0,$D54<>""),$V54,"") ->  | Z54: =IFERROR(IF(C54="","",INDEX('Envelope Lookup 90.1-2013'!$X$2:$AF$38,MATCH('General Information'!$L$11,'Envelope Lookup 90.1-2013'!$A$2:$A$38,0),MATCH(Y54,'Envelope Lookup 90.1-2013'!$X$2:$AF$2,0))),0) ->  | AA54: =IFERROR(IF(C54="","",INDEX('Envelope Lookup 90.1-2010'!$X$2:$AF$38,MATCH('General Information'!$L$11,'Envelope Lookup 90.1-2010'!$A$2:$A$38,0),MATCH(Y54,'Envelope Lookup 90.1-2010'!$X$2:$AF$2,0))),0) -> 
A55: G
A56: G
A57: G | B57: Table 5.3: Above-Grade Exterior Wall Constructions
A58: G | B58: General Information | F58: ="Baseline"&"-"&'General Information'!$C$42 -> Baseline-ASHRAE 90.1 2016 Appendix G | H58: Proposed Design | N58: ="Prescriptive Requirement of "&'General Information'!C48&" Applicable to App. G Baseline" -> Prescriptive Requirement of ASHRAE 90.1-2013 Applicable to App. G Baseline | O58: Measure #
A59: G | B59: Building ID | C59: New or Existing Construction | D59: Space-Conditioning Category | F59: Description | G59: Assembly U-factor | H59: Type | I59: Description | J59: Assembly U-factor | K59: Area (sf) | L59: Plans / Specs
A60: G | F60: Helpful Hints • Describe the Baseline above-grade exterior wall construction (for example: steel-framed with R-13.0 (R-2.3) cavity insulation and R-7.5 (R-1.3)continuous insulation). • New/Existing/Addition above-grade walls: steel-framed with U-factor from Table G3.4-1 through G3.4-8 per Table G3.1#5(b). | H60: Helpful Hints • Describe the Proposed above-grade exterior wall construction and Appendix A Table referenced (for example: 6" (150mm) steel frames spaced 24" (610mm) on center with R-21 cavity insulation and R-10 (R3.7)continuous insulation per Table A3.3.3.1). • Proposed construction assembly U-factor should be as-designed and consistent with Appendix A of ASHRAE 90.1. • If the Proposed design includes building envelope assemblies of different U-values, please specify surface area, square feet, for each envelope assembly. •Reference specific place in the submitted design documents (e.g. drawing & detail number) where relevant parameters are listed to support review. | N60: =IF('General Information'!$K$48=2013,"In accordance with Prescriptive Requirements of 90.1-2013 "&INDEX(DropdownData!AW2:AW19,MATCH('General Information'!C46,AshraeClimate,0)),"In accordance with Prescriptive Requirements of 90.1-2010 "&INDEX(DropdownData!AX2:AX19,MATCH('General Information'!C46,AshraeClimate,0))) -> In accordance with Prescriptive Requirements of 90.1-2013 Table 5.5-4
A61: G | B61: =B59 -> Building ID | C61: =C59 -> New or Existing Construction | D61: =D59 -> Space-Conditioning Category | F61: Base_Description | G61: =G59 -> Assembly U-factor | I61: Proposed_Description | J61: =J59 -> Assembly U-factor | K61: =K59 -> Area (sf) | L61: =L59 -> Plans / Specs | N61: Prescriptive Requirement | W61: Default_Description | X61: Default_Assembly_U-factor | Z61: Prescriptive Requirement 90.1-2013 | AA61: Prescriptive Requirement 90.1-2010
B62: =GI_Project_Name -> 0 | F62: =IF(D62="Unconditioned",I62,IF(AND($U62<>0,$D62<>""),$U62,"")) ->  | G62: =IF(D62="Unconditioned",J62,IF(AND($V62<>0,$D62<>""),$V62,"")) ->  | N62: =IF('General Information'!$K$48=2007,"Not Supported",IF(D62="Unconditioned","-",IF('General Information'!$K$48=2013,IF(AND($Z62<>0,$D62<>""),"U-"&$Z62,""),IF(AND($AA62<>0,$D62<>""),"U-"&$AA62,"")))) ->  | U62: =IFERROR(IF(C62="","",INDEX('Envelope Assumptions'!$E$2:$G$38,MATCH('General Information'!$L$11,'Envelope Assumptions'!$A$2:$A$38,0),MATCH(D62,'Envelope Assumptions'!$E$2:$G$2,0))),0) ->  | V62: =IFERROR(IF(C62="","",INDEX('Envelope Assumptions'!$AA$2:$AC$38,MATCH('General Information'!$L$11,'Envelope Assumptions'!$A$2:$A$38,0),MATCH(D62,'Envelope Assumptions'!$AA$2:$AC$2,0))),0) ->  | W62: =IF(AND($U62<>0,$D62<>""),$U62,"") ->  | X62: =IF(AND($V62<>0,$D62<>""),$V62,"") ->  | Y62: =D62&" "&H62 ->  | Z62: =IFERROR(IF(C62="","",INDEX('Envelope Lookup 90.1-2013'!$AG$2:$AR$38,MATCH('General Information'!$L$11,'Envelope Lookup 90.1-2013'!$A$2:$A$38,0),MATCH(Y62,'Envelope Lookup 90.1-2013'!$AG$2:$AR$2,0))),0) ->  | AA62: =IFERROR(IF(C62="","",INDEX('Envelope Lookup 90.1-2010'!$AG$2:$BG$38,MATCH('General Information'!$L$11,'Envelope Lookup 90.1-2010'!$A$2:$A$38,0),MATCH(Y62,'Envelope Lookup 90.1-2010'!$AG$2:$BG$2,0))),0) -> 
A63: B | B63: =GI_Project_Name -> 0 | F63: =IF(D63="Unconditioned",I63,IF(AND($U63<>0,$D63<>""),$U63,"")) ->  | G63: =IF(D63="Unconditioned",J63,IF(AND($V63<>0,$D63<>""),$V63,"")) ->  | N63: =IF('General Information'!$K$48=2007,"Not Supported",IF(D63="Unconditioned","-",IF('General Information'!$K$48=2013,IF(AND($Z63<>0,$D63<>""),"U-"&$Z63,""),IF(AND($AA63<>0,$D63<>""),"U-"&$AA63,"")))) ->  | U63: =IFERROR(IF(C63="","",INDEX('Envelope Assumptions'!$E$2:$G$38,MATCH('General Information'!$L$11,'Envelope Assumptions'!$A$2:$A$38,0),MATCH(D63,'Envelope Assumptions'!$E$2:$G$2,0))),0) ->  | V63: =IFERROR(IF(C63="","",INDEX('Envelope Assumptions'!$AA$2:$AC$38,MATCH('General Information'!$L$11,'Envelope Assumptions'!$A$2:$A$38,0),MATCH(D63,'Envelope Assumptions'!$AA$2:$AC$2,0))),0) ->  | W63: =IF(AND($U63<>0,$D63<>""),$U63,"") ->  | X63: =IF(AND($V63<>0,$D63<>""),$V63,"") ->  | Y63: =D63&" "&H63 ->  | Z63: =IFERROR(IF(C63="","",INDEX('Envelope Lookup 90.1-2013'!$AG$2:$AR$38,MATCH('General Information'!$L$11,'Envelope Lookup 90.1-2013'!$A$2:$A$38,0),MATCH(Y63,'Envelope Lookup 90.1-2013'!$AG$2:$AR$2,0))),0) ->  | AA63: =IFERROR(IF(C63="","",INDEX('Envelope Lookup 90.1-2010'!$AG$2:$BG$38,MATCH('General Information'!$L$11,'Envelope Lookup 90.1-2010'!$A$2:$A$38,0),MATCH(Y63,'Envelope Lookup 90.1-2010'!$AG$2:$BG$2,0))),0) -> 
B64: =GI_Project_Name -> 0 | F64: =IF(D64="Unconditioned",I64,IF(AND($U64<>0,$D64<>""),$U64,"")) ->  | G64: =IF(D64="Unconditioned",J64,IF(AND($V64<>0,$D64<>""),$V64,"")) ->  | N64: =IF('General Information'!$K$48=2007,"Not Supported",IF(D64="Unconditioned","-",IF('General Information'!$K$48=2013,IF(AND($Z64<>0,$D64<>""),"U-"&$Z64,""),IF(AND($AA64<>0,$D64<>""),"U-"&$AA64,"")))) ->  | U64: =IFERROR(IF(C64="","",INDEX('Envelope Assumptions'!$E$2:$G$38,MATCH('General Information'!$L$11,'Envelope Assumptions'!$A$2:$A$38,0),MATCH(D64,'Envelope Assumptions'!$E$2:$G$2,0))),0) ->  | V64: =IFERROR(IF(C64="","",INDEX('Envelope Assumptions'!$AA$2:$AC$38,MATCH('General Information'!$L$11,'Envelope Assumptions'!$A$2:$A$38,0),MATCH(D64,'Envelope Assumptions'!$AA$2:$AC$2,0))),0) ->  | W64: =IF(AND($U64<>0,$D64<>""),$U64,"") ->  | X64: =IF(AND($V64<>0,$D64<>""),$V64,"") ->  | Y64: =D64&" "&H64 ->  | Z64: =IFERROR(IF(C64="","",INDEX('Envelope Lookup 90.1-2013'!$AG$2:$AR$38,MATCH('General Information'!$L$11,'Envelope Lookup 90.1-2013'!$A$2:$A$38,0),MATCH(Y64,'Envelope Lookup 90.1-2013'!$AG$2:$AR$2,0))),0) ->  | AA64: =IFERROR(IF(C64="","",INDEX('Envelope Lookup 90.1-2010'!$AG$2:$BG$38,MATCH('General Information'!$L$11,'Envelope Lookup 90.1-2010'!$A$2:$A$38,0),MATCH(Y64,'Envelope Lookup 90.1-2010'!$AG$2:$BG$2,0))),0) -> 
A65: G
A66: G
A67: G | B67: Table 5.4: Below-Grade Exterior Wall Constructions
A68: G | B68: General Information | F68: ="Baseline"&"-"&'General Information'!$C$42 -> Baseline-ASHRAE 90.1 2016 Appendix G | H68: Proposed Design | N68: ="Prescriptive Requirement of "&'General Information'!C48&" Applicable to App. G Baseline" -> Prescriptive Requirement of ASHRAE 90.1-2013 Applicable to App. G Baseline | O68: Measure #
A69: G | B69: Building ID | C69: New or Existing Construction | D69: Space-Conditioning Category | F69: Description | G69: Assembly C-factor | H69: Type | I69: Description | J69: Assembly C-factor | K69: Area (sf) | L69: Plans / Specs
A70: G | F70: Helpful Hints • Describe the Baseline below-grade exterior wall construction (for example: 8" (200mm) medium-weight concrete block with solid grouted cores and R-7.5 (R-1.3)continuous insulation). • New/Existing/Addition below-grade walls: 8" medium weight concrete block with solid grouted cores as defined in A4.1 with C-factor from Table G3.4-1 through G3.4-8 per Table G3.1#5(b). | H70: Helpful Hints • Describe the Proposed below-grade exterior wall construction and Appendix A Table referenced (for example: 8" (200mm) medium-weight concrete b-lock with solid grouted cores and R-10 (R3.7) continuous insulation per Table A4.2.1). • Proposed construction assembly U-factor should be as-designed and consistent with Appendix A of ASHRAE 90.1. • If the Proposed design includes building envelope assemblies of different U-values, please specify surface area, square feet, for each envelope assembly. •Reference specific place in the submitted design documents (e.g. drawing & detail number) where relevant parameters are listed to support review. | N70: =IF('General Information'!$K$48=2013,"In accordance with Prescriptive Requirements of 90.1-2013 "&INDEX(DropdownData!AW2:AW19,MATCH('General Information'!C46,AshraeClimate,0)),"In accordance with Prescriptive Requirements of 90.1-2010 "&INDEX(DropdownData!AX2:AX19,MATCH('General Information'!C46,AshraeClimate,0))) -> In accordance with Prescriptive Requirements of 90.1-2013 Table 5.5-4
A71: G | B71: =B69 -> Building ID | C71: =C69 -> New or Existing Construction | D71: =D69 -> Space-Conditioning Category | F71: Base_Description | G71: =G69 -> Assembly C-factor | I71: Proposed_Description | J71: =J69 -> Assembly C-factor | K71: =K69 -> Area (sf) | L71: =L69 -> Plans / Specs | N71: Prescriptive Requirement | W71: Default_Description | X71: Default_Assembly_C-factor | Y71: Prescriptive Requirement 90.1-2013 | Z71: Prescriptive Requirement 90.1-2010
B72: =GI_Project_Name -> 0 | F72: =IF(D72="Unconditioned",I72,IF(AND($U72<>0,$D72<>""),$U72,"")) ->  | G72: =IF(D72="Unconditioned",J72,IF(AND($V72<>0,$D72<>""),$V72,"")) ->  | N72: =IF('General Information'!$K$48=2007,"Not Supported",IF(D72="Unconditioned","-",IF('General Information'!$K$48=2013,IF(AND($Y72<>0,$D72<>""),"C-"&$Y72,""),IF(AND($Z72<>0,$D72<>""),"C-"&$Z72,"")))) ->  | U72: =IFERROR(IF(C72="","",INDEX('Envelope Assumptions'!H$2:$J$38,MATCH('General Information'!$L$11,'Envelope Assumptions'!$A$2:$A$38,0),MATCH(D72,'Envelope Assumptions'!$H$2:$J$2,0))),0) ->  | V72: =IFERROR(IF(C72="","",INDEX('Envelope Assumptions'!$AD$2:$AF$38,MATCH('General Information'!$L$11,'Envelope Assumptions'!$A$2:$A$38,0),MATCH(D72,'Envelope Assumptions'!$AD$2:$AF$2,0))),0) ->  | W72: =IF(AND($U72<>0,$D72<>""),$U72,"") ->  | X72: =IF(AND($V72<>0,$D72<>""),$V72,"") ->  | Y72: =IFERROR(IF(C72="","",INDEX('Envelope Lookup 90.1-2013'!$AS$2:$AU$38,MATCH('General Information'!$L$11,'Envelope Lookup 90.1-2013'!$A$2:$A$38,0),MATCH(D72,'Envelope Lookup 90.1-2013'!$AS$2:$AU$2,0))),0) ->  | Z72: =IFERROR(IF(C72="","",INDEX('Envelope Lookup 90.1-2010'!$AS$2:$AU$38,MATCH('General Information'!$L$11,'Envelope Lookup 90.1-2010'!$A$2:$A$38,0),MATCH(D72,'Envelope Lookup 90.1-2010'!$AS$2:$AU$2,0))),0) -> 
A73: C | B73: =GI_Project_Name -> 0 | F73: =IF(D73="Unconditioned",I73,IF(AND($U73<>0,$D73<>""),$U73,"")) ->  | G73: =IF(D73="Unconditioned",J73,IF(AND($V73<>0,$D73<>""),$V73,"")) ->  | N73: =IF('General Information'!$K$48=2007,"Not Supported",IF(D73="Unconditioned","-",IF('General Information'!$K$48=2013,IF(AND($Y73<>0,$D73<>""),"C-"&$Y73,""),IF(AND($Z73<>0,$D73<>""),"C-"&$Z73,"")))) ->  | U73: =IFERROR(IF(C73="","",INDEX('Envelope Assumptions'!H$2:$J$38,MATCH('General Information'!$L$11,'Envelope Assumptions'!$A$2:$A$38,0),MATCH(D73,'Envelope Assumptions'!$H$2:$J$2,0))),0) ->  | V73: =IFERROR(IF(C73="","",INDEX('Envelope Assumptions'!$AD$2:$AF$38,MATCH('General Information'!$L$11,'Envelope Assumptions'!$A$2:$A$38,0),MATCH(D73,'Envelope Assumptions'!$AD$2:$AF$2,0))),0) ->  | W73: =IF(AND($U73<>0,$D73<>""),$U73,"") ->  | X73: =IF(AND($V73<>0,$D73<>""),$V73,"") ->  | Y73: =IFERROR(IF(C73="","",INDEX('Envelope Lookup 90.1-2013'!$AS$2:$AU$38,MATCH('General Information'!$L$11,'Envelope Lookup 90.1-2013'!$A$2:$A$38,0),MATCH(D73,'Envelope Lookup 90.1-2013'!$AS$2:$AU$2,0))),0) ->  | Z73: =IFERROR(IF(C73="","",INDEX('Envelope Lookup 90.1-2010'!$AS$2:$AU$38,MATCH('General Information'!$L$11,'Envelope Lookup 90.1-2010'!$A$2:$A$38,0),MATCH(D73,'Envelope Lookup 90.1-2010'!$AS$2:$AU$2,0))),0) -> 
B74: =GI_Project_Name -> 0 | F74: =IF(D74="Unconditioned",I74,IF(AND($U74<>0,$D74<>""),$U74,"")) ->  | G74: =IF(D74="Unconditioned",J74,IF(AND($V74<>0,$D74<>""),$V74,"")) ->  | N74: =IF('General Information'!$K$48=2007,"Not Supported",IF(D74="Unconditioned","-",IF('General Information'!$K$48=2013,IF(AND($Y74<>0,$D74<>""),"C-"&$Y74,""),IF(AND($Z74<>0,$D74<>""),"C-"&$Z74,"")))) ->  | U74: =IFERROR(IF(C74="","",INDEX('Envelope Assumptions'!H$2:$J$38,MATCH('General Information'!$L$11,'Envelope Assumptions'!$A$2:$A$38,0),MATCH(D74,'Envelope Assumptions'!$H$2:$J$2,0))),0) ->  | V74: =IFERROR(IF(C74="","",INDEX('Envelope Assumptions'!$AD$2:$AF$38,MATCH('General Information'!$L$11,'Envelope Assumptions'!$A$2:$A$38,0),MATCH(D74,'Envelope Assumptions'!$AD$2:$AF$2,0))),0) ->  | W74: =IF(AND($U74<>0,$D74<>""),$U74,"") ->  | X74: =IF(AND($V74<>0,$D74<>""),$V74,"") ->  | Y74: =IFERROR(IF(C74="","",INDEX('Envelope Lookup 90.1-2013'!$AS$2:$AU$38,MATCH('General Information'!$L$11,'Envelope Lookup 90.1-2013'!$A$2:$A$38,0),MATCH(D74,'Envelope Lookup 90.1-2013'!$AS$2:$AU$2,0))),0) ->  | Z74: =IFERROR(IF(C74="","",INDEX('Envelope Lookup 90.1-2010'!$AS$2:$AU$38,MATCH('General Information'!$L$11,'Envelope Lookup 90.1-2010'!$A$2:$A$38,0),MATCH(D74,'Envelope Lookup 90.1-2010'!$AS$2:$AU$2,0))),0) -> 
A75: G
A76: G
A77: G | B77: Table 5.5: Exposed Floor Constructions
A78: G | B78: General Information | F78: ="Baseline"&"-"&'General Information'!$C$42 -> Baseline-ASHRAE 90.1 2016 Appendix G | H78: Proposed Design | N78: ="Prescriptive Requirement of "&'General Information'!C48&" Applicable to App. G Baseline" -> Prescriptive Requirement of ASHRAE 90.1-2013 Applicable to App. G Baseline | O78: Measure #
A79: G | B79: Building ID | C79: New or Existing Construction | D79: Space-Conditioning Category | F79: Description | G79: Assembly U-factor | H79: Type | I79: Description | J79: Assembly U-factor | K79: Area (sf) | L79: Plans / Specs
A80: G | F80: Helpful Hints • Describe the Baseline floor construction (for example: steel-joist with R-30 (R-5.3) batt insulation between the floor joists) • New/Existing/Addition floors: steel-joist with U-factor from Tables G3.4-1 through G3.4-8 per Table G3.1#5(b). • For floor assemblies above unconditioned or semiheated space, select the space conditioning category as semiheated per 90.1-2013 User's Manual, Section 5.1.2-Space Conditioning Categories (Figure 5-B) | H80: Helpful Hints • Describe the Proposed floor construction and Appendix A Table referenced (for example: steel-joist with R-20 (R-2.6) spray-on insulation on underside of floor and joists per Table A5.3.3.1). • Proposed construction assembly U-factor should be as-designed and consistent with Appendix A of ASHRAE 90.1. • If the Proposed design includes building envelope assemblies of different U-values, please specify surface area, square feet, for each envelope assembly. •Reference specific place in the submitted design documents (e.g. drawing & detail number) where relevant parameters are listed to support review. | N80: =IF('General Information'!$K$48=2013,"In accordance with Prescriptive Requirements of 90.1-2013 "&INDEX(DropdownData!AW2:AW19,MATCH('General Information'!C46,AshraeClimate,0)),"In accordance with Prescriptive Requirements of 90.1-2010 "&INDEX(DropdownData!AX2:AX19,MATCH('General Information'!C46,AshraeClimate,0))) -> In accordance with Prescriptive Requirements of 90.1-2013 Table 5.5-4
A81: G | B81: =B79 -> Building ID | C81: =C79 -> New or Existing Construction | D81: =D79 -> Space-Conditioning Category | F81: Base_Description | G81: =G79 -> Assembly U-factor | I81: Proposed_Description | J81: =J79 -> Assembly U-factor | K81: =K79 -> Area (sf) | L81: =L79 -> Plans / Specs | N81: Prescriptive Requirement | W81: Default_Description | X81: Default_Assembly_U-factor | Z81: Prescriptive Requirement 90.1-2013 | AA81: Prescriptive Requirement 90.1-2010
B82: =GI_Project_Name -> 0 | F82: =IF(D82="Unconditioned",I82,IF(AND($U82<>0,$D82<>""),$U82,"")) ->  | G82: =IF(D82="Unconditioned",J82,IF(AND($V82<>0,$D82<>""),$V82,"")) ->  | N82: =IF('General Information'!$K$48=2007,"Not Supported",IF(D82="Unconditioned","-",IF('General Information'!$K$48=2013,IF(AND($Z82<>0,$D82<>""),"U-"&$Z82,""),IF(AND($AA82<>0,$D82<>""),"U-"&$AA82,"")))) ->  | U82: =IFERROR(IF(C82="","",INDEX('Envelope Assumptions'!K$2:$M$38,MATCH('General Information'!$L$11,'Envelope Assumptions'!$A$2:$A$38,0),MATCH(D82,'Envelope Assumptions'!$K$2:$M$2,0))),0) ->  | V82: =IFERROR(IF(C82="","",INDEX('Envelope Assumptions'!$AG$2:$AI$38,MATCH('General Information'!$L$11,'Envelope Assumptions'!$A$2:$A$38,0),MATCH(D82,'Envelope Assumptions'!$AG$2:$AI$2,0))),0) ->  | W82: =IF(AND($U82<>0,$D82<>""),$U82,"") ->  | X82: =IF(AND($V82<>0,$D82<>""),$V82,"") ->  | Y82: =D82&" "&H82 ->  | Z82: =IFERROR(IF(C82="","",INDEX('Envelope Lookup 90.1-2013'!$AV$2:$BD$38,MATCH('General Information'!$L$11,'Envelope Lookup 90.1-2013'!$A$2:$A$38,0),MATCH(Y82,'Envelope Lookup 90.1-2013'!$AV$2:$BD$2,0))),0) ->  | AA82: =IFERROR(IF(C82="","",INDEX('Envelope Lookup 90.1-2010'!$AV$2:$BM$38,MATCH('General Information'!$L$11,'Envelope Lookup 90.1-2010'!$A$2:$A$38,0),MATCH(Y82,'Envelope Lookup 90.1-2010'!$AV$2:$BM$2,0))),0) -> 
A83: D | B83: =GI_Project_Name -> 0 | F83: =IF(D83="Unconditioned",I83,IF(AND($U83<>0,$D83<>""),$U83,"")) ->  | G83: =IF(D83="Unconditioned",J83,IF(AND($V83<>0,$D83<>""),$V83,"")) ->  | N83: =IF('General Information'!$K$48=2007,"Not Supported",IF(D83="Unconditioned","-",IF('General Information'!$K$48=2013,IF(AND($Z83<>0,$D83<>""),"U-"&$Z83,""),IF(AND($AA83<>0,$D83<>""),"U-"&$AA83,"")))) ->  | U83: =IFERROR(IF(C83="","",INDEX('Envelope Assumptions'!K$2:$M$38,MATCH('General Information'!$L$11,'Envelope Assumptions'!$A$2:$A$38,0),MATCH(D83,'Envelope Assumptions'!$K$2:$M$2,0))),0) ->  | V83: =IFERROR(IF(C83="","",INDEX('Envelope Assumptions'!$AG$2:$AI$38,MATCH('General Information'!$L$11,'Envelope Assumptions'!$A$2:$A$38,0),MATCH(D83,'Envelope Assumptions'!$AG$2:$AI$2,0))),0) ->  | W83: =IF(AND($U83<>0,$D83<>""),$U83,"") ->  | X83: =IF(AND($V83<>0,$D83<>""),$V83,"") ->  | Y83: =D83&" "&H83 ->  | Z83: =IFERROR(IF(C83="","",INDEX('Envelope Lookup 90.1-2013'!$AV$2:$BD$38,MATCH('General Information'!$L$11,'Envelope Lookup 90.1-2013'!$A$2:$A$38,0),MATCH(Y83,'Envelope Lookup 90.1-2013'!$AV$2:$BD$2,0))),0) ->  | AA83: =IFERROR(IF(C83="","",INDEX('Envelope Lookup 90.1-2010'!$AV$2:$BM$38,MATCH('General Information'!$L$11,'Envelope Lookup 90.1-2010'!$A$2:$A$38,0),MATCH(Y83,'Envelope Lookup 90.1-2010'!$AV$2:$BM$2,0))),0) -> 
B84: =GI_Project_Name -> 0 | F84: =IF(D84="Unconditioned",I84,IF(AND($U84<>0,$D84<>""),$U84,"")) ->  | G84: =IF(D84="Unconditioned",J84,IF(AND($V84<>0,$D84<>""),$V84,"")) ->  | N84: =IF('General Information'!$K$48=2007,"Not Supported",IF(D84="Unconditioned","-",IF('General Information'!$K$48=2013,IF(AND($Z84<>0,$D84<>""),"U-"&$Z84,""),IF(AND($AA84<>0,$D84<>""),"U-"&$AA84,"")))) ->  | U84: =IFERROR(IF(C84="","",INDEX('Envelope Assumptions'!K$2:$M$38,MATCH('General Information'!$L$11,'Envelope Assumptions'!$A$2:$A$38,0),MATCH(D84,'Envelope Assumptions'!$K$2:$M$2,0))),0) ->  | V84: =IFERROR(IF(C84="","",INDEX('Envelope Assumptions'!$AG$2:$AI$38,MATCH('General Information'!$L$11,'Envelope Assumptions'!$A$2:$A$38,0),MATCH(D84,'Envelope Assumptions'!$AG$2:$AI$2,0))),0) ->  | W84: =IF(AND($U84<>0,$D84<>""),$U84,"") ->  | X84: =IF(AND($V84<>0,$D84<>""),$V84,"") ->  | Y84: =D84&" "&H84 ->  | Z84: =IFERROR(IF(C84="","",INDEX('Envelope Lookup 90.1-2013'!$AV$2:$BD$38,MATCH('General Information'!$L$11,'Envelope Lookup 90.1-2013'!$A$2:$A$38,0),MATCH(Y84,'Envelope Lookup 90.1-2013'!$AV$2:$BD$2,0))),0) ->  | AA84: =IFERROR(IF(C84="","",INDEX('Envelope Lookup 90.1-2010'!$AV$2:$BM$38,MATCH('General Information'!$L$11,'Envelope Lookup 90.1-2010'!$A$2:$A$38,0),MATCH(Y84,'Envelope Lookup 90.1-2010'!$AV$2:$BM$2,0))),0) -> 
A85: G
A86: G
A87: G | B87: Table 5.6: Slab-On-Grade Floors
A88: G | B88: General Information | F88: ="Baseline"&"-"&'General Information'!$C$42 -> Baseline-ASHRAE 90.1 2016 Appendix G | H88: Proposed Design | N88: ="Prescriptive Requirement of "&'General Information'!C48&" Applicable to App. G Baseline" -> Prescriptive Requirement of ASHRAE 90.1-2013 Applicable to App. G Baseline | O88: Measure #
A89: G | B89: Building ID | C89: New or Existing Construction | D89: Space-Conditioning Category | F89: Description | G89: Assembly F-factor | H89: Type | I89: Description | J89: Assembly F-factor | K89: Area (sf) | L89: Plans / Specs
A90: G | F90: Helpful Hints • Describe the Baseline slab-on-grade floor construction (for example: unheated 6" (150 mm) concrete slab poured directly on the earth with no insulation). • New/Existing/Addition slab-on-grade floors: unheated 6" concrete slab as defined in A4.6 with F-factor from appropriate Tables G3.4-1 through G3.4-8 per Table G3.1#5(b). | H90: Helpful Hints • Describe the Proposed slab-on-grade floor construction and Appendix A Table referenced (for example: unheated 6" (150 mm) concrete slab poured directly on the earth with 24" R-10 (610 mm R-3.7) vertical insulation per Table A6.3.1). • Proposed construction assembly U-factor should be as-designed and consistent with Appendix A of ASHRAE 90.1 . • If the Proposed design includes building envelope assemblies of different U-values, please specify surface area, square feet, for each envelope assembly. •Reference specific place in the submitted design documents (e.g. drawing & detail number) where relevant parameters are listed to support review. | N90: =IF('General Information'!$K$48=2013,"In accordance with Prescriptive Requirements of 90.1-2013 "&INDEX(DropdownData!AW2:AW19,MATCH('General Information'!C46,AshraeClimate,0)),"In accordance with Prescriptive Requirements of 90.1-2010 "&INDEX(DropdownData!AX2:AX19,MATCH('General Information'!C46,AshraeClimate,0))) -> In accordance with Prescriptive Requirements of 90.1-2013 Table 5.5-4
A91: G | B91: =B89 -> Building ID | C91: =C89 -> New or Existing Construction | D91: =D89 -> Space-Conditioning Category | F91: Base_Description | G91: =G89 -> Assembly F-factor | I91: Proposed_Description | J91: =J89 -> Assembly F-factor | K91: =K89 -> Area (sf) | L91: =L89 -> Plans / Specs | N91: Prescriptive Requirement | W91: Default_Description | X91: Default_Assembly_F-factor | Z91: Prescriptive Requirement 90.1-2013 | AA91: Prescriptive Requirement 90.1-2010
B92: =GI_Project_Name -> 0 | F92: =IF(D92="Unconditioned",I92,IF(AND($U92<>0,$D92<>""),$U92,"")) ->  | G92: =IF(D92="Unconditioned",J92,IF(AND($V92<>0,$D92<>""),$V92,"")) ->  | N92: =IF('General Information'!$K$48=2007,"Not Supported",IF(D92="Unconditioned","-",IF('General Information'!$K$48=2013,IF(AND($Z92<>0,$D92<>""),"F-"&$Z92,""),IF(AND($AA92<>0,$D92<>""),"F-"&$AA92,"")))) ->  | U92: =IFERROR(IF(C92="","",INDEX('Envelope Assumptions'!N$2:$P$38,MATCH('General Information'!$L$11,'Envelope Assumptions'!$A$2:$A$38,0),MATCH(D92,'Envelope Assumptions'!$N$2:$P$2,0))),0) ->  | V92: =IFERROR(IF(C92="","",INDEX('Envelope Assumptions'!$AJ$2:$AL$38,MATCH('General Information'!$L$11,'Envelope Assumptions'!$A$2:$A$38,0),MATCH(D92,'Envelope Assumptions'!$AJ$2:$AL$2,0))),0) ->  | W92: =IF(AND($U92<>0,$D92<>""),$U92,"") ->  | X92: =IF(AND($V92<>0,$D92<>""),$V92,"") ->  | Y92: =D92&" "&H92 ->  | Z92: =IFERROR(IF(C92="","",INDEX('Envelope Lookup 90.1-2013'!$BE$2:$BJ$38,MATCH('General Information'!$L$11,'Envelope Lookup 90.1-2013'!$A$2:$A$38,0),MATCH(Y92,'Envelope Lookup 90.1-2013'!$BE$2:$BJ$2,0))),0) ->  | AA92: =IFERROR(IF(C92="","",INDEX('Envelope Lookup 90.1-2010'!$BE$2:$BM$38,MATCH('General Information'!$L$11,'Envelope Lookup 90.1-2010'!$A$2:$A$38,0),MATCH(Y92,'Envelope Lookup 90.1-2010'!$BE$2:$BM$2,0))),0) -> 
A93: E | B93: =GI_Project_Name -> 0 | F93: =IF(D93="Unconditioned",I93,IF(AND($U93<>0,$D93<>""),$U93,"")) ->  | G93: =IF(D93="Unconditioned",J93,IF(AND($V93<>0,$D93<>""),$V93,"")) ->  | N93: =IF('General Information'!$K$48=2007,"Not Supported",IF(D93="Unconditioned","-",IF('General Information'!$K$48=2013,IF(AND($Z93<>0,$D93<>""),"F-"&$Z93,""),IF(AND($AA93<>0,$D93<>""),"F-"&$AA93,"")))) ->  | U93: =IFERROR(IF(C93="","",INDEX('Envelope Assumptions'!N$2:$P$38,MATCH('General Information'!$L$11,'Envelope Assumptions'!$A$2:$A$38,0),MATCH(D93,'Envelope Assumptions'!$N$2:$P$2,0))),0) ->  | V93: =IFERROR(IF(C93="","",INDEX('Envelope Assumptions'!$AJ$2:$AL$38,MATCH('General Information'!$L$11,'Envelope Assumptions'!$A$2:$A$38,0),MATCH(D93,'Envelope Assumptions'!$AJ$2:$AL$2,0))),0) ->  | W93: =IF(AND($U93<>0,$D93<>""),$U93,"") ->  | X93: =IF(AND($V93<>0,$D93<>""),$V93,"") ->  | Y93: =D93&" "&H93 ->  | Z93: =IFERROR(IF(C93="","",INDEX('Envelope Lookup 90.1-2013'!$BE$2:$BJ$38,MATCH('General Information'!$L$11,'Envelope Lookup 90.1-2013'!$A$2:$A$38,0),MATCH(Y93,'Envelope Lookup 90.1-2013'!$BE$2:$BJ$2,0))),0) ->  | AA93: =IFERROR(IF(C93="","",INDEX('Envelope Lookup 90.1-2010'!$BE$2:$BM$38,MATCH('General Information'!$L$11,'Envelope Lookup 90.1-2010'!$A$2:$A$38,0),MATCH(Y93,'Envelope Lookup 90.1-2010'!$BE$2:$BM$2,0))),0) -> 
B94: =GI_Project_Name -> 0 | F94: =IF(D94="Unconditioned",I94,IF(AND($U94<>0,$D94<>""),$U94,"")) ->  | G94: =IF(D94="Unconditioned",J94,IF(AND($V94<>0,$D94<>""),$V94,"")) ->  | N94: =IF('General Information'!$K$48=2007,"Not Supported",IF(D94="Unconditioned","-",IF('General Information'!$K$48=2013,IF(AND($Z94<>0,$D94<>""),"F-"&$Z94,""),IF(AND($AA94<>0,$D94<>""),"F-"&$AA94,"")))) ->  | U94: =IFERROR(IF(C94="","",INDEX('Envelope Assumptions'!N$2:$P$38,MATCH('General Information'!$L$11,'Envelope Assumptions'!$A$2:$A$38,0),MATCH(D94,'Envelope Assumptions'!$N$2:$P$2,0))),0) ->  | V94: =IFERROR(IF(C94="","",INDEX('Envelope Assumptions'!$AJ$2:$AL$38,MATCH('General Information'!$L$11,'Envelope Assumptions'!$A$2:$A$38,0),MATCH(D94,'Envelope Assumptions'!$AJ$2:$AL$2,0))),0) ->  | W94: =IF(AND($U94<>0,$D94<>""),$U94,"") ->  | X94: =IF(AND($V94<>0,$D94<>""),$V94,"") ->  | Y94: =D94&" "&H94 ->  | Z94: =IFERROR(IF(C94="","",INDEX('Envelope Lookup 90.1-2013'!$BE$2:$BJ$38,MATCH('General Information'!$L$11,'Envelope Lookup 90.1-2013'!$A$2:$A$38,0),MATCH(Y94,'Envelope Lookup 90.1-2013'!$BE$2:$BJ$2,0))),0) ->  | AA94: =IFERROR(IF(C94="","",INDEX('Envelope Lookup 90.1-2010'!$BE$2:$BM$38,MATCH('General Information'!$L$11,'Envelope Lookup 90.1-2010'!$A$2:$A$38,0),MATCH(Y94,'Envelope Lookup 90.1-2010'!$BE$2:$BM$2,0))),0) -> 
A95: G
A96: G
A97: G | B97: Table 5.7: Opaque Doors
A98: G | B98: General Information | F98: ="Baseline"&"-"&'General Information'!$C$42 -> Baseline-ASHRAE 90.1 2016 Appendix G | H98: Proposed Design | N98: ="Prescriptive Requirement of "&'General Information'!C48&" Applicable to App. G Baseline" -> Prescriptive Requirement of ASHRAE 90.1-2013 Applicable to App. G Baseline | O98: Measure #
A99: G | B99: Building ID | C99: New or Existing Construction | D99: Space-Conditioning Category | F99: Description | G99: Assembly U-factor | H99: Type | I99: Description | J99: Assembly U-factor | K99: Area (sf) | L99: Plans / Specs
A100: G | F100: Helpful Hints • Describe the Baseline opaque door construction (for example: swinging or nonswinging). • Opaque door types shall match the proposed design and conform to the U-factor requirements from Table G3.4-1 through G3.4-8 per Table G3.1#5(b). • Swinging doors include all operable opaque panels with hinges on one side and opaque revolving doors, while nonswinging doors include roll-up, metal coiling, sliding, and all other doors that are not swinging doors. | H100: Helpful Hints • Describe the Proposed opaque door construction (for example: insulated metal swinging door). • Proposed construction assembly U-factor should be as-designed and consistent with Appendix A of ASHRAE 90.1. • If the Proposed design includes building envelope assemblies of different U-values, please specify surface area, square feet, for each envelope assembly. •Reference specific place in the submitted design documents (e.g. drawing & detail number) where relevant parameters are listed to support review. | N100: =IF('General Information'!$K$48=2007,"Not Supported",IF('General Information'!$K$48=2013,"Opaque door types shall match the proposed design and confrom to the Prescriptive Requirements of 90.1-2013 "&INDEX(DropdownData!AW2:AW19,MATCH('General Information'!C46,AshraeClimate,0))&". Swinging doors include all operable opaque panels with hinges on one side and opaque revolving doors, while nonswinging doors include roll-up,"&" metal coiling, sliding, and all other doors that are not swining doors.","All opaque doors shall have a U-factor not greater than listed in the Prescriptive Requirements of 90.1-2010 "&INDEX(DropdownData!AX2:AX19,MATCH('General Information'!C46,AshraeClimate,0)&". Swinging doors include all operable opaque panels with hinges on one side and opaque revolving doors, while nonswinging doors include roll-up,"&" metal coiling, sliding, and all other doors that are not swining doors."))) -> Opaque door types shall match the proposed design and confrom to the Prescriptive Requirements of 90.1-2013 Table 5.5-4. Swinging doors include all operable opaque panels with hinges on one side and opaque revolving doors, while nonswinging doors include roll-up, metal coiling, sliding, and all other doors that are not swining doors.
A101: G | B101: =B99 -> Building ID | C101: =C99 -> New or Existing Construction | D101: =D99 -> Space-Conditioning Category | F101: Base_Description | G101: =G99 -> Assembly U-factor | I101: Proposed_Description | J101: =J99 -> Assembly U-factor | K101: =K99 -> Area (sf) | L101: =L99 -> Plans / Specs | N101: Prescriptive Requirement | W101: Default_Description | X101: Default_Assembly_U-factor | Z101: Prescriptive Requirement 90.1-2013 | AA101: Prescriptive Requirement 90.1-2010
B102: =GI_Project_Name -> 0 | F102: =IF(D102="Unconditioned",I102,IF(AND($U102<>0,$D102<>""),$U102,"")) ->  | G102: =IF(D102="Unconditioned",J102,IF(AND($V102<>0,$D102<>""),$V102,"")) ->  | N102: =IF('General Information'!$K$48=2007,"Not Supported",IF(D102="Unconditioned","-",IF('General Information'!$K$48=2013,IF(AND($Z102<>0,$D102<>""),"U-"&$Z102,""),IF(AND($AA102<>0,$D102<>""),"U-"&$AA102,"")))) ->  | U102: =IFERROR(IF(C102="","",CONCATENATE("Swinging Doors: ",INDEX('Envelope Assumptions'!Q$2:$S$38,MATCH('General Information'!$L$11,'Envelope Assumptions'!$A$2:$A$38,0),MATCH(D102,'Envelope Assumptions'!$Q$2:$S$2,0)),"; Nonswinging Doors: ",INDEX('Envelope Assumptions'!T$2:$V$38,MATCH('General Information'!$L$11,'Envelope Assumptions'!$A$2:$A$38,0),MATCH(D102,'Envelope Assumptions'!$T$2:$V$2,0)))),0) ->  | V102: =IFERROR(IF(C102="","",CONCATENATE(INDEX('Envelope Assumptions'!AM$2:$AO$38,MATCH('General Information'!$L$11,'Envelope Assumptions'!$A$2:$A$38,0),MATCH(D102,'Envelope Assumptions'!$AM$2:$AO$2,0))," / ",INDEX('Envelope Assumptions'!AP$2:$AR$38,MATCH('General Information'!$L$11,'Envelope Assumptions'!$A$2:$A$38,0),MATCH(D102,'Envelope Assumptions'!$AP$2:$AR$2,0)))),0) ->  | W102: =IF(AND($U102<>0,$D102<>""),$U102,"") ->  | X102: =IF(AND($V102<>0,$D102<>""),$V102,"") ->  | Y102: =D102&" "&H102 ->  | Z102: =IFERROR(IF(C102="","",CONCATENATE(INDEX('Envelope Lookup 90.1-2013'!BK$2:$BP$38,MATCH('General Information'!$L$11,'Envelope Lookup 90.1-2013'!$A$2:$A$38,0),MATCH(Y102,'Envelope Lookup 90.1-2013'!$BK$2:$BP$2,0)))),0) ->  | AA102: =IFERROR(IF(C102="","",CONCATENATE(INDEX('Envelope Lookup 90.1-2010'!BK$2:$BP$38,MATCH('General Information'!$L$11,'Envelope Lookup 90.1-2010'!$A$2:$A$38,0),MATCH(Y102,'Envelope Lookup 90.1-2010'!$BK$2:$BP$2,0)))),0) -> 
A103: F | B103: =GI_Project_Name -> 0 | F103: =IF(D103="Unconditioned",I103,IF(AND($U103<>0,$D103<>""),$U103,"")) ->  | G103: =IF(D103="Unconditioned",J103,IF(AND($V103<>0,$D103<>""),$V103,"")) ->  | N103: =IF('General Information'!$K$48=2007,"Not Supported",IF(D103="Unconditioned","-",IF('General Information'!$K$48=2013,IF(AND($Z103<>0,$D103<>""),"U-"&$Z103,""),IF(AND($AA103<>0,$D103<>""),"U-"&$AA103,"")))) ->  | U103: =IFERROR(IF(C103="","",CONCATENATE("Swinging Doors: ",INDEX('Envelope Assumptions'!Q$2:$S$38,MATCH('General Information'!$L$11,'Envelope Assumptions'!$A$2:$A$38,0),MATCH(D103,'Envelope Assumptions'!$Q$2:$S$2,0)),"; Nonswinging Doors: ",INDEX('Envelope Assumptions'!T$2:$V$38,MATCH('General Information'!$L$11,'Envelope Assumptions'!$A$2:$A$38,0),MATCH(D103,'Envelope Assumptions'!$T$2:$V$2,0)))),0) ->  | V103: =IFERROR(IF(C103="","",CONCATENATE(INDEX('Envelope Assumptions'!AM$2:$AO$38,MATCH('General Information'!$L$11,'Envelope Assumptions'!$A$2:$A$38,0),MATCH(D103,'Envelope Assumptions'!$AM$2:$AO$2,0))," / ",INDEX('Envelope Assumptions'!AP$2:$AR$38,MATCH('General Information'!$L$11,'Envelope Assumptions'!$A$2:$A$38,0),MATCH(D103,'Envelope Assumptions'!$AP$2:$AR$2,0)))),0) ->  | W103: =IF(AND($U103<>0,$D103<>""),$U103,"") ->  | X103: =IF(AND($V103<>0,$D103<>""),$V103,"") ->  | Y103: =D103&" "&H103 ->  | Z103: =IFERROR(IF(C103="","",CONCATENATE(INDEX('Envelope Lookup 90.1-2013'!BK$2:$BP$38,MATCH('General Information'!$L$11,'Envelope Lookup 90.1-2013'!$A$2:$A$38,0),MATCH(Y103,'Envelope Lookup 90.1-2013'!$BK$2:$BP$2,0)))),0) ->  | AA103: =IFERROR(IF(C103="","",CONCATENATE(INDEX('Envelope Lookup 90.1-2010'!BK$2:$BP$38,MATCH('General Information'!$L$11,'Envelope Lookup 90.1-2010'!$A$2:$A$38,0),MATCH(Y103,'Envelope Lookup 90.1-2010'!$BK$2:$BP$2,0)))),0) -> 
B104: =GI_Project_Name -> 0 | F104: =IF(D104="Unconditioned",I104,IF(AND($U104<>0,$D104<>""),$U104,"")) ->  | G104: =IF(D104="Unconditioned",J104,IF(AND($V104<>0,$D104<>""),$V104,"")) ->  | N104: =IF('General Information'!$K$48=2007,"Not Supported",IF(D104="Unconditioned","-",IF('General Information'!$K$48=2013,IF(AND($Z104<>0,$D104<>""),"U-"&$Z104,""),IF(AND($AA104<>0,$D104<>""),"U-"&$AA104,"")))) ->  | U104: =IFERROR(IF(C104="","",CONCATENATE("Swinging Doors: ",INDEX('Envelope Assumptions'!Q$2:$S$38,MATCH('General Information'!$L$11,'Envelope Assumptions'!$A$2:$A$38,0),MATCH(D104,'Envelope Assumptions'!$Q$2:$S$2,0)),"; Nonswinging Doors: ",INDEX('Envelope Assumptions'!T$2:$V$38,MATCH('General Information'!$L$11,'Envelope Assumptions'!$A$2:$A$38,0),MATCH(D104,'Envelope Assumptions'!$T$2:$V$2,0)))),0) ->  | V104: =IFERROR(IF(C104="","",CONCATENATE(INDEX('Envelope Assumptions'!AM$2:$AO$38,MATCH('General Information'!$L$11,'Envelope Assumptions'!$A$2:$A$38,0),MATCH(D104,'Envelope Assumptions'!$AM$2:$AO$2,0))," / ",INDEX('Envelope Assumptions'!AP$2:$AR$38,MATCH('General Information'!$L$11,'Envelope Assumptions'!$A$2:$A$38,0),MATCH(D104,'Envelope Assumptions'!$AP$2:$AR$2,0)))),0) ->  | W104: =IF(AND($U104<>0,$D104<>""),$U104,"") ->  | X104: =IF(AND($V104<>0,$D104<>""),$V104,"") ->  | Y104: =D104&" "&H104 ->  | Z104: =IFERROR(IF(C104="","",CONCATENATE(INDEX('Envelope Lookup 90.1-2013'!BK$2:$BP$38,MATCH('General Information'!$L$11,'Envelope Lookup 90.1-2013'!$A$2:$A$38,0),MATCH(Y104,'Envelope Lookup 90.1-2013'!$BK$2:$BP$2,0)))),0) ->  | AA104: =IFERROR(IF(C104="","",CONCATENATE(INDEX('Envelope Lookup 90.1-2010'!BK$2:$BP$38,MATCH('General Information'!$L$11,'Envelope Lookup 90.1-2010'!$A$2:$A$38,0),MATCH(Y104,'Envelope Lookup 90.1-2010'!$BK$2:$BP$2,0)))),0) -> 
A105: G
A108: G
A109: G | B109: Additional notes:
A110: G

Sheet DropdownData (hidden)
B1: Fuel Types | C1: Site-to-source ratio | D1: Considered "Gas" for District Plant Path 3 Calcs? (Note: Coal,coke, and wood are selected as gas to allow the lower efficiencies). | E1: Energy Consumption Units | F1: Units Spelled Out | G1: Multiplier to convert to kBtu | H1: multiplier to convert to therm | I1: Energy Demand Units | J1: Units Spelled Out | K1: Multiplier to convert to MBH | O1: Area Units | Q1: Utility Rate Structure | W1: LEED Rating System | X1: LEED Rating System | AB1: Thresholds per Rating System: | AC1: NC | AD1: CS | AF1: Fenestration Percent | AG1: Skylight Percent | AH1: Exterior Lighting Zone | AL1: Renewable Source | AO1: Simulation Program | AQ1: 90.1 versions | AR1: Energy Code | AV1: ASHRAE Climate Zones | AW1: ASHRAE 90.1-2013 envelope table | AX1: ASHRAE 90.1-2010 envelope table | AY1: California Climate Zones | BB1: ClimateZones | BE1: Energy End-Uses | BF1: Unregulated? | BH1: Energy Modeling Method: | BL1: District Heating | BN1: District Cooling | CA1: Option Buttons: | CD1: Start Cells for Utility Data: | CL1: Output Sheet Names | CM1: BuildingNames | CO1: Conversions for QC | CS1: Baseline Orientation Exemptions | CU1: Multifamily Dwelling Unit Equipment List | CV1: =CONCATENATE("Base ",IF(SI_IP_Units="IP","(kWh/year)","kWh/year")) -> Base (kWh/year) | CW1: =CONCATENATE("Energy Star ",IF(SI_IP_Units="IP","(kWh/year)","kWh/year")) -> Energy Star (kWh/year) | CX1: Sensible ratio electric | CY1: Latent Ratio electric | CZ1: Elec Nbr Multiplier | DA1: =CONCATENATE("Base ",IF(SI_IP_Units="IP","(Therms/year)","kWh/year")) -> Base (Therms/year) | DB1: =CONCATENATE("Energy Star ",IF(SI_IP_Units="IP","(Therms/year)","kWh/year")) -> Energy Star (Therms/year) | DC1: Sensible ratio gas | DD1: Latent Ratio gas | DE1: Gas Nbr Multiplier | DF1: F | DG1: base Hot Water Load | DH1: Energy Star Hot Water Load | DJ1: Multifamily Non-Dwelling Unit Plug Loads | DK1: w/sf | DL1: kwh/sf | DO1: General HVAC Baseline System Type List | DR1: Building ID Lookup | DV1: Long Comments | EA1: Table G3.1.1-3
A2: 1 | B2: Electricity | C2: =IF(RatingSystemSelection="ENERGY STAR MFHR",2.55,3.14) -> 3.14 | E2: kWh | F2: Kilowatt hour | G2: 3.412 | H2: =G2/100 -> 0.03412 | I2: kW | J2: Kilowatt | K2: 3.412 | O2: square feet | Q2: Default EIA Rates | W2: LEED v4 BD+C: New Construction | X2: New Construction | AF2: 0%-10.0% | AG2: 0%-2.0% | AH2: Zone 0 | AL2: Photovoltaic system | AO2: EnergyPlus | AQ2: ASHRAE 90.1-2007 | AR2: ASHRAE 90.1 2016 Appendix G | AV2: 1A | AW2: Table 5.5-1 | AX2: Table 5.5-1 | AY2: CZ1 | BB2: 1A | BE2: Interior lighting | BH2: One model per building | BL2: Each building generates its own heating | BN2: Each building generates its own cooling | CA2: rbOutputReporting | CB2: 1 | CD2: Number of Energy Sources | CE2: 5 | CM2: All | CO2: Energy Consumption Units | CP2: convert to kWh | CS2: Vertical Fenestration varies by less than 5% | CU2: Refrigerator | CV2: 529 | CW2: 423 | CX2: 1 | CY2: 0 | DE2: 0 | DF2: 1 | DG2: 0 | DH2: 0 | DJ2: Corridors | DK2: 0.2 | DL2: 0.7 | DO2: Primary HVAC System | DR2: =ROWS(IF(MBD_LEEDNDEMSubsetExist=TRUE, OFFSET(MBD_BSTotal_Index,1,0,ROWS(MBD_BSTotal_Index)-1,1), IF(MultipleBuildingsExist="YES",OFFSET(MBD_BSTotal_Index,2,0,ROWS(MBD_BSTotal_Index)-2,1), OFFSET(MBD_BSTotal_Index,2,0,ROWS(MBD_BSTotal_Index)-2,1)))) -> 3 | DV2: Infiltration rates and schedules have been modeled identically in the baseline and proposed, unless whole-building or compartmentalization air leakage testing, in accordance with ASTM e779, is specified during design and completed after construction (per Table G3.1#5). If performance credit is modeled for infiltration reduction, complete the Infiltration table below. | DW2: Infiltration rates and schedules have been modeled identically in the baseline and proposed, unless whole-building air leakage testing, in accordance with ASTM e779, is specified during design and completed after construction (per Table G3.1#5). If performance credit is modeled for infiltration reduction, complete the Infiltration table below. | DX2: "Instructions - LEED" tab lookups | DY2: NFRC testing for site-assembled fenestration | EA2: CZ 3B, 3C, and 4 to 8 | EB2: CZ 0 to 3A
A3: 2 | B3: Natural Gas | C3: 1.05 | D3: Yes | E3: MWh | F3: Megawatt hour | G3: 3412 | H3: 34.12 | I3: MW | J3: Megawatt | K3: 3412 | O3: square meters | Q3: Fixed Rates per unit of consumption | W3: ENERGY STAR MFHR | X3: Homes | AF3: 10.1%-20.0% | AG3: 2.1%+ | AH3: Zone 1 | AL3: Wind energy system | AO3: EnergyPro | AQ3: ASHRAE 90.1-2010 | AR3: California Title-24 2013, Part 6 | AV3: 1B | AW3: Table 5.5-1 | AX3: Table 5.5-1 | AY3: CZ2 | BB3: 1B | BE3: Exterior lighting | BH3: One energy model. Submeter buildings | BL3: A central heating plant serves only buildings in this project | BN3: A central cooling plant serves only the buildings in this project | CA3: rbSiteRenewable | CJ3: NumBuildings | CK3: 2 | CL3: PRM_Outputs(1) | CM3: 0 | CO3: kWh | CP3: 1 | CS3: Energy code does not require four orientations | CU3: Dishwasher | CV3: 206 | CW3: 164 | CX3: 0.6 | CY3: 0.15 | CZ3: 0 | DE3: 0 | DF3: 1 | DG3: =IF(SI_IP_Units="IP",1290,4883) -> 1290 | DH3: =IF(SI_IP_Units="IP",860,3255) -> 860 | DJ3: Restrooms | DK3: 0.2 | DL3: 0.7 | DO3: All | DR3: =IF(MBD_LEEDNDEMSubsetExist=TRUE, OFFSET(MBD_BSTotal_Index,1,0,ROWS(MBD_BSTotal_Index)-1,1), IF(MultipleBuildingsExist="YES",OFFSET(MBD_BSTotal_Index,2,0,ROWS(MBD_BSTotal_Index)-2,1), OFFSET(MBD_BSTotal_Index,2,0,ROWS(MBD_BSTotal_Index)-2,1))) -> 0 | DV3: Mechanical ventilation was modeled following ENERGY STAR MFHR Simulation Guidelines Section 6.5.12. In the common spaces, the baseline ventilation rate was modeled the same as in the proposed design without exceeding ASHRAE 62.1-2013 (Simulation Guidelines Section 6.5.12, 1(b). In apartments, the baseline ventilation method (mechanical versus natural) and controls (continuous versus intermittent) was modeled as specified for each application. The baseline local mechanical exhaust from bathrooms and kitchens, and the baseline dwelling-unit ventilation rate was modeled using the same rates as in the Proposed Design, without exceeding the minimum required by ASHRAE 62.2-2013. If the same mechanical ventilation system was used to provide both local mechanical exhaust and whole-unit ventilation, the baseline ventilation rate was based on the greater of the two rates. | DW3: Per Section G3.1.2.5, the minimum ventilation system outdoor air intake flow was modeled the same for the proposed design and baseline building design except when modeling demand control ventilation in the proposed design (G3.1.2.5 Exception 1), for proposed designs with the zone air distribution effectiveness Ez>1.0 as defined in ASHRAE Standard 62.1 (G3.1.2.5 Exception 2), when proposed design has the minimum outdoor air intake flow in excess of the amount required by the building code or the rating authority (G3.1.2.5 Exception 3), or for the baseline systems serving certain laboratory spaces (G3.1.2.5 Exception 4). Indicate if any of the exceptions apply in the Additional Notes field. The Baseline outside air volume and Proposed outside air volume values must be reported consistently with the information provided in IEQ Prerequisite: Minimum Indoor Air Quality, or supplemental documentation must be provided to support the local OA volume requirements or Baseline calculations for systems with Ez > 1.0. | DX3: UfactorMethod | DY3: NFRC testing for manufactured fenestration assemblies | EA3: System 1 - PTAC | EB3: System 2 - PTHP
A4: 3 | B4: District Cooling | C4: 1 | E4: kBtu | F4: (British thermal unit) x 1,000 | G4: 1 | H4: 0.01 | I4: Btuh | J4: British thermal unit per hour | K4: 0.001 | Q4: Fixed Rates per unit of consumption varying seasonally | W4: ECCCNYS ASHRAE Standard 90.1 Appendix G | AF4: 20.1%-30.0% | AH4: Zone 2 | AL4: Solar thermal system | AO4: eQuest | AQ4: ASHRAE 90.1-2013 | AR4: Other approved code | AV4: 2A | AW4: Table 5.5-2 | AX4: Table 5.5-2 | AY4: CZ3 | BB4: 2A | BE4: Space heating | BL4: A district heating plant serves the buildings in this project, or an on-campus heating plant provides heating to buildings outside of this project | BN4: A district cooling plant serves the buildings in this project, or an on-campus cooling plant provides heating to buildings outside of this project | CA4: rbDES | CB4: 1 | CD4: Sheet | CE4: Start Row | CF4: Range Start Row | CG4: End Row | CH4: TargetRow | CL4: PRM_Outputs(2) | CM4: 0 | CO4: MWh | CP4: 1000 | CS4: Building is more than 50% existing based on floor area | CU4: Clothes Washer (In-unit) | CV4: 81 | CW4: 57 | CX4: 0.8 | CY4: 0 | CZ4: 0 | DE4: 0 | DF4: 1 | DG4: =IF(SI_IP_Units="IP",12179,46102)*0.2 -> 2435.8 | DH4: =IF(SI_IP_Units="IP",5637,21338)*0.2 -> 1127.4 | DJ4: Stairs | DK4: 0.2 | DL4: 0.7 | DO4: Other HVAC System | DR4: 0 | DX4: NFRC testing for site-assembled fenestration | DY4: Table A8.2 (windows) and Table A8.1 (skylights) | EA4: System 3 - PSZ-AC | EB4: System 4 - PSZ-HP
A5: 4 | B5: District Hot Water | C5: 1.2 | E5: therm | F5: therm | G5: 100 | H5: 1 | I5: MBH | J5: (British thermal unit per hour) x 1,000 | K5: 1 | Q5: Fixed Rates per unit of consumption and demand | W5: LEED v4 BD+C: Core and Shell | X5: Core and Shell | AF5: 30.1%-40.0% | AH5: Zone 3 | AL5: Geothermal heating system (not geoexchange) | AO5: HAP | AV5: 2B | AW5: Table 5.5-2 | AX5: Table 5.5-2 | AY5: CZ4 | BB5: 2B | BE5: Space cooling | CA5: rbDESguide | CB5: 1 | CD5: Project EAp2 Summary | CE5: 40 | CF5: =CE5+1 -> 41 | CG5: =CE5+$CE$2-1 -> 44 | CH5: =CG5 -> 44 | CO5: kBtu | CP5: 0.2930832356 | CS5: Design is dictated by site consideration* | CU5: Cooking (electric stove/range) | CV5: 604 | CW5: 604 | CX5: 0.4 | CY5: 0.3 | CZ5: 0 | DE5: 0 | DF5: 1 | DG5: 0 | DH5: 0 | DJ5: Support areas | DK5: 0.2 | DL5: 0.7 | DR5: All | DX5: NFRC testing for manufactured fenestration assemblies | DY5: LBNL Window 5 or Window 6 calculations | EA5: System 5 - Packaged VAV with reheat | EB5: System 6 - Packaged VAV with PFP boxes
A6: 5 | B6: District Steam | C6: 1.2 | E6: Btu x 10^6 | F6: (British thermal unit) x 1,000,000 | G6: 1000 | H6: 10 | I6: Btuh x 10^3 | J6: (British thermal unit per hour) x 1,000 | K6: 1 | Q6: Fixed Rates per unit of consumption and demand varying seasonally | W6: LEED v4 BD+C: Schools | X6: Schools - New Construction | AH6: Zone 4 | AL6: Geothermal electric system | AO6: IES | AV6: 3A | AW6: Table 5.5-3 | AX6: Table 5.5-3 | AY6: CZ5 | BB6: 3A | BE6: Pumps | CA6: rbDESAvg | CD6: Project EAp2 Summary | CE6: =CE5+CE2+22 -> 67 | CF6: 68 | CG6: 71 | CH6: =CH5-CF5+CF6 -> 71 | CO6: therm | CP6: 29.30832356 | CU6: Cooking (gas stove/range) | CZ6: 0 | DA6: =IF(SI_IP_Units="IP",45,45/0.03412) -> 45 | DB6: 45 | DC6: 0.3 | DD6: 0.2 | DE6: 0 | DF6: 1 | DG6: 0 | DH6: 0 | DJ6: Offices | DK6: 1.5 | DL6: 4.9 | DX6: Table A8.2 (windows) and Table A8.1 (skylights) | DY6: Energy simulation includes separate frame and glazing | EA6: System 7 - VAV with Reheat | EB6: System 8 - VAV with PFP boxes
A7: 6 | B7: Fuel Oil / Diesel | C7: 1.01 | E7: MJ | F7: (Joules) x 1,000,000 | G7: 0.948 | H7: 0.00948 | I7: Btuh x 10^6 | J7: (British thermal unit per hour) x 1,000,000 | K7: 1000 | Q7: Time of Use Rates per unit of consumption | W7: LEED v4 BD+C: Retail | X7: Retail - New Construction | AL7: On-site untreated wood waste - thermal | AO7: Trace | AV7: 3B | AW7: Table 5.5-3 | AX7: Table 5.5-3 | AY7: CZ6 | BB7: 3B | BE7: Heat rejection | CD7: Outputs(1) Building Performance | CE7: 31 | CF7: 32 | CG7: 35 | CH7: =CH6-CF6+CF7 -> 35 | CO7: Btu x 10^6 | CP7: 293.0832356 | CU7: Clothes Dryer (In-unit electric) | CV7: 418 | CW7: 418 | CX7: 0.15 | CY7: 0.05 | CZ7: 139 | DE7: 0 | DF7: 1 | DG7: 0 | DH7: 0 | DJ7: Other | DK7: 0.5 | DL7: 1.6 | DX7: LBNL Window 5 or Window 6 calculations | DY7: Other (Described below) | EA7: System 9 - Heating and ventilation | EB7: System 10 - Heating and ventilation
A8: 7 | B8: Propane | C8: 1.01 | D8: Yes | E8: Ton Hours | F8: Ton Hours | G8: 12 | H8: 0.12 | I8: MMBTUH | J8: (British thermal unit per hour) x 1,000,000 | K8: 1000 | Q8: Time of Use Rates per unit of consumption and demand | W8: LEED v4 BD+C: Data Centers | X8: Data Centers - New Construction | AL8: On-site untreated wood waste - electric generator | AO8: Other | AV8: 3C | AW8: Table 5.5-3 | AX8: Table 5.5-3 | AY8: CZ7 | BB8: 3C | BE8: Fans - interior ventilation | CD8: Outputs(1) Building Performance | CE8: =CE7+CE2+58 -> 94 | CF8: 95 | CG8: 98 | CH8: =CH7-CF7+CF8 -> 98 | CO8: MJ | CP8: 0.2778429074 | CU8: Clothes Dryer (In-unit gas) | CV8: 26.5 | CW8: 26.5 | CX8: 1 | CY8: 0 | CZ8: 8.8 | DC8: 0.1 | DD8: 0.05 | DE8: 12.7 | DF8: 1 | DG8: 0 | DH8: 0 | DX8: Energy simulation includes separate frame and glazing | EA8: System 11 - SZ-VAV | EB8: System 11 - SZ-VAV
A9: 8 | B9: Fuel Oil (No. 5 & No.6) | C9: 1.01 | I9: ton | J9: ton | K9: 12 | Q9: Time of Use Rates per unit of consumption varying seasonally | W9: LEED v4 BD+C: Warehouses and Distribution Centers | X9: Warehouses and Distribution Centers - New Construction | AL9: On-site agricultural crops or waste - thermal | AV9: 4A | AW9: Table 5.5-4 | AX9: Table 5.5-4 | AY9: CZ8 | BB9: 4A | BE9: Fans - parking garage | CD9: Outputs(1) Building Performance | CE9: =65+CE7+2*CE2 -> 106 | CF9: 107 | CG9: 110 | CH9: =CH8-CF8+CF9 -> 110 | CO9: Ton Hours | CP9: 3.516998828 | CU9: =CONCATENATE("Range hood, ",IF(SI_IP_Units="IP","up to 500 cfm","up to 236 L/s")) -> Range hood, up to 500 cfm | CV9: =1/IF(SI_IP_Units="IP",2.3,1.085)/1000*2*365 -> 0.3173913043 | CW9: =1/IF(SI_IP_Units="IP",2.8,1.321)/1000*2*365 -> 0.2607142857 | CX9: 0 | CY9: 0 | CZ9: 0 | DE9: 0 | DF9: 1 | DX9: Other (Describe) | EA9: System 12 - SZ-CV-HW | EB9: System 13 - SZ-CV-ER
A10: 9 | B10: Kerosene | C10: 1.01 | D10: Yes | Q10: Time of Use Rates per unit of consumption and demand varying seasonally | W10: LEED v4 BD+C: Hospitality | X10: Hospitality - New Construction | AL10: On-site agricultural crops or waste - electric | AR10: ASHRAE 90.1 2013 Appendix G Excerpt 2015 | AV10: 4B | AW10: Table 5.5-4 | AX10: Table 5.5-4 | AY10: CZ9 | BB10: 4B | BE10: Service water heating | CD10: Outputs(1) Building Performance | CE10: =123+CE7+3*CE2 -> 169 | CF10: 170 | CG10: 173 | CH10: =CH9-CF9+CF10 -> 173 | CO10: Energy Demand Units | CP10: convert to kWh | CU10: =CONCATENATE("Bath / Utility Fan, ",IF(SI_IP_Units="IP","10 to 89 cfm","5 to 42 L/s")) -> Bath / Utility Fan, 10 to 89 cfm | CV10: =1/IF(SI_IP_Units="IP",1.2,0.566)/1000*2*365 -> 0.6083333333 | CW10: =1/IF(SI_IP_Units="IP",1.4,0.661)/1000*2*365 -> 0.5214285714 | CX10: 0 | CY10: 0 | CZ10: 0 | DE10: 0 | DF10: 1
A11: 10 | B11: Coal (anthracite) | C11: 1 | D11: Yes | E11: cf (Natural Gas) | F11: cubic feet | G11: 1.029 | Q11: Block Charges per unit of consumptoin | W11: LEED v4 BD+C: Healthcare | X11: Healthcare | AL11: On-site animal or organic waste - thermal | AV11: 4C | AW11: Table 5.5-4 | AX11: Table 5.5-4 | AY11: CZ10 | BB11: 4C | BE11: Receptacle equipment | BF11: x | CO11: kW | CP11: 1 | CU11: =CONCATENATE("Bath / Utility Fan, ",IF(SI_IP_Units="IP","90 to 500 cfm","43 to 236 L/s")) -> Bath / Utility Fan, 90 to 500 cfm | CV11: =1/IF(SI_IP_Units="IP",2.3,1.085)/1000*2*365 -> 0.3173913043 | CW11: =1/IF(SI_IP_Units="IP",2.8,1.321)/1000*2*365 -> 0.2607142857 | CX11: 0 | CY11: 0 | CZ11: 0 | DE11: 0 | DF11: 1 | DX11: General HVAC drop-down
A12: 11 | B12: Coal (bituminous) | C12: 1 | D12: Yes | E12: ccf (Natural Gas) | F12: (cubic feet) x 100 | G12: 102.9 | Q12: Block charges per unit of consumption and demand | W12: LEED v4 ID+C: Commercial Interiors | X12: IDC | AL12: On-site animal or organic waste - electric | AV12: 5A | AW12: Table 5.5-5 | AX12: Table 5.5-5 | AY12: CZ11 | BB12: 5A | BE12: IT equipment | BF12: x | CO12: MW | CP12: 1000 | DX12: All equipment in the unfinished spaces not included in the project scope of work has been modeled identically in the Baseline and Proposed case using the Baseline modeling requirements
A13: 12 | B13: Coke | C13: 1 | D13: Yes | E13: kcf (Natural Gas) | F13: (cubic feet) x 1,000 | G13: 1029 | Q13: Block charges per unit of consumption varying seasonally | W13: LEED v4 ID+C: Retail | X13: IDC | AL13: On-site landfill gas - thermal | AV13: 5B | AW13: Table 5.5-5 | AX13: Table 5.5-5 | AY13: CZ12 | BB13: 5B | BE13: Interior lighting - process | BF13: x | CO13: Btuh | CP13: 0.0002930832356 | DX13: Credit has been modeled in the Proposed case for energy efficiency measures that are specifically identified in signed tenant sales and lease agreements (LEED Core & Shell only. New Construction must be modeled identically in the Baseline and Proposed Case).
A14: 13 | B14: Wood | C14: 1 | D14: Yes | E14: Mcf (Natural Gas) | F14: (cubic feet) x 1,000,000 | G14: 1029000 | Q14: Block charges per unit of consumption and demand varying seasonally | W14: LEED v4 ID+C: Hospitality | X14: IDC | AL14: On-site landfill gas - electric | AV14: 5C | AW14: Table 5.5-5 | AX14: Table 5.5-5 | AY14: CZ13 | BB14: 5C | BE14: Refrigeration equipment | BF14: x | CO14: MBH | CP14: 0.2930832356
E15: Lbs (District Steam) | F15: Pounds (District Steam) | G15: 1.194 | W15: LEED v4 BD+C Multifamily Midrise | X15: Homes | AV15: 6A | AW15: Table 5.5-6 | AX15: Table 5.5-6 | AY15: CZ14 | BB15: 6A | BE15: Cooking | BF15: x | CO15: Btuh x 10^3 | CP15: 0.2930832356 | DX15: Opaque Envelope - Construction
E16: kLbs (District Steam) | F16: (Pounds) x 1,000 | G16: 1194 | W16: LEED v4: Neighborhood Development | X16: ND | AV16: 6B | AW16: Table 5.5-6 | AX16: Table 5.5-6 | AY16: CZ15 | BB16: 6B | BE16: Fans - Kitchen Ventilation | BF16: x | CO16: Btuh x 10^6 | CP16: 293.0832356 | CU16: Multifamily Dwelling Unit Equipment List | CV16: =CONCATENATE("Base ",IF(SI_IP_Units="IP","(kWh/year)","kWh/year")) -> Base (kWh/year) | CW16: =CONCATENATE("Energy Star ",IF(SI_IP_Units="IP","(kWh/year)","kWh/year")) -> Energy Star (kWh/year) | CX16: Sensible ratio electric | CY16: Latent Ratio electric | CZ16: Elec Nbr Multiplier | DA16: =CONCATENATE("Base ",IF(SI_IP_Units="IP","(Therms/year)","kWh/year")) -> Base (Therms/year) | DB16: =CONCATENATE("Energy Star ",IF(SI_IP_Units="IP","(Therms/year)","kWh/year")) -> Energy Star (Therms/year) | DC16: Sensible ratio gas | DD16: Latent Ratio gas | DE16: Gas Nbr Multiplier | DF16: F | DG16: base Hot Water Load | DH16: Energy Star Hot Water Load | DX16: New
E17: MLbs (District Steam) | F17: (Pounds) x 1,000,000 | G17: 1194000 | AV17: 7A | AW17: Table 5.5-7 | AX17: Table 5.5-7 | AY17: CZ16 | BB17: 7A | BE17: Industrial Process | BF17: x | CO17: MMBTUH | CP17: 293.0832356 | CU17: Clothes Washer (Commercial) | CV17: 196 | CW17: 138 | CX17: 0.8 | CY17: 0 | CZ17: 0 | DE17: 0 | DF17: 1 | DG17: =IF(SI_IP_Units="IP",29515,111726)*0.2 -> 5903 | DH17: =IF(SI_IP_Units="IP",13661,51712)*0.2 -> 2732.2 | DX17: Existing
E18: liters (fuel oil/diesel) | G18: 36.06 | AV18: 7B | AW18: Table 5.5-7 | AX18: Table 5.5-7 | AY18: ="" ->  | BB18: 7B | BE18: Elevators and escalators | BF18: x | CO18: ton | CP18: 3.516998828 | CU18: Clothes Dryer (Commercial electric) | CV18: 418 | CW18: 418 | CX18: 0.15 | CY18: 0.05 | CZ18: 139 | DE18: 0 | DF18: 2.423 | DG18: 0 | DH18: 0
E19: gallons (fuel oil/diesel) | G19: 138.6905 | AV19: 8 | AW19: Table 5.5-8 | AX19: Table 5.5-8 | AY19: ="" ->  | BB19: 8 | BE19: Cogen - Electricity generated | CU19: Clothes Dryer (Commercial gas) | CV19: 26.5 | CW19: 26.5 | CX19: 0.1 | CY19: 0.05 | CZ19: 8.8 | DC19: 0.1 | DD19: 0.05 | DE19: 12.7 | DF19: 2.423 | DG19: 0 | DH19: 0 | DX19: Opaque Envelope - Space Conditioning
E20: liters (fuel oil no. 5 or no. 6) | G20: 38.92 | BE20: Cogen - Fuel Input | DX20: Nonresidential
E21: gallons (fuel oil no. 5 or no. 6) | G21: 149.69 | BE21: Cogen - Parasitic energy | DX21: Residential
E22: gallons (propane) | G22: 91.65 | BE22: Other (Please Specify) | DX22: Semiheated
E23: liters (propane) | G23: 23.83 | W23: =W2 -> LEED v4 BD+C: New Construction | X23: 1 | DX23: Unconditioned
E24: Lbs (anth. coal) | F24: Pounds (Anthracite Coal) | G24: 12.545 | W24: =W3 -> ENERGY STAR MFHR | X24: 2
E25: kLbs (anth. coal) | F25: (Pounds Anthracite Coal) x 1,000 | G25: 12545 | W25: ECCCNYS ASHRAE Standard 90.1 Appendix G | X25: 3 | DX25: Climate Zone
E26: MLbs (anth. coal) | F26: (Pounds Anthracite Coal) x 1,000,000 | G26: 12545000 | W26: LEED v4 BD+C: Core and Shell | X26: 4 | DX26: 1A
E27: Tons (anth. coal) | F27: Tons (Anthracite Coal) | G27: 24800 | W27: LEED v4 BD+C: Schools | X27: 5 | DX27: 1B
E28: Lbs (bit. coal) | F28: Pounds (Bituminous Coal) | G28: 12.465 | W28: LEED v4 BD+C: Retail | X28: 6 | DX28: 2A
E29: kLbs (bit. coal) | F29: (Pounds Bituminous Coal) x 1,000 | G29: 12465 | W29: LEED v4 BD+C: Data Centers | X29: 7 | DX29: 2B
E30: MLbs (bit. coal) | F30: (Pounds Bituminous Coal) x 1,000,000 | G30: 12465000 | W30: LEED v4 BD+C: Warehouses and Distribution Centers | X30: 8 | BE30: Campus Plant End Uses | DX30: 3A
E31: Tons (bit. coal) | F31: Tons (Bituminous Coal) | G31: 24930 | W31: LEED v4 BD+C: Hospitality | X31: 9 | BE31: Campus space cooling | DX31: 3B
E32: Lbs (coke) | F32: Pounds (coke) | G32: 12.4 | W32: LEED v4 BD+C: Healthcare | X32: 10 | BE32: Campus heat rejection | DX32: 3C
E33: kLbs (coke) | F33: (Pounds coke) x 1,000 | G33: 12400 | W33: LEED v4 ID+C: Commercial Interiors | X33: 11 | BE33: Campus pumps: Cooling & Heat Rejection | DX33: 4A
E34: MLbs (coke) | F34: (Pounds coke) x 1,000,000 | G34: 12400000 | W34: LEED v4 ID+C: Retail | X34: 12 | BE34: Campus space heating | DX34: 4B
E35: Tons (coke) | F35: Tons (coke) | G35: 24800 | W35: LEED v4 ID+C: Hospitality | X35: 13 | BE35: Campus pumps: Heating | DX35: 4C
E36: Lbs (wood) | F36: Pounds (wood) | G36: 7.69 | W36: LEED v4 BD+C Multifamily Midrise | X36: 14 | BE36: Campus Cogen - Electricity generated | DX36: 5A
E37: Tons (wood) | F37: Tons (wood) | G37: 15380 | W37: LEED v4: Neighborhood Development | X37: 15 | BE37: Campus Cogen - Fuel Input | DX37: 5B
W38: 0 | X38: 16 | BE38: Campus Cogen - Parasitic energy | DX38: 5C
W39: 0 | X39: 17 | DX39: 6A
W40: 0 | X40: 18 | DX40: 6B
DX41: 7A
DX42: 7B
DX43: 8
DX45: Air-Side HVAC adjustment drop-down (IP)
DX46: 0.5
DX47: 2.15
DX49: LEED Rating System
DX50: LEED v4 BD+C: New Construction
DX51: LEED v4 BD+C: Core and Shell
DX52: LEED v4 BD+C: Schools
DX53: LEED v4 BD+C: Retail
DX54: LEED v4 BD+C: Data Centers
DX55: LEED v4 BD+C: Warehouses and Distribution Centers
DX56: LEED v4 BD+C: Hospitality
DX57: LEED v4 BD+C: Healthcare
DX58: LEED v4 ID+C: Commercial Interiors
DX59: LEED v4 ID+C: Retail
DX60: LEED v4 ID+C: Hospitality
DX61: LEED v4 BD+C: Multifamily Midrise
DX62: LEED v4: Neighborhood Development
DX64: LEED project phase completeness
DX65: 90% Construction Documents
DX66: 100% Construction Documents
DX67: As-built Construction Documents
DX68: Other - Please Describe
B90: DESPath | C90: =IFERROR(IF('General Information'!K62,1,IF('General Information'!L62,2,IF('General Information'!M62,3,IF('General Information'!N62,4,0)))),"") -> 0
B91: 0 = No DES
B92: 1 = ASHRAE 90.1 without Addenda (Path 1)
B93: 2 = Full DES Performance Accounting Method (Path 2)
B94: 3 = Streamlined DES Accounting Method (Path3)
B96: DistrictHeating | C96: ='General Information'!L61 -> FALSE
B98: DistrictCooling | C98: ='General Information'!K61 -> FALSE
B100: ENERGY SOURCES 1
B102: Electricity | C102: kWh | D102: kW | E102: Standard energy sources
B103: Natural Gas | C103: therm | D103: Btuh
B105: =IF(DESPath=3,IF(DistrictHeating,"District Heating",IF(DistrictCooling,"District Cooling","")),"") ->  | E105: District energy sources
B106: =IF(DESPath=3,IF(AND(DistrictHeating,DistrictCooling),"District Cooling",""),"") -> 
B203: Building: | C203: 0
B204: Model Input Parameter | F204: Baseline Case | H204: Proposed Case
B205: Shading Devices | G205: No shading projections, manual shading devices, or self-shading have been modeled for the Baseline building
G206: Any shading by adjacent structures and terrain has been modeled identically to the Proposed case (if applicable)
B207: Building Shape & Orientation | G207: The Baseline building is modeled with the same shape and orientation as the Proposed building, and for new construction rotated 90°, 180°, and 270°
B208: Above-Grade Wall & Vertical Glazing Area by Orientation | D208: Orientation | F208: Above-Grade Wall Area (ft2) | H208: Above-Grade Wall Area (ft2) | I208: Vertical Glazing Area
I209: (ft2) | K209: (%)
D210: North | F210: =IF(H210=0,"Identical to Proposed case",H210) -> Identical to Proposed case | K210: =IF(H210=0,"",I210/H210) -> 
D211: East | F211: =IF(H211=0,"Identical to Proposed case",H211) -> Identical to Proposed case | K211: =IF(H211=0,"",I211/H211) -> 
D212: South | F212: =IF(H212=0,"Identical to Proposed case",H212) -> Identical to Proposed case | K212: =IF(H212=0,"",I212/H212) -> 
D213: West | F213: =IF(H213=0,"Identical to Proposed case",H213) -> Identical to Proposed case | K213: =IF(H213=0,"",I213/H213) -> 
D214: Total | F214: =IF(H214=0,"Identical to Proposed case",H214) -> Identical to Proposed case | H214: =SUM(H210:H213) -> 0 | I214: =SUM(I210:I213) -> 0 | K214: =IF(H214=0,"",I214/H214) -> 
B215: Roof & Skylight Area | F215: Roof Area (ft2) | H215: Roof Area (ft2) | I215: Skylight Area
I216: (ft2) | K216: (%)
F217: =IF(H217=0,"Identical to Proposed case",H217) -> Identical to Proposed case | K217: =IF(H217=0,"",I217/H217) -> 
B218: =IF(#REF!="","",IF(#REF!<=0.4,"","**Baseline vertical glazing areas limited to 40% of gross above-grade wall area per Table G3.1#5(c)")) -> 

Sheet Envelope Assumptions (hidden)
A1: Climate Zone | B1: Roof Constructions | E1: Above-Grade Exterior Wall Constructions | H1: Below-Grade Exterior Wall Constructions | K1: Exposed Floor Constructions | N1: Slab-On-Grade Floors | Q1: Opaque Doors - Swinging | T1: Opaque Doors - Nonwwinging | X1: Roof Constructions | AA1: Above-Grade Exterior Wall Constructions | AD1: Below-Grade Exterior Wall Constructions | AG1: Exposed Floor Constructions | AJ1: Slab-On-Grade Floors | AM1: Opaque Doors - Swinging | AP1: Opaque Doors - Nonswinging | AT1: Vertical Glazing - Ufactor | BF1: Vertical Glazing - SHGC | BR1: Skylights - Ufactor | BX1: Skylights - SHGC | CI1: Table G3.1.1-1
B2: Nonresidential | C2: Residential | D2: Semiheated | E2: Nonresidential | F2: Residential | G2: Semiheated | H2: Nonresidential | I2: Residential | J2: Semiheated | K2: Nonresidential | L2: Residential | M2: Semiheated | N2: Nonresidential | O2: Residential | P2: Semiheated | Q2: Nonresidential | R2: Residential | S2: Semiheated | T2: Nonresidential | U2: Residential | V2: Semiheated | X2: Nonresidential | Y2: Residential | Z2: Semiheated | AA2: Nonresidential | AB2: Residential | AC2: Semiheated | AD2: Nonresidential | AE2: Residential | AF2: Semiheated | AG2: Nonresidential | AH2: Residential | AI2: Semiheated | AJ2: Nonresidential | AK2: Residential | AL2: Semiheated | AM2: Nonresidential | AN2: Residential | AO2: Semiheated | AP2: Nonresidential | AQ2: Residential | AR2: Semiheated | AT2: Nonresidential 0%-10.0% | AU2: Residential 0%-10.0% | AV2: Semiheated 0%-10.0% | AW2: Nonresidential 10.1%-20.0% | AX2: Residential 10.1%-20.0% | AY2: Semiheated 10.1%-20.0% | AZ2: Nonresidential 20.1%-30.0% | BA2: Residential 20.1%-30.0% | BB2: Semiheated 20.1%-30.0% | BC2: Nonresidential 30.1%-40.0% | BD2: Residential 30.1%-40.0% | BE2: Semiheated 30.1%-40.0% | BF2: Nonresidential 0%-10.0% | BG2: Residential 0%-10.0% | BH2: Semiheated 0%-10.0% | BI2: Nonresidential 10.1%-20.0% | BJ2: Residential 10.1%-20.0% | BK2: Semiheated 10.1%-20.0% | BL2: Nonresidential 20.1%-30.0% | BM2: Residential 20.1%-30.0% | BN2: Semiheated 20.1%-30.0% | BO2: Nonresidential 30.1%-40.0% | BP2: Residential 30.1%-40.0% | BQ2: Semiheated 30.1%-40.0% | BR2: Nonresidential 0%-2.0% | BS2: Nonresidential 2.1%+ | BT2: Residential 0%-2.0% | BU2: Residential 2.1%+ | BV2: Seimiheated 0%-2.0% | BW2: Seimiheated 2.1%+ | BX2: Nonresidential 0%-2.0% | BY2: Nonresidential 2.1%+ | BZ2: Residential 0%-2.0% | CA2: Residential 2.1%+ | CB2: Seimiheated 0%-2.0% | CC2: Seimiheated 2.1%+ | CI2: Building Area Type | CJ2: Baseline Building Gross Above-Grade-Wall Area
A3: 1A (IP) | B3: R-15 insulation entirely above deck with a U-factor of 0.063 | C3: R-20 insulation entirely above deck with a U-factor of 0.048 | D3: R-3.8 insulation entirely above deck with a U-factor of 0.218 | E3: steel-framed with R-13 cavity insulation with a U-factor of 0.124 | F3: steel-framed with R-13 cavity insulation with a U-factor of 0.124 | G3: steel-framed with no insulation with a U-factor of 0.352 | H3: 8" medium weight concrete block with solid grouted cores and no insulation with a C-factor of 1.140 | I3: 8" medium weight concrete block with solid grouted cores and no insulation with a C-factor of 1.140 | J3: 8" medium weight concrete block with solid grouted cores and no insulation with a C-factor of 1.140 | K3: steel-joist with no insulation with a U-factor of 0.350 | L3: steel-joist with no insulation with a U-factor of 0.350 | M3: steel-joist with no insulation with a U-factor of 0.350 | N3: 6" concrete slabs with no insulation with an F-factor of 0.730 | O3: 6" concrete slabs with no insulation with an F-factor of 0.730 | P3: 6" concrete slabs with no insulation with an F-factor of 0.730 | Q3: U-factor of 0.700 | R3: U-factor of 0.700 | S3: U-factor of 0.700 | T3: U-factor of 1.450 | U3: U-factor of 1.450 | V3: U-factor of 1.450 | X3: 0.063 | Y3: 0.048 | Z3: 0.218 | AA3: 0.124 | AB3: 0.124 | AC3: 0.352 | AD3: 1.14 | AE3: 1.14 | AF3: 1.14 | AG3: 0.35 | AH3: 0.35 | AI3: 0.35 | AJ3: 0.73 | AK3: 0.73 | AL3: 0.73 | AM3: 0.7 | AN3: 0.7 | AO3: 0.7 | AP3: 1.45 | AQ3: 1.45 | AR3: 1.45 | AT3: 1.2 | AU3: 1.2 | AV3: 1.2 | BF3: 0.25 | BG3: 0.25 | BH3: 0.25 | BO3: 0.25 | BP3: 0.25 | BQ3: 0.25 | BR3: 1.98 | BS3: 1.98 | BT3: 1.98 | BU3: 1.98 | BV3: 1.98 | BW3: 1.98 | BX3: 0.36 | BY3: 0.19 | BZ3: 0.34 | CA3: 0.27 | CB3: 0.36 | CC3: 0.19 | CI3: Grocery Store | CJ3: 0.07
A4: 1A (SI) | B4: R-2.6 c.i. insulation entirely above deck with a U-factor of 0.360 | C4: R-3.5 c.i. insulation entirely above deck with a U-factor of 0.273 | D4: R-0.7 c.i. insulation entirely above deck with a U-factor of 1.240 | E4: steel-framed with R-2.3 cavity insulation with a U-factor of 0.705 | F4: steel-framed with R-2.3 cavity insulation with a U-factor of 0.705 | G4: steel-framed with no insulation with a U-factor of 1.998 | H4: 205 mm medium weight concrete block with solid grouted cores and no insulation with a C-factor of 6.473 | I4: 205 mm medium weight concrete block with solid grouted cores and no insulation with a C-factor of 6.473 | J4: 205 mm medium weight concrete block with solid grouted cores and no insulation with a C-factor of 6.473 | K4: steel-joist with no insulation with a U-factor of 1.986 | L4: steel-joist with no insulation with a U-factor of 1.986 | M4: steel-joist with no insulation with a U-factor of 1.986 | N4: 150 mm concrete slabs with no insulation with an F-factor of 1.264 | O4: 150 mm concrete slabs with no insulation with an F-factor of 1.264 | P4: 150 mm concrete slabs with no insulation with an F-factor of 1.264 | Q4: U-factor of 3.975 | R4: U-factor of 3.975 | S4: U-factor of 3.975 | T4: U-factor of 8.233 | U4: U-factor of 8.233 | V4: U-factor of 8.233 | X4: 0.36 | Y4: 0.273 | Z4: 1.24 | AA4: 0.705 | AB4: 0.705 | AC4: 1.998 | AD4: 6.473 | AE4: 6.473 | AF4: 6.473 | AG4: 1.986 | AH4: 1.986 | AI4: 1.986 | AJ4: 1.264 | AK4: 1.264 | AL4: 1.264 | AM4: 3.975 | AN4: 3.975 | AO4: 3.975 | AP4: 8.233 | AQ4: 8.233 | AR4: 8.233 | AT4: 6.81 | AU4: 6.81 | AV4: 6.81 | BF4: 0.25 | BG4: 0.25 | BH4: 0.25 | BO4: 0.25 | BP4: 0.25 | BQ4: 0.25 | BR4: 11.24 | BS4: 11.24 | BT4: 11.24 | BU4: 11.24 | BV4: 11.24 | BW4: 11.24 | BX4: 0.36 | BY4: 0.19 | BZ4: 0.34 | CA4: 0.27 | CB4: 0.36 | CC4: 0.19 | CI4: Healthcare (outpatient) | CJ4: 0.21
A5: 1B (IP) | B5: R-15 insulation entirely above deck with a U-factor of 0.063 | C5: R-20 insulation entirely above deck with a U-factor of 0.048 | D5: R-3.8 insulation entirely above deck with a U-factor of 0.218 | E5: steel-framed with R-13 cavity insulation with a U-factor of 0.124 | F5: steel-framed with R-13 cavity insulation with a U-factor of 0.124 | G5: steel-framed with no insulation with a U-factor of 0.352 | H5: 8" medium weight concrete block with solid grouted cores and no insulation with a C-factor of 1.140 | I5: 8" medium weight concrete block with solid grouted cores and no insulation with a C-factor of 1.140 | J5: 8" medium weight concrete block with solid grouted cores and no insulation with a C-factor of 1.140 | K5: steel-joist with no insulation with a U-factor of 0.350 | L5: steel-joist with no insulation with a U-factor of 0.350 | M5: steel-joist with no insulation with a U-factor of 0.350 | N5: 6" concrete slabs with no insulation with an F-factor of 0.730 | O5: 6" concrete slabs with no insulation with an F-factor of 0.730 | P5: 6" concrete slabs with no insulation with an F-factor of 0.730 | Q5: U-factor of 0.700 | R5: U-factor of 0.700 | S5: U-factor of 0.700 | T5: U-factor of 1.450 | U5: U-factor of 1.450 | V5: U-factor of 1.450 | X5: 0.063 | Y5: 0.048 | Z5: 0.218 | AA5: 0.124 | AB5: 0.124 | AC5: 0.352 | AD5: 1.14 | AE5: 1.14 | AF5: 1.14 | AG5: 0.35 | AH5: 0.35 | AI5: 0.35 | AJ5: 0.73 | AK5: 0.73 | AL5: 0.73 | AM5: 0.7 | AN5: 0.7 | AO5: 0.7 | AP5: 1.45 | AQ5: 1.45 | AR5: 1.45 | AT5: 1.2 | AU5: 1.2 | AV5: 1.2 | BF5: 0.25 | BG5: 0.25 | BH5: 0.25 | BO5: 0.25 | BP5: 0.25 | BQ5: 0.25 | BR5: 1.98 | BS5: 1.98 | BT5: 1.98 | BU5: 1.98 | BV5: 1.98 | BW5: 1.98 | BX5: 0.36 | BY5: 0.19 | BZ5: 0.34 | CA5: 0.27 | CB5: 0.36 | CC5: 0.19 | CI5: Hospital | CJ5: 0.27
A6: 1B (SI) | B6: R-2.6 c.i. insulation entirely above deck with a U-factor of 0.360 | C6: R-3.5 c.i. insulation entirely above deck with a U-factor of 0.273 | D6: R-0.7 c.i. insulation entirely above deck with a U-factor of 1.240 | E6: steel-framed with R-2.3 cavity insulation with a U-factor of 0.705 | F6: steel-framed with R-2.3 cavity insulation with a U-factor of 0.705 | G6: steel-framed with no insulation with a U-factor of 1.998 | H6: 205 mm medium weight concrete block with solid grouted cores and no insulation with a C-factor of 6.473 | I6: 205 mm medium weight concrete block with solid grouted cores and no insulation with a C-factor of 6.473 | J6: 205 mm medium weight concrete block with solid grouted cores and no insulation with a C-factor of 6.473 | K6: steel-joist with no insulation with a U-factor of 1.986 | L6: steel-joist with no insulation with a U-factor of 1.986 | M6: steel-joist with no insulation with a U-factor of 1.986 | N6: 150 mm concrete slabs with no insulation with an F-factor of 1.264 | O6: 150 mm concrete slabs with no insulation with an F-factor of 1.264 | P6: 150 mm concrete slabs with no insulation with an F-factor of 1.264 | Q6: U-factor of 3.975 | R6: U-factor of 3.975 | S6: U-factor of 3.975 | T6: U-factor of 8.233 | U6: U-factor of 8.233 | V6: U-factor of 8.233 | X6: 0.36 | Y6: 0.273 | Z6: 1.24 | AA6: 0.705 | AB6: 0.705 | AC6: 1.998 | AD6: 6.473 | AE6: 6.473 | AF6: 6.473 | AG6: 1.986 | AH6: 1.986 | AI6: 1.986 | AJ6: 1.264 | AK6: 1.264 | AL6: 1.264 | AM6: 3.975 | AN6: 3.975 | AO6: 3.975 | AP6: 8.233 | AQ6: 8.233 | AR6: 8.233 | AT6: 6.81 | AU6: 6.81 | AV6: 6.81 | BF6: 0.25 | BG6: 0.25 | BH6: 0.25 | BO6: 0.25 | BP6: 0.25 | BQ6: 0.25 | BR6: 11.24 | BS6: 11.24 | BT6: 11.24 | BU6: 11.24 | BV6: 11.24 | BW6: 11.24 | BX6: 0.36 | BY6: 0.19 | BZ6: 0.34 | CA6: 0.27 | CB6: 0.36 | CC6: 0.19 | CI6: Hotel/motel (≤ 75 rooms) | CJ6: 0.24
A7: 2A (IP) | B7: R-20 insulation entirely above deck with a U-factor of 0.048 | C7: R-20 insulation entirely above deck with a U-factor of 0.048 | D7: R-3.8 insulation entirely above deck with a U-factor of 0.218 | E7: steel-framed with R-13 cavity insulation with a U-factor of 0.124 | F7: steel-framed with R-13 cavity and R-7.5 continuous insulation with a U-factor of 0.064 | G7: steel-framed with R-13 cavity insulation with a U-factor of 0.124 | H7: 8" medium weight concrete block with solid grouted cores and no insulation with a C-factor of 1.140 | I7: 8" medium weight concrete block with solid grouted cores and no insulation with a C-factor of 1.140 | J7: 8" medium weight concrete block with solid grouted cores and no insulation with a C-factor of 1.140 | K7: steel-joist with R-19 insulation with a U-factor of 0.052 | L7: steel-joist with R-19 insulation with a U-factor of 0.052 | M7: steel-joist with R-13 insulation with a U-factor of 0.069 | N7: 6" concrete slabs with no insulation with an F-factor of 0.730 | O7: 6" concrete slabs with no insulation with an F-factor of 0.730 | P7: 6" concrete slabs with no insulation with an F-factor of 0.730 | Q7: U-factor of 0.700 | R7: U-factor of 0.700 | S7: U-factor of 0.700 | T7: U-factor of 1.450 | U7: U-factor of 0.500 | V7: U-factor of 1.450 | X7: 0.048 | Y7: 0.048 | Z7: 0.218 | AA7: 0.124 | AB7: 0.064 | AC7: 0.124 | AD7: 1.14 | AE7: 1.14 | AF7: 1.14 | AG7: 0.052 | AH7: 0.052 | AI7: 0.069 | AJ7: 0.73 | AK7: 0.73 | AL7: 0.73 | AM7: 0.7 | AN7: 0.7 | AO7: 0.7 | AP7: 1.45 | AQ7: 0.5 | AR7: 1.45 | AT7: 0.75 | AU7: 0.7 | AV7: 1.1 | BF7: 0.25 | BG7: 0.25 | BH7: 0.25 | BO7: 0.25 | BP7: 0.25 | BQ7: 0.25 | BR7: 1.98 | BS7: 1.98 | BT7: 1.98 | BU7: 1.98 | BV7: 1.98 | BW7: 1.98 | BX7: 0.36 | BY7: 0.19 | BZ7: 0.39 | CA7: 0.34 | CB7: 0.36 | CC7: 0.19 | CI7: Hotel/motel (> 75 rooms) | CJ7: 0.34
A8: 2A (SI) | B8: R-3.5 c.i. insulation entirely above deck with a U-factor of 0.273 | C8: R-3.5 c.i. insulation entirely above deck with a U-factor of 0.273 | D8: R-0.7 c.i. insulation entirely above deck with a U-factor of 1.240 | E8: steel-framed with R-2.3 cavity insulation with a U-factor of 0.705 | F8: steel-framed with R-2.3 cavity and R-1.3 continuous insulation with a U-factor of 0.365 | G8: steel-framed with R-2.3 cavity insulation with a U-factor of 0.705 | H8: 205 mm medium weight concrete block with solid grouted cores and no insulation with a C-factor of 6.473 | I8: 205 mm medium weight concrete block with solid grouted cores and no insulation with a C-factor of 6.473 | J8: 205 mm medium weight concrete block with solid grouted cores and no insulation with a C-factor of 6.473 | K8: steel-joist with R-3.3 insulation with a U-factor of 0.296 | L8: steel-joist with R-3.3 insulation with a U-factor of 0.296 | M8: steel-joist with R-2.3 insulation with a U-factor of 0.390 | N8: 150 mm concrete slabs with no insulation with an F-factor of 1.264 | O8: 150 mm concrete slabs with no insulation with an F-factor of 1.264 | P8: 150 mm concrete slabs with no insulation with an F-factor of 1.264 | Q8: U-factor of 3.975 | R8: U-factor of 3.975 | S8: U-factor of 3.975 | T8: U-factor of 8.233 | U8: U-factor of 2.839 | V8: U-factor of 8.233 | X8: 0.273 | Y8: 0.273 | Z8: 1.24 | AA8: 0.705 | AB8: 0.365 | AC8: 0.705 | AD8: 6.473 | AE8: 6.473 | AF8: 6.473 | AG8: 0.296 | AH8: 0.296 | AI8: 0.39 | AJ8: 1.264 | AK8: 1.264 | AL8: 1.264 | AM8: 3.975 | AN8: 3.975 | AO8: 3.975 | AP8: 8.233 | AQ8: 2.839 | AR8: 8.233 | AT8: 4.26 | AU8: 3.97 | AV8: 6.25 | BF8: 0.25 | BG8: 0.25 | BH8: 0.25 | BO8: 0.25 | BP8: 0.25 | BQ8: 0.25 | BR8: 11.24 | BS8: 11.24 | BT8: 11.24 | BU8: 11.24 | BV8: 11.24 | BW8: 11.24 | BX8: 0.36 | BY8: 0.19 | BZ8: 0.39 | CA8: 0.34 | CB8: 0.36 | CC8: 0.19 | CI8: Office (≤ 5,000 sf) | CJ8: 0.19
